Workbook

Sheet 1-C4 Scenario
A1: Cornell Covid Caseload Calculator (C4) © Nathaniel Hupert, Peter L. Jackson, Michael G. Klein, John A. Muckstadt 2020
A2: v6.44 | B2: 3/25/2020, 10:30
A3: This spreadsheet tool is designed to assist in anticipating COVID caseloads for a specified population catchment area (e.g., single hospital, hospital network, region, state, nation)
A4: CDC "MILD" and "SEVERE" Modeling Parameters Version 7, Dated 06-Mar-2020, see CAVEAT below about appropriateness of using these estimates for prediction vs. planning | N4: These are all Gamma distributions--the parameters are listed to the RIGHT
A5: INSTRUCTIONS: FILL OUT BLUE BOXES THIS PAGE AND GREEN BOXES NEXT PAGE | W5: Function "=gamma.dist(day, alpha, beta, FALSE)"
A6: SCENARIO PARAMETERS | W6: alpha | X6: beta | Y6: Name | Z6: Mean of gamma
A7: INPUTS | B7: in BLUE | F7: OUTPUTS | G7: INFECTION RATE | H7: =D20 -> 0.35 | J7: MODIFIED CDC MILD SCENARIO | L7: MODIFIED CDC SEVERE SCENARIO | W7: 7 | X7: 5 | Y7: 30, A-type | Z7: 35
G8: ASYMPTOMATIC RATE | H8: =1-D22 -> 0.5 | I8: % to HOSPITAL | J8: =J21/(E17*D20*D22) -> 0.07359232848 | L8: =K21/(E17*D20*D22) -> 0.2014918734 | W8: 13 | X8: 2.5 | Y8: 30, B-type | Z8: 32.5
I9: % HOSPITAL to ICU | J9: =L31/J20 -> 0.1393755671 | L9: =M31/K20 -> 0.2358850569 | W9: 21 | X9: 1.5 | Y9: 30, C-type | Z9: 31.5
A10: Step 1 | B10: Enter age-stratified catchment population: | G10: 1.TOTAL Symptomatic Cases | I10: =E17*D20*D22 -> 1322802.81 | W10: 31 | X10: 1 | Y10: 30, D-type | Z10: 31
B11: Age Range | C11: Total Area Pop | D11: X Hospital System Market Share | E11: Modeled Pop. | G11: 2. Total Hospitalizations by Age and Scenario | K11: Overall % of Symptomatic Infected to Hospital | W11: 68 | X11: 0.45 | Y11: 30, E-type | Z11: 30.6
B12: 0 to 4 | C12: 535240 | E12: =C12*$D$14 -> 481716 | J12: TOTAL HOSPITALIZATIONS | W12: 7 | X12: 10 | Y12: 60, A-type | Z12: 70
B13: 5 to 17 | C13: 1191681.505 | E13: =C13*$D$14 -> 1072513.354 | I13: Age Range | J13: MILD SCENARIO | K13: SEVERE SCENARIO | W13: 13 | X13: 5 | Y13: 60, B-type | Z13: 65
B14: 18 to 49 | C14: 3898692.495 | D14: 0.9 | E14: =C14*$D$14 -> 3508823.246 | I14: 0 to 4 | J14: =$E12*$D$20*$D$22*E26 -> 2265.570562 | K14: 9062.28225 | W14: 21 | X14: 3 | Y14: 60, C-type | Z14: 63
B15: 50 to 64 | C15: 1527041 | E15: =C15*$D$14 -> 1374336.9 | I15: 5 to 17 | J15: 2017.665748 | K15: 8070.662991 | W15: 31 | X15: 2 | Y15: 60, D-type | Z15: 62
B16: 65+ | C16: 1246093 | E16: =C16*$D$14 -> 1121483.7 | I16: 18 to 49 | J16: 16502.43433 | K16: 66009.73731 | W16: 68 | X16: 0.9 | Y16: 60, E-ype | Z16: 61.2
B17: TOTAL | C17: =SUM(C12:C16) -> 8398748 | E17: =SUM(E12:E16) -> 7558873.2 | I17: 50 to 64 | J17: 9049.149526 | K17: 36196.5981 | W17: 7 | X17: 15 | Y17: 90, A-type | Z17: 105
A18: Step 2 | B18: Enter your assumed overall attack rate: | I18: 65+ | J18: 67513.31874 | K18: 147194.7356 | W18: 13 | X18: 7.5 | Y18: 90, B-type | Z18: 97.5
B19: (% population that will eventually become infected, even if asymptomatic) | I19: <18 | J19: =SUM(J14:J15) -> 4283.23631 | K19: =SUM(K14:K15) -> 17132.94524 | W19: 21 | X19: 4.5 | Y19: 90, C-type | Z19: 94.5
C20: Infection Rate | D20: 0.35 | I20: 18+ | J20: =J21-J19 -> 93064.90259 | K20: =K21-K19 -> 249401.071 | W20: 31 | X20: 3 | Y20: 90, D-type | Z20: 93
A21: Step 3 | B21: Enter the assumed % of people with the infection who are SYMPTOMATIC : | I21: TOTAL | J21: =SUM(J14:J18) -> 97348.1389 | K21: =SUM(K14:K18) -> 266534.0163 | W21: 68 | X21: 1.35 | Y21: 90, E-type | Z21: 91.8
C22: % Symptomatic | D22: 0.5 | E22: Base case: 50% | G22: 3. Total Medical/Surgical and Critical Care hospitalizations over entire outbreak | W22: 8 | X22: 6.2 | Y22: 45, ~B-C-type | Z22: 49.6
A23: Step 4 | B23: Adjust TOTAL case hospitalization ratio (CHR) over duration of event (limit = 50%): | H23: TOTAL MEDICAL/SURGICAL CASES | L23: TOTAL ICU/CRITICAL CARE CASES
B24: (Based on CDC modeling parameters) | D24: Adjustment Factor (0% = CDC parameters) | F24: 1.15 | G24: Age Range | H24: MILD SCENARIO | I24: SEVERE SCENARIO | K24: Age Range | L24: MILD SCENARIO | M24: SEVERE SCENARIO | W24: NOTE: This combinatin
B25: Age Range | C25: CDC Mild | D25: CDC Severe | E25: Modeled Mild | F25: Modeled Severe | G25: 0 to 4 | H25: =J14-L25 -> 1959.718537 | I25: 7023.268744 | K25: 0 to 4 | L25: =J14*E35 -> 305.8520259 | M25: 2039.013506
B26: 0 to 4 | C26: 0.0125 | D26: 0.05 | E26: =C26*(1+$F$24) -> 0.026875 | F26: =D26*(1+$F$24) -> 0.1075 | G26: 5 to 17 | H26: 1654.485913 | I26: 5649.464093 | K26: 5 to 17 | L26: 363.1798346 | M26: 2421.198897
B27: 5 to 17 | C27: 0.005 | D27: 0.02 | E27: 0.01075 | F27: 0.043 | G27: 18 to 49 | H27: 14274.60569 | I27: 51157.54642 | K27: 18 to 49 | L27: 2227.828634 | M27: 14852.19089
B28: 18 to 49 | C28: 0.0125 | D28: 0.05 | E28: 0.026875 | F28: 0.1075 | G28: 50 to 64 | H28: 7420.302611 | I28: 25337.61867 | K28: 50 to 64 | L28: 1628.846915 | M28: 10858.97943
B29: 50 to 64 | C29: 0.0175 | D29: 0.07 | E29: 0.037625 | F29: 0.1505 | G29: 65+ | H29: 58399.02071 | I29: 114075.9201 | K29: 65+ | L29: 9114.29803 | M29: 33118.81552
B30: 65+ | C30: 0.16 | D30: 0.6 | E30: 0.344 | F30: =IF(D30*(1+$F$24)>0.75,0.75,D30*(1+$F$24)) -> 0.75 | G30: <18 | H30: =SUM(H25:H26) -> 3614.20445 | I30: =SUM(I25:I26) -> 12672.73284 | K30: <18 | L30: =SUM(L25:L26) -> 669.0318605 | M30: =SUM(M25:M26) -> 4460.212403
A31: Step 5 | B31: Adjust TOTAL assumed critical care hospitalization fraction (CCHF) over duration of entire event: | G31: 18+ | H31: =SUM(H27:H29) -> 80093.92901 | I31: =SUM(I27:I29) -> 190571.0852 | K31: 18+ | L31: =SUM(L27:L29) -> 12970.97358 | M31: =SUM(M27:M29) -> 58829.98584
D32: Adjustment Factor (0% = CDC parameters) | F32: 0.2 | G32: TOTAL | H32: =SUM(H25:H29) -> 83708.13346 | I32: =SUM(I25:I29) -> 203243.818 | K32: TOTAL | L32: =SUM(L30:L31) -> 13640.00544 | M32: =SUM(M30:M31) -> 63290.19825
B33: (Based on CDC modeling parameters) | D33: Relative % Severe (CDC baseline = 50%) | F33: 0.75 | G33: 4. Daily Medical/Surgical and Critical Care hospitalizations on Day… | K33: Day of Interest: | L33: 45 | M33: (1-180)
B34: Age Range | C34: CDC Mild | D34: CDC Severe | E34: Modeled Mild | F34: Modeled Severe | H34: DAILY MEDICAL/SURGICAL CASES | I34: =#REF! ->  | L34: DAILYICU/ CRITICAL CARE CASES
B35: 0 to 4 | C35: 0.15 | D35: 0.15 | E35: =C35*(1+$F$32)*(0.5+(1-$F$33)) -> 0.135 | F35: =D35*(1+$F$32)*(0.5+$F$33) -> 0.225 | G35: Age Range | H35: MILD SCENARIO | I35: SEVERE SCENARIO | K35: Age Range | L35: MILD SCENARIO | M35: SEVERE SCENARIO
B36: 5 to 17 | C36: 0.2 | D36: 0.2 | E36: =C36*(1+$F$32)*(0.5+(1-$F$33)) -> 0.18 | F36: =D36*(1+$F$32)*(0.5+$F$33) -> 0.3 | G36: 0 to 4 | H36: =VLOOKUP($L$33,Gamma.dist!$A$5:$F$185,2,)*H25 -> 46.8791659 | I36: =VLOOKUP($L$33,Gamma.dist!$A$5:$F$185,2,)*I25 -> 168.0062593 | K36: 0 to 4 | L36: =VLOOKUP($L$33,Gamma.dist!$A$5:$F$185,2,)*L25 -> 7.316401615 | M36: =VLOOKUP($L$33,Gamma.dist!$A$5:$F$185,2,)*M25 -> 48.77601076
B37: 18 to 49 | C37: 0.15 | D37: 0.15 | E37: 0.135 | F37: 0.225 | G37: 5 to 17 | H37: =VLOOKUP($L$33,Gamma.dist!$A$5:$F$185,2,)*H26 -> 39.57758125 | I37: =VLOOKUP($L$33,Gamma.dist!$A$5:$F$185,2,)*I26 -> 135.1429604 | K37: 5 to 17 | L37: =VLOOKUP($L$33,Gamma.dist!$A$5:$F$185,2,)*L26 -> 8.687761737 | M37: =VLOOKUP($L$33,Gamma.dist!$A$5:$F$185,2,)*M26 -> 57.91841158
B38: 50 to 64 | C38: 0.2 | D38: 0.2 | E38: 0.18 | F38: 0.3 | G38: 18 to 49 | H38: =VLOOKUP($L$33,Gamma.dist!$A$5:$F$185,2,)*H27 -> 341.4682241 | I38: =VLOOKUP($L$33,Gamma.dist!$A$5:$F$185,2,)*I27 -> 1223.758954 | K38: 18 to 49 | L38: =VLOOKUP($L$33,Gamma.dist!$A$5:$F$185,2,)*L27 -> 53.29272862 | M38: =VLOOKUP($L$33,Gamma.dist!$A$5:$F$185,2,)*M27 -> 355.2848575
B39: 65+ | C39: 0.15 | D39: 0.15 | E39: 0.135 | F39: 0.225 | G39: 50 to 64 | H39: =VLOOKUP($L$33,Gamma.dist!$A$5:$F$185,2,)*H28 -> 177.5038561 | I39: =VLOOKUP($L$33,Gamma.dist!$A$5:$F$185,2,)*I28 -> 606.1107282 | K39: 50 to 64 | L39: =VLOOKUP($L$33,Gamma.dist!$A$5:$F$185,2,)*L28 -> 38.9642611 | M39: =VLOOKUP($L$33,Gamma.dist!$A$5:$F$185,2,)*M28 -> 259.7617407
A40: Step 6 | B40: Choose the day of maximum cases: | G40: 65+ | H40: =VLOOKUP($L$33,Gamma.dist!$A$5:$F$185,2,)*H29 -> 1396.98499 | I40: =VLOOKUP($L$33,Gamma.dist!$A$5:$F$185,2,)*I29 -> 2728.85309 | K40: 65+ | L40: =VLOOKUP($L$33,Gamma.dist!$A$5:$F$185,2,)*L29 -> 218.0265591 | M40: =VLOOKUP($L$33,Gamma.dist!$A$5:$F$185,2,)*M29 -> 792.2476713
C41: MAX on day | D41: 45 | E41: (Technically the mode of the gamma dist.) | G41: <18 | H41: =SUM(H36:H37) -> 86.45674715 | I41: =SUM(I36:I37) -> 303.1492197 | K41: <18 | L41: =SUM(L36:L37) -> 16.00416335 | M41: =SUM(M36:M37) -> 106.6944223
A42: Step 7 | B42: Choose shape of the epidemic curve: | G42: 18+ | H42: =SUM(H38:H40) -> 1915.95707 | I42: =SUM(I38:I40) -> 4558.722772 | K42: 18+ | L42: =SUM(L38:L40) -> 310.2835489 | M42: =SUM(M38:M40) -> 1407.294269
C43: SHAPE | D43: A-type: Broad | E43: (SEE GRAPHIC AT TOP RIGHT) | G43: TOTAL | H43: =SUM(H36:H40) -> 2002.413817 | I43: =SUM(I36:I40) -> 4861.871991 | K43: TOTAL | L43: =SUM(L36:L40) -> 326.2877122 | M43: =SUM(M36:M40) -> 1513.988692
A44: Step 8 | B44: Enter details regarding hospitialization: length of stay, % mortality by location, and change in LOS for patients who die:
B45: MINIMUM LOS | C45: MAXIMUM LOS | D45: Fatality Ratio | E45: LOS Adjustment
B46: 3 | C46: 7 | D46: 0.05 | E46: 1.5 | F46: Adult medical/surgical ward beds
B47: 7 | C47: 21 | D47: 0.25 | E47: 1.5 | F47: Adult critical care beds
B48: 2 | C48: 4 | D48: 0.0001 | E48: 1 | F48: Pediatric medical/surgical ward beds
B49: 3 | C49: 6 | D49: 0.0002 | E49: 1 | F49: Pediatric critical/care beds
B50: (Note: LOS inputs assumed common for both Mild and Severe populations) | I50: Critical Care Patients Without Ventilator
A51: Step 9 | B51: Enter details for capacitated model: bed capacity, ventilator capacity, ventilator splitting (optional), and unventilated critical care patient parameters: | I51: Adult Critical Care Mild | J51: Pediatric Critical Care Mild | K51: Adult Critical Care Severe | L51: Pediatric Critical Care Severe
B52: Available Med-Surg Beds | C52: Available Critical Care Beds | D52: Available Critical Care Ventilators | E52: Patients per Ventilator | F52: Effective Ventilator Supply
H53: Survivor Minimum LOS | I53: 2 | J53: 2 | K53: 2 | L53: 2
B54: 20000 | C54: 2500 | D54: 1000 | E54: 2 | F54: =E54*D54 -> 2000 | H54: Survivor Maximum LOS | I54: 10 | J54: 10 | K54: 10 | L54: 10
H55: Mortality Ratio | I55: 0.95 | J55: 0.95 | K55: 0.95 | L55: 0.95
D56: =IF('1-C4 Scenario'!F54>'1-C4 Scenario'!C54,"***Ventilators exceed number of critical care beds","") ->  | H56: Victim LOS Adjustment Factor | I56: 0.5 | J56: 0.5 | K56: 0.5 | L56: 0.5
A57: CAVEAT: | B57: CDC Scenario Doc
B58: "The parameter values detailed … for the outbreak scenarios represent the professional and scientific judgments as values that would be appropriate to use for planning. Substantial scientific uncertainty remains around nearly all of these parameters." --Planning Parameters for COVID-19 Outbreak Scenarios
B61: DO NOT CLEAR: | C61: 0.01 | D61: 0.1 | G61: CHOICE: | H61: =VLOOKUP('1-C4 Scenario'!D43,'1-C4 Scenario'!G62:H67,2,) -> 1
C62: 0.03 | D62: 0.2 | F62: 30 | G62: E-type: Extremely peaked | H62: 5
C63: 0.05 | D63: 0.3 | F63: 45 | G63: D-type: Very peaked | H63: 4
C64: 0.07 | D64: 0.4 | F64: 60 | G64: C-type: A bit peaked | H64: 3
C65: 0.09 | D65: 0.5 | F65: 90 | G65: B-type: Somewhat broad | H65: 2
C66: 0.11 | D66: 0.6 | G66: A-type: Broad | H66: 1
C67: 0.13 | D67: 0.7 | H67: 0
C68: 0.15 | D68: 0.8
C69: 0.17 | D69: 0.9
C70: 0.19 | D70: 1
C71: 0.21
C72: 0.23
C73: 0.25
C74: 0.27
C75: 0.29
C76: 0.31
C77: 0.33
C78: 0.35
C79: 0.37
C80: 0.39
C81: 0.41
C82: 0.43
C83: 0.45
C84: 0.47
C85: 0.49
C86: 0.51
C87: 0.53
C88: 0.55
C89: 0.57
C90: 0.59
C91: 0.61
C92: 0.63
C93: 0.65
C94: 0.67
C95: 0.69
C96: 0.71
C97: 0.73
C98: 0.75
C99: 0.77
C100: 0.79
C101: 0.81
C102: 0.83
C103: 0.85
C104: 0.87
C105: 0.89
C106: 0.91
C107: 0.93
C108: 0.95
C109: 0.97
C110: 0.99

Sheet 2-C4 OUTPUT PAGE
A1: Cornell Covid Caseload Calculator (C4)
A2: © Nathaniel Hupert, Peter L. Jackson, Michael G. Klein, John A. Muckstadt 2020
A3: ='1-C4 Scenario'!A2 -> v6.44 | B3: ='1-C4 Scenario'!B2 -> 3/25/2020, 10:30
A4: This spreadsheet tool is designed to assist in anticipating COVID caseloads for a specified population catchment area (e.g., single hospital, hosptial network, region, state, nation).
A5: This sheet may be copy-pasted out of the workbook but be careful not to overwrite cells with links…
A6: Model Description
A7: The Cornell COVID Caseload Calculator combines mathematical calculation and stochastic simulation to provide estimates of both A) the rate at which patients in a designated catchment area may present for hospitalization due to the initial 2020 wave of SARS-CoV-2 causing COVID-19 disease, and B) the simulated hospital load caused by those patients to both medical/surgical and intensive care units, with specific attention paid to identifying the magnitude and timing of the peak daily hospital census for regular and critical care beds throughout the catchment area. Critical user input to run the model includes actual or estimated age-structured catchment population; overall (final) infection rate; percent (a)symptomatic cases; symptomatic case hospitalization and critical care ratios (both starting from U.S. Centers for Disease Control and Prevention (CDC) estimates); day of peak of epidemic curve; and shape of epidemic curve. The latter two may be estimated from epidemiological models (e.g., the Oxford-Cornell COVID INTERNATIONAL MODEL), and may be checked by day-to-day correlation with actual admission rates.
A13: Scenario Description
A14: This run of the Cornell C4 model use the following inputs to generate the calculations and simulation results:
A15: 1. The age structured population used was | C15: Age Range
C16: 0 to 4 | D16: ='1-C4 Scenario'!E12 -> 481716
C17: 5 to 17 | D17: ='1-C4 Scenario'!E13 -> 1072513.354
C18: 18 to 49 | D18: ='1-C4 Scenario'!E14 -> 3508823.246
C19: 50 to 64 | D19: ='1-C4 Scenario'!E15 -> 1374336.9
C20: 65+ | D20: ='1-C4 Scenario'!E16 -> 1121483.7
C21: TOTAL | D21: =SUM(D16:D20) -> 7558873.2
C22: This represents the following % of original inputted population: | D22: ='1-C4 Scenario'!D14 -> 0.9
A23: 2. The overall (end of outbreak) infection rate was set to be | D23: ='1-C4 Scenario'!D20 -> 0.35
A24: 3. The proportion of infections that are symptomatic is set to be | D24: ='1-C4 Scenario'!H8 -> 0.5
A25: 4. The CDC parameters were adjusted to make the following symptomatic case hospitalization ratios
A26: (Modified from CDC V7 "Mild" parameters) | C26: MILD | D26: ='1-C4 Scenario'!J8 -> 0.07359232848
A27: (Modified from CDC V7 "Severe" parameters) | C27: SEVERE | D27: ='1-C4 Scenario'!L8 -> 0.2014918734
A28: 5. The CDC parameters were adjusted to make the following hospitalized critical care ratios
C29: MILD | D29: ='1-C4 Scenario'!J9 -> 0.1393755671
C30: SEVERE | D30: ='1-C4 Scenario'!L9 -> 0.2358850569
A31: 6. The epidemic curve chosen to represent the arrival distribution is a Gamma distribution that has the following peak and characteristics (see Figure)
B33: Maximal Admissions on Day | D33: ='1-C4 Scenario'!D41 -> 45
B34: Shape of Epdemic Curve | D34: ='1-C4 Scenario'!D43 -> A-type: Broad
A36: 7. The deterministic simulation treats admissions to the hospital(s) of interest as equal to the analytically calculated number of daily arrivals of patients coming to the emergency department for admission. It also spreads the length of stay uniformly over the minimum and maximum values (in days). This simulation run used the following:
C39: ='1-C4 Scenario'!B45 -> MINIMUM LOS | D39: ='1-C4 Scenario'!C45 -> MAXIMUM LOS
B40: ='1-C4 Scenario'!F46 -> Adult medical/surgical ward beds | C40: ='1-C4 Scenario'!B46 -> 3 | D40: ='1-C4 Scenario'!C46 -> 7
B41: ='1-C4 Scenario'!F47 -> Adult critical care beds | C41: ='1-C4 Scenario'!B47 -> 7 | D41: ='1-C4 Scenario'!C47 -> 21
B42: ='1-C4 Scenario'!F48 -> Pediatric medical/surgical ward beds | C42: ='1-C4 Scenario'!B48 -> 2 | D42: ='1-C4 Scenario'!C48 -> 4
B43: ='1-C4 Scenario'!F49 -> Pediatric critical/care beds | C43: ='1-C4 Scenario'!B49 -> 3 | D43: ='1-C4 Scenario'!C49 -> 6
A44: 8. Because patients with COVID-19 who have fatal outcomes in hospital appear to have increased length of stay compared to survivors, it is possible to adjust these LOS parameters for fatal cases. This simulation run used the following:
C46: ='1-C4 Scenario'!D45 -> Fatality Ratio | D46: ='1-C4 Scenario'!E45 -> LOS Adjustment
B47: Adult medical/surgical ward beds | C47: ='1-C4 Scenario'!D46 -> 0.05 | D47: ='1-C4 Scenario'!E46 -> 1.5
B48: Adult critical care beds | C48: ='1-C4 Scenario'!D47 -> 0.25 | D48: ='1-C4 Scenario'!E47 -> 1.5
B49: Pediatric medical/surgical ward beds | C49: ='1-C4 Scenario'!D48 -> 0.0001 | D49: ='1-C4 Scenario'!E48 -> 1
B50: Pediatric critical/care beds | C50: ='1-C4 Scenario'!D49 -> 0.0002 | D50: ='1-C4 Scenario'!E49 -> 1
A52: Scenario Outputs
A53: 1. This simulation run created | B53: ='1-C4 Scenario'!E17*'1-C4 Scenario'!D20*'1-C4 Scenario'!D22 -> 1322802.81 | C53: symptomatic patients
A54: 2. This represents | B54: =B53/D21 -> 0.175 | C54: of the total catchment area population
A55: 3. The total number of patients hospitalized in each scenario was:
A56: MILD SCENARIO | B56: ='C4-AnalyticOutput'!D4 -> 97348.02452 | C56: which is | D56: =B56/B$53 -> 0.073592242 | E56: of the symptomatic population
A57: ='C4-AnalyticOutput'!F4 -> SEVERE SCENARIO | B57: ='C4-AnalyticOutput'!H4 -> 266533.7031 | C57: which is | D57: =B57/B$53 -> 0.2014916366 | E57: of the symptomatic population
A58: 4. Fatality Rates
A59: MILD SCENARIO | B59: Hospitalized Case Fatality Ratio | D59: =LOSModel!L29 -> 0.07445298569 | E59: HFR
A60: SEVERE SCENARIO | B60: Hospitalized Case Fatality Ratio | D60: =LOSModel!L30 -> 0.09093731218 | E60: HFR
A61: MILD SCENARIO | B61: Overall Symptomatic Case Fatality Ratio | D61: =LOSModel!L31 -> 0.005479162141 | E61: CFR
A62: SEVERE SCENARIO | B62: Overall Symptomatic Case Fatality Ratio | D62: =LOSModel!L32 -> 0.01832310786 | E62: CFR
A63: 5. Detailed Results of the MILD Scenario:
A64: ADULT | B64: Total Number Admitted | C64: Peak Daily Admissions | D64: Day of Peak Admissions | E64: Peak Hospital Census | F64: Day of Peak Census | G64: Total Deaths | H64: Total Discharges
A65: MILD Medical/Surgical | B65: =LOSModel!I19 -> 80093.8349 | C65: =LOSModel!J19 -> 1924.298143 | D65: =LOSModel!K19 -> 44 | E65: =LOSModel!G19 -> 12686.82976 | F65: =LOSModel!H19 -> 47 | G65: =LOSModel!L19 -> 4004.682772 | H65: =LOSModel!O19 -> 76089.05473
A66: MILD Critical Care | B66: =LOSModel!I20 -> 12970.95834 | C66: =LOSModel!J20 -> 311.6343607 | D66: =LOSModel!K20 -> 44 | E66: =LOSModel!G20 -> 5010.221087 | F66: =LOSModel!H20 -> 54 | G66: =LOSModel!L20 -> 3242.673078 | H66: =LOSModel!O20 -> 9728.154649
A67: PEDIATRIC
A68: MILD Medical/Surgical-Peds | B68: =LOSModel!I21 -> 3614.200203 | C68: =LOSModel!J21 -> 86.83313449 | D68: =LOSModel!K21 -> 44 | E68: =LOSModel!G21 -> 389.5773572 | F68: =LOSModel!H21 -> 46 | G68: =LOSModel!L21 -> 0.3614197893 | H68: =LOSModel!O21 -> 3613.836474
A69: MILD Critical Care-Peds | B69: =LOSModel!I22 -> 669.0310744 | C69: =LOSModel!J22 -> 16.07383709 | D69: =LOSModel!K22 -> 44 | E69: =LOSModel!G22 -> 95.89048283 | F69: =LOSModel!H22 -> 47 | G69: =LOSModel!L22 -> 0.1338060793 | H69: =LOSModel!O22 -> 668.8965903
A70: 6. Detailed Results of the SEVERE Scenario:
A71: ADULT | B71: Total Number Admitted | C71: Peak Daily Admissions | D71: Day of Peak Admissions | E71: Peak Hospital Census | F71: Day of Peak Census | G71: Total Deaths | H71: Total Discharges
A72: SEVERE Medical/Surgical | B72: =LOSModel!I23 -> 190570.8613 | C72: =LOSModel!J23 -> 4578.56906 | D72: =LOSModel!K23 -> 44 | E72: =LOSModel!G23 -> 30186.34426 | F72: =LOSModel!H23 -> 47 | G72: =LOSModel!L23 -> 9528.521714 | H72: =LOSModel!O23 -> 181042.1078
A73: SEVERE Critical Care | B73: =LOSModel!I24 -> 58829.91671 | C73: =LOSModel!J24 -> 1413.420891 | D73: =LOSModel!K24 -> 44 | E73: =LOSModel!G24 -> 22723.90995 | F73: =LOSModel!H24 -> 54 | G73: =LOSModel!L24 -> 14707.17754 | H73: =LOSModel!O24 -> 44122.14679
A74: PEDIATRIC
A75: SEVERE Medical/Surgical-Peds | B75: =LOSModel!I25 -> 12672.71795 | C75: =LOSModel!J25 -> 304.4689724 | D75: =LOSModel!K25 -> 44 | E75: =LOSModel!G25 -> 1366.001795 | F75: =LOSModel!H25 -> 46 | G75: =LOSModel!L25 -> 1.267270985 | H75: =LOSModel!O25 -> 12671.44258
A76: SEVERE Critical Care - Peds | B76: =LOSModel!I26 -> 4460.207163 | C76: =LOSModel!J26 -> 107.1589139 | D76: =LOSModel!K26 -> 44 | E76: =LOSModel!G26 -> 639.2698855 | F76: =LOSModel!H26 -> 47 | G76: =LOSModel!L26 -> 0.8920405285 | H76: =LOSModel!O26 -> 4459.310602
A77: 6. Adult Medical/Surgical Beds
C78: Peak SIMULTANEOUS Md/Surg Bed Requirement | E78: TOTAL Patient-Days for COVID Med/Surg Patients
B80: Total Medical Ward Patients | C80: (Max. Census) | D80: Day of Max Census
A81: MILD SCENARIO | B81: =B65 -> 80093.8349 | C81: =E65 -> 12686.82976 | D81: =F65 -> 47 | E81: =LOSModel!F19 -> 532623.6936
A82: SEVERE SCENARIO | B82: =B72 -> 190570.8613 | C82: =E72 -> 30186.34426 | D82: =F72 -> 47 | E82: =LOSModel!F23 -> 1267295.493
A83: 7. Adult ICU/ Critical Care Beds and Ventilators
C84: Peak SIMULTANEOUS ICU Bed Requirement | E84: TOTAL Patient-Days for COVID Critical Care Patients | F84: Ventilated Fraction (%)
F85: 0.8
B86: Total Critical Care Patients | C86: (Max. Census) | D86: Day of Max Census | F86: Peak Ventilator Need
A87: MILD SCENARIO | B87: =B66 -> 12970.95834 | C87: =E66 -> 5010.221087 | D87: =F66 -> 54 | E87: =LOSModel!F20 -> 225369.5005 | F87: =C87*$F$85 -> 4008.176869
A88: SEVERE SCENARIO | B88: =B73 -> 58829.91671 | C88: =E73 -> 22723.90995 | D88: =F73 -> 54 | E88: =LOSModel!F24 -> 1022165.718 | F88: =C88*$F$85 -> 18179.12796

Sheet Capacitated
A1: Cornell Covid Caseload Calculator (C4) © Nathaniel Hupert, Peter L. Jackson, Michael G. Klein, John A. Muckstadt 2020
A2: ='1-C4 Scenario'!A2 -> v6.44 | B2: ='1-C4 Scenario'!B2 -> 3/25/2020, 10:30 | AF2: Estimated Length of Stay (LOS) for regular and critical care COVID-19 patients | BX2: Survivors | CI2: Deaths | CT2: Overflow-ICU Survivors | CZ2: Overflow-ICU Victims | DF2: ICU Without Ventilators Surviors | DL2: ICU Without Ventilators Surviors
AF3: MINIMUM | AG3: MAXIMUM | AH3: Fatality Ratio | AI3: LOS Adjustment | BX3: =B11 -> Adult Medical/Surgical Mild | BY3: Adult Critical Care Mild | BZ3: Pediatric Medical/Surgical Mild | CA3: Pediatric Critical Care Mild | CB3: Adult Medical/Surgical Severe | CC3: Adult Critical Care Severe | CD3: Pediatric Medical/Surgical Severe | CE3: Pediatric Critical Care Severe | CI3: =BX3 -> Adult Medical/Surgical Mild | CJ3: Adult Critical Care Mild | CK3: Pediatric Medical/Surgical Mild | CL3: Pediatric Critical Care Mild | CM3: Adult Medical/Surgical Severe | CN3: Adult Critical Care Severe | CO3: Pediatric Medical/Surgical Severe | CP3: Pediatric Critical Care Severe | CT3: =BY3 -> Adult Critical Care Mild | CU3: =CA3 -> Pediatric Critical Care Mild | CV3: =CC3 -> Adult Critical Care Severe | CW3: =CE3 -> Pediatric Critical Care Severe | CZ3: =CT3 -> Adult Critical Care Mild | DA3: =CU3 -> Pediatric Critical Care Mild | DB3: Adult Critical Care Severe | DC3: Pediatric Critical Care Severe | DF3: =CT3 -> Adult Critical Care Mild | DG3: =CU3 -> Pediatric Critical Care Mild | DH3: Adult Critical Care Severe | DI3: Pediatric Critical Care Severe | DL3: =CZ3 -> Adult Critical Care Mild | DM3: =DA3 -> Pediatric Critical Care Mild | DN3: Adult Critical Care Severe | DO3: Pediatric Critical Care Severe
AF4: ='1-C4 Scenario'!B46 -> 3 | AG4: ='1-C4 Scenario'!C46 -> 7 | AH4: ='1-C4 Scenario'!D46 -> 0.05 | AI4: ='1-C4 Scenario'!E46 -> 1.5 | AJ4: Adult medical/surgical ward beds | BW4: Survivor Min LOS | BX4: =AF4 -> 3 | BY4: =AF5 -> 7 | BZ4: =AF6 -> 2 | CA4: =AF7 -> 3 | CB4: =BX4 -> 3 | CC4: =BY4 -> 7 | CD4: 2 | CE4: 3 | CH4: Victim Min LOS | CI4: =BX4*AI4 -> 4.5 | CJ4: =BY4*AI5 -> 10.5 | CK4: =BZ4*AI6 -> 2 | CL4: =CA4*AI7 -> 3 | CM4: =CI4 -> 4.5 | CN4: 10.5 | CO4: 2 | CP4: 3 | CS4: Survivor Min LOS | CT4: ='1-C4 Scenario'!I53 -> 2 | CU4: ='1-C4 Scenario'!J53 -> 2 | CV4: ='1-C4 Scenario'!K53 -> 2 | CW4: ='1-C4 Scenario'!L53 -> 2 | CY4: Victim Min LOS | CZ4: ='1-C4 Scenario'!I53*'1-C4 Scenario'!I$56 -> 1 | DA4: ='1-C4 Scenario'!J53*'1-C4 Scenario'!J$56 -> 1 | DB4: ='1-C4 Scenario'!K53*'1-C4 Scenario'!K$56 -> 1 | DC4: ='1-C4 Scenario'!L53*'1-C4 Scenario'!L$56 -> 1 | DE4: Survivor Min LOS | DF4: =CT4 -> 2 | DG4: 2 | DH4: 2 | DI4: 2 | DK4: Survivor Min LOS | DL4: =CZ4 -> 1 | DM4: 1 | DN4: 1 | DO4: 1
AF5: ='1-C4 Scenario'!B47 -> 7 | AG5: ='1-C4 Scenario'!C47 -> 21 | AH5: ='1-C4 Scenario'!D47 -> 0.25 | AI5: ='1-C4 Scenario'!E47 -> 1.5 | AJ5: Adult critical care beds | BW5: Survivor Max LOS | BX5: =AG4 -> 7 | BY5: =AG5 -> 21 | BZ5: =AG6 -> 4 | CA5: =AG7 -> 6 | CB5: =BX5 -> 7 | CC5: 21 | CD5: 4 | CE5: 6 | CH5: Victim Max LOS | CI5: =BX5*AI4 -> 10.5 | CJ5: =BY5*AI5 -> 31.5 | CK5: =BZ5*AI6 -> 4 | CL5: =CA5*AI7 -> 6 | CM5: 10.5 | CN5: 31.5 | CO5: 4 | CP5: 6 | CS5: Survivor Max LOS | CT5: ='1-C4 Scenario'!I54 -> 10 | CU5: ='1-C4 Scenario'!J54 -> 10 | CV5: ='1-C4 Scenario'!K54 -> 10 | CW5: ='1-C4 Scenario'!L54 -> 10 | CY5: Victim Max LOS | CZ5: ='1-C4 Scenario'!I54*'1-C4 Scenario'!I$56 -> 5 | DA5: ='1-C4 Scenario'!J54*'1-C4 Scenario'!J$56 -> 5 | DB5: ='1-C4 Scenario'!K54*'1-C4 Scenario'!K$56 -> 5 | DC5: ='1-C4 Scenario'!L54*'1-C4 Scenario'!L$56 -> 5 | DE5: Survivor Max LOS | DF5: =CT5 -> 10 | DG5: 10 | DH5: 10 | DI5: 10 | DK5: Survivor Max LOS | DL5: =CZ5 -> 5 | DM5: 5 | DN5: 5 | DO5: 5
AF6: ='1-C4 Scenario'!B48 -> 2 | AG6: ='1-C4 Scenario'!C48 -> 4 | AH6: ='1-C4 Scenario'!D48 -> 0.0001 | AI6: ='1-C4 Scenario'!E48 -> 1 | AJ6: Pediatric medical/surgical ward beds | BW6: Share of Arrivals | BX6: =1-AH4 -> 0.95 | BY6: =1-AH5 -> 0.75 | BZ6: =1-AH6 -> 0.9999 | CA6: =1-AH7 -> 0.9998 | CB6: =BX6 -> 0.95 | CC6: 0.75 | CD6: 0.9999 | CE6: 0.9998 | CH6: Share of Arrivals | CI6: =1-BX6 -> 0.05 | CJ6: 0.25 | CK6: 0.0001 | CL6: 0.0002 | CM6: 0.05 | CN6: 0.25 | CO6: 0.0001 | CP6: 0.0002 | CS6: Share of Arrivals | CT6: =1-'1-C4 Scenario'!I55 -> 0.05 | CU6: =1-'1-C4 Scenario'!J55 -> 0.05 | CV6: =1-'1-C4 Scenario'!K55 -> 0.05 | CW6: =1-'1-C4 Scenario'!L55 -> 0.05 | CY6: Share of Arrivals | CZ6: ='1-C4 Scenario'!I55 -> 0.95 | DA6: ='1-C4 Scenario'!J55 -> 0.95 | DB6: ='1-C4 Scenario'!K55 -> 0.95 | DC6: ='1-C4 Scenario'!L55 -> 0.95 | DE6: Share of Arrivals | DF6: =CT6 -> 0.05 | DG6: 0.05 | DH6: 0.05 | DI6: 0.05 | DK6: Share of Arrivals | DL6: =CZ6 -> 0.95 | DM6: 0.95 | DN6: 0.95 | DO6: 0.95
AF7: ='1-C4 Scenario'!B49 -> 3 | AG7: ='1-C4 Scenario'!C49 -> 6 | AH7: ='1-C4 Scenario'!D49 -> 0.0002 | AI7: ='1-C4 Scenario'!E49 -> 1 | AJ7: Pediatric critical/care beds
AF8: (Note: LOS inputs assumed common for both Mild and Severe populations)
A10: MODELED Daily Cases (Link from Epidemic Model to Occupancy and Resource Models) | AQ10: Denied Access | BA10: Admissions (with Ventilators) | BK10: Overflow-ICU Admissions | BQ10: ICU Admissions Without Ventilator | BX10: Discharges | CI10: Deaths | CT10: Overflow-ICU Discharges | CZ10: Overflow-ICU Deaths | DF10: ICU Without Ventilators Discharges | DL10: ICU Without Ventilators Deaths | DT10: Occupancy (After Admissions Before Discharges) | EB10: Overflow-ICU Occupancy (After Admissions Before Discharges) | EF10: ICU Without Ventilator Occupancy
A11: Day | B11: Adult Medical/Surgical Mild | C11: Adult Critical Care Mild | D11: Pediatric Medical/Surgical Mild | E11: Pediatric Critical Care Mild | F11: Adult Medical/Surgical Severe | G11: Adult Critical Care Severe | H11: Pediatric Medical/Surgical Severe | I11: Pediatric Critical Care Severe | J11: Total Daily Med-Surg Cases | K11: Total Daily Critical Care Cases | T11: ='1-C4 Scenario'!B52 -> Available Med-Surg Beds | U11: ='1-C4 Scenario'!C52 -> Available Critical Care Beds | V11: =J11 -> Total Daily Med-Surg Cases | W11: Total Daily Critical Care Cases | X11: Total Critical Care Admissions | Y11: Total Critical Care Overflow | Z11: Total Overflow-ICU Admissions | AA11: Total Overflow-ICU Denied Access | AB11: Total Med-Surg Admissions | AC11: Total Med-Surg Denied Access | AD11: Total Critical Care Death or Discharge | AE11: Total Overflow-ICU Death or Discharge | AF11: Total Med-Surg Death or Discharge | AG11: Critical Care Overflow Rate | AH11: Overflow-ICU Access Denial Rate | AI11: Med-Surg Access Denial Rate | AJ11: Effective Ventilators Available | AK11: ICU Admissions with Ventilators | AL11: ICU Admissions without Ventilators | AM11: Total ICU with Ventilators Death or Discharge | AN11: Total ICU without Ventilators Death or Discharge | AO11: Ventilator Shortage Rate | AQ11: =B11 -> Adult Medical/Surgical Mild | AR11: Adult Critical Care Mild | AS11: Pediatric Medical/Surgical Mild | AT11: Pediatric Critical Care Mild | AU11: Adult Medical/Surgical Severe | AV11: Adult Critical Care Severe | AW11: Pediatric Medical/Surgical Severe | AX11: Pediatric Critical Care Severe | AY11: Total Denied Access | BA11: =B11 -> Adult Medical/Surgical Mild | BB11: Adult Critical Care Mild | BC11: Pediatric Medical/Surgical Mild | BD11: Pediatric Critical Care Mild | BE11: Adult Medical/Surgical Severe | BF11: Adult Critical Care Severe | BG11: Pediatric Medical/Surgical Severe | BH11: Pediatric Critical Care Severe | BI11: Total Admissions | BK11: =BB11 -> Adult Critical Care Mild | BL11: =BD11 -> Pediatric Critical Care Mild | BM11: =BF11 -> Adult Critical Care Severe | BN11: =BH11 -> Pediatric Critical Care Severe | BO11: Total Overflow-ICU Admissions | BQ11: Adult Critical Care Mild | BR11: Pediatric Critical Care Mild | BS11: Adult Critical Care Severe | BT11: Pediatric Critical Care Severe | BU11: Total ICU Admissions Without Ventilator | BW11: Day | BX11: =BX3 -> Adult Medical/Surgical Mild | BY11: =BY3 -> Adult Critical Care Mild | BZ11: Pediatric Medical/Surgical Mild | CA11: Pediatric Critical Care Mild | CB11: Adult Medical/Surgical Severe | CC11: Adult Critical Care Severe | CD11: Pediatric Medical/Surgical Severe | CE11: Pediatric Critical Care Severe | CF11: Total Med-Surg Discharges | CG11: Total Critical Care Discharges | CI11: =CI3 -> Adult Medical/Surgical Mild | CJ11: =CJ3 -> Adult Critical Care Mild | CK11: Pediatric Medical/Surgical Mild | CL11: Pediatric Critical Care Mild | CM11: Adult Medical/Surgical Severe | CN11: Adult Critical Care Severe | CO11: Pediatric Medical/Surgical Severe | CP11: Pediatric Critical Care Severe | CQ11: Total Med-Surg Deaths | CR11: Total Critical Care Deaths | CT11: =CT3 -> Adult Critical Care Mild | CU11: =CU3 -> Pediatric Critical Care Mild | CV11: Adult Critical Care Severe | CW11: Pediatric Critical Care Severe | CX11: Total Overflow-ICU Discharges | CZ11: =CZ3 -> Adult Critical Care Mild | DA11: =DA3 -> Pediatric Critical Care Mild | DB11: Adult Critical Care Severe | DC11: Pediatric Critical Care Severe | DD11: Total Overflow-ICU Deaths | DF11: =CT11 -> Adult Critical Care Mild | DG11: =CU11 -> Pediatric Critical Care Mild | DH11: Adult Critical Care Severe | DI11: Pediatric Critical Care Severe | DJ11: Total ICU Without Ventilators Discharges | DL11: =CZ11 -> Adult Critical Care Mild | DM11: =DA11 -> Pediatric Critical Care Mild | DN11: Adult Critical Care Severe | DO11: Pediatric Critical Care Severe | DP11: Total ICU Without Ventilators Deaths | DQ11: Total Ventilator Shortage Deaths | DR11: Cumulative Ventilator Shortage Deaths | DS11: Day | DT11: =CI11 -> Adult Medical/Surgical Mild | DU11: Adult Critical Care Mild | DV11: Pediatric Medical/Surgical Mild | DW11: Pediatric Critical Care Mild | DX11: Adult Medical/Surgical Severe | DY11: Adult Critical Care Severe | DZ11: Pediatric Medical/Surgical Severe | EA11: Pediatric Critical Care Severe | EB11: =CT11 -> Adult Critical Care Mild | EC11: =CU11 -> Pediatric Critical Care Mild | ED11: =CV11 -> Adult Critical Care Severe | EE11: =CW11 -> Pediatric Critical Care Severe | EF11: =EB11 -> Adult Critical Care Mild | EG11: =EC11 -> Pediatric Critical Care Mild | EH11: Adult Critical Care Severe | EI11: Pediatric Critical Care Severe | EJ11: Total Critical Care Beds Occupied | EK11: Total Med-Surg Beds Occupied | EL11: Effective Ventilators in Use
A12: 1 | B12: ='C4-AnalyticOutput'!B8 -> 0 | C12: ='C4-AnalyticOutput'!C8 -> 0 | D12: ='C4-AnalyticOutput'!D8 -> 0 | E12: ='C4-AnalyticOutput'!E8 -> 0 | F12: ='C4-AnalyticOutput'!F8 -> 0 | G12: ='C4-AnalyticOutput'!G8 -> 0 | H12: ='C4-AnalyticOutput'!H8 -> 0 | I12: ='C4-AnalyticOutput'!I8 -> 0 | J12: =B12+D12+F12+H12 -> 0 | K12: =C12+E12+G12+I12 -> 0 | T12: ='1-C4 Scenario'!B54 -> 20000 | U12: ='1-C4 Scenario'!C54 -> 2500 | V12: 0 | W12: 0 | X12: =MIN(U12,W12) -> 0 | Y12: =W12-X12 -> 0 | Z12: =MIN(T12,Y12) -> 0 | AA12: =Y12-Z12 -> 0 | AB12: =MIN(T12-Z12,V12) -> 0 | AC12: =V12-AB12 -> 0 | AD12: =AM12+AN12 -> 0 | AE12: =CX12+DD12 -> 0 | AF12: =CF12+CQ12 -> 0 | AG12: =IF(W12>0,Y12/W12,0) -> 0 | AH12: =IF(Y12>0,AA12/Y12,0) -> 0 | AI12: =IF(V12>0,AC12/V12,0) -> 0 | AJ12: ='1-C4 Scenario'!F54 -> 2000 | AK12: =MIN(AJ12,X12) -> 0 | AL12: =X12-AK12 -> 0 | AM12: =CG12+CR12 -> 0 | AN12: =DJ12+DP12 -> 0 | AO12: =IF(X12>0,AL12/X12,0) -> 0 | AQ12: =$AI12*B12 -> 0 | AR12: =$AG12*$AH12*C12 -> 0 | AS12: =$AI12*D12 -> 0 | AT12: =$AG12*$AH12*E12 -> 0 | AU12: =$AI12*F12 -> 0 | AV12: =$AG12*$AH12*G12 -> 0 | AW12: =$AI12*H12 -> 0 | AX12: =$AG12*$AH12*I12 -> 0 | AY12: =SUM(AQ12:AX12) -> 0 | BA12: =B12-AQ12 -> 0 | BB12: =(1-$AG12)*C12*(1-$AO12) -> 0 | BC12: =D12-AS12 -> 0 | BD12: =(1-$AG12)*E12*(1-$AO12) -> 0 | BE12: =F12-AU12 -> 0 | BF12: =(1-$AG12)*G12*(1-$AO12) -> 0 | BG12: =H12-AW12 -> 0 | BH12: =(1-$AG12)*I12*(1-$AO12) -> 0 | BI12: =SUM(BA12:BH12) -> 0 | BK12: =$AG12*C12-AR12 -> 0 | BL12: =$AG12*E12-AT12 -> 0 | BM12: =$AG12*G12-AV12 -> 0 | BN12: =$AG12*I12-AX12 -> 0 | BO12: =SUM(BK12:BN12) -> 0 | BQ12: =(1-$AG12)*C12*$AO12 -> 0 | BR12: =(1-$AG12)*E12*$AO12 -> 0 | BS12: =(1-$AG12)*G12*$AO12 -> 0 | BT12: =(1-$AG12)*I12*$AO12 -> 0 | BU12: =SUM(BQ12:BT12) -> 0 | BW12: =A12 -> 1 | BX12: =DepartureOnDay(BA$12:BA$191,BX$6,$BW12,BX$4,BX$5) -> 0 | BY12: =DepartureOnDay(BB$12:BB$191,BY$6,$BW12,BY$4,BY$5) -> 0 | BZ12: =DepartureOnDay(BC$12:BC$191,BZ$6,$BW12,BZ$4,BZ$5) -> 0 | CA12: =DepartureOnDay(BD$12:BD$191,CA$6,$BW12,CA$4,CA$5) -> 0 | CB12: =DepartureOnDay(BE$12:BE$191,CB$6,$BW12,CB$4,CB$5) -> 0 | CC12: =DepartureOnDay(BF$12:BF$191,CC$6,$BW12,CC$4,CC$5) -> 0 | CD12: =DepartureOnDay(BG$12:BG$191,CD$6,$BW12,CD$4,CD$5) -> 0 | CE12: =DepartureOnDay(BH$12:BH$191,CE$6,$BW12,CE$4,CE$5) -> 0 | CF12: =BX12+BZ12+CB12+CD12 -> 0 | CG12: =BY12+CA12+CC12+CE12 -> 0 | CI12: =DepartureOnDay(BA$12:BA$191,CI$6,$BW12,CI$4,CI$5) -> 0 | CJ12: =DepartureOnDay(BB$12:BB$191,CJ$6,$BW12,CJ$4,CJ$5) -> 0 | CK12: =DepartureOnDay(BC$12:BC$191,CK$6,$BW12,CK$4,CK$5) -> 0 | CL12: =DepartureOnDay(BD$12:BD$191,CL$6,$BW12,CL$4,CL$5) -> 0 | CM12: =DepartureOnDay(BE$12:BE$191,CM$6,$BW12,CM$4,CM$5) -> 0 | CN12: =DepartureOnDay(BF$12:BF$191,CN$6,$BW12,CN$4,CN$5) -> 0 | CO12: =DepartureOnDay(BG$12:BG$191,CO$6,$BW12,CO$4,CO$5) -> 0 | CP12: =DepartureOnDay(BH$12:BH$191,CP$6,$BW12,CP$4,CP$5) -> 0 | CQ12: =CI12+CK12+CM12+CO12 -> 0 | CR12: =CJ12+CL12+CN12+CP12 -> 0 | CT12: =DepartureOnDay(BK$12:BK$191,CT$6,$BW12,CT$4,CT$5) -> 0 | CU12: =DepartureOnDay(BL$12:BL$191,CU$6,$BW12,CU$4,CU$5) -> 0 | CV12: =DepartureOnDay(BM$12:BM$191,CV$6,$BW12,CV$4,CV$5) -> 0 | CW12: =DepartureOnDay(BN$12:BN$191,CW$6,$BW12,CW$4,CW$5) -> 0 | CX12: =SUM(CT12:CW12) -> 0 | CZ12: =DepartureOnDay(BK$12:BK$191,CZ$6,$BW12,CZ$4,CZ$5) -> 0 | DA12: =DepartureOnDay(BL$12:BL$191,DA$6,$BW12,DA$4,DA$5) -> 0 | DB12: =DepartureOnDay(BM$12:BM$191,DB$6,$BW12,DB$4,DB$5) -> 0 | DC12: =DepartureOnDay(BN$12:BN$191,DC$6,$BW12,DC$4,DC$5) -> 0 | DD12: =SUM(CZ12:DC12) -> 0 | DF12: =DepartureOnDay(BQ$12:BQ$191,DF$6,$BW12,DF$4,DF$5) -> 0 | DG12: =DepartureOnDay(BR$12:BR$191,DG$6,$BW12,DG$4,DG$5) -> 0 | DH12: =DepartureOnDay(BS$12:BS$191,DH$6,$BW12,DH$4,DH$5) -> 0 | DI12: =DepartureOnDay(BT$12:BT$191,DI$6,$BW12,DI$4,DI$5) -> 0 | DJ12: =SUM(DF12:DI12) -> 0 | DL12: =DepartureOnDay(BQ$12:BQ$191,DL$6,$BW12,DL$4,DL$5) -> 0 | DM12: =DepartureOnDay(BR$12:BR$191,DM$6,$BW12,DM$4,DM$5) -> 0 | DN12: =DepartureOnDay(BS$12:BS$191,DN$6,$BW12,DN$4,DN$5) -> 0 | DO12: =DepartureOnDay(BT$12:BT$191,DO$6,$BW12,DO$4,DO$5) -> 0 | DP12: =SUM(DL12:DO12) -> 0 | DQ12: =DP12+DD12 -> 0 | DR12: =DQ12 -> 0 | DS12: =BW12 -> 1 | DT12: =BA13 -> 6.194240295e-06 | DU12: 1.003138792e-06 | DV12: 2.795124563e-07 | DW12: 5.174105153e-08 | DX12: 1.473823434e-05 | DY12: 4.549746445e-06 | DZ12: 9.800736878e-07 | EA12: 3.449403436e-07 | EB12: =BK12 -> 0 | EC12: =BL12 -> 0 | ED12: =BM12 -> 0 | EE12: =BN12 -> 0 | EF12: =BQ12 -> 0 | EG12: =BR12 -> 0 | EH12: 0 | EI12: 0 | EJ12: =DU12+DW12+DY12+EA12+SUM(EF12:EI12) -> 5.949566632e-06 | EK12: =SUM(DT12:EI12)-EJ12 -> 2.219206078e-05 | EL12: =SUM(DU12+DW12+DY12+EA12) -> 5.949566632e-06
A13: 2 | B13: ='C4-AnalyticOutput'!B9 -> 6.194240295e-06 | C13: ='C4-AnalyticOutput'!C9 -> 1.003138792e-06 | D13: ='C4-AnalyticOutput'!D9 -> 2.795124563e-07 | E13: ='C4-AnalyticOutput'!E9 -> 5.174105153e-08 | F13: ='C4-AnalyticOutput'!F9 -> 1.473823434e-05 | G13: ='C4-AnalyticOutput'!G9 -> 4.549746445e-06 | H13: ='C4-AnalyticOutput'!H9 -> 9.800736878e-07 | I13: ='C4-AnalyticOutput'!I9 -> 3.449403436e-07 | J13: =B13+D13+F13+H13 -> 2.219206078e-05 | K13: 5.949566632e-06 | T13: =T12-Z12-AB12+AF12+AE12 -> 20000 | U13: =U12+AD12-X12 -> 2500 | V13: 2.219206078e-05 | W13: 5.949566632e-06 | X13: =MIN(U13,W13) -> 5.949566632e-06 | Y13: 0 | Z13: 0 | AA13: 0 | AB13: =MIN(T13-Z13,V13) -> 2.219206078e-05 | AC13: 0 | AD13: =AM13+AN13 -> 0 | AE13: 0 | AF13: 0 | AG13: 0 | AH13: 0 | AI13: 0 | AJ13: =AJ12-AK12+AM12 -> 2000 | AK13: =MIN(AJ13,X13) -> 5.949566632e-06 | AL13: =X13-AK13 -> 0 | AM13: =CG13+CR13 -> 0 | AN13: =DJ13+DP13 -> 0 | AO13: =IF(X13>0,AL13/X13,0) -> 0 | AQ13: 0 | AR13: 0 | AS13: 0 | AT13: 0 | AU13: 0 | AV13: 0 | AW13: 0 | AX13: 0 | AY13: =SUM(AQ13:AX13) -> 0 | BA13: 6.194240295e-06 | BB13: =(1-$AG13)*C13*(1-$AO13) -> 1.003138792e-06 | BC13: 2.795124563e-07 | BD13: =(1-$AG13)*E13*(1-$AO13) -> 5.174105153e-08 | BE13: 1.473823434e-05 | BF13: =(1-$AG13)*G13*(1-$AO13) -> 4.549746445e-06 | BG13: 9.800736878e-07 | BH13: =(1-$AG13)*I13*(1-$AO13) -> 3.449403436e-07 | BI13: =SUM(BA13:BH13) -> 2.814162741e-05 | BK13: 0 | BL13: 0 | BM13: 0 | BN13: 0 | BO13: =SUM(BK13:BN13) -> 0 | BQ13: =(1-$AG13)*C13*$AO13 -> 0 | BR13: =(1-$AG13)*E13*$AO13 -> 0 | BS13: =(1-$AG13)*G13*$AO13 -> 0 | BT13: =(1-$AG13)*I13*$AO13 -> 0 | BU13: =SUM(BQ13:BT13) -> 0 | BW13: 2 | BX13: =DepartureOnDay(BA$12:BA$191,BX$6,$BW13,BX$4,BX$5) -> 0 | BY13: =DepartureOnDay(BB$12:BB$191,BY$6,$BW13,BY$4,BY$5) -> 0 | BZ13: =DepartureOnDay(BC$12:BC$191,BZ$6,$BW13,BZ$4,BZ$5) -> 0 | CA13: =DepartureOnDay(BD$12:BD$191,CA$6,$BW13,CA$4,CA$5) -> 0 | CB13: =DepartureOnDay(BE$12:BE$191,CB$6,$BW13,CB$4,CB$5) -> 0 | CC13: =DepartureOnDay(BF$12:BF$191,CC$6,$BW13,CC$4,CC$5) -> 0 | CD13: =DepartureOnDay(BG$12:BG$191,CD$6,$BW13,CD$4,CD$5) -> 0 | CE13: =DepartureOnDay(BH$12:BH$191,CE$6,$BW13,CE$4,CE$5) -> 0 | CF13: =BX13+BZ13+CB13+CD13 -> 0 | CG13: 0 | CI13: =DepartureOnDay(BA$12:BA$191,CI$6,$BW13,CI$4,CI$5) -> 0 | CJ13: =DepartureOnDay(BB$12:BB$191,CJ$6,$BW13,CJ$4,CJ$5) -> 0 | CK13: =DepartureOnDay(BC$12:BC$191,CK$6,$BW13,CK$4,CK$5) -> 0 | CL13: =DepartureOnDay(BD$12:BD$191,CL$6,$BW13,CL$4,CL$5) -> 0 | CM13: =DepartureOnDay(BE$12:BE$191,CM$6,$BW13,CM$4,CM$5) -> 0 | CN13: =DepartureOnDay(BF$12:BF$191,CN$6,$BW13,CN$4,CN$5) -> 0 | CO13: =DepartureOnDay(BG$12:BG$191,CO$6,$BW13,CO$4,CO$5) -> 0 | CP13: =DepartureOnDay(BH$12:BH$191,CP$6,$BW13,CP$4,CP$5) -> 0 | CQ13: =CI13+CK13+CM13+CO13 -> 0 | CR13: 0 | CT13: =DepartureOnDay(BK$12:BK$191,CT$6,$BW13,CT$4,CT$5) -> 0 | CU13: =DepartureOnDay(BL$12:BL$191,CU$6,$BW13,CU$4,CU$5) -> 0 | CV13: =DepartureOnDay(BM$12:BM$191,CV$6,$BW13,CV$4,CV$5) -> 0 | CW13: =DepartureOnDay(BN$12:BN$191,CW$6,$BW13,CW$4,CW$5) -> 0 | CX13: =SUM(CT13:CW13) -> 0 | CZ13: =DepartureOnDay(BK$12:BK$191,CZ$6,$BW13,CZ$4,CZ$5) -> 0 | DA13: =DepartureOnDay(BL$12:BL$191,DA$6,$BW13,DA$4,DA$5) -> 0 | DB13: =DepartureOnDay(BM$12:BM$191,DB$6,$BW13,DB$4,DB$5) -> 0 | DC13: =DepartureOnDay(BN$12:BN$191,DC$6,$BW13,DC$4,DC$5) -> 0 | DD13: =SUM(CZ13:DC13) -> 0 | DF13: =DepartureOnDay(BQ$12:BQ$191,DF$6,$BW13,DF$4,DF$5) -> 0 | DG13: =DepartureOnDay(BR$12:BR$191,DG$6,$BW13,DG$4,DG$5) -> 0 | DH13: =DepartureOnDay(BS$12:BS$191,DH$6,$BW13,DH$4,DH$5) -> 0 | DI13: =DepartureOnDay(BT$12:BT$191,DI$6,$BW13,DI$4,DI$5) -> 0 | DJ13: =SUM(DF13:DI13) -> 0 | DL13: =DepartureOnDay(BQ$12:BQ$191,DL$6,$BW13,DL$4,DL$5) -> 0 | DM13: =DepartureOnDay(BR$12:BR$191,DM$6,$BW13,DM$4,DM$5) -> 0 | DN13: =DepartureOnDay(BS$12:BS$191,DN$6,$BW13,DN$4,DN$5) -> 0 | DO13: =DepartureOnDay(BT$12:BT$191,DO$6,$BW13,DO$4,DO$5) -> 0 | DP13: =SUM(DL13:DO13) -> 0 | DQ13: =DP13+DD13 -> 0 | DR13: =DR12+DQ13 -> 0 | DS13: 2 | DT13: =DT12+BA13-BX12-CI12 -> 1.238848059e-05 | DU13: 2.006277584e-06 | DV13: 5.590249126e-07 | DW13: 1.034821031e-07 | DX13: 2.947646868e-05 | DY13: 9.099492891e-06 | DZ13: 1.960147376e-06 | EA13: 6.898806871e-07 | EB13: =EB12+BK13-CT12-CZ12 -> 0 | EC13: =EC12+BL13-CU12-DA12 -> 0 | ED13: =ED12+BM13-CV12-DB12 -> 0 | EE13: =EE12+BN13-CW12-DC12 -> 0 | EF13: =EF12+BQ13-DF12-DL12 -> 0 | EG13: =EG12+BR13-DG12-DM12 -> 0 | EH13: =EH12+BS13-DH12-DN12 -> 0 | EI13: =EI12+BT13-DI12-DO12 -> 0 | EJ13: =DU13+DW13+DY13+EA13+SUM(EF13:EI13) -> 1.189913326e-05 | EK13: =SUM(DT13:EI13)-EJ13 -> 4.438412155e-05 | EL13: =SUM(DU13+DW13+DY13+EA13) -> 1.189913326e-05
A14: 3 | B14: ='C4-AnalyticOutput'!B10 -> 0.0006747618521 | C14: ='C4-AnalyticOutput'!C10 -> 0.000109275675 | D14: ='C4-AnalyticOutput'!D10 -> 3.044834132e-05 | E14: ='C4-AnalyticOutput'!E10 -> 5.63634701e-06 | F14: ='C4-AnalyticOutput'!F10 -> 0.001605491202 | G14: ='C4-AnalyticOutput'!G10 -> 0.0004956209627 | H14: ='C4-AnalyticOutput'!H10 -> 0.0001067631066 | I14: ='C4-AnalyticOutput'!I10 -> 3.757564673e-05 | J14: 0.002417464502 | K14: 0.0006481086314 | T14: 19999.99998 | U14: 2499.999994 | V14: 0.002417464502 | W14: 0.0006481086314 | X14: 0.0006481086314 | Y14: 0 | Z14: 0 | AA14: 0 | AB14: 0.002417464502 | AC14: 0 | AD14: 0 | AE14: 0 | AF14: 0 | AG14: 0 | AH14: 0 | AI14: 0 | AJ14: =AJ13-AK13+AM13 -> 1999.999994 | AK14: =MIN(AJ14,X14) -> 0.0006481086314 | AL14: =X14-AK14 -> 0 | AM14: =CG14+CR14 -> 0 | AN14: =DJ14+DP14 -> 0 | AO14: 0 | AQ14: 0 | AR14: 0 | AS14: 0 | AT14: 0 | AU14: 0 | AV14: 0 | AW14: 0 | AX14: 0 | AY14: 0 | BA14: 0.0006747618521 | BB14: 0.000109275675 | BC14: 3.044834132e-05 | BD14: 5.63634701e-06 | BE14: 0.001605491202 | BF14: 0.0004956209627 | BG14: 0.0001067631066 | BH14: 3.757564673e-05 | BI14: 0.003065573134 | BK14: 0 | BL14: 0 | BM14: 0 | BN14: 0 | BO14: 0 | BQ14: 0 | BR14: 0 | BS14: 0 | BT14: 0 | BU14: 0 | BW14: 3 | BX14: =DepartureOnDay(BA$12:BA$191,BX$6,$BW14,BX$4,BX$5) -> 0 | BY14: =DepartureOnDay(BB$12:BB$191,BY$6,$BW14,BY$4,BY$5) -> 0 | BZ14: =DepartureOnDay(BC$12:BC$191,BZ$6,$BW14,BZ$4,BZ$5) -> 0 | CA14: =DepartureOnDay(BD$12:BD$191,CA$6,$BW14,CA$4,CA$5) -> 0 | CB14: =DepartureOnDay(BE$12:BE$191,CB$6,$BW14,CB$4,CB$5) -> 0 | CC14: =DepartureOnDay(BF$12:BF$191,CC$6,$BW14,CC$4,CC$5) -> 0 | CD14: =DepartureOnDay(BG$12:BG$191,CD$6,$BW14,CD$4,CD$5) -> 0 | CE14: =DepartureOnDay(BH$12:BH$191,CE$6,$BW14,CE$4,CE$5) -> 0 | CF14: 0 | CG14: 0 | CI14: =DepartureOnDay(BA$12:BA$191,CI$6,$BW14,CI$4,CI$5) -> 0 | CJ14: =DepartureOnDay(BB$12:BB$191,CJ$6,$BW14,CJ$4,CJ$5) -> 0 | CK14: =DepartureOnDay(BC$12:BC$191,CK$6,$BW14,CK$4,CK$5) -> 0 | CL14: =DepartureOnDay(BD$12:BD$191,CL$6,$BW14,CL$4,CL$5) -> 0 | CM14: =DepartureOnDay(BE$12:BE$191,CM$6,$BW14,CM$4,CM$5) -> 0 | CN14: =DepartureOnDay(BF$12:BF$191,CN$6,$BW14,CN$4,CN$5) -> 0 | CO14: =DepartureOnDay(BG$12:BG$191,CO$6,$BW14,CO$4,CO$5) -> 0 | CP14: =DepartureOnDay(BH$12:BH$191,CP$6,$BW14,CP$4,CP$5) -> 0 | CQ14: 0 | CR14: 0 | CT14: =DepartureOnDay(BK$12:BK$191,CT$6,$BW14,CT$4,CT$5) -> 0 | CU14: =DepartureOnDay(BL$12:BL$191,CU$6,$BW14,CU$4,CU$5) -> 0 | CV14: =DepartureOnDay(BM$12:BM$191,CV$6,$BW14,CV$4,CV$5) -> 0 | CW14: =DepartureOnDay(BN$12:BN$191,CW$6,$BW14,CW$4,CW$5) -> 0 | CX14: 0 | CZ14: =DepartureOnDay(BK$12:BK$191,CZ$6,$BW14,CZ$4,CZ$5) -> 0 | DA14: =DepartureOnDay(BL$12:BL$191,DA$6,$BW14,DA$4,DA$5) -> 0 | DB14: =DepartureOnDay(BM$12:BM$191,DB$6,$BW14,DB$4,DB$5) -> 0 | DC14: =DepartureOnDay(BN$12:BN$191,DC$6,$BW14,DC$4,DC$5) -> 0 | DD14: 0 | DF14: =DepartureOnDay(BQ$12:BQ$191,DF$6,$BW14,DF$4,DF$5) -> 0 | DG14: =DepartureOnDay(BR$12:BR$191,DG$6,$BW14,DG$4,DG$5) -> 0 | DH14: =DepartureOnDay(BS$12:BS$191,DH$6,$BW14,DH$4,DH$5) -> 0 | DI14: =DepartureOnDay(BT$12:BT$191,DI$6,$BW14,DI$4,DI$5) -> 0 | DJ14: 0 | DL14: =DepartureOnDay(BQ$12:BQ$191,DL$6,$BW14,DL$4,DL$5) -> 0 | DM14: =DepartureOnDay(BR$12:BR$191,DM$6,$BW14,DM$4,DM$5) -> 0 | DN14: =DepartureOnDay(BS$12:BS$191,DN$6,$BW14,DN$4,DN$5) -> 0 | DO14: =DepartureOnDay(BT$12:BT$191,DO$6,$BW14,DO$4,DO$5) -> 0 | DP14: 0 | DQ14: 0 | DR14: =DR13+DQ14 -> 0 | DS14: 3 | DT14: 0.0006871503327 | DU14: 0.0001112819526 | DV14: 3.100736623e-05 | DW14: 5.739829113e-06 | DX14: 0.001634967671 | DY14: 0.0005047204556 | DZ14: 0.000108723254 | EA14: 3.826552742e-05 | EB14: =EB13+BK14-CT13-CZ13 -> 0 | EC14: 0 | ED14: 0 | EE14: 0 | EF14: =EF13+BQ14-DF13-DL13 -> 0 | EG14: 0 | EH14: 0 | EI14: 0 | EJ14: 0.0006600077647 | EK14: 0.002461848624 | EL14: 0.0006600077647
A15: 4 | B15: ='C4-AnalyticOutput'!B11 -> 0.00981164526 | C15: ='C4-AnalyticOutput'!C11 -> 0.001588966767 | D15: ='C4-AnalyticOutput'!D11 -> 0.0004427463154 | E15: ='C4-AnalyticOutput'!E11 -> 8.195756362e-05 | F15: ='C4-AnalyticOutput'!F11 -> 0.02334528856 | G15: ='C4-AnalyticOutput'!G11 -> 0.00720677533 | H15: ='C4-AnalyticOutput'!H11 -> 0.001552431759 | I15: ='C4-AnalyticOutput'!I11 -> 0.0005463837575 | J15: 0.03515211189 | K15: 0.009424083418 | T15: 19999.99756 | U15: 2499.999346 | V15: 0.03515211189 | W15: 0.009424083418 | X15: 0.009424083418 | Y15: 0 | Z15: 0 | AA15: 0 | AB15: 0.03515211189 | AC15: 0 | AD15: 0 | AE15: 0 | AF15: 0 | AG15: 0 | AH15: 0 | AI15: 0 | AJ15: 1999.999346 | AK15: 0.009424083418 | AL15: 0 | AM15: 0 | AN15: 0 | AO15: 0 | AQ15: 0 | AR15: 0 | AS15: 0 | AT15: 0 | AU15: 0 | AV15: 0 | AW15: 0 | AX15: 0 | AY15: 0 | BA15: 0.00981164526 | BB15: 0.001588966767 | BC15: 0.0004427463154 | BD15: 8.195756362e-05 | BE15: 0.02334528856 | BF15: 0.00720677533 | BG15: 0.001552431759 | BH15: 0.0005463837575 | BI15: 0.04457619531 | BK15: 0 | BL15: 0 | BM15: 0 | BN15: 0 | BO15: 0 | BQ15: 0 | BR15: 0 | BS15: 0 | BT15: 0 | BU15: 0 | BW15: 4 | BX15: =DepartureOnDay(BA$12:BA$191,BX$6,$BW15,BX$4,BX$5) -> 0 | BY15: =DepartureOnDay(BB$12:BB$191,BY$6,$BW15,BY$4,BY$5) -> 0 | BZ15: =DepartureOnDay(BC$12:BC$191,BZ$6,$BW15,BZ$4,BZ$5) -> 0 | CA15: =DepartureOnDay(BD$12:BD$191,CA$6,$BW15,CA$4,CA$5) -> 0 | CB15: =DepartureOnDay(BE$12:BE$191,CB$6,$BW15,CB$4,CB$5) -> 0 | CC15: =DepartureOnDay(BF$12:BF$191,CC$6,$BW15,CC$4,CC$5) -> 0 | CD15: =DepartureOnDay(BG$12:BG$191,CD$6,$BW15,CD$4,CD$5) -> 0 | CE15: =DepartureOnDay(BH$12:BH$191,CE$6,$BW15,CE$4,CE$5) -> 0 | CF15: 0 | CG15: 0 | CI15: =DepartureOnDay(BA$12:BA$191,CI$6,$BW15,CI$4,CI$5) -> 0 | CJ15: =DepartureOnDay(BB$12:BB$191,CJ$6,$BW15,CJ$4,CJ$5) -> 0 | CK15: =DepartureOnDay(BC$12:BC$191,CK$6,$BW15,CK$4,CK$5) -> 0 | CL15: =DepartureOnDay(BD$12:BD$191,CL$6,$BW15,CL$4,CL$5) -> 0 | CM15: =DepartureOnDay(BE$12:BE$191,CM$6,$BW15,CM$4,CM$5) -> 0 | CN15: =DepartureOnDay(BF$12:BF$191,CN$6,$BW15,CN$4,CN$5) -> 0 | CO15: =DepartureOnDay(BG$12:BG$191,CO$6,$BW15,CO$4,CO$5) -> 0 | CP15: =DepartureOnDay(BH$12:BH$191,CP$6,$BW15,CP$4,CP$5) -> 0 | CQ15: 0 | CR15: 0 | CT15: =DepartureOnDay(BK$12:BK$191,CT$6,$BW15,CT$4,CT$5) -> 0 | CU15: =DepartureOnDay(BL$12:BL$191,CU$6,$BW15,CU$4,CU$5) -> 0 | CV15: =DepartureOnDay(BM$12:BM$191,CV$6,$BW15,CV$4,CV$5) -> 0 | CW15: =DepartureOnDay(BN$12:BN$191,CW$6,$BW15,CW$4,CW$5) -> 0 | CX15: 0 | CZ15: =DepartureOnDay(BK$12:BK$191,CZ$6,$BW15,CZ$4,CZ$5) -> 0 | DA15: =DepartureOnDay(BL$12:BL$191,DA$6,$BW15,DA$4,DA$5) -> 0 | DB15: =DepartureOnDay(BM$12:BM$191,DB$6,$BW15,DB$4,DB$5) -> 0 | DC15: =DepartureOnDay(BN$12:BN$191,DC$6,$BW15,DC$4,DC$5) -> 0 | DD15: 0 | DF15: =DepartureOnDay(BQ$12:BQ$191,DF$6,$BW15,DF$4,DF$5) -> 0 | DG15: =DepartureOnDay(BR$12:BR$191,DG$6,$BW15,DG$4,DG$5) -> 0 | DH15: =DepartureOnDay(BS$12:BS$191,DH$6,$BW15,DH$4,DH$5) -> 0 | DI15: =DepartureOnDay(BT$12:BT$191,DI$6,$BW15,DI$4,DI$5) -> 0 | DJ15: 0 | DL15: =DepartureOnDay(BQ$12:BQ$191,DL$6,$BW15,DL$4,DL$5) -> 0 | DM15: =DepartureOnDay(BR$12:BR$191,DM$6,$BW15,DM$4,DM$5) -> 0 | DN15: =DepartureOnDay(BS$12:BS$191,DN$6,$BW15,DN$4,DN$5) -> 0 | DO15: =DepartureOnDay(BT$12:BT$191,DO$6,$BW15,DO$4,DO$5) -> 0 | DP15: 0 | DQ15: 0 | DR15: 0 | DS15: 4 | DT15: 0.01049879559 | DU15: 0.001700248719 | DV15: 0.0004737536816 | DW15: 8.769739274e-05 | DX15: 0.02498025623 | DY15: 0.007711495786 | DZ15: 0.001661155013 | EA15: 0.0005846492849 | EB15: 0 | EC15: 0 | ED15: 0 | EE15: 0 | EF15: 0 | EG15: 0 | EH15: 0 | EI15: 0 | EJ15: 0.01008409118 | EK15: 0.03761396052 | EL15: 0.01008409118
A16: 5 | B16: ='C4-AnalyticOutput'!B12 -> 0.06255549962 | C16: ='C4-AnalyticOutput'!C12 -> 0.0101306771 | D16: ='C4-AnalyticOutput'!D12 -> 0.00282279029 | E16: ='C4-AnalyticOutput'!E12 -> 0.0005225317675 | F16: ='C4-AnalyticOutput'!F12 -> 0.1488411119 | G16: ='C4-AnalyticOutput'!G12 -> 0.04594779158 | H16: ='C4-AnalyticOutput'!H12 -> 0.009897743112 | I16: ='C4-AnalyticOutput'!I12 -> 0.003483545117 | J16: 0.2241171449 | K16: 0.06008454557 | T16: 19999.96241 | U16: 2499.989922 | V16: 0.2241171449 | W16: 0.06008454557 | X16: 0.06008454557 | Y16: 0 | Z16: 0 | AA16: 0 | AB16: 0.2241171449 | AC16: 0 | AD16: 0 | AE16: 0 | AF16: 6.297930721e-07 | AG16: 0 | AH16: 0 | AI16: 0 | AJ16: 1999.989922 | AK16: 0.06008454557 | AL16: 0 | AM16: 0 | AN16: 0 | AO16: 0 | AQ16: 0 | AR16: 0 | AS16: 0 | AT16: 0 | AU16: 0 | AV16: 0 | AW16: 0 | AX16: 0 | AY16: 0 | BA16: 0.06255549962 | BB16: 0.0101306771 | BC16: 0.00282279029 | BD16: 0.0005225317675 | BE16: 0.1488411119 | BF16: 0.04594779158 | BG16: 0.009897743112 | BH16: 0.003483545117 | BI16: 0.2842016904 | BK16: 0 | BL16: 0 | BM16: 0 | BN16: 0 | BO16: 0 | BQ16: 0 | BR16: 0 | BS16: 0 | BT16: 0 | BU16: 0 | BW16: 5 | BX16: =DepartureOnDay(BA$12:BA$191,BX$6,$BW16,BX$4,BX$5) -> 0 | BY16: =DepartureOnDay(BB$12:BB$191,BY$6,$BW16,BY$4,BY$5) -> 0 | BZ16: =DepartureOnDay(BC$12:BC$191,BZ$6,$BW16,BZ$4,BZ$5) -> 1.397422525e-07 | CA16: =DepartureOnDay(BD$12:BD$191,CA$6,$BW16,CA$4,CA$5) -> 0 | CB16: =DepartureOnDay(BE$12:BE$191,CB$6,$BW16,CB$4,CB$5) -> 0 | CC16: =DepartureOnDay(BF$12:BF$191,CC$6,$BW16,CC$4,CC$5) -> 0 | CD16: =DepartureOnDay(BG$12:BG$191,CD$6,$BW16,CD$4,CD$5) -> 4.899878402e-07 | CE16: =DepartureOnDay(BH$12:BH$191,CE$6,$BW16,CE$4,CE$5) -> 0 | CF16: 6.297300928e-07 | CG16: 0 | CI16: =DepartureOnDay(BA$12:BA$191,CI$6,$BW16,CI$4,CI$5) -> 0 | CJ16: =DepartureOnDay(BB$12:BB$191,CJ$6,$BW16,CJ$4,CJ$5) -> 0 | CK16: =DepartureOnDay(BC$12:BC$191,CK$6,$BW16,CK$4,CK$5) -> 1.397562282e-11 | CL16: =DepartureOnDay(BD$12:BD$191,CL$6,$BW16,CL$4,CL$5) -> 0 | CM16: =DepartureOnDay(BE$12:BE$191,CM$6,$BW16,CM$4,CM$5) -> 0 | CN16: =DepartureOnDay(BF$12:BF$191,CN$6,$BW16,CN$4,CN$5) -> 0 | CO16: =DepartureOnDay(BG$12:BG$191,CO$6,$BW16,CO$4,CO$5) -> 4.900368439e-11 | CP16: =DepartureOnDay(BH$12:BH$191,CP$6,$BW16,CP$4,CP$5) -> 0 | CQ16: 6.297930721e-11 | CR16: 0 | CT16: =DepartureOnDay(BK$12:BK$191,CT$6,$BW16,CT$4,CT$5) -> 0 | CU16: =DepartureOnDay(BL$12:BL$191,CU$6,$BW16,CU$4,CU$5) -> 0 | CV16: =DepartureOnDay(BM$12:BM$191,CV$6,$BW16,CV$4,CV$5) -> 0 | CW16: =DepartureOnDay(BN$12:BN$191,CW$6,$BW16,CW$4,CW$5) -> 0 | CX16: 0 | CZ16: =DepartureOnDay(BK$12:BK$191,CZ$6,$BW16,CZ$4,CZ$5) -> 0 | DA16: =DepartureOnDay(BL$12:BL$191,DA$6,$BW16,DA$4,DA$5) -> 0 | DB16: =DepartureOnDay(BM$12:BM$191,DB$6,$BW16,DB$4,DB$5) -> 0 | DC16: =DepartureOnDay(BN$12:BN$191,DC$6,$BW16,DC$4,DC$5) -> 0 | DD16: 0 | DF16: =DepartureOnDay(BQ$12:BQ$191,DF$6,$BW16,DF$4,DF$5) -> 0 | DG16: =DepartureOnDay(BR$12:BR$191,DG$6,$BW16,DG$4,DG$5) -> 0 | DH16: =DepartureOnDay(BS$12:BS$191,DH$6,$BW16,DH$4,DH$5) -> 0 | DI16: =DepartureOnDay(BT$12:BT$191,DI$6,$BW16,DI$4,DI$5) -> 0 | DJ16: 0 | DL16: =DepartureOnDay(BQ$12:BQ$191,DL$6,$BW16,DL$4,DL$5) -> 0 | DM16: =DepartureOnDay(BR$12:BR$191,DM$6,$BW16,DM$4,DM$5) -> 0 | DN16: =DepartureOnDay(BS$12:BS$191,DN$6,$BW16,DN$4,DN$5) -> 0 | DO16: =DepartureOnDay(BT$12:BT$191,DO$6,$BW16,DO$4,DO$5) -> 0 | DP16: 0 | DQ16: 0 | DR16: 0 | DS16: 5 | DT16: 0.07305429521 | DU16: 0.01183092582 | DV16: 0.003296543971 | DW16: 0.0006102291603 | DX16: 0.1738213681 | DY16: 0.05365928736 | DZ16: 0.01155889812 | EA16: 0.004068194402 | EB16: 0 | EC16: 0 | ED16: 0 | EE16: 0 | EF16: 0 | EG16: 0 | EH16: 0 | EI16: 0 | EJ16: 0.07016863675 | EK16: 0.2617311054 | EL16: 0.07016863675
A17: 6 | B17: ='C4-AnalyticOutput'!B13 -> 0.2538563849 | C17: ='C4-AnalyticOutput'!C13 -> 0.04111128648 | D17: ='C4-AnalyticOutput'!D13 -> 0.0114551613 | E17: ='C4-AnalyticOutput'!E13 -> 0.00212048543 | F17: ='C4-AnalyticOutput'!F13 -> 0.6040119063 | G17: ='C4-AnalyticOutput'!G13 -> 0.1864606683 | H17: ='C4-AnalyticOutput'!H13 -> 0.04016601738 | I17: ='C4-AnalyticOutput'!I13 -> 0.01413656953 | J17: 0.9094894699 | K17: 0.2438290097 | T17: 19999.73829 | U17: 2499.929837 | V17: 0.9094894699 | W17: 0.2438290097 | X17: 0.2438290097 | Y17: 0 | Z17: 0 | AA17: 0 | AB17: 0.9094894699 | AC17: 0 | AD17: 1.322271317e-07 | AE17: 0 | AF17: 7.420697975e-05 | AG17: 0 | AH17: 0 | AI17: 0 | AJ17: 1999.929837 | AK17: 0.2438290097 | AL17: 0 | AM17: 1.322271317e-07 | AN17: 0 | AO17: 0 | AQ17: 0 | AR17: 0 | AS17: 0 | AT17: 0 | AU17: 0 | AV17: 0 | AW17: 0 | AX17: 0 | AY17: 0 | BA17: 0.2538563849 | BB17: 0.04111128648 | BC17: 0.0114551613 | BD17: 0.00212048543 | BE17: 0.6040119063 | BF17: 0.1864606683 | BG17: 0.04016601738 | BH17: 0.01413656953 | BI17: 1.15331848 | BK17: 0 | BL17: 0 | BM17: 0 | BN17: 0 | BO17: 0 | BQ17: 0 | BR17: 0 | BS17: 0 | BT17: 0 | BU17: 0 | BW17: 6 | BX17: =DepartureOnDay(BA$12:BA$191,BX$6,$BW17,BX$4,BX$5) -> 1.47113207e-06 | BY17: =DepartureOnDay(BB$12:BB$191,BY$6,$BW17,BY$4,BY$5) -> 0 | BZ17: =DepartureOnDay(BC$12:BC$191,BZ$6,$BW17,BZ$4,BZ$5) -> 1.536239049e-05 | CA17: =DepartureOnDay(BD$12:BD$191,CA$6,$BW17,CA$4,CA$5) -> 1.724356777e-08 | CB17: =DepartureOnDay(BE$12:BE$191,CB$6,$BW17,CB$4,CB$5) -> 3.500330655e-06 | CC17: =DepartureOnDay(BF$12:BF$191,CC$6,$BW17,CC$4,CC$5) -> 0 | CD17: =DepartureOnDay(BG$12:BG$191,CD$6,$BW17,CD$4,CD$5) -> 5.386620298e-05 | CE17: =DepartureOnDay(BH$12:BH$191,CE$6,$BW17,CE$4,CE$5) -> 1.149571185e-07 | CF17: 7.42000562e-05 | CG17: 1.322006863e-07 | CI17: =DepartureOnDay(BA$12:BA$191,CI$6,$BW17,CI$4,CI$5) -> 0 | CJ17: =DepartureOnDay(BB$12:BB$191,CJ$6,$BW17,CJ$4,CJ$5) -> 0 | CK17: =DepartureOnDay(BC$12:BC$191,CK$6,$BW17,CK$4,CK$5) -> 1.536392689e-09 | CL17: =DepartureOnDay(BD$12:BD$191,CL$6,$BW17,CL$4,CL$5) -> 3.449403436e-12 | CM17: =DepartureOnDay(BE$12:BE$191,CM$6,$BW17,CM$4,CM$5) -> 0 | CN17: =DepartureOnDay(BF$12:BF$191,CN$6,$BW17,CN$4,CN$5) -> 0 | CO17: =DepartureOnDay(BG$12:BG$191,CO$6,$BW17,CO$4,CO$5) -> 5.387159013e-09 | CP17: =DepartureOnDay(BH$12:BH$191,CP$6,$BW17,CP$4,CP$5) -> 2.29960229e-11 | CQ17: 6.923551702e-09 | CR17: 2.644542634e-11 | CT17: =DepartureOnDay(BK$12:BK$191,CT$6,$BW17,CT$4,CT$5) -> 0 | CU17: =DepartureOnDay(BL$12:BL$191,CU$6,$BW17,CU$4,CU$5) -> 0 | CV17: =DepartureOnDay(BM$12:BM$191,CV$6,$BW17,CV$4,CV$5) -> 0 | CW17: =DepartureOnDay(BN$12:BN$191,CW$6,$BW17,CW$4,CW$5) -> 0 | CX17: 0 | CZ17: =DepartureOnDay(BK$12:BK$191,CZ$6,$BW17,CZ$4,CZ$5) -> 0 | DA17: =DepartureOnDay(BL$12:BL$191,DA$6,$BW17,DA$4,DA$5) -> 0 | DB17: =DepartureOnDay(BM$12:BM$191,DB$6,$BW17,DB$4,DB$5) -> 0 | DC17: =DepartureOnDay(BN$12:BN$191,DC$6,$BW17,DC$4,DC$5) -> 0 | DD17: 0 | DF17: =DepartureOnDay(BQ$12:BQ$191,DF$6,$BW17,DF$4,DF$5) -> 0 | DG17: =DepartureOnDay(BR$12:BR$191,DG$6,$BW17,DG$4,DG$5) -> 0 | DH17: =DepartureOnDay(BS$12:BS$191,DH$6,$BW17,DH$4,DH$5) -> 0 | DI17: =DepartureOnDay(BT$12:BT$191,DI$6,$BW17,DI$4,DI$5) -> 0 | DJ17: 0 | DL17: =DepartureOnDay(BQ$12:BQ$191,DL$6,$BW17,DL$4,DL$5) -> 0 | DM17: =DepartureOnDay(BR$12:BR$191,DM$6,$BW17,DM$4,DM$5) -> 0 | DN17: =DepartureOnDay(BS$12:BS$191,DN$6,$BW17,DN$4,DN$5) -> 0 | DO17: =DepartureOnDay(BT$12:BT$191,DO$6,$BW17,DO$4,DO$5) -> 0 | DP17: 0 | DQ17: 0 | DR17: 0 | DS17: 6 | DT17: 0.3269106801 | DU17: 0.0529422123 | DV17: 0.01475156551 | DW17: 0.00273071459 | DX17: 0.7778332744 | DY17: 0.2401199556 | DZ17: 0.05172442546 | EA17: 0.01820476393 | EB17: 0 | EC17: 0 | ED17: 0 | EE17: 0 | EF17: 0 | EG17: 0 | EH17: 0 | EI17: 0 | EJ17: 0.3139976465 | EK17: 1.171219946 | EL17: 0.3139976465
A18: 7 | B18: ='C4-AnalyticOutput'!B14 -> 0.774121833 | C18: ='C4-AnalyticOutput'!C14 -> 0.1253667284 | D18: ='C4-AnalyticOutput'!D14 -> 0.03493191816 | E18: ='C4-AnalyticOutput'!E14 -> 0.006466309951 | F18: ='C4-AnalyticOutput'!F14 -> 1.841902871 | G18: ='C4-AnalyticOutput'!G14 -> 0.568602103 | H18: ='C4-AnalyticOutput'!H14 -> 0.1224841794 | I18: ='C4-AnalyticOutput'!I14 -> 0.04310873301 | J18: 2.773440802 | K18: 0.7435438744 | T18: 19998.82888 | U18: 2499.686008 | V18: 2.773440802 | W18: 0.7435438744 | X18: 0.7435438744 | Y18: 0 | Z18: 0 | AA18: 0 | AB18: 2.773440802 | AC18: 0 | AD18: 1.453622505e-05 | AE18: 0 | AF18: 0.001612900761 | AG18: 0 | AH18: 0 | AI18: 0 | AJ18: 1999.686008 | AK18: 0.7435438744 | AL18: 0 | AM18: 1.453622505e-05 | AN18: 0 | AO18: 0 | AQ18: 0 | AR18: 0 | AS18: 0 | AT18: 0 | AU18: 0 | AV18: 0 | AW18: 0 | AX18: 0 | AY18: 0 | BA18: 0.774121833 | BB18: 0.1253667284 | BC18: 0.03493191816 | BD18: 0.006466309951 | BE18: 1.841902871 | BF18: 0.568602103 | BG18: 0.1224841794 | BH18: 0.04310873301 | BI18: 3.516984676 | BK18: 0 | BL18: 0 | BM18: 0 | BN18: 0 | BO18: 0 | BQ18: 0 | BR18: 0 | BS18: 0 | BT18: 0 | BU18: 0 | BW18: 7 | BX18: =DepartureOnDay(BA$12:BA$191,BX$6,$BW18,BX$4,BX$5) -> 0.0001617270719 | BY18: =DepartureOnDay(BB$12:BB$191,BY$6,$BW18,BY$4,BY$5) -> 0 | BZ18: =DepartureOnDay(BC$12:BC$191,BZ$6,$BW18,BZ$4,BZ$5) -> 0.0002365736686 | CA18: =DepartureOnDay(BD$12:BD$191,CA$6,$BW18,CA$4,CA$5) -> 1.895650148e-06 | CB18: =DepartureOnDay(BE$12:BE$191,CB$6,$BW18,CB$4,CB$5) -> 0.0003848044912 | CC18: =DepartureOnDay(BF$12:BF$191,CC$6,$BW18,CC$4,CC$5) -> 0 | CD18: =DepartureOnDay(BG$12:BG$191,CD$6,$BW18,CD$4,CD$5) -> 0.0008295144728 | CE18: =DepartureOnDay(BH$12:BH$191,CE$6,$BW18,CE$4,CE$5) -> 1.263766765e-05 | CF18: 0.001612619705 | CG18: 1.45333178e-05 | CI18: =DepartureOnDay(BA$12:BA$191,CI$6,$BW18,CI$4,CI$5) -> 5.161866912e-08 | CJ18: =DepartureOnDay(BB$12:BB$191,CJ$6,$BW18,CJ$4,CJ$5) -> 0 | CK18: =DepartureOnDay(BC$12:BC$191,CK$6,$BW18,CK$4,CK$5) -> 2.365973284e-08 | CL18: =DepartureOnDay(BD$12:BD$191,CL$6,$BW18,CL$4,CL$5) -> 3.792058707e-10 | CM18: =DepartureOnDay(BE$12:BE$191,CM$6,$BW18,CM$4,CM$5) -> 1.228186195e-07 | CN18: =DepartureOnDay(BF$12:BF$191,CN$6,$BW18,CN$4,CN$5) -> 0 | CO18: =DepartureOnDay(BG$12:BG$191,CO$6,$BW18,CO$4,CO$5) -> 8.295974326e-08 | CP18: =DepartureOnDay(BH$12:BH$191,CP$6,$BW18,CP$4,CP$5) -> 2.528039138e-09 | CQ18: 2.810567647e-07 | CR18: 2.907245009e-09 | CT18: =DepartureOnDay(BK$12:BK$191,CT$6,$BW18,CT$4,CT$5) -> 0 | CU18: =DepartureOnDay(BL$12:BL$191,CU$6,$BW18,CU$4,CU$5) -> 0 | CV18: =DepartureOnDay(BM$12:BM$191,CV$6,$BW18,CV$4,CV$5) -> 0 | CW18: =DepartureOnDay(BN$12:BN$191,CW$6,$BW18,CW$4,CW$5) -> 0 | CX18: 0 | CZ18: =DepartureOnDay(BK$12:BK$191,CZ$6,$BW18,CZ$4,CZ$5) -> 0 | DA18: =DepartureOnDay(BL$12:BL$191,DA$6,$BW18,DA$4,DA$5) -> 0 | DB18: =DepartureOnDay(BM$12:BM$191,DB$6,$BW18,DB$4,DB$5) -> 0 | DC18: =DepartureOnDay(BN$12:BN$191,DC$6,$BW18,DC$4,DC$5) -> 0 | DD18: 0 | DF18: =DepartureOnDay(BQ$12:BQ$191,DF$6,$BW18,DF$4,DF$5) -> 0 | DG18: =DepartureOnDay(BR$12:BR$191,DG$6,$BW18,DG$4,DG$5) -> 0 | DH18: =DepartureOnDay(BS$12:BS$191,DH$6,$BW18,DH$4,DH$5) -> 0 | DI18: =DepartureOnDay(BT$12:BT$191,DI$6,$BW18,DI$4,DI$5) -> 0 | DJ18: 0 | DL18: =DepartureOnDay(BQ$12:BQ$191,DL$6,$BW18,DL$4,DL$5) -> 0 | DM18: =DepartureOnDay(BR$12:BR$191,DM$6,$BW18,DM$4,DM$5) -> 0 | DN18: =DepartureOnDay(BS$12:BS$191,DN$6,$BW18,DN$4,DN$5) -> 0 | DO18: =DepartureOnDay(BT$12:BT$191,DO$6,$BW18,DO$4,DO$5) -> 0 | DP18: 0 | DQ18: 0 | DR18: 0 | DS18: 7 | DT18: 1.101031042 | DU18: 0.1783089407 | DV18: 0.04966811975 | DW18: 0.009197007294 | DX18: 2.619732645 | DY18: 0.8087220587 | DZ18: 0.1741547333 | EA18: 0.06131338196 | EB18: 0 | EC18: 0 | ED18: 0 | EE18: 0 | EF18: 0 | EG18: 0 | EH18: 0 | EI18: 0 | EJ18: 1.057541389 | EK18: 3.94458654 | EL18: 1.057541389
A19: 8 | B19: ='C4-AnalyticOutput'!B15 -> 1.938158752 | C19: ='C4-AnalyticOutput'!C15 -> 0.3138790452 | D19: ='C4-AnalyticOutput'!D15 -> 0.08745858858 | E19: ='C4-AnalyticOutput'!E15 -> 0.01618961601 | F19: ='C4-AnalyticOutput'!F15 -> 4.611548231 | G19: ='C4-AnalyticOutput'!G15 -> 1.42360168 | H19: ='C4-AnalyticOutput'!H15 -> 0.3066620449 | I19: ='C4-AnalyticOutput'!I15 -> 0.1079307734 | J19: 6.943827616 | K19: 1.861601115 | T19: 19996.05705 | U19: 2498.942479 | V19: 6.943827616 | W19: 1.861601115 | X19: 1.861601115 | Y19: 0 | Z19: 0 | AA19: 0 | AB19: 6.943827616 | AC19: 0 | AD19: 0.0002239833321 | AE19: 0 | AF19: 0.01579833563 | AG19: 0 | AH19: 0 | AI19: 0 | AJ19: 1998.942479 | AK19: 1.861601115 | AL19: 0 | AM19: 0.0002239833321 | AN19: 0 | AO19: 0 | AQ19: 0 | AR19: 0 | AS19: 0 | AT19: 0 | AU19: 0 | AV19: 0 | AW19: 0 | AX19: 0 | AY19: 0 | BA19: 1.938158752 | BB19: 0.3138790452 | BC19: 0.08745858858 | BD19: 0.01618961601 | BE19: 4.611548231 | BF19: 1.42360168 | BG19: 0.3066620449 | BH19: 0.1079307734 | BI19: 8.805428731 | BK19: 0 | BL19: 0 | BM19: 0 | BN19: 0 | BO19: 0 | BQ19: 0 | BR19: 0 | BS19: 0 | BT19: 0 | BU19: 0 | BW19: 8 | BX19: =DepartureOnDay(BA$12:BA$191,BX$6,$BW19,BX$4,BX$5) -> 0.002491992821 | BY19: =DepartureOnDay(BB$12:BB$191,BY$6,$BW19,BY$4,BY$5) -> 0 | BZ19: =DepartureOnDay(BC$12:BC$191,BZ$6,$BW19,BZ$4,BZ$5) -> 0.001632605026 | CA19: =DepartureOnDay(BD$12:BD$191,CA$6,$BW19,CA$4,CA$5) -> 2.920937418e-05 | CB19: =DepartureOnDay(BE$12:BE$191,CB$6,$BW19,CB$4,CB$5) -> 0.005929310524 | CC19: =DepartureOnDay(BF$12:BF$191,CC$6,$BW19,CC$4,CC$5) -> 0 | CD19: =DepartureOnDay(BG$12:BG$191,CD$6,$BW19,CD$4,CD$5) -> 0.005724514926 | CE19: =DepartureOnDay(BH$12:BH$191,CE$6,$BW19,CE$4,CE$5) -> 0.0001947291612 | CF19: 0.0157784233 | CG19: 0.0002239385354 | CI19: =DepartureOnDay(BA$12:BA$191,CI$6,$BW19,CI$4,CI$5) -> 5.674634103e-06 | CJ19: =DepartureOnDay(BB$12:BB$191,CJ$6,$BW19,CJ$4,CJ$5) -> 0 | CK19: =DepartureOnDay(BC$12:BC$191,CK$6,$BW19,CK$4,CK$5) -> 1.632768302e-07 | CL19: =DepartureOnDay(BD$12:BD$191,CL$6,$BW19,CL$4,CL$5) -> 5.843043446e-09 | CM19: =DepartureOnDay(BE$12:BE$191,CM$6,$BW19,CM$4,CM$5) -> 1.350191197e-05 | CN19: =DepartureOnDay(BF$12:BF$191,CN$6,$BW19,CN$4,CN$5) -> 0 | CO19: =DepartureOnDay(BG$12:BG$191,CO$6,$BW19,CO$4,CO$5) -> 5.725087435e-07 | CP19: =DepartureOnDay(BH$12:BH$191,CP$6,$BW19,CP$4,CP$5) -> 3.895362297e-08 | CQ19: 1.991233165e-05 | CR19: 4.479666642e-08 | CT19: =DepartureOnDay(BK$12:BK$191,CT$6,$BW19,CT$4,CT$5) -> 0 | CU19: =DepartureOnDay(BL$12:BL$191,CU$6,$BW19,CU$4,CU$5) -> 0 | CV19: =DepartureOnDay(BM$12:BM$191,CV$6,$BW19,CV$4,CV$5) -> 0 | CW19: =DepartureOnDay(BN$12:BN$191,CW$6,$BW19,CW$4,CW$5) -> 0 | CX19: 0 | CZ19: =DepartureOnDay(BK$12:BK$191,CZ$6,$BW19,CZ$4,CZ$5) -> 0 | DA19: =DepartureOnDay(BL$12:BL$191,DA$6,$BW19,DA$4,DA$5) -> 0 | DB19: =DepartureOnDay(BM$12:BM$191,DB$6,$BW19,DB$4,DB$5) -> 0 | DC19: =DepartureOnDay(BN$12:BN$191,DC$6,$BW19,DC$4,DC$5) -> 0 | DD19: 0 | DF19: =DepartureOnDay(BQ$12:BQ$191,DF$6,$BW19,DF$4,DF$5) -> 0 | DG19: =DepartureOnDay(BR$12:BR$191,DG$6,$BW19,DG$4,DG$5) -> 0 | DH19: =DepartureOnDay(BS$12:BS$191,DH$6,$BW19,DH$4,DH$5) -> 0 | DI19: =DepartureOnDay(BT$12:BT$191,DI$6,$BW19,DI$4,DI$5) -> 0 | DJ19: 0 | DL19: =DepartureOnDay(BQ$12:BQ$191,DL$6,$BW19,DL$4,DL$5) -> 0 | DM19: =DepartureOnDay(BR$12:BR$191,DM$6,$BW19,DM$4,DM$5) -> 0 | DN19: =DepartureOnDay(BS$12:BS$191,DN$6,$BW19,DN$4,DN$5) -> 0 | DO19: =DepartureOnDay(BT$12:BT$191,DO$6,$BW19,DO$4,DO$5) -> 0 | DP19: 0 | DQ19: 0 | DR19: 0 | DS19: 8 | DT19: 3.039028015 | DU19: 0.4921879858 | DV19: 0.136890111 | DW19: 0.02538472728 | DX19: 7.230895949 | DY19: 2.232323739 | DZ19: 0.4799871808 | EA19: 0.1692315152 | EB19: 0 | EC19: 0 | ED19: 0 | EE19: 0 | EF19: 0 | EG19: 0 | EH19: 0 | EI19: 0 | EJ19: 2.919127967 | EK19: 10.88680126 | EL19: 2.919127967
A20: 9 | B20: ='C4-AnalyticOutput'!B16 -> 4.200349984 | C20: ='C4-AnalyticOutput'!C16 -> 0.6802341867 | D20: ='C4-AnalyticOutput'!D16 -> 0.1895390049 | E20: ='C4-AnalyticOutput'!E16 -> 0.03508590475 | F20: ='C4-AnalyticOutput'!F16 -> 9.994081504 | G20: ='C4-AnalyticOutput'!G16 -> 3.085209243 | H20: ='C4-AnalyticOutput'!H16 -> 0.6645936068 | I20: ='C4-AnalyticOutput'!I16 -> 0.2339060317 | J20: 15.0485641 | K20: 4.034435366 | T20: 19989.12902 | U20: 2497.081102 | V20: 15.0485641 | W20: 4.034435366 | X20: 4.034435366 | Y20: 0 | Z20: 0 | AA20: 0 | AB20: 15.0485641 | AC20: 0 | AD20: 0.001559210066 | AE20: 0 | AF20: 0.09109433894 | AG20: 0 | AH20: 0 | AI20: 0 | AJ20: 1997.081102 | AK20: 4.034435366 | AL20: 0 | AM20: 0.001559210066 | AN20: 0 | AO20: 0 | AQ20: 0 | AR20: 0 | AS20: 0 | AT20: 0 | AU20: 0 | AV20: 0 | AW20: 0 | AX20: 0 | AY20: 0 | BA20: 4.200349984 | BB20: 0.6802341867 | BC20: 0.1895390049 | BD20: 0.03508590475 | BE20: 9.994081504 | BF20: 3.085209243 | BG20: 0.6645936068 | BH20: 0.2339060317 | BI20: 19.08299947 | BK20: 0 | BL20: 0 | BM20: 0 | BN20: 0 | BO20: 0 | BQ20: 0 | BR20: 0 | BS20: 0 | BT20: 0 | BU20: 0 | BW20: 9 | BX20: =DepartureOnDay(BA$12:BA$191,BX$6,$BW20,BX$4,BX$5) -> 0.01734892398 | BY20: =DepartureOnDay(BB$12:BB$191,BY$6,$BW20,BY$4,BY$5) -> 0 | BZ20: =DepartureOnDay(BC$12:BC$191,BZ$6,$BW20,BZ$4,BZ$5) -> 0.007138261896 | CA20: =DepartureOnDay(BD$12:BD$191,CA$6,$BW20,CA$4,CA$5) -> 0.000203334551 | CB20: =DepartureOnDay(BE$12:BE$191,CB$6,$BW20,CB$4,CB$5) -> 0.04127907459 | CC20: =DepartureOnDay(BF$12:BF$191,CC$6,$BW20,CC$4,CC$5) -> 0 | CD20: =DepartureOnDay(BG$12:BG$191,CD$6,$BW20,CD$4,CD$5) -> 0.02502937706 | CE20: =DepartureOnDay(BH$12:BH$191,CE$6,$BW20,CE$4,CE$5) -> 0.001355563673 | CF20: 0.09079563752 | CG20: 0.001558898224 | CI20: =DepartureOnDay(BA$12:BA$191,CI$6,$BW20,CI$4,CI$5) -> 8.74383446e-05 | CJ20: =DepartureOnDay(BB$12:BB$191,CJ$6,$BW20,CJ$4,CJ$5) -> 0 | CK20: =DepartureOnDay(BC$12:BC$191,CK$6,$BW20,CK$4,CK$5) -> 7.138975793e-07 | CL20: =DepartureOnDay(BD$12:BD$191,CL$6,$BW20,CL$4,CL$5) -> 4.067504521e-08 | CM20: =DepartureOnDay(BE$12:BE$191,CM$6,$BW20,CM$4,CM$5) -> 0.0002080459833 | CN20: =DepartureOnDay(BF$12:BF$191,CN$6,$BW20,CN$4,CN$5) -> 0 | CO20: =DepartureOnDay(BG$12:BG$191,CO$6,$BW20,CO$4,CO$5) -> 2.503188024e-06 | CP20: =DepartureOnDay(BH$12:BH$191,CP$6,$BW20,CP$4,CP$5) -> 2.711669681e-07 | CQ20: 0.0002987014135 | CR20: 3.118420133e-07 | CT20: =DepartureOnDay(BK$12:BK$191,CT$6,$BW20,CT$4,CT$5) -> 0 | CU20: =DepartureOnDay(BL$12:BL$191,CU$6,$BW20,CU$4,CU$5) -> 0 | CV20: =DepartureOnDay(BM$12:BM$191,CV$6,$BW20,CV$4,CV$5) -> 0 | CW20: =DepartureOnDay(BN$12:BN$191,CW$6,$BW20,CW$4,CW$5) -> 0 | CX20: 0 | CZ20: =DepartureOnDay(BK$12:BK$191,CZ$6,$BW20,CZ$4,CZ$5) -> 0 | DA20: =DepartureOnDay(BL$12:BL$191,DA$6,$BW20,DA$4,DA$5) -> 0 | DB20: =DepartureOnDay(BM$12:BM$191,DB$6,$BW20,DB$4,DB$5) -> 0 | DC20: =DepartureOnDay(BN$12:BN$191,DC$6,$BW20,DC$4,DC$5) -> 0 | DD20: 0 | DF20: =DepartureOnDay(BQ$12:BQ$191,DF$6,$BW20,DF$4,DF$5) -> 0 | DG20: =DepartureOnDay(BR$12:BR$191,DG$6,$BW20,DG$4,DG$5) -> 0 | DH20: =DepartureOnDay(BS$12:BS$191,DH$6,$BW20,DH$4,DH$5) -> 0 | DI20: =DepartureOnDay(BT$12:BT$191,DI$6,$BW20,DI$4,DI$5) -> 0 | DJ20: 0 | DL20: =DepartureOnDay(BQ$12:BQ$191,DL$6,$BW20,DL$4,DL$5) -> 0 | DM20: =DepartureOnDay(BR$12:BR$191,DM$6,$BW20,DM$4,DM$5) -> 0 | DN20: =DepartureOnDay(BS$12:BS$191,DN$6,$BW20,DN$4,DN$5) -> 0 | DO20: =DepartureOnDay(BT$12:BT$191,DO$6,$BW20,DO$4,DO$5) -> 0 | DP20: 0 | DQ20: 0 | DR20: 0 | DS20: 9 | DT20: 7.236880331 | DU20: 1.172422172 | DV20: 0.3247963476 | DW20: 0.06044141681 | DX20: 17.21903464 | DY20: 5.317532982 | DZ20: 1.1388557 | EA20: 0.4029427787 | EB20: 0 | EC20: 0 | ED20: 0 | EE20: 0 | EF20: 0 | EG20: 0 | EH20: 0 | EI20: 0 | EJ20: 6.95333935 | EK20: 25.91956702 | EL20: 6.95333935
A21: 10 | B21: ='C4-AnalyticOutput'!B17 -> 8.152778409 | C21: ='C4-AnalyticOutput'!C17 -> 1.320318214 | D21: ='C4-AnalyticOutput'!D17 -> 0.367890655 | E21: ='C4-AnalyticOutput'!E17 -> 0.06810089822 | F21: ='C4-AnalyticOutput'!F17 -> 19.3982721 | G21: ='C4-AnalyticOutput'!G17 -> 5.988317021 | H21: ='C4-AnalyticOutput'!H17 -> 1.289960225 | I21: ='C4-AnalyticOutput'!I17 -> 0.4540059881 | J21: 29.20890139 | K21: 7.830742122 | T21: 19974.17155 | U21: 2493.048226 | V21: 29.20890139 | W21: 7.830742122 | X21: 7.830742122 | Y21: 0 | Z21: 0 | AA21: 0 | AB21: 29.20890139 | AC21: 0 | AD21: 0.006964121865 | AE21: 0 | AF21: 0.3689425072 | AG21: 0 | AH21: 0 | AI21: 0 | AJ21: 1993.048226 | AK21: 7.830742122 | AL21: 0 | AM21: 0.006964121865 | AN21: 0 | AO21: 0 | AQ21: 0 | AR21: 0 | AS21: 0 | AT21: 0 | AU21: 0 | AV21: 0 | AW21: 0 | AX21: 0 | AY21: 0 | BA21: 8.152778409 | BB21: 1.320318214 | BC21: 0.367890655 | BD21: 0.06810089822 | BE21: 19.3982721 | BF21: 5.988317021 | BG21: 1.289960225 | BH21: 0.4540059881 | BI21: 37.03964351 | BK21: 0 | BL21: 0 | BM21: 0 | BN21: 0 | BO21: 0 | BQ21: 0 | BR21: 0 | BS21: 0 | BT21: 0 | BU21: 0 | BW21: 10 | BX21: =DepartureOnDay(BA$12:BA$191,BX$6,$BW21,BX$4,BX$5) -> 0.07763834426 | BY21: =DepartureOnDay(BB$12:BB$191,BY$6,$BW21,BY$4,BY$5) -> 5.373957814e-08 | BZ21: =DepartureOnDay(BC$12:BC$191,BZ$6,$BW21,BZ$4,BZ$5) -> 0.02319122038 | CA21: =DepartureOnDay(BD$12:BD$191,CA$6,$BW21,CA$4,CA$5) -> 0.0009081432553 | CB21: =DepartureOnDay(BE$12:BE$191,CB$6,$BW21,CB$4,CB$5) -> 0.184728402 | CC21: =DepartureOnDay(BF$12:BF$191,CC$6,$BW21,CC$4,CC$5) -> 2.437364167e-07 | CD21: =DepartureOnDay(BG$12:BG$191,CD$6,$BW21,CD$4,CD$5) -> 0.0813169659 | CE21: =DepartureOnDay(BH$12:BH$191,CE$6,$BW21,CE$4,CE$5) -> 0.006054288369 | CF21: 0.3668749325 | CG21: 0.0069627291 | CI21: =DepartureOnDay(BA$12:BA$191,CI$6,$BW21,CI$4,CI$5) -> 0.0006087341748 | CJ21: =DepartureOnDay(BB$12:BB$191,CJ$6,$BW21,CJ$4,CJ$5) -> 0 | CK21: =DepartureOnDay(BC$12:BC$191,CK$6,$BW21,CK$4,CK$5) -> 2.319353973e-06 | CL21: =DepartureOnDay(BD$12:BD$191,CL$6,$BW21,CL$4,CL$5) -> 1.816649841e-07 | CM21: =DepartureOnDay(BE$12:BE$191,CM$6,$BW21,CM$4,CM$5) -> 0.001448388582 | CN21: =DepartureOnDay(BF$12:BF$191,CN$6,$BW21,CN$4,CN$5) -> 0 | CO21: =DepartureOnDay(BG$12:BG$191,CO$6,$BW21,CO$4,CO$5) -> 8.132509841e-06 | CP21: =DepartureOnDay(BH$12:BH$191,CP$6,$BW21,CP$4,CP$5) -> 1.211099894e-06 | CQ21: 0.002067574621 | CR21: 1.392764878e-06 | CT21: =DepartureOnDay(BK$12:BK$191,CT$6,$BW21,CT$4,CT$5) -> 0 | CU21: =DepartureOnDay(BL$12:BL$191,CU$6,$BW21,CU$4,CU$5) -> 0 | CV21: =DepartureOnDay(BM$12:BM$191,CV$6,$BW21,CV$4,CV$5) -> 0 | CW21: =DepartureOnDay(BN$12:BN$191,CW$6,$BW21,CW$4,CW$5) -> 0 | CX21: 0 | CZ21: =DepartureOnDay(BK$12:BK$191,CZ$6,$BW21,CZ$4,CZ$5) -> 0 | DA21: =DepartureOnDay(BL$12:BL$191,DA$6,$BW21,DA$4,DA$5) -> 0 | DB21: =DepartureOnDay(BM$12:BM$191,DB$6,$BW21,DB$4,DB$5) -> 0 | DC21: =DepartureOnDay(BN$12:BN$191,DC$6,$BW21,DC$4,DC$5) -> 0 | DD21: 0 | DF21: =DepartureOnDay(BQ$12:BQ$191,DF$6,$BW21,DF$4,DF$5) -> 0 | DG21: =DepartureOnDay(BR$12:BR$191,DG$6,$BW21,DG$4,DG$5) -> 0 | DH21: =DepartureOnDay(BS$12:BS$191,DH$6,$BW21,DH$4,DH$5) -> 0 | DI21: =DepartureOnDay(BT$12:BT$191,DI$6,$BW21,DI$4,DI$5) -> 0 | DJ21: 0 | DL21: =DepartureOnDay(BQ$12:BQ$191,DL$6,$BW21,DL$4,DL$5) -> 0 | DM21: =DepartureOnDay(BR$12:BR$191,DM$6,$BW21,DM$4,DM$5) -> 0 | DN21: =DepartureOnDay(BS$12:BS$191,DN$6,$BW21,DN$4,DN$5) -> 0 | DO21: =DepartureOnDay(BT$12:BT$191,DO$6,$BW21,DO$4,DO$5) -> 0 | DP21: 0 | DQ21: 0 | DR21: 0 | DS21: 10 | DT21: 15.37222238 | DU21: 2.492740387 | DV21: 0.6855480267 | DW21: 0.1283389398 | DX21: 36.57581962 | DY21: 11.30585 | DZ21: 2.403784045 | EA21: 0.855592932 | EB21: 0 | EC21: 0 | ED21: 0 | EE21: 0 | EF21: 0 | EG21: 0 | EH21: 0 | EI21: 0 | EJ21: 14.78252226 | EK21: 55.03737407 | EL21: 14.78252226
A22: 11 | B22: ='C4-AnalyticOutput'!B18 -> 14.50643096 | C22: ='C4-AnalyticOutput'!C18 -> 2.349273346 | D22: ='C4-AnalyticOutput'!D18 -> 0.6545965213 | E22: ='C4-AnalyticOutput'!E18 -> 0.1211735348 | F22: ='C4-AnalyticOutput'!F18 -> 34.51580318 | G22: ='C4-AnalyticOutput'!G18 -> 10.65515375 | H22: ='C4-AnalyticOutput'!H18 -> 2.295256659 | I22: ='C4-AnalyticOutput'!I18 -> 0.8078235651 | J22: 51.97208731 | K22: 13.93342419 | T22: 19945.33159 | U22: 2485.224448 | V22: 51.97208731 | W22: 13.93342419 | X22: 13.93342419 | Y22: 0 | Z22: 0 | AA22: 0 | AB22: 51.97208731 | AC22: 0 | AD22: 0.02331209425 | AE22: 0 | AF22: 1.168105444 | AG22: 0 | AH22: 0 | AI22: 0 | AJ22: 1985.224448 | AK22: 13.93342419 | AL22: 0 | AM22: 0.02331209425 | AN22: 0 | AO22: 0 | AQ22: 0 | AR22: 0 | AS22: 0 | AT22: 0 | AU22: 0 | AV22: 0 | AW22: 0 | AX22: 0 | AY22: 0 | BA22: 14.50643096 | BB22: 2.349273346 | BC22: 0.6545965213 | BD22: 0.1211735348 | BE22: 34.51580318 | BF22: 10.65515375 | BG22: 2.295256659 | BH22: 0.8078235651 | BI22: 65.90551151 | BK22: 0 | BL22: 0 | BM22: 0 | BN22: 0 | BO22: 0 | BQ22: 0 | BR22: 0 | BS22: 0 | BT22: 0 | BU22: 0 | BW22: 11 | BX22: =DepartureOnDay(BA$12:BA$191,BX$6,$BW22,BX$4,BX$5) -> 0.2613320237 | BY22: =DepartureOnDay(BB$12:BB$191,BY$6,$BW22,BY$4,BY$5) -> 5.907793595e-06 | BZ22: =DepartureOnDay(BC$12:BC$191,BZ$6,$BW22,BZ$4,BZ$5) -> 0.06118913384 | CA22: =DepartureOnDay(BD$12:BD$191,CA$6,$BW22,CA$4,CA$5) -> 0.003035835094 | CB22: =DepartureOnDay(BE$12:BE$191,CB$6,$BW22,CB$4,CB$5) -> 0.6217990297 | CC22: =DepartureOnDay(BF$12:BF$191,CC$6,$BW22,CC$4,CC$5) -> 2.679485942e-05 | CD22: =DepartureOnDay(BG$12:BG$191,CD$6,$BW22,CD$4,CD$5) -> 0.2145516549 | CE22: =DepartureOnDay(BH$12:BH$191,CE$6,$BW22,CE$4,CE$5) -> 0.02023890063 | CF22: 1.158871842 | CG22: 0.02330743838 | CI22: =DepartureOnDay(BA$12:BA$191,CI$6,$BW22,CI$4,CI$5) -> 0.002724204049 | CJ22: =DepartureOnDay(BB$12:BB$191,CJ$6,$BW22,CJ$4,CJ$5) -> 0 | CK22: =DepartureOnDay(BC$12:BC$191,CK$6,$BW22,CK$4,CK$5) -> 6.119525337e-06 | CL22: =DepartureOnDay(BD$12:BD$191,CL$6,$BW22,CL$4,CL$5) -> 6.072884766e-07 | CM22: =DepartureOnDay(BE$12:BE$191,CM$6,$BW22,CM$4,CM$5) -> 0.006481821135 | CN22: =DepartureOnDay(BF$12:BF$191,CN$6,$BW22,CN$4,CN$5) -> 0 | CO22: =DepartureOnDay(BG$12:BG$191,CO$6,$BW22,CO$4,CO$5) -> 2.145731122e-05 | CP22: =DepartureOnDay(BH$12:BH$191,CP$6,$BW22,CP$4,CP$5) -> 4.048589844e-06 | CQ22: 0.00923360202 | CR22: 4.65587832e-06 | CT22: =DepartureOnDay(BK$12:BK$191,CT$6,$BW22,CT$4,CT$5) -> 0 | CU22: =DepartureOnDay(BL$12:BL$191,CU$6,$BW22,CU$4,CU$5) -> 0 | CV22: =DepartureOnDay(BM$12:BM$191,CV$6,$BW22,CV$4,CV$5) -> 0 | CW22: =DepartureOnDay(BN$12:BN$191,CW$6,$BW22,CW$4,CW$5) -> 0 | CX22: 0 | CZ22: =DepartureOnDay(BK$12:BK$191,CZ$6,$BW22,CZ$4,CZ$5) -> 0 | DA22: =DepartureOnDay(BL$12:BL$191,DA$6,$BW22,DA$4,DA$5) -> 0 | DB22: =DepartureOnDay(BM$12:BM$191,DB$6,$BW22,DB$4,DB$5) -> 0 | DC22: =DepartureOnDay(BN$12:BN$191,DC$6,$BW22,DC$4,DC$5) -> 0 | DD22: 0 | DF22: =DepartureOnDay(BQ$12:BQ$191,DF$6,$BW22,DF$4,DF$5) -> 0 | DG22: =DepartureOnDay(BR$12:BR$191,DG$6,$BW22,DG$4,DG$5) -> 0 | DH22: =DepartureOnDay(BS$12:BS$191,DH$6,$BW22,DH$4,DH$5) -> 0 | DI22: =DepartureOnDay(BT$12:BT$191,DI$6,$BW22,DI$4,DI$5) -> 0 | DJ22: 0 | DL22: =DepartureOnDay(BQ$12:BQ$191,DL$6,$BW22,DL$4,DL$5) -> 0 | DM22: =DepartureOnDay(BR$12:BR$191,DM$6,$BW22,DM$4,DM$5) -> 0 | DN22: =DepartureOnDay(BS$12:BS$191,DN$6,$BW22,DN$4,DN$5) -> 0 | DO22: =DepartureOnDay(BT$12:BT$191,DO$6,$BW22,DO$4,DO$5) -> 0 | DP22: 0 | DQ22: 0 | DR22: 0 | DS22: 11 | DT22: 29.80040626 | DU22: 4.84201368 | DV22: 1.316951008 | DW22: 0.2486041496 | DX22: 70.90544601 | DY22: 21.9610035 | DZ22: 4.617715605 | EA22: 1.657360998 | EB22: 0 | EC22: 0 | ED22: 0 | EE22: 0 | EF22: 0 | EG22: 0 | EH22: 0 | EI22: 0 | EJ22: 28.70898233 | EK22: 106.6405189 | EL22: 28.70898233
A23: 12 | B23: ='C4-AnalyticOutput'!B19 -> 24.05813039 | C23: ='C4-AnalyticOutput'!C19 -> 3.89614266 | D23: ='C4-AnalyticOutput'!D19 -> 1.085612892 | E23: ='C4-AnalyticOutput'!E19 -> 0.2009597473 | F23: ='C4-AnalyticOutput'!F19 -> 57.24259095 | G23: ='C4-AnalyticOutput'!G19 -> 17.67099564 | H23: ='C4-AnalyticOutput'!H19 -> 3.806558908 | I23: ='C4-AnalyticOutput'!I19 -> 1.339731649 | J23: 86.19289314 | K23: 23.10782969 | T23: 19894.52761 | U23: 2471.314336 | V23: 86.19289314 | W23: 23.10782969 | X23: 23.10782969 | Y23: 0 | Z23: 0 | AA23: 0 | AB23: 86.19289314 | AC23: 0 | AD23: 0.06382139891 | AE23: 0 | AF23: 3.085944544 | AG23: 0 | AH23: 0 | AI23: 0 | AJ23: 1971.314336 | AK23: 23.10782969 | AL23: 0 | AM23: 0.06382139891 | AN23: 0 | AO23: 0 | AQ23: 0 | AR23: 0 | AS23: 0 | AT23: 0 | AU23: 0 | AV23: 0 | AW23: 0 | AX23: 0 | AY23: 0 | BA23: 24.05813039 | BB23: 3.89614266 | BC23: 1.085612892 | BD23: 0.2009597473 | BE23: 57.24259095 | BF23: 17.67099564 | BG23: 3.806558908 | BH23: 1.339731649 | BI23: 109.3007228 | BK23: 0 | BL23: 0 | BM23: 0 | BN23: 0 | BO23: 0 | BQ23: 0 | BR23: 0 | BS23: 0 | BT23: 0 | BU23: 0 | BW23: 12 | BX23: =DepartureOnDay(BA$12:BA$191,BX$6,$BW23,BX$4,BX$5) -> 0.7193144615 | BY23: =DepartureOnDay(BB$12:BB$191,BY$6,$BW23,BY$4,BY$5) -> 9.103101325e-05 | BZ23: =DepartureOnDay(BC$12:BC$191,BZ$6,$BW23,BZ$4,BZ$5) -> 0.1384849468 | CA23: =DepartureOnDay(BD$12:BD$191,CA$6,$BW23,CA$4,CA$5) -> 0.008257152037 | CB23: =DepartureOnDay(BE$12:BE$191,CB$6,$BW23,CB$4,CB$5) -> 1.711497228 | CC23: =DepartureOnDay(BF$12:BF$191,CC$6,$BW23,CC$4,CC$5) -> 0.0004128721093 | CD23: =DepartureOnDay(BG$12:BG$191,CD$6,$BW23,CD$4,CD$5) -> 0.4855792631 | CE23: =DepartureOnDay(BH$12:BH$191,CE$6,$BW23,CE$4,CE$5) -> 0.05504768025 | CF23: 3.0548759 | CG23: 0.06380873541 | CI23: =DepartureOnDay(BA$12:BA$191,CI$6,$BW23,CI$4,CI$5) -> 0.009175219324 | CJ23: =DepartureOnDay(BB$12:BB$191,CJ$6,$BW23,CJ$4,CJ$5) -> 0 | CK23: =DepartureOnDay(BC$12:BC$191,CK$6,$BW23,CK$4,CK$5) -> 1.384987967e-05 | CL23: =DepartureOnDay(BD$12:BD$191,CL$6,$BW23,CL$4,CL$5) -> 1.65176076e-06 | CM23: =DepartureOnDay(BE$12:BE$191,CM$6,$BW23,CM$4,CM$5) -> 0.02183101173 | CN23: =DepartureOnDay(BF$12:BF$191,CN$6,$BW23,CN$4,CN$5) -> 0 | CO23: =DepartureOnDay(BG$12:BG$191,CO$6,$BW23,CO$4,CO$5) -> 4.856278259e-05 | CP23: =DepartureOnDay(BH$12:BH$191,CP$6,$BW23,CP$4,CP$5) -> 1.10117384e-05 | CQ23: 0.03106864371 | CR23: 1.266349916e-05 | CT23: =DepartureOnDay(BK$12:BK$191,CT$6,$BW23,CT$4,CT$5) -> 0 | CU23: =DepartureOnDay(BL$12:BL$191,CU$6,$BW23,CU$4,CU$5) -> 0 | CV23: =DepartureOnDay(BM$12:BM$191,CV$6,$BW23,CV$4,CV$5) -> 0 | CW23: =DepartureOnDay(BN$12:BN$191,CW$6,$BW23,CW$4,CW$5) -> 0 | CX23: 0 | CZ23: =DepartureOnDay(BK$12:BK$191,CZ$6,$BW23,CZ$4,CZ$5) -> 0 | DA23: =DepartureOnDay(BL$12:BL$191,DA$6,$BW23,DA$4,DA$5) -> 0 | DB23: =DepartureOnDay(BM$12:BM$191,DB$6,$BW23,DB$4,DB$5) -> 0 | DC23: =DepartureOnDay(BN$12:BN$191,DC$6,$BW23,DC$4,DC$5) -> 0 | DD23: 0 | DF23: =DepartureOnDay(BQ$12:BQ$191,DF$6,$BW23,DF$4,DF$5) -> 0 | DG23: =DepartureOnDay(BR$12:BR$191,DG$6,$BW23,DG$4,DG$5) -> 0 | DH23: =DepartureOnDay(BS$12:BS$191,DH$6,$BW23,DH$4,DH$5) -> 0 | DI23: =DepartureOnDay(BT$12:BT$191,DI$6,$BW23,DI$4,DI$5) -> 0 | DJ23: 0 | DL23: =DepartureOnDay(BQ$12:BQ$191,DL$6,$BW23,DL$4,DL$5) -> 0 | DM23: =DepartureOnDay(BR$12:BR$191,DM$6,$BW23,DM$4,DM$5) -> 0 | DN23: =DepartureOnDay(BS$12:BS$191,DN$6,$BW23,DN$4,DN$5) -> 0 | DO23: =DepartureOnDay(BT$12:BT$191,DO$6,$BW23,DO$4,DO$5) -> 0 | DP23: 0 | DQ23: 0 | DR23: 0 | DS23: 12 | DT23: 53.59448042 | DU23: 8.738150432 | DV23: 2.341368647 | DW23: 0.4465274546 | DX23: 127.5197561 | DY23: 39.63197235 | DZ23: 8.209701401 | EA23: 2.976849697 | EB23: 0 | EC23: 0 | ED23: 0 | EE23: 0 | EF23: 0 | EG23: 0 | EH23: 0 | EI23: 0 | EJ23: 51.79349993 | EK23: 191.6653066 | EL23: 51.79349993
A24: 13 | B24: ='C4-AnalyticOutput'!B20 -> 37.64734063 | C24: ='C4-AnalyticOutput'!C20 -> 6.096874839 | D24: ='C4-AnalyticOutput'!D20 -> 1.698820219 | E24: ='C4-AnalyticOutput'!E20 -> 0.3144716541 | F24: ='C4-AnalyticOutput'!F20 -> 89.57600965 | G24: ='C4-AnalyticOutput'!G20 -> 27.65243937 | H24: ='C4-AnalyticOutput'!H20 -> 5.956689797 | I24: ='C4-AnalyticOutput'!I20 -> 2.096477694 | J24: 134.8788603 | K24: 36.16026356 | T24: 19811.42066 | U24: 2448.270327 | V24: 134.8788603 | W24: 36.16026356 | X24: 36.16026356 | Y24: 0 | Z24: 0 | AA24: 0 | AB24: 134.8788603 | AC24: 0 | AD24: 0.1510706262 | AE24: 0 | AF24: 7.093361167 | AG24: 0 | AH24: 0 | AI24: 0 | AJ24: 1948.270327 | AK24: 36.16026356 | AL24: 0 | AM24: 0.1510706262 | AN24: 0 | AO24: 0 | AQ24: 0 | AR24: 0 | AS24: 0 | AT24: 0 | AU24: 0 | AV24: 0 | AW24: 0 | AX24: 0 | AY24: 0 | BA24: 37.64734063 | BB24: 6.096874839 | BC24: 1.698820219 | BD24: 0.3144716541 | BE24: 89.57600965 | BF24: 27.65243937 | BG24: 5.956689797 | BH24: 2.096477694 | BI24: 171.0391239 | BK24: 0 | BL24: 0 | BM24: 0 | BN24: 0 | BO24: 0 | BQ24: 0 | BR24: 0 | BS24: 0 | BT24: 0 | BU24: 0 | BW24: 13 | BX24: =DepartureOnDay(BA$12:BA$191,BX$6,$BW24,BX$4,BX$5) -> 1.702040651 | BY24: =DepartureOnDay(BB$12:BB$191,BY$6,$BW24,BY$4,BY$5) -> 0.0006337458581 | BZ24: =DepartureOnDay(BC$12:BC$191,BZ$6,$BW24,BZ$4,BZ$5) -> 0.2786869584 | CA24: =DepartureOnDay(BD$12:BD$191,CA$6,$BW24,CA$4,CA$5) -> 0.01924342745 | CB24: =DepartureOnDay(BE$12:BE$191,CB$6,$BW24,CB$4,CB$5) -> 4.049741822 | CC24: =DepartureOnDay(BF$12:BF$191,CC$6,$BW24,CC$4,CC$5) -> 0.002874360944 | CD24: =DepartureOnDay(BG$12:BG$191,CD$6,$BW24,CD$4,CD$5) -> 0.977179188 | CE24: =DepartureOnDay(BH$12:BH$191,CE$6,$BW24,CE$4,CE$5) -> 0.1282895163 | CF24: 7.00764862 | CG24: 0.1510410506 | CI24: =DepartureOnDay(BA$12:BA$191,CI$6,$BW24,CI$4,CI$5) -> 0.02532649064 | CJ24: =DepartureOnDay(BB$12:BB$191,CJ$6,$BW24,CJ$4,CJ$5) -> 1.139930445e-08 | CK24: =DepartureOnDay(BC$12:BC$191,CK$6,$BW24,CK$4,CK$5) -> 2.787148299e-05 | CL24: =DepartureOnDay(BD$12:BD$191,CL$6,$BW24,CL$4,CL$5) -> 3.849455381e-06 | CM24: =DepartureOnDay(BE$12:BE$191,CM$6,$BW24,CM$4,CM$5) -> 0.0602604575 | CN24: =DepartureOnDay(BF$12:BF$191,CN$6,$BW24,CN$4,CN$5) -> 5.170166415e-08 | CO24: =DepartureOnDay(BG$12:BG$191,CO$6,$BW24,CO$4,CO$5) -> 9.772769157e-05 | CP24: =DepartureOnDay(BH$12:BH$191,CP$6,$BW24,CP$4,CP$5) -> 2.566303587e-05 | CQ24: 0.08571254731 | CR24: 2.957559222e-05 | CT24: =DepartureOnDay(BK$12:BK$191,CT$6,$BW24,CT$4,CT$5) -> 0 | CU24: =DepartureOnDay(BL$12:BL$191,CU$6,$BW24,CU$4,CU$5) -> 0 | CV24: =DepartureOnDay(BM$12:BM$191,CV$6,$BW24,CV$4,CV$5) -> 0 | CW24: =DepartureOnDay(BN$12:BN$191,CW$6,$BW24,CW$4,CW$5) -> 0 | CX24: 0 | CZ24: =DepartureOnDay(BK$12:BK$191,CZ$6,$BW24,CZ$4,CZ$5) -> 0 | DA24: =DepartureOnDay(BL$12:BL$191,DA$6,$BW24,DA$4,DA$5) -> 0 | DB24: =DepartureOnDay(BM$12:BM$191,DB$6,$BW24,DB$4,DB$5) -> 0 | DC24: =DepartureOnDay(BN$12:BN$191,DC$6,$BW24,DC$4,DC$5) -> 0 | DD24: 0 | DF24: =DepartureOnDay(BQ$12:BQ$191,DF$6,$BW24,DF$4,DF$5) -> 0 | DG24: =DepartureOnDay(BR$12:BR$191,DG$6,$BW24,DG$4,DG$5) -> 0 | DH24: =DepartureOnDay(BS$12:BS$191,DH$6,$BW24,DH$4,DH$5) -> 0 | DI24: =DepartureOnDay(BT$12:BT$191,DI$6,$BW24,DI$4,DI$5) -> 0 | DJ24: 0 | DL24: =DepartureOnDay(BQ$12:BQ$191,DL$6,$BW24,DL$4,DL$5) -> 0 | DM24: =DepartureOnDay(BR$12:BR$191,DM$6,$BW24,DM$4,DM$5) -> 0 | DN24: =DepartureOnDay(BS$12:BS$191,DN$6,$BW24,DN$4,DN$5) -> 0 | DO24: =DepartureOnDay(BT$12:BT$191,DO$6,$BW24,DO$4,DO$5) -> 0 | DP24: 0 | DQ24: 0 | DR24: 0 | DS24: 13 | DT24: 90.51333136 | DU24: 14.83493424 | DV24: 3.901690069 | DW24: 0.7527403049 | DX24: 215.3624375 | DY24: 67.28399885 | DZ24: 13.68076337 | EA24: 5.018268699 | EB24: 0 | EC24: 0 | ED24: 0 | EE24: 0 | EF24: 0 | EG24: 0 | EH24: 0 | EI24: 0 | EJ24: 87.88994209 | EK24: 323.4582223 | EL24: 87.88994209
A25: 14 | B25: ='C4-AnalyticOutput'!B21 -> 56.10758166 | C25: ='C4-AnalyticOutput'!C21 -> 9.086455968 | D25: ='C4-AnalyticOutput'!D21 -> 2.531830737 | E25: ='C4-AnalyticOutput'!E21 -> 0.4686717234 | F25: ='C4-AnalyticOutput'!F21 -> 133.4992908 | G25: ='C4-AnalyticOutput'!G21 -> 41.21171573 | H25: ='C4-AnalyticOutput'!H21 -> 8.877531684 | I25: ='C4-AnalyticOutput'!I21 -> 3.124478156 | J25: 201.0162349 | K25: 53.89132158 | T25: 19683.63516 | U25: 2412.261134 | V25: 201.0162349 | W25: 53.89132158 | X25: 53.89132158 | Y25: 0 | Z25: 0 | AA25: 0 | AB25: 201.0162349 | AC25: 0 | AD25: 0.3207794692 | AE25: 0 | AF25: 14.59912016 | AG25: 0 | AH25: 0 | AI25: 0 | AJ25: 1912.261134 | AK25: 53.89132158 | AL25: 0 | AM25: 0.3207794692 | AN25: 0 | AO25: 0 | AQ25: 0 | AR25: 0 | AS25: 0 | AT25: 0 | AU25: 0 | AV25: 0 | AW25: 0 | AX25: 0 | AY25: 0 | BA25: 56.10758166 | BB25: 9.086455968 | BC25: 2.531830737 | BD25: 0.4686717234 | BE25: 133.4992908 | BF25: 41.21171573 | BG25: 8.877531684 | BH25: 3.124478156 | BI25: 254.9075565 | BK25: 0 | BL25: 0 | BM25: 0 | BN25: 0 | BO25: 0 | BQ25: 0 | BR25: 0 | BS25: 0 | BT25: 0 | BU25: 0 | BW25: 14 | BX25: =DepartureOnDay(BA$12:BA$191,BX$6,$BW25,BX$4,BX$5) -> 3.578034632 | BY25: =DepartureOnDay(BB$12:BB$191,BY$6,$BW25,BY$4,BY$5) -> 0.002836136205 | BZ25: =DepartureOnDay(BC$12:BC$191,BZ$6,$BW25,BZ$4,BZ$5) -> 0.5111924638 | CA25: =DepartureOnDay(BD$12:BD$191,CA$6,$BW25,CA$4,CA$5) -> 0.03978418123 | CB25: =DepartureOnDay(BE$12:BE$191,CB$6,$BW25,CB$4,CB$5) -> 8.513378618 | CC25: =DepartureOnDay(BF$12:BF$191,CC$6,$BW25,CC$4,CC$5) -> 0.01286332532 | CD25: =DepartureOnDay(BG$12:BG$191,CD$6,$BW25,CD$4,CD$5) -> 1.792429181 | CE25: =DepartureOnDay(BH$12:BH$191,CE$6,$BW25,CE$4,CE$5) -> 0.2652278749 | CF25: 14.3950349 | CG25: 0.3207115176 | CI25: =DepartureOnDay(BA$12:BA$191,CI$6,$BW25,CI$4,CI$5) -> 0.06032378415 | CJ25: =DepartureOnDay(BB$12:BB$191,CJ$6,$BW25,CJ$4,CJ$5) -> 1.253168338e-06 | CK25: =DepartureOnDay(BC$12:BC$191,CK$6,$BW25,CK$4,CK$5) -> 5.112435881e-05 | CL25: =DepartureOnDay(BD$12:BD$191,CL$6,$BW25,CL$4,CL$5) -> 7.958427932e-06 | CM25: =DepartureOnDay(BE$12:BE$191,CM$6,$BW25,CM$4,CM$5) -> 0.1435310909 | CN25: =DepartureOnDay(BF$12:BF$191,CN$6,$BW25,CN$4,CN$5) -> 5.683758058e-06 | CO25: =DepartureOnDay(BG$12:BG$191,CO$6,$BW25,CO$4,CO$5) -> 0.0001792608442 | CP25: =DepartureOnDay(BH$12:BH$191,CP$6,$BW25,CP$4,CP$5) -> 5.305618621e-05 | CQ25: 0.2040852603 | CR25: 6.795154054e-05 | CT25: =DepartureOnDay(BK$12:BK$191,CT$6,$BW25,CT$4,CT$5) -> 0 | CU25: =DepartureOnDay(BL$12:BL$191,CU$6,$BW25,CU$4,CU$5) -> 0 | CV25: =DepartureOnDay(BM$12:BM$191,CV$6,$BW25,CV$4,CV$5) -> 0 | CW25: =DepartureOnDay(BN$12:BN$191,CW$6,$BW25,CW$4,CW$5) -> 0 | CX25: 0 | CZ25: =DepartureOnDay(BK$12:BK$191,CZ$6,$BW25,CZ$4,CZ$5) -> 0 | DA25: =DepartureOnDay(BL$12:BL$191,DA$6,$BW25,DA$4,DA$5) -> 0 | DB25: =DepartureOnDay(BM$12:BM$191,DB$6,$BW25,DB$4,DB$5) -> 0 | DC25: =DepartureOnDay(BN$12:BN$191,DC$6,$BW25,DC$4,DC$5) -> 0 | DD25: 0 | DF25: =DepartureOnDay(BQ$12:BQ$191,DF$6,$BW25,DF$4,DF$5) -> 0 | DG25: =DepartureOnDay(BR$12:BR$191,DG$6,$BW25,DG$4,DG$5) -> 0 | DH25: =DepartureOnDay(BS$12:BS$191,DH$6,$BW25,DH$4,DH$5) -> 0 | DI25: =DepartureOnDay(BT$12:BT$191,DI$6,$BW25,DI$4,DI$5) -> 0 | DJ25: 0 | DL25: =DepartureOnDay(BQ$12:BQ$191,DL$6,$BW25,DL$4,DL$5) -> 0 | DM25: =DepartureOnDay(BR$12:BR$191,DM$6,$BW25,DM$4,DM$5) -> 0 | DN25: =DepartureOnDay(BS$12:BS$191,DN$6,$BW25,DN$4,DN$5) -> 0 | DO25: =DepartureOnDay(BT$12:BT$191,DO$6,$BW25,DO$4,DO$5) -> 0 | DP25: 0 | DQ25: 0 | DR25: 0 | DS25: 14 | DT25: 144.8935459 | DU25: 23.92075645 | DV25: 6.154805975 | DW25: 1.202164751 | DX25: 344.7517261 | DY25: 108.4928402 | DZ25: 21.58101814 | EA25: 8.014431676 | EB25: 0 | EC25: 0 | ED25: 0 | EE25: 0 | EF25: 0 | EG25: 0 | EH25: 0 | EI25: 0 | EJ25: 141.630193 | EK25: 517.3810961 | EL25: 141.630193
A26: 15 | B26: ='C4-AnalyticOutput'!B22 -> 80.21707772 | C26: ='C4-AnalyticOutput'!C22 -> 12.99091714 | D26: ='C4-AnalyticOutput'!D22 -> 3.619761482 | E26: ='C4-AnalyticOutput'!E22 -> 0.6700605328 | F26: ='C4-AnalyticOutput'!F22 -> 190.8640984 | G26: ='C4-AnalyticOutput'!G22 -> 58.92044009 | H26: ='C4-AnalyticOutput'!H22 -> 12.69221784 | I26: ='C4-AnalyticOutput'!I22 -> 4.467070219 | J26: 287.3931555 | K26: 77.04848799 | T26: 19497.21805 | U26: 2358.690592 | V26: 287.3931555 | W26: 77.04848799 | X26: 77.04848799 | Y26: 0 | Z26: 0 | AA26: 0 | AB26: 287.3931555 | AC26: 0 | AD26: 0.6263485593 | AE26: 0 | AF26: 27.46707114 | AG26: 0 | AH26: 0 | AI26: 0 | AJ26: 1858.690592 | AK26: 77.04848799 | AL26: 0 | AM26: 0.6263485593 | AN26: 0 | AO26: 0 | AQ26: 0 | AR26: 0 | AS26: 0 | AT26: 0 | AU26: 0 | AV26: 0 | AW26: 0 | AX26: 0 | AY26: 0 | BA26: 80.21707772 | BB26: 12.99091714 | BC26: 3.619761482 | BD26: 0.6700605328 | BE26: 190.8640984 | BF26: 58.92044009 | BG26: 12.69221784 | BH26: 4.467070219 | BI26: 364.4416435 | BK26: 0 | BL26: 0 | BM26: 0 | BN26: 0 | BO26: 0 | BQ26: 0 | BR26: 0 | BS26: 0 | BT26: 0 | BU26: 0 | BW26: 15 | BX26: =DepartureOnDay(BA$12:BA$191,BX$6,$BW26,BX$4,BX$5) -> 6.839458049 | BY26: =DepartureOnDay(BB$12:BB$191,BY$6,$BW26,BY$4,BY$5) -> 0.00955221094 | BZ26: =DepartureOnDay(BC$12:BC$191,BZ$6,$BW26,BZ$4,BZ$5) -> 0.8700176961 | CA26: =DepartureOnDay(BD$12:BD$191,CA$6,$BW26,CA$4,CA$5) -> 0.07477182189 | CB26: =DepartureOnDay(BE$12:BE$191,CB$6,$BW26,CB$4,CB$5) -> 16.27342994 | CC26: =DepartureOnDay(BF$12:BF$191,CC$6,$BW26,CC$4,CC$5) -> 0.04332415226 | CD26: =DepartureOnDay(BG$12:BG$191,CD$6,$BW26,CD$4,CD$5) -> 3.050602693 | CE26: =DepartureOnDay(BH$12:BH$191,CE$6,$BW26,CE$4,CE$5) -> 0.4984788126 | CF26: 27.03350838 | CG26: 0.6261269977 | CI26: =DepartureOnDay(BA$12:BA$191,CI$6,$BW26,CI$4,CI$5) -> 0.1281818405 | CJ26: =DepartureOnDay(BB$12:BB$191,CJ$6,$BW26,CJ$4,CJ$5) -> 1.930960887e-05 | CK26: =DepartureOnDay(BC$12:BC$191,CK$6,$BW26,CK$4,CK$5) -> 8.701047066e-05 | CL26: =DepartureOnDay(BD$12:BD$191,CL$6,$BW26,CL$4,CL$5) -> 1.495735585e-05 | CM26: =DepartureOnDay(BE$12:BE$191,CM$6,$BW26,CM$4,CM$5) -> 0.3049888144 | CN26: =DepartureOnDay(BF$12:BF$191,CN$6,$BW26,CN$4,CN$5) -> 8.757893227e-05 | CO26: =DepartureOnDay(BG$12:BG$191,CO$6,$BW26,CO$4,CO$5) -> 0.0003050907784 | CP26: =DepartureOnDay(BH$12:BH$191,CP$6,$BW26,CP$4,CP$5) -> 9.971570566e-05 | CQ26: 0.4335627562 | CR26: 0.0002215616026 | CT26: =DepartureOnDay(BK$12:BK$191,CT$6,$BW26,CT$4,CT$5) -> 0 | CU26: =DepartureOnDay(BL$12:BL$191,CU$6,$BW26,CU$4,CU$5) -> 0 | CV26: =DepartureOnDay(BM$12:BM$191,CV$6,$BW26,CV$4,CV$5) -> 0 | CW26: =DepartureOnDay(BN$12:BN$191,CW$6,$BW26,CW$4,CW$5) -> 0 | CX26: 0 | CZ26: =DepartureOnDay(BK$12:BK$191,CZ$6,$BW26,CZ$4,CZ$5) -> 0 | DA26: =DepartureOnDay(BL$12:BL$191,DA$6,$BW26,DA$4,DA$5) -> 0 | DB26: =DepartureOnDay(BM$12:BM$191,DB$6,$BW26,DB$4,DB$5) -> 0 | DC26: =DepartureOnDay(BN$12:BN$191,DC$6,$BW26,DC$4,DC$5) -> 0 | DD26: 0 | DF26: =DepartureOnDay(BQ$12:BQ$191,DF$6,$BW26,DF$4,DF$5) -> 0 | DG26: =DepartureOnDay(BR$12:BR$191,DG$6,$BW26,DG$4,DG$5) -> 0 | DH26: =DepartureOnDay(BS$12:BS$191,DH$6,$BW26,DH$4,DH$5) -> 0 | DI26: =DepartureOnDay(BT$12:BT$191,DI$6,$BW26,DI$4,DI$5) -> 0 | DJ26: 0 | DL26: =DepartureOnDay(BQ$12:BQ$191,DL$6,$BW26,DL$4,DL$5) -> 0 | DM26: =DepartureOnDay(BR$12:BR$191,DM$6,$BW26,DM$4,DM$5) -> 0 | DN26: =DepartureOnDay(BS$12:BS$191,DN$6,$BW26,DN$4,DN$5) -> 0 | DO26: =DepartureOnDay(BT$12:BT$191,DO$6,$BW26,DO$4,DO$5) -> 0 | DP26: 0 | DQ26: 0 | DR26: 0 | DS26: 15 | DT26: 221.4722652 | DU26: 36.90883621 | DV26: 9.26332387 | DW26: 1.832433145 | DX26: 526.9589148 | DY26: 167.4004113 | DZ26: 32.48062754 | EA26: 12.21622096 | EB26: 0 | EC26: 0 | ED26: 0 | EE26: 0 | EF26: 0 | EG26: 0 | EH26: 0 | EI26: 0 | EJ26: 218.3579016 | EK26: 790.1751314 | EL26: 218.3579016
A27: 16 | B27: ='C4-AnalyticOutput'!B23 -> 110.6526714 | C27: ='C4-AnalyticOutput'!C23 -> 17.91987102 | D27: ='C4-AnalyticOutput'!D23 -> 4.993154691 | E27: ='C4-AnalyticOutput'!E23 -> 0.9242918101 | F27: ='C4-AnalyticOutput'!F23 -> 263.2808745 | G27: ='C4-AnalyticOutput'!G23 -> 81.27576176 | H27: ='C4-AnalyticOutput'!H23 -> 17.5078406 | I27: ='C4-AnalyticOutput'!I23 -> 6.161945401 | J27: 396.4345412 | K27: 106.28187 | T27: 19237.29196 | U27: 2282.268453 | V27: 396.4345412 | W27: 106.28187 | X27: 106.28187 | Y27: 0 | Z27: 0 | AA27: 0 | AB27: 396.4345412 | AC27: 0 | AD27: 1.143964959 | AE27: 0 | AF27: 47.98002244 | AG27: 0 | AH27: 0 | AI27: 0 | AJ27: 1782.268453 | AK27: 106.28187 | AL27: 0 | AM27: 1.143964959 | AN27: 0 | AO27: 0 | AQ27: 0 | AR27: 0 | AS27: 0 | AT27: 0 | AU27: 0 | AV27: 0 | AW27: 0 | AX27: 0 | AY27: 0 | BA27: 110.6526714 | BB27: 17.91987102 | BC27: 4.993154691 | BD27: 0.9242918101 | BE27: 263.2808745 | BF27: 81.27576176 | BG27: 17.5078406 | BH27: 6.161945401 | BI27: 502.7164112 | BK27: 0 | BL27: 0 | BM27: 0 | BN27: 0 | BO27: 0 | BQ27: 0 | BR27: 0 | BS27: 0 | BT27: 0 | BU27: 0 | BW27: 16 | BX27: =DepartureOnDay(BA$12:BA$191,BX$6,$BW27,BX$4,BX$5) -> 12.09295131 | BY27: =DepartureOnDay(BB$12:BB$191,BY$6,$BW27,BY$4,BY$5) -> 0.02636715979 | BZ27: =DepartureOnDay(BC$12:BC$191,BZ$6,$BW27,BZ$4,BZ$5) -> 1.392077334 | CA27: =DepartureOnDay(BD$12:BD$191,CA$6,$BW27,CA$4,CA$5) -> 0.1300520445 | CB27: =DepartureOnDay(BE$12:BE$191,CB$6,$BW27,CB$4,CB$5) -> 28.77330259 | CC27: =DepartureOnDay(BF$12:BF$191,CC$6,$BW27,CC$4,CC$5) -> 0.119588528 | CD27: =DepartureOnDay(BG$12:BG$191,CD$6,$BW27,CD$4,CD$5) -> 4.88113619 | CE27: =DepartureOnDay(BH$12:BH$191,CE$6,$BW27,CE$4,CE$5) -> 0.8670136299 | CF27: 47.13946742 | CG27: 1.143021362 | CI27: =DepartureOnDay(BA$12:BA$191,CI$6,$BW27,CI$4,CI$5) -> 0.2485474693 | CJ27: =DepartureOnDay(BB$12:BB$191,CJ$6,$BW27,CJ$4,CJ$5) -> 0.0001344309396 | CK27: =DepartureOnDay(BC$12:BC$191,CK$6,$BW27,CK$4,CK$5) -> 0.0001392216555 | CL27: =DepartureOnDay(BD$12:BD$191,CL$6,$BW27,CL$4,CL$5) -> 2.601561202e-05 | CM27: =DepartureOnDay(BE$12:BE$191,CM$6,$BW27,CM$4,CM$5) -> 0.5913801649 | CN27: =DepartureOnDay(BF$12:BF$191,CN$6,$BW27,CN$4,CN$5) -> 0.0006097129275 | CO27: =DepartureOnDay(BG$12:BG$191,CO$6,$BW27,CO$4,CO$5) -> 0.0004881624353 | CP27: =DepartureOnDay(BH$12:BH$191,CP$6,$BW27,CP$4,CP$5) -> 0.0001734374135 | CQ27: 0.8405550184 | CR27: 0.0009435968925 | CT27: =DepartureOnDay(BK$12:BK$191,CT$6,$BW27,CT$4,CT$5) -> 0 | CU27: =DepartureOnDay(BL$12:BL$191,CU$6,$BW27,CU$4,CU$5) -> 0 | CV27: =DepartureOnDay(BM$12:BM$191,CV$6,$BW27,CV$4,CV$5) -> 0 | CW27: =DepartureOnDay(BN$12:BN$191,CW$6,$BW27,CW$4,CW$5) -> 0 | CX27: 0 | CZ27: =DepartureOnDay(BK$12:BK$191,CZ$6,$BW27,CZ$4,CZ$5) -> 0 | DA27: =DepartureOnDay(BL$12:BL$191,DA$6,$BW27,DA$4,DA$5) -> 0 | DB27: =DepartureOnDay(BM$12:BM$191,DB$6,$BW27,DB$4,DB$5) -> 0 | DC27: =DepartureOnDay(BN$12:BN$191,DC$6,$BW27,DC$4,DC$5) -> 0 | DD27: 0 | DF27: =DepartureOnDay(BQ$12:BQ$191,DF$6,$BW27,DF$4,DF$5) -> 0 | DG27: =DepartureOnDay(BR$12:BR$191,DG$6,$BW27,DG$4,DG$5) -> 0 | DH27: =DepartureOnDay(BS$12:BS$191,DH$6,$BW27,DH$4,DH$5) -> 0 | DI27: =DepartureOnDay(BT$12:BT$191,DI$6,$BW27,DI$4,DI$5) -> 0 | DJ27: 0 | DL27: =DepartureOnDay(BQ$12:BQ$191,DL$6,$BW27,DL$4,DL$5) -> 0 | DM27: =DepartureOnDay(BR$12:BR$191,DM$6,$BW27,DM$4,DM$5) -> 0 | DN27: =DepartureOnDay(BS$12:BS$191,DN$6,$BW27,DN$4,DN$5) -> 0 | DO27: =DepartureOnDay(BT$12:BT$191,DO$6,$BW27,DO$4,DO$5) -> 0 | DP27: 0 | DQ27: 0 | DR27: 0 | DS27: 16 | DT27: 325.1572967 | DU27: 54.8191357 | DV27: 13.38637385 | DW27: 2.681938175 | DX27: 773.6613705 | DY27: 248.6327613 | DZ27: 46.93756036 | EA27: 17.87958784 | EB27: 0 | EC27: 0 | ED27: 0 | EE27: 0 | EF27: 0 | EG27: 0 | EH27: 0 | EI27: 0 | EJ27: 324.013423 | EK27: 1159.142601 | EL27: 324.013423
A28: 17 | B28: ='C4-AnalyticOutput'!B24 -> 147.950171 | C28: ='C4-AnalyticOutput'!C24 -> 23.96009014 | D28: ='C4-AnalyticOutput'!D24 -> 6.676188481 | E28: ='C4-AnalyticOutput'!E24 -> 1.23584121 | F28: ='C4-AnalyticOutput'!F24 -> 352.0244916 | G28: ='C4-AnalyticOutput'!G24 -> 108.6712385 | H28: ='C4-AnalyticOutput'!H24 -> 23.40917736 | I28: ='C4-AnalyticOutput'!I24 -> 8.238941401 | J28: 530.0600284 | K28: 142.1061113 | T28: 18888.83744 | U28: 2177.130548 | V28: 530.0600284 | W28: 142.1061113 | X28: 142.1061113 | Y28: 0 | Z28: 0 | AA28: 0 | AB28: 530.0600284 | AC28: 0 | AD28: 1.977885342 | AE28: 0 | AF28: 78.75334307 | AG28: 0 | AH28: 0 | AI28: 0 | AJ28: 1677.130548 | AK28: 142.1061113 | AL28: 0 | AM28: 1.977885342 | AN28: 0 | AO28: 0 | AQ28: 0 | AR28: 0 | AS28: 0 | AT28: 0 | AU28: 0 | AV28: 0 | AW28: 0 | AX28: 0 | AY28: 0 | BA28: 147.950171 | BB28: 23.96009014 | BC28: 6.676188481 | BD28: 1.23584121 | BE28: 352.0244916 | BF28: 108.6712385 | BG28: 23.40917736 | BH28: 8.238941401 | BI28: 672.1661397 | BK28: 0 | BL28: 0 | BM28: 0 | BN28: 0 | BO28: 0 | BQ28: 0 | BR28: 0 | BS28: 0 | BT28: 0 | BU28: 0 | BW28: 17 | BX28: =DepartureOnDay(BA$12:BA$191,BX$6,$BW28,BX$4,BX$5) -> 20.03661159 | BY28: =DepartureOnDay(BB$12:BB$191,BY$6,$BW28,BY$4,BY$5) -> 0.06280827693 | BZ28: =DepartureOnDay(BC$12:BC$191,BZ$6,$BW28,BZ$4,BZ$5) -> 2.115113945 | CA28: =DepartureOnDay(BD$12:BD$191,CA$6,$BW28,CA$4,CA$5) -> 0.2121592051 | CB28: =DepartureOnDay(BE$12:BE$191,CB$6,$BW28,CB$4,CB$5) -> 47.67401052 | CC28: =DepartureOnDay(BF$12:BF$191,CC$6,$BW28,CC$4,CC$5) -> 0.2848675946 | CD28: =DepartureOnDay(BG$12:BG$191,CD$6,$BW28,CD$4,CD$5) -> 7.416369029 | CE28: =DepartureOnDay(BH$12:BH$191,CE$6,$BW28,CE$4,CE$5) -> 1.4143947 | CF28: 77.24210509 | CG28: 1.974229777 | CI28: =DepartureOnDay(BA$12:BA$191,CI$6,$BW28,CI$4,CI$5) -> 0.4469164194 | CJ28: =DepartureOnDay(BB$12:BB$191,CJ$6,$BW28,CJ$4,CJ$5) -> 0.0006016046496 | CK28: =DepartureOnDay(BC$12:BC$191,CK$6,$BW28,CK$4,CK$5) -> 0.0002115325478 | CL28: =DepartureOnDay(BD$12:BD$191,CL$6,$BW28,CL$4,CL$5) -> 4.244032908e-05 | CM28: =DepartureOnDay(BE$12:BE$191,CM$6,$BW28,CM$4,CM$5) -> 1.063368324 | CN28: =DepartureOnDay(BF$12:BF$191,CN$6,$BW28,CN$4,CN$5) -> 0.002728584158 | CO28: =DepartureOnDay(BG$12:BG$191,CO$6,$BW28,CO$4,CO$5) -> 0.0007417110741 | CP28: =DepartureOnDay(BH$12:BH$191,CP$6,$BW28,CP$4,CP$5) -> 0.0002829355272 | CQ28: 1.511237987 | CR28: 0.003655564664 | CT28: =DepartureOnDay(BK$12:BK$191,CT$6,$BW28,CT$4,CT$5) -> 0 | CU28: =DepartureOnDay(BL$12:BL$191,CU$6,$BW28,CU$4,CU$5) -> 0 | CV28: =DepartureOnDay(BM$12:BM$191,CV$6,$BW28,CV$4,CV$5) -> 0 | CW28: =DepartureOnDay(BN$12:BN$191,CW$6,$BW28,CW$4,CW$5) -> 0 | CX28: 0 | CZ28: =DepartureOnDay(BK$12:BK$191,CZ$6,$BW28,CZ$4,CZ$5) -> 0 | DA28: =DepartureOnDay(BL$12:BL$191,DA$6,$BW28,DA$4,DA$5) -> 0 | DB28: =DepartureOnDay(BM$12:BM$191,DB$6,$BW28,DB$4,DB$5) -> 0 | DC28: =DepartureOnDay(BN$12:BN$191,DC$6,$BW28,DC$4,DC$5) -> 0 | DD28: 0 | DF28: =DepartureOnDay(BQ$12:BQ$191,DF$6,$BW28,DF$4,DF$5) -> 0 | DG28: =DepartureOnDay(BR$12:BR$191,DG$6,$BW28,DG$4,DG$5) -> 0 | DH28: =DepartureOnDay(BS$12:BS$191,DH$6,$BW28,DH$4,DH$5) -> 0 | DI28: =DepartureOnDay(BT$12:BT$191,DI$6,$BW28,DI$4,DI$5) -> 0 | DJ28: 0 | DL28: =DepartureOnDay(BQ$12:BQ$191,DL$6,$BW28,DL$4,DL$5) -> 0 | DM28: =DepartureOnDay(BR$12:BR$191,DM$6,$BW28,DM$4,DM$5) -> 0 | DN28: =DepartureOnDay(BS$12:BS$191,DN$6,$BW28,DN$4,DN$5) -> 0 | DO28: =DepartureOnDay(BT$12:BT$191,DO$6,$BW28,DO$4,DO$5) -> 0 | DP28: 0 | DQ28: 0 | DR28: 0 | DS28: 17 | DT28: 460.7659689 | DU28: 78.75272425 | DV28: 18.67034578 | DW28: 3.787701325 | DX28: 1096.321179 | DY28: 357.1838016 | DZ28: 65.46511337 | EA28: 25.25134217 | EB28: 0 | EC28: 0 | ED28: 0 | EE28: 0 | EF28: 0 | EG28: 0 | EH28: 0 | EI28: 0 | EJ28: 464.9755693 | EK28: 1641.222607 | EL28: 464.9755693
A29: 18 | B29: ='C4-AnalyticOutput'!B25 -> 192.4733235 | C29: ='C4-AnalyticOutput'!C25 -> 31.17048226 | D29: ='C4-AnalyticOutput'!D25 -> 8.685276782 | E29: ='C4-AnalyticOutput'!E25 -> 1.607747145 | F29: ='C4-AnalyticOutput'!F25 -> 457.9604294 | G29: ='C4-AnalyticOutput'!G25 -> 141.3740471 | H29: ='C4-AnalyticOutput'!H25 -> 30.45378141 | I29: ='C4-AnalyticOutput'!I25 -> 10.7183143 | J29: 689.572811 | K29: 184.8705908 | T29: 18437.53076 | U29: 2037.002322 | V29: 689.572811 | W29: 184.8705908 | X29: 184.8705908 | Y29: 0 | Z29: 0 | AA29: 0 | AB29: 689.572811 | AC29: 0 | AD29: 3.265356308 | AE29: 0 | AF29: 122.6082298 | AG29: 0 | AH29: 0 | AI29: 0 | AJ29: 1537.002322 | AK29: 184.8705908 | AL29: 0 | AM29: 3.265356308 | AN29: 0 | AO29: 0 | AQ29: 0 | AR29: 0 | AS29: 0 | AT29: 0 | AU29: 0 | AV29: 0 | AW29: 0 | AX29: 0 | AY29: 0 | BA29: 192.4733235 | BB29: 31.17048226 | BC29: 8.685276782 | BD29: 1.607747145 | BE29: 457.9604294 | BF29: 141.3740471 | BG29: 30.45378141 | BH29: 10.7183143 | BI29: 874.4434018 | BK29: 0 | BL29: 0 | BM29: 0 | BN29: 0 | BO29: 0 | BQ29: 0 | BR29: 0 | BS29: 0 | BT29: 0 | BU29: 0 | BW29: 18 | BX29: =DepartureOnDay(BA$12:BA$191,BX$6,$BW29,BX$4,BX$5) -> 31.42587736 | BY29: =DepartureOnDay(BB$12:BB$191,BY$6,$BW29,BY$4,BY$5) -> 0.1335396098 | BZ29: =DepartureOnDay(BC$12:BC$191,BZ$6,$BW29,BZ$4,BZ$5) -> 3.07548853 | CA29: =DepartureOnDay(BD$12:BD$191,CA$6,$BW29,CA$4,CA$5) -> 0.3279687681 | CB29: =DepartureOnDay(BE$12:BE$191,CB$6,$BW29,CB$4,CB$5) -> 74.77300247 | CC29: =DepartureOnDay(BF$12:BF$191,CC$6,$BW29,CC$4,CC$5) -> 0.6056702921 | CD29: =DepartureOnDay(BG$12:BG$191,CD$6,$BW29,CD$4,CD$5) -> 10.78379628 | CE29: =DepartureOnDay(BH$12:BH$191,CE$6,$BW29,CE$4,CE$5) -> 2.186458454 | CF29: 120.0581646 | CG29: 3.253637124 | CI29: =DepartureOnDay(BA$12:BA$191,CI$6,$BW29,CI$4,CI$5) -> 0.7541932426 | CJ29: =DepartureOnDay(BB$12:BB$191,CJ$6,$BW29,CJ$4,CJ$5) -> 0.002026226563 | CK29: =DepartureOnDay(BC$12:BC$191,CK$6,$BW29,CK$4,CK$5) -> 0.0003075796109 | CL29: =DepartureOnDay(BD$12:BD$191,CL$6,$BW29,CL$4,CL$5) -> 6.560687499e-05 | CM29: =DepartureOnDay(BE$12:BE$191,CM$6,$BW29,CM$4,CM$5) -> 1.79448588 | CN29: =DepartureOnDay(BF$12:BF$191,CN$6,$BW29,CN$4,CN$5) -> 0.009189971692 | CO29: =DepartureOnDay(BG$12:BG$191,CO$6,$BW29,CO$4,CO$5) -> 0.001078487476 | CP29: =DepartureOnDay(BH$12:BH$191,CP$6,$BW29,CP$4,CP$5) -> 0.0004373791666 | CQ29: 2.55006519 | CR29: 0.0117191843 | CT29: =DepartureOnDay(BK$12:BK$191,CT$6,$BW29,CT$4,CT$5) -> 0 | CU29: =DepartureOnDay(BL$12:BL$191,CU$6,$BW29,CU$4,CU$5) -> 0 | CV29: =DepartureOnDay(BM$12:BM$191,CV$6,$BW29,CV$4,CV$5) -> 0 | CW29: =DepartureOnDay(BN$12:BN$191,CW$6,$BW29,CW$4,CW$5) -> 0 | CX29: 0 | CZ29: =DepartureOnDay(BK$12:BK$191,CZ$6,$BW29,CZ$4,CZ$5) -> 0 | DA29: =DepartureOnDay(BL$12:BL$191,DA$6,$BW29,DA$4,DA$5) -> 0 | DB29: =DepartureOnDay(BM$12:BM$191,DB$6,$BW29,DB$4,DB$5) -> 0 | DC29: =DepartureOnDay(BN$12:BN$191,DC$6,$BW29,DC$4,DC$5) -> 0 | DD29: 0 | DF29: =DepartureOnDay(BQ$12:BQ$191,DF$6,$BW29,DF$4,DF$5) -> 0 | DG29: =DepartureOnDay(BR$12:BR$191,DG$6,$BW29,DG$4,DG$5) -> 0 | DH29: =DepartureOnDay(BS$12:BS$191,DH$6,$BW29,DH$4,DH$5) -> 0 | DI29: =DepartureOnDay(BT$12:BT$191,DI$6,$BW29,DI$4,DI$5) -> 0 | DJ29: 0 | DL29: =DepartureOnDay(BQ$12:BQ$191,DL$6,$BW29,DL$4,DL$5) -> 0 | DM29: =DepartureOnDay(BR$12:BR$191,DM$6,$BW29,DM$4,DM$5) -> 0 | DN29: =DepartureOnDay(BS$12:BS$191,DN$6,$BW29,DN$4,DN$5) -> 0 | DO29: =DepartureOnDay(BT$12:BT$191,DO$6,$BW29,DO$4,DO$5) -> 0 | DP29: 0 | DQ29: 0 | DR29: 0 | DS29: 18 | DT29: =DT28+BA29-BX28-CI28 -> 632.7557644 | DU29: 109.8597966 | DV29: 25.24029708 | DW29: 5.183246825 | DX29: 1505.54423 | DY29: 498.2702525 | DZ29: 88.50178404 | EA29: 34.55497883 | EB29: 0 | EC29: 0 | ED29: 0 | EE29: 0 | EF29: 0 | EG29: 0 | EH29: 0 | EI29: 0 | EJ29: 647.8682748 | EK29: 2252.042075 | EL29: 647.8682748
A30: 19 | B30: ='C4-AnalyticOutput'!B26 -> 244.3926465 | C30: ='C4-AnalyticOutput'!C26 -> 39.5786622 | D30: ='C4-AnalyticOutput'!D26 -> 11.02811413 | E30: ='C4-AnalyticOutput'!E26 -> 2.041433964 | F30: ='C4-AnalyticOutput'!F26 -> 581.4944083 | G30: ='C4-AnalyticOutput'!G26 -> 179.5094349 | H30: ='C4-AnalyticOutput'!H26 -> 38.66863263 | I30: ='C4-AnalyticOutput'!I26 -> 13.60955976 | J30: 875.5838016 | K30: 234.7390908 | T30: 17870.56618 | U30: 1855.397087 | V30: 875.5838016 | W30: 234.7390908 | X30: 234.7390908 | Y30: 0 | Z30: 0 | AA30: 0 | AB30: 875.5838016 | AC30: 0 | AD30: 5.180579263 | AE30: 0 | AF30: 182.4185214 | AG30: 0 | AH30: 0 | AI30: 0 | AJ30: 1355.397087 | AK30: 234.7390908 | AL30: 0 | AM30: 5.180579263 | AN30: 0 | AO30: 0 | AQ30: 0 | AR30: 0 | AS30: 0 | AT30: 0 | AU30: 0 | AV30: 0 | AW30: 0 | AX30: 0 | AY30: 0 | BA30: 244.3926465 | BB30: 39.5786622 | BC30: 11.02811413 | BD30: 2.041433964 | BE30: 581.4944083 | BF30: 179.5094349 | BG30: 38.66863263 | BH30: 13.60955976 | BI30: 1110.322892 | BK30: 0 | BL30: 0 | BM30: 0 | BN30: 0 | BO30: 0 | BQ30: 0 | BR30: 0 | BS30: 0 | BT30: 0 | BU30: 0 | BW30: 19 | BX30: =DepartureOnDay(BA$12:BA$191,BX$6,$BW30,BX$4,BX$5) -> 47.03215597 | BY30: =DepartureOnDay(BB$12:BB$191,BY$6,$BW30,BY$4,BY$5) -> 0.2593935391 | BZ30: =DepartureOnDay(BC$12:BC$191,BZ$6,$BW30,BZ$4,BZ$5) -> 4.306027441 | CA30: =DepartureOnDay(BD$12:BD$191,CA$6,$BW30,CA$4,CA$5) -> 0.4843044232 | CB30: =DepartureOnDay(BE$12:BE$191,CB$6,$BW30,CB$4,CB$5) -> 111.9057226 | CC30: =DepartureOnDay(BF$12:BF$191,CC$6,$BW30,CC$4,CC$5) -> 1.1764821 | CD30: =DepartureOnDay(BG$12:BG$191,CD$6,$BW30,CD$4,CD$5) -> 15.09851922 | CE30: =DepartureOnDay(BH$12:BH$191,CE$6,$BW30,CE$4,CE$5) -> 3.228696155 | CF30: 178.3424252 | CG30: 5.148876217 | CI30: =DepartureOnDay(BA$12:BA$191,CI$6,$BW30,CI$4,CI$5) -> 1.2056051 | CJ30: =DepartureOnDay(BB$12:BB$191,CJ$6,$BW30,CJ$4,CJ$5) -> 0.005593033894 | CK30: =DepartureOnDay(BC$12:BC$191,CK$6,$BW30,CK$4,CK$5) -> 0.0004306458087 | CL30: =DepartureOnDay(BD$12:BD$191,CL$6,$BW30,CL$4,CL$5) -> 9.688026069e-05 | CM30: =DepartureOnDay(BE$12:BE$191,CM$6,$BW30,CM$4,CM$5) -> 2.868550402 | CN30: =DepartureOnDay(BF$12:BF$191,CN$6,$BW30,CN$4,CN$5) -> 0.02536726351 | CO30: =DepartureOnDay(BG$12:BG$191,CO$6,$BW30,CO$4,CO$5) -> 0.001510002922 | CP30: =DepartureOnDay(BH$12:BH$191,CP$6,$BW30,CP$4,CP$5) -> 0.0006458684046 | CQ30: 4.076096151 | CR30: 0.03170304607 | CT30: =DepartureOnDay(BK$12:BK$191,CT$6,$BW30,CT$4,CT$5) -> 0 | CU30: =DepartureOnDay(BL$12:BL$191,CU$6,$BW30,CU$4,CU$5) -> 0 | CV30: =DepartureOnDay(BM$12:BM$191,CV$6,$BW30,CV$4,CV$5) -> 0 | CW30: =DepartureOnDay(BN$12:BN$191,CW$6,$BW30,CW$4,CW$5) -> 0 | CX30: 0 | CZ30: =DepartureOnDay(BK$12:BK$191,CZ$6,$BW30,CZ$4,CZ$5) -> 0 | DA30: =DepartureOnDay(BL$12:BL$191,DA$6,$BW30,DA$4,DA$5) -> 0 | DB30: =DepartureOnDay(BM$12:BM$191,DB$6,$BW30,DB$4,DB$5) -> 0 | DC30: =DepartureOnDay(BN$12:BN$191,DC$6,$BW30,DC$4,DC$5) -> 0 | DD30: 0 | DF30: =DepartureOnDay(BQ$12:BQ$191,DF$6,$BW30,DF$4,DF$5) -> 0 | DG30: =DepartureOnDay(BR$12:BR$191,DG$6,$BW30,DG$4,DG$5) -> 0 | DH30: =DepartureOnDay(BS$12:BS$191,DH$6,$BW30,DH$4,DH$5) -> 0 | DI30: =DepartureOnDay(BT$12:BT$191,DI$6,$BW30,DI$4,DI$5) -> 0 | DJ30: 0 | DL30: =DepartureOnDay(BQ$12:BQ$191,DL$6,$BW30,DL$4,DL$5) -> 0 | DM30: =DepartureOnDay(BR$12:BR$191,DM$6,$BW30,DM$4,DM$5) -> 0 | DN30: =DepartureOnDay(BS$12:BS$191,DN$6,$BW30,DN$4,DN$5) -> 0 | DO30: =DepartureOnDay(BT$12:BT$191,DO$6,$BW30,DO$4,DO$5) -> 0 | DP30: 0 | DQ30: 0 | DR30: 0 | DS30: 19 | DT30: 844.9683403 | DU30: 149.302893 | DV30: 33.19261511 | DW30: 6.896646414 | DX30: 2010.47115 | DY30: 677.1648271 | DZ30: 116.3855419 | EA30: 45.97764276 | EB30: =EB29+BK30-CT29-CZ29 -> 0 | EC30: 0 | ED30: 0 | EE30: 0 | EF30: =EF29+BQ30-DF29-DL29 -> 0 | EG30: 0 | EH30: 0 | EI30: 0 | EJ30: 879.3420093 | EK30: 3005.017647 | EL30: 879.3420093
A31: 20 | B31: ='C4-AnalyticOutput'!B27 -> 303.6744882 | C31: ='C4-AnalyticOutput'!C27 -> 49.17918014 | D31: ='C4-AnalyticOutput'!D27 -> 13.703182 | E31: ='C4-AnalyticOutput'!E27 -> 2.53662057 | F31: ='C4-AnalyticOutput'!F27 -> 722.5463587 | G31: ='C4-AnalyticOutput'!G27 -> 223.052684 | H31: ='C4-AnalyticOutput'!H27 -> 48.04840649 | I31: ='C4-AnalyticOutput'!I27 -> 16.9108038 | J31: 1087.972435 | K31: 291.6792885 | T31: 17177.4009 | U31: 1625.838576 | V31: 1087.972435 | W31: 291.6792885 | X31: 291.6792885 | Y31: 0 | Z31: 0 | AA31: 0 | AB31: 1087.972435 | AC31: 0 | AD31: 7.937180089 | AE31: 0 | AF31: 260.9462333 | AG31: 0 | AH31: 0 | AI31: 0 | AJ31: 1125.838576 | AK31: 291.6792885 | AL31: 0 | AM31: 7.937180089 | AN31: 0 | AO31: 0 | AQ31: 0 | AR31: 0 | AS31: 0 | AT31: 0 | AU31: 0 | AV31: 0 | AW31: 0 | AX31: 0 | AY31: 0 | BA31: 303.6744882 | BB31: 49.17918014 | BC31: 13.703182 | BD31: 2.53662057 | BE31: 722.5463587 | BF31: 223.052684 | BG31: 48.04840649 | BH31: 16.9108038 | BI31: 1379.651724 | BK31: 0 | BL31: 0 | BM31: 0 | BN31: 0 | BO31: 0 | BQ31: 0 | BR31: 0 | BS31: 0 | BT31: 0 | BU31: 0 | BW31: 20 | BX31: =DepartureOnDay(BA$12:BA$191,BX$6,$BW31,BX$4,BX$5) -> 67.59835946 | BY31: =DepartureOnDay(BB$12:BB$191,BY$6,$BW31,BY$4,BY$5) -> 0.4681154673 | BZ31: =DepartureOnDay(BC$12:BC$191,BZ$6,$BW31,BZ$4,BZ$5) -> 5.834088119 | CA31: =DepartureOnDay(BD$12:BD$191,CA$6,$BW31,CA$4,CA$5) -> 0.6875371538 | CB31: =DepartureOnDay(BE$12:BE$191,CB$6,$BW31,CB$4,CB$5) -> 160.8398149 | CC31: =DepartureOnDay(BF$12:BF$191,CC$6,$BW31,CC$4,CC$5) -> 2.12314258 | CD31: =DepartureOnDay(BG$12:BG$191,CD$6,$BW31,CD$4,CD$5) -> 20.45646313 | CE31: =DepartureOnDay(BH$12:BH$191,CE$6,$BW31,CE$4,CE$5) -> 4.583581026 | CF31: 254.7287256 | CG31: 7.862376227 | CI31: =DepartureOnDay(BA$12:BA$191,CI$6,$BW31,CI$4,CI$5) -> 1.839077831 | CJ31: =DepartureOnDay(BB$12:BB$191,CJ$6,$BW31,CJ$4,CJ$5) -> 0.01332296783 | CK31: =DepartureOnDay(BC$12:BC$191,CK$6,$BW31,CK$4,CK$5) -> 0.0005834671586 | CL31: =DepartureOnDay(BD$12:BD$191,CL$6,$BW31,CL$4,CL$5) -> 0.0001375349378 | CM31: =DepartureOnDay(BE$12:BE$191,CM$6,$BW31,CM$4,CM$5) -> 4.375800543 | CN31: =DepartureOnDay(BF$12:BF$191,CN$6,$BW31,CN$4,CN$5) -> 0.06042645945 | CO31: =DepartureOnDay(BG$12:BG$191,CO$6,$BW31,CO$4,CO$5) -> 0.002045850898 | CP31: =DepartureOnDay(BH$12:BH$191,CP$6,$BW31,CP$4,CP$5) -> 0.000916899585 | CQ31: 6.217507692 | CR31: 0.07480386181 | CT31: =DepartureOnDay(BK$12:BK$191,CT$6,$BW31,CT$4,CT$5) -> 0 | CU31: =DepartureOnDay(BL$12:BL$191,CU$6,$BW31,CU$4,CU$5) -> 0 | CV31: =DepartureOnDay(BM$12:BM$191,CV$6,$BW31,CV$4,CV$5) -> 0 | CW31: =DepartureOnDay(BN$12:BN$191,CW$6,$BW31,CW$4,CW$5) -> 0 | CX31: 0 | CZ31: =DepartureOnDay(BK$12:BK$191,CZ$6,$BW31,CZ$4,CZ$5) -> 0 | DA31: =DepartureOnDay(BL$12:BL$191,DA$6,$BW31,DA$4,DA$5) -> 0 | DB31: =DepartureOnDay(BM$12:BM$191,DB$6,$BW31,DB$4,DB$5) -> 0 | DC31: =DepartureOnDay(BN$12:BN$191,DC$6,$BW31,DC$4,DC$5) -> 0 | DD31: 0 | DF31: =DepartureOnDay(BQ$12:BQ$191,DF$6,$BW31,DF$4,DF$5) -> 0 | DG31: =DepartureOnDay(BR$12:BR$191,DG$6,$BW31,DG$4,DG$5) -> 0 | DH31: =DepartureOnDay(BS$12:BS$191,DH$6,$BW31,DH$4,DH$5) -> 0 | DI31: =DepartureOnDay(BT$12:BT$191,DI$6,$BW31,DI$4,DI$5) -> 0 | DJ31: 0 | DL31: =DepartureOnDay(BQ$12:BQ$191,DL$6,$BW31,DL$4,DL$5) -> 0 | DM31: =DepartureOnDay(BR$12:BR$191,DM$6,$BW31,DM$4,DM$5) -> 0 | DN31: =DepartureOnDay(BS$12:BS$191,DN$6,$BW31,DN$4,DN$5) -> 0 | DO31: =DepartureOnDay(BT$12:BT$191,DO$6,$BW31,DO$4,DO$5) -> 0 | DP31: 0 | DQ31: 0 | DR31: 0 | DS31: 20 | DT31: 1100.405067 | DU31: 198.2170866 | DV31: 42.58933902 | DW31: 8.94886568 | DX31: 2618.243236 | DY31: 899.0156618 | DZ31: 149.3339192 | EA31: 59.65910453 | EB31: 0 | EC31: 0 | ED31: 0 | EE31: 0 | EF31: 0 | EG31: 0 | EH31: 0 | EI31: 0 | EJ31: 1165.840719 | EK31: 3910.571561 | EL31: 1165.840719
A32: 21 | B32: ='C4-AnalyticOutput'!B28 -> 370.0799648 | C32: ='C4-AnalyticOutput'!C28 -> 59.93334956 | D32: ='C4-AnalyticOutput'!D28 -> 16.69970086 | E32: ='C4-AnalyticOutput'!E28 -> 3.091311544 | F32: ='C4-AnalyticOutput'!F28 -> 880.5478939 | G32: ='C4-AnalyticOutput'!G28 -> 271.8283315 | H32: ='C4-AnalyticOutput'!H28 -> 58.555306 | I32: ='C4-AnalyticOutput'!I28 -> 20.60874363 | J32: 1325.882866 | K32: 355.4617363 | T32: 16350.37469 | U32: 1342.096467 | V32: 1325.882866 | W32: 355.4617363 | X32: 355.4617363 | Y32: 0 | Z32: 0 | AA32: 0 | AB32: 1325.882866 | AC32: 0 | AD32: 11.78877598 | AE32: 0 | AF32: 360.6802223 | AG32: 0 | AH32: 0 | AI32: 0 | AJ32: 842.0964675 | AK32: 355.4617363 | AL32: 0 | AM32: 11.78877598 | AN32: 0 | AO32: 0 | AQ32: 0 | AR32: 0 | AS32: 0 | AT32: 0 | AU32: 0 | AV32: 0 | AW32: 0 | AX32: 0 | AY32: 0 | BA32: 370.0799648 | BB32: 59.93334956 | BC32: 16.69970086 | BD32: 3.091311544 | BE32: 880.5478939 | BF32: 271.8283315 | BG32: 58.555306 | BH32: 20.60874363 | BI32: 1681.344602 | BK32: 0 | BL32: 0 | BM32: 0 | BN32: 0 | BO32: 0 | BQ32: 0 | BR32: 0 | BS32: 0 | BT32: 0 | BU32: 0 | BW32: 21 | BX32: =DepartureOnDay(BA$12:BA$191,BX$6,$BW32,BX$4,BX$5) -> 93.79528167 | BY32: =DepartureOnDay(BB$12:BB$191,BY$6,$BW32,BY$4,BY$5) -> 0.7947337623 | BZ32: =DepartureOnDay(BC$12:BC$191,BZ$6,$BW32,BZ$4,BZ$5) -> 7.679964558 | CA32: =DepartureOnDay(BD$12:BD$191,CA$6,$BW32,CA$4,CA$5) -> 0.9432091714 | CB32: =DepartureOnDay(BE$12:BE$191,CB$6,$BW32,CB$4,CB$5) -> 223.1713294 | CC32: =DepartureOnDay(BF$12:BF$191,CC$6,$BW32,CC$4,CC$5) -> 3.604523261 | CD32: =DepartureOnDay(BG$12:BG$191,CD$6,$BW32,CD$4,CD$5) -> 26.92878624 | CE32: =DepartureOnDay(BH$12:BH$191,CE$6,$BW32,CE$4,CE$5) -> 6.288061143 | CF32: 351.5753619 | CG32: 11.63052734 | CI32: =DepartureOnDay(BA$12:BA$191,CI$6,$BW32,CI$4,CI$5) -> 2.693243606 | CJ32: =DepartureOnDay(BB$12:BB$191,CJ$6,$BW32,CJ$4,CJ$5) -> 0.02832658391 | CK32: =DepartureOnDay(BC$12:BC$191,CK$6,$BW32,CK$4,CK$5) -> 0.0007680732632 | CL32: =DepartureOnDay(BD$12:BD$191,CL$6,$BW32,CL$4,CL$5) -> 0.0001886795702 | CM32: =DepartureOnDay(BE$12:BE$191,CM$6,$BW32,CM$4,CM$5) -> 6.408155563 | CN32: =DepartureOnDay(BF$12:BF$191,CN$6,$BW32,CN$4,CN$5) -> 0.1284755165 | CO32: =DepartureOnDay(BG$12:BG$191,CO$6,$BW32,CO$4,CO$5) -> 0.002693147939 | CP32: =DepartureOnDay(BH$12:BH$191,CP$6,$BW32,CP$4,CP$5) -> 0.001257863801 | CQ32: 9.10486039 | CR32: 0.1582486438 | CT32: =DepartureOnDay(BK$12:BK$191,CT$6,$BW32,CT$4,CT$5) -> 0 | CU32: =DepartureOnDay(BL$12:BL$191,CU$6,$BW32,CU$4,CU$5) -> 0 | CV32: =DepartureOnDay(BM$12:BM$191,CV$6,$BW32,CV$4,CV$5) -> 0 | CW32: =DepartureOnDay(BN$12:BN$191,CW$6,$BW32,CW$4,CW$5) -> 0 | CX32: 0 | CZ32: =DepartureOnDay(BK$12:BK$191,CZ$6,$BW32,CZ$4,CZ$5) -> 0 | DA32: =DepartureOnDay(BL$12:BL$191,DA$6,$BW32,DA$4,DA$5) -> 0 | DB32: =DepartureOnDay(BM$12:BM$191,DB$6,$BW32,DB$4,DB$5) -> 0 | DC32: =DepartureOnDay(BN$12:BN$191,DC$6,$BW32,DC$4,DC$5) -> 0 | DD32: 0 | DF32: =DepartureOnDay(BQ$12:BQ$191,DF$6,$BW32,DF$4,DF$5) -> 0 | DG32: =DepartureOnDay(BR$12:BR$191,DG$6,$BW32,DG$4,DG$5) -> 0 | DH32: =DepartureOnDay(BS$12:BS$191,DH$6,$BW32,DH$4,DH$5) -> 0 | DI32: =DepartureOnDay(BT$12:BT$191,DI$6,$BW32,DI$4,DI$5) -> 0 | DJ32: 0 | DL32: =DepartureOnDay(BQ$12:BQ$191,DL$6,$BW32,DL$4,DL$5) -> 0 | DM32: =DepartureOnDay(BR$12:BR$191,DM$6,$BW32,DM$4,DM$5) -> 0 | DN32: =DepartureOnDay(BS$12:BS$191,DN$6,$BW32,DN$4,DN$5) -> 0 | DO32: =DepartureOnDay(BT$12:BT$191,DO$6,$BW32,DO$4,DO$5) -> 0 | DP32: 0 | DQ32: 0 | DR32: 0 | DS32: 21 | DT32: 1401.047595 | DU32: 257.6689977 | DV32: 53.4543683 | DW32: 11.35250254 | DX32: 3333.575514 | DY32: 1168.660424 | DZ32: 187.4307162 | EA32: 75.68335024 | EB32: 0 | EC32: 0 | ED32: 0 | EE32: 0 | EF32: 0 | EG32: 0 | EH32: 0 | EI32: 0 | EJ32: 1513.365275 | EK32: 4975.508193 | EL32: 1513.365275
A33: 22 | B33: ='C4-AnalyticOutput'!B29 -> 443.1728746 | C33: ='C4-AnalyticOutput'!C29 -> 71.7705289 | D33: ='C4-AnalyticOutput'!D29 -> 19.9979873 | E33: ='C4-AnalyticOutput'!E29 -> 3.701863256 | F33: ='C4-AnalyticOutput'!F29 -> 1054.461139 | G33: ='C4-AnalyticOutput'!G29 -> 325.5159818 | H33: ='C4-AnalyticOutput'!H29 -> 70.12031385 | I33: ='C4-AnalyticOutput'!I29 -> 24.67908837 | J33: 1587.752315 | K33: 425.6674623 | T33: 15385.17205 | U33: 998.4235072 | V33: 1587.752315 | W33: 425.6674623 | X33: 425.6674623 | Y33: 0 | Z33: 0 | AA33: 0 | AB33: 1587.752315 | AC33: 0 | AD33: 17.02740871 | AE33: 0 | AF33: 483.6902337 | AG33: 0 | AH33: 0 | AI33: 0 | AJ33: 498.4235072 | AK33: 425.6674623 | AL33: 0 | AM33: 17.02740871 | AN33: 0 | AO33: 0 | AQ33: 0 | AR33: 0 | AS33: 0 | AT33: 0 | AU33: 0 | AV33: 0 | AW33: 0 | AX33: 0 | AY33: 0 | BA33: 443.1728746 | BB33: 71.7705289 | BC33: 19.9979873 | BD33: 3.701863256 | BE33: 1054.461139 | BF33: 325.5159818 | BG33: 70.12031385 | BH33: 24.67908837 | BI33: 2013.419777 | BK33: 0 | BL33: 0 | BM33: 0 | BN33: 0 | BO33: 0 | BQ33: 0 | BR33: 0 | BS33: 0 | BT33: 0 | BU33: 0 | BW33: 22 | BX33: =DepartureOnDay(BA$12:BA$191,BX$6,$BW33,BX$4,BX$5) -> 126.1821453 | BY33: =DepartureOnDay(BB$12:BB$191,BY$6,$BW33,BY$4,BY$5) -> 1.281508189 | BZ33: =DepartureOnDay(BC$12:BC$191,BZ$6,$BW33,BZ$4,BZ$5) -> 9.855709788 | CA33: =DepartureOnDay(BD$12:BD$191,CA$6,$BW33,CA$4,CA$5) -> 1.255708863 | CB33: =DepartureOnDay(BE$12:BE$191,CB$6,$BW33,CB$4,CB$5) -> 300.2308498 | CC33: =DepartureOnDay(BF$12:BF$191,CC$6,$BW33,CC$4,CC$5) -> 5.812293747 | CD33: =DepartureOnDay(BG$12:BG$191,CD$6,$BW33,CD$4,CD$5) -> 34.5577509 | CE33: =DepartureOnDay(BH$12:BH$191,CE$6,$BW33,CE$4,CE$5) -> 8.37139242 | CF33: 470.8264558 | CG33: 16.72090322 | CI33: =DepartureOnDay(BA$12:BA$191,CI$6,$BW33,CI$4,CI$5) -> 3.805274773 | CJ33: =DepartureOnDay(BB$12:BB$191,CJ$6,$BW33,CJ$4,CJ$5) -> 0.05502287193 | CK33: =DepartureOnDay(BC$12:BC$191,CK$6,$BW33,CK$4,CK$5) -> 0.0009856695457 | CL33: =DepartureOnDay(BD$12:BD$191,CL$6,$BW33,CL$4,CL$5) -> 0.000251192011 | CM33: =DepartureOnDay(BE$12:BE$191,CM$6,$BW33,CM$4,CM$5) -> 9.054061299 | CN33: =DepartureOnDay(BF$12:BF$191,CN$6,$BW33,CN$4,CN$5) -> 0.2495568091 | CO33: =DepartureOnDay(BG$12:BG$191,CO$6,$BW33,CO$4,CO$5) -> 0.003456120702 | CP33: =DepartureOnDay(BH$12:BH$191,CP$6,$BW33,CP$4,CP$5) -> 0.001674613407 | CQ33: 12.86377786 | CR33: 0.3065054864 | CT33: =DepartureOnDay(BK$12:BK$191,CT$6,$BW33,CT$4,CT$5) -> 0 | CU33: =DepartureOnDay(BL$12:BL$191,CU$6,$BW33,CU$4,CU$5) -> 0 | CV33: =DepartureOnDay(BM$12:BM$191,CV$6,$BW33,CV$4,CV$5) -> 0 | CW33: =DepartureOnDay(BN$12:BN$191,CW$6,$BW33,CW$4,CW$5) -> 0 | CX33: 0 | CZ33: =DepartureOnDay(BK$12:BK$191,CZ$6,$BW33,CZ$4,CZ$5) -> 0 | DA33: =DepartureOnDay(BL$12:BL$191,DA$6,$BW33,DA$4,DA$5) -> 0 | DB33: =DepartureOnDay(BM$12:BM$191,DB$6,$BW33,DB$4,DB$5) -> 0 | DC33: =DepartureOnDay(BN$12:BN$191,DC$6,$BW33,DC$4,DC$5) -> 0 | DD33: 0 | DF33: =DepartureOnDay(BQ$12:BQ$191,DF$6,$BW33,DF$4,DF$5) -> 0 | DG33: =DepartureOnDay(BR$12:BR$191,DG$6,$BW33,DG$4,DG$5) -> 0 | DH33: =DepartureOnDay(BS$12:BS$191,DH$6,$BW33,DH$4,DH$5) -> 0 | DI33: =DepartureOnDay(BT$12:BT$191,DI$6,$BW33,DI$4,DI$5) -> 0 | DJ33: 0 | DL33: =DepartureOnDay(BQ$12:BQ$191,DL$6,$BW33,DL$4,DL$5) -> 0 | DM33: =DepartureOnDay(BR$12:BR$191,DM$6,$BW33,DM$4,DM$5) -> 0 | DN33: =DepartureOnDay(BS$12:BS$191,DN$6,$BW33,DN$4,DN$5) -> 0 | DO33: =DepartureOnDay(BT$12:BT$191,DO$6,$BW33,DO$4,DO$5) -> 0 | DP33: 0 | DQ33: 0 | DR33: 0 | DS33: 22 | DT33: 1747.731944 | DU33: 328.6164662 | DV33: 65.77162297 | DW33: 14.11096794 | DX33: 4158.457168 | DY33: 1490.443407 | DZ33: 230.6195507 | EA33: 94.0731196 | EB33: 0 | EC33: 0 | ED33: 0 | EE33: 0 | EF33: 0 | EG33: 0 | EH33: 0 | EI33: 0 | EJ33: 1927.243961 | EK33: 6202.580286 | EL33: 1927.243961
A34: 23 | B34: ='C4-AnalyticOutput'!B30 -> 522.335299 | C34: ='C4-AnalyticOutput'!C30 -> 84.59064808 | D34: ='C4-AnalyticOutput'!D30 -> 23.570158 | E34: ='C4-AnalyticOutput'!E30 -> 4.363114173 | F34: ='C4-AnalyticOutput'!F30 -> 1242.815854 | G34: ='C4-AnalyticOutput'!G30 -> 383.6617659 | H34: ='C4-AnalyticOutput'!H30 -> 82.64566087 | I34: ='C4-AnalyticOutput'!I30 -> 29.08742782 | J34: 1871.366972 | K34: 501.702956 | T34: 14281.10997 | U34: 589.7834536 | V34: 1871.366972 | W34: 501.702956 | X34: 501.702956 | Y34: 0 | Z34: 0 | AA34: 0 | AB34: 1871.366972 | AC34: 0 | AD34: 23.9798028 | AE34: 0 | AF34: 631.5056703 | AG34: 0 | AH34: 0 | AI34: 0 | AJ34: 89.7834536 | AK34: 89.7834536 | AL34: 411.9195024 | AM34: 23.9798028 | AN34: 0 | AO34: 0.8210426059 | AQ34: 0 | AR34: 0 | AS34: 0 | AT34: 0 | AU34: 0 | AV34: 0 | AW34: 0 | AX34: 0 | AY34: 0 | BA34: 522.335299 | BB34: 15.13812194 | BC34: 23.570158 | BD34: 0.7808115426 | BE34: 1242.815854 | BF34: 68.65910983 | BG34: 82.64566087 | BH34: 5.205410284 | BI34: 1961.150425 | BK34: 0 | BL34: 0 | BM34: 0 | BN34: 0 | BO34: 0 | BQ34: 69.45252613 | BR34: 3.582302631 | BS34: 315.0026561 | BT34: 23.88201754 | BU34: 411.9195024 | BW34: 23 | BX34: =DepartureOnDay(BA$12:BA$191,BX$6,$BW34,BX$4,BX$5) -> 165.1738429 | BY34: =DepartureOnDay(BB$12:BB$191,BY$6,$BW34,BY$4,BY$5) -> 1.977450179 | BZ34: =DepartureOnDay(BC$12:BC$191,BZ$6,$BW34,BZ$4,BZ$5) -> 12.3644115 | CA34: =DepartureOnDay(BD$12:BD$191,CA$6,$BW34,CA$4,CA$5) -> 1.628015105 | CB34: =DepartureOnDay(BE$12:BE$191,CB$6,$BW34,CB$4,CB$5) -> 393.0055484 | CC34: =DepartureOnDay(BF$12:BF$191,CC$6,$BW34,CC$4,CC$5) -> 8.968745895 | CD34: =DepartureOnDay(BG$12:BG$191,CD$6,$BW34,CD$4,CD$5) -> 43.35418371 | CE34: =DepartureOnDay(BH$12:BH$191,CE$6,$BW34,CE$4,CE$5) -> 10.85343403 | CF34: 613.8979865 | CG34: 23.42764521 | CI34: =DepartureOnDay(BA$12:BA$191,CI$6,$BW34,CI$4,CI$5) -> 5.208734715 | CJ34: =DepartureOnDay(BB$12:BB$191,CJ$6,$BW34,CJ$4,CJ$5) -> 0.09929722034 | CK34: =DepartureOnDay(BC$12:BC$191,CK$6,$BW34,CK$4,CK$5) -> 0.001236564807 | CL34: =DepartureOnDay(BD$12:BD$191,CL$6,$BW34,CL$4,CL$5) -> 0.0003256681546 | CM34: =DepartureOnDay(BE$12:BE$191,CM$6,$BW34,CM$4,CM$5) -> 12.39337662 | CN34: =DepartureOnDay(BF$12:BF$191,CN$6,$BW34,CN$4,CN$5) -> 0.4503635777 | CO34: =DepartureOnDay(BG$12:BG$191,CO$6,$BW34,CO$4,CO$5) -> 0.004335851956 | CP34: =DepartureOnDay(BH$12:BH$191,CP$6,$BW34,CP$4,CP$5) -> 0.002171121031 | CQ34: 17.60768375 | CR34: 0.5521575872 | CT34: =DepartureOnDay(BK$12:BK$191,CT$6,$BW34,CT$4,CT$5) -> 0 | CU34: =DepartureOnDay(BL$12:BL$191,CU$6,$BW34,CU$4,CU$5) -> 0 | CV34: =DepartureOnDay(BM$12:BM$191,CV$6,$BW34,CV$4,CV$5) -> 0 | CW34: =DepartureOnDay(BN$12:BN$191,CW$6,$BW34,CW$4,CW$5) -> 0 | CX34: 0 | CZ34: =DepartureOnDay(BK$12:BK$191,CZ$6,$BW34,CZ$4,CZ$5) -> 0 | DA34: =DepartureOnDay(BL$12:BL$191,DA$6,$BW34,DA$4,DA$5) -> 0 | DB34: =DepartureOnDay(BM$12:BM$191,DB$6,$BW34,DB$4,DB$5) -> 0 | DC34: =DepartureOnDay(BN$12:BN$191,DC$6,$BW34,DC$4,DC$5) -> 0 | DD34: 0 | DF34: =DepartureOnDay(BQ$12:BQ$191,DF$6,$BW34,DF$4,DF$5) -> 0 | DG34: =DepartureOnDay(BR$12:BR$191,DG$6,$BW34,DG$4,DG$5) -> 0 | DH34: =DepartureOnDay(BS$12:BS$191,DH$6,$BW34,DH$4,DH$5) -> 0 | DI34: =DepartureOnDay(BT$12:BT$191,DI$6,$BW34,DI$4,DI$5) -> 0 | DJ34: 0 | DL34: =DepartureOnDay(BQ$12:BQ$191,DL$6,$BW34,DL$4,DL$5) -> 0 | DM34: =DepartureOnDay(BR$12:BR$191,DM$6,$BW34,DM$4,DM$5) -> 0 | DN34: =DepartureOnDay(BS$12:BS$191,DN$6,$BW34,DN$4,DN$5) -> 0 | DO34: =DepartureOnDay(BT$12:BT$191,DO$6,$BW34,DO$4,DO$5) -> 0 | DP34: 0 | DQ34: 0 | DR34: 0 | DS34: 23 | DT34: 2140.079823 | DU34: 342.4180571 | DV34: 79.48508551 | DW34: 13.63581943 | DX34: 5091.988111 | DY34: 1553.040667 | DZ34: 278.7040045 | EA34: 90.90546285 | EB34: 0 | EC34: 0 | ED34: 0 | EE34: 0 | EF34: 69.45252613 | EG34: 3.582302631 | EH34: 315.0026561 | EI34: 23.88201754 | EJ34: 2411.919508 | EK34: 7590.257024 | EL34: 2000.000006
A35: 24 | B35: ='C4-AnalyticOutput'!B31 -> 606.7893719 | C35: ='C4-AnalyticOutput'!C31 -> 98.26773399 | D35: ='C4-AnalyticOutput'!D31 -> 27.38111209 | E35: ='C4-AnalyticOutput'!E31 -> 5.068566712 | F35: ='C4-AnalyticOutput'!F31 -> 1443.761225 | G35: ='C4-AnalyticOutput'!G31 -> 445.6943316 | H35: ='C4-AnalyticOutput'!H31 -> 96.00827045 | I35: ='C4-AnalyticOutput'!I31 -> 33.79044474 | J35: 2173.93998 | K35: 582.821077 | T35: 13041.24867 | U35: 112.0603004 | V35: 2173.93998 | W35: 582.821077 | X35: 112.0603004 | Y35: 470.7607766 | Z35: 470.7607766 | AA35: 0 | AB35: 2173.93998 | AC35: 0 | AD35: 33.00158311 | AE35: 0 | AF35: 805.0252319 | AG35: 0.8077277833 | AH35: 0 | AI35: 0 | AJ35: 23.9798028 | AK35: 23.9798028 | AL35: 88.08049764 | AM35: 33.00158311 | AN35: 0 | AO35: 0.7860098295 | AQ35: 0 | AR35: 0 | AS35: 0 | AT35: 0 | AU35: 0 | AV35: 0 | AW35: 0 | AX35: 0 | AY35: 0 | BA35: 606.7893719 | BB35: 4.04316346 | BC35: 27.38111209 | BD35: 0.208542956 | BE35: 1443.761225 | BF35: 18.33781001 | BG35: 96.00827045 | BH35: 1.390286373 | BI35: 2197.919782 | BK35: 79.37357894 | BL35: 4.094022154 | BM35: 359.9996945 | BN35: 27.29348103 | BO35: 470.7607766 | BQ35: 14.85099159 | BR35: 0.7660016013 | BS35: 67.35682711 | BT35: 5.106677342 | BU35: 88.08049764 | BW35: 24 | BX35: =DepartureOnDay(BA$12:BA$191,BX$6,$BW35,BX$4,BX$5) -> 211.0165244 | BY35: =DepartureOnDay(BB$12:BB$191,BY$6,$BW35,BY$4,BY$5) -> 2.937443216 | BZ35: =DepartureOnDay(BC$12:BC$191,BZ$6,$BW35,BZ$4,BZ$5) -> 15.19992129 | CA35: =DepartureOnDay(BD$12:BD$191,CA$6,$BW35,CA$4,CA$5) -> 2.061521506 | CB35: =DepartureOnDay(BE$12:BE$191,CB$6,$BW35,CB$4,CB$5) -> 502.0811009 | CC35: =DepartureOnDay(BF$12:BF$191,CC$6,$BW35,CC$4,CC$5) -> 13.32280432 | CD35: =DepartureOnDay(BG$12:BG$191,CD$6,$BW35,CD$4,CD$5) -> 53.29652606 | CE35: =DepartureOnDay(BH$12:BH$191,CE$6,$BW35,CE$4,CE$5) -> 13.74347671 | CF35: 781.5940727 | CG35: 32.06524574 | CI35: =DepartureOnDay(BA$12:BA$191,CI$6,$BW35,CI$4,CI$5) -> 6.931612265 | CJ35: =DepartureOnDay(BB$12:BB$191,CJ$6,$BW35,CJ$4,CJ$5) -> 0.168579889 | CK35: =DepartureOnDay(BC$12:BC$191,CK$6,$BW35,CK$4,CK$5) -> 0.001520144143 | CL35: =DepartureOnDay(BD$12:BD$191,CL$6,$BW35,CL$4,CL$5) -> 0.0004123867786 | CM35: =DepartureOnDay(BE$12:BE$191,CM$6,$BW35,CM$4,CM$5) -> 16.49269661 | CN35: =DepartureOnDay(BF$12:BF$191,CN$6,$BW35,CN$4,CN$5) -> 0.7645958433 | CO35: =DepartureOnDay(BG$12:BG$191,CO$6,$BW35,CO$4,CO$5) -> 0.005330185625 | CP35: =DepartureOnDay(BH$12:BH$191,CP$6,$BW35,CP$4,CP$5) -> 0.00274924519 | CQ35: 23.4311592 | CR35: 0.9363373642 | CT35: =DepartureOnDay(BK$12:BK$191,CT$6,$BW35,CT$4,CT$5) -> 0 | CU35: =DepartureOnDay(BL$12:BL$191,CU$6,$BW35,CU$4,CU$5) -> 0 | CV35: =DepartureOnDay(BM$12:BM$191,CV$6,$BW35,CV$4,CV$5) -> 0 | CW35: =DepartureOnDay(BN$12:BN$191,CW$6,$BW35,CW$4,CW$5) -> 0 | CX35: 0 | CZ35: =DepartureOnDay(BK$12:BK$191,CZ$6,$BW35,CZ$4,CZ$5) -> 0 | DA35: =DepartureOnDay(BL$12:BL$191,DA$6,$BW35,DA$4,DA$5) -> 0 | DB35: =DepartureOnDay(BM$12:BM$191,DB$6,$BW35,DB$4,DB$5) -> 0 | DC35: =DepartureOnDay(BN$12:BN$191,DC$6,$BW35,DC$4,DC$5) -> 0 | DD35: 0 | DF35: =DepartureOnDay(BQ$12:BQ$191,DF$6,$BW35,DF$4,DF$5) -> 0 | DG35: =DepartureOnDay(BR$12:BR$191,DG$6,$BW35,DG$4,DG$5) -> 0 | DH35: =DepartureOnDay(BS$12:BS$191,DH$6,$BW35,DH$4,DH$5) -> 0 | DI35: =DepartureOnDay(BT$12:BT$191,DI$6,$BW35,DI$4,DI$5) -> 0 | DJ35: 0 | DL35: =DepartureOnDay(BQ$12:BQ$191,DL$6,$BW35,DL$4,DL$5) -> 0 | DM35: =DepartureOnDay(BR$12:BR$191,DM$6,$BW35,DM$4,DM$5) -> 0 | DN35: =DepartureOnDay(BS$12:BS$191,DN$6,$BW35,DN$4,DN$5) -> 0 | DO35: =DepartureOnDay(BT$12:BT$191,DO$6,$BW35,DO$4,DO$5) -> 0 | DP35: 0 | DQ35: 0 | DR35: 0 | DS35: 24 | DT35: 2576.486617 | DU35: 344.3844732 | DV35: 94.50054953 | DW35: 12.21602161 | DX35: 6130.350411 | DY35: 1561.959367 | DZ35: 331.3537554 | EA35: 81.44014407 | EB35: 79.37357894 | EC35: 4.094022154 | ED35: 359.9996945 | EE35: 27.29348103 | EF35: 84.30351772 | EG35: 4.348304232 | EH35: 382.3594832 | EI35: 28.98869488 | EJ35: 2500.000006 | EK35: 9603.45211 | EL35: 2000.000006
A36: 25 | B36: ='C4-AnalyticOutput'!B32 -> 695.6236008 | C36: ='C4-AnalyticOutput'!C32 -> 112.6541731 | D36: ='C4-AnalyticOutput'!D32 -> 31.38971885 | E36: ='C4-AnalyticOutput'!E32 -> 5.810607091 | F36: ='C4-AnalyticOutput'!F32 -> 1655.128499 | G36: ='C4-AnalyticOutput'!G32 -> 510.9441763 | H36: ='C4-AnalyticOutput'!H32 -> 110.0639232 | I36: ='C4-AnalyticOutput'!I32 -> 38.73738061 | J36: 2492.205742 | K36: 668.1463372 | T36: 11201.57314 | U36: 33.00158311 | V36: 2492.205742 | W36: 668.1463372 | X36: 33.00158311 | Y36: 635.144754 | Z36: 635.144754 | AA36: 0 | AB36: 2492.205742 | AC36: 0 | AD36: 142.3005836 | AE36: 0 | AF36: 1004.460505 | AG36: 0.9506072528 | AH36: 0 | AI36: 0 | AJ36: 33.00158311 | AK36: 33.00158311 | AL36: 0 | AM36: 44.46970183 | AN36: 97.83088181 | AO36: 0 | AQ36: 0 | AR36: 0 | AS36: 0 | AT36: 0 | AU36: 0 | AV36: 0 | AW36: 0 | AX36: 0 | AY36: 0 | BA36: 695.6236008 | BB36: 5.564299093 | BC36: 31.38971885 | BD36: 0.287001847 | BE36: 1655.128499 | BF36: 25.23693652 | BG36: 110.0639232 | BH36: 1.913345647 | BI36: 2525.207325 | BK36: 107.0898741 | BL36: 5.523605244 | BM36: 485.7072398 | BN36: 36.82403496 | BO36: 635.144754 | BQ36: 0 | BR36: 0 | BS36: 0 | BT36: 0 | BU36: 0 | BW36: 25 | BX36: =DepartureOnDay(BA$12:BA$191,BX$6,$BW36,BX$4,BX$5) -> 263.7723505 | BY36: =DepartureOnDay(BB$12:BB$191,BY$6,$BW36,BY$4,BY$5) -> 4.221013619 | BZ36: =DepartureOnDay(BC$12:BC$191,BZ$6,$BW36,BZ$4,BZ$5) -> 18.3470092 | CA36: =DepartureOnDay(BD$12:BD$191,CA$6,$BW36,CA$4,CA$5) -> 2.555944068 | CB36: =DepartureOnDay(BE$12:BE$191,CB$6,$BW36,CB$4,CB$5) -> 627.6054089 | CC36: =DepartureOnDay(BF$12:BF$191,CC$6,$BW36,CC$4,CC$5) -> 19.14445126 | CD36: =DepartureOnDay(BG$12:BG$191,CD$6,$BW36,CD$4,CD$5) -> 64.33137615 | CE36: =DepartureOnDay(BH$12:BH$191,CE$6,$BW36,CE$4,CE$5) -> 17.03962712 | CF36: 974.0561447 | CG36: 42.96103607 | CI36: =DepartureOnDay(BA$12:BA$191,CI$6,$BW36,CI$4,CI$5) -> 8.994669819 | CJ36: =DepartureOnDay(BB$12:BB$191,CJ$6,$BW36,CJ$4,CJ$5) -> 0.2718350704 | CK36: =DepartureOnDay(BC$12:BC$191,CK$6,$BW36,CK$4,CK$5) -> 0.001834884408 | CL36: =DepartureOnDay(BD$12:BD$191,CL$6,$BW36,CL$4,CL$5) -> 0.0005112910719 | CM36: =DepartureOnDay(BE$12:BE$191,CM$6,$BW36,CM$4,CM$5) -> 21.40142217 | CN36: =DepartureOnDay(BF$12:BF$191,CN$6,$BW36,CN$4,CN$5) -> 1.232910795 | CO36: =DepartureOnDay(BG$12:BG$191,CO$6,$BW36,CO$4,CO$5) -> 0.006433780993 | CP36: =DepartureOnDay(BH$12:BH$191,CP$6,$BW36,CP$4,CP$5) -> 0.003408607146 | CQ36: 30.40436066 | CR36: 1.508665763 | CT36: =DepartureOnDay(BK$12:BK$191,CT$6,$BW36,CT$4,CT$5) -> 0 | CU36: =DepartureOnDay(BL$12:BL$191,CU$6,$BW36,CU$4,CU$5) -> 0 | CV36: =DepartureOnDay(BM$12:BM$191,CV$6,$BW36,CV$4,CV$5) -> 0 | CW36: =DepartureOnDay(BN$12:BN$191,CW$6,$BW36,CW$4,CW$5) -> 0 | CX36: 0 | CZ36: =DepartureOnDay(BK$12:BK$191,CZ$6,$BW36,CZ$4,CZ$5) -> 0 | DA36: =DepartureOnDay(BL$12:BL$191,DA$6,$BW36,DA$4,DA$5) -> 0 | DB36: =DepartureOnDay(BM$12:BM$191,DB$6,$BW36,DB$4,DB$5) -> 0 | DC36: =DepartureOnDay(BN$12:BN$191,DC$6,$BW36,DC$4,DC$5) -> 0 | DD36: 0 | DF36: =DepartureOnDay(BQ$12:BQ$191,DF$6,$BW36,DF$4,DF$5) -> 0 | DG36: =DepartureOnDay(BR$12:BR$191,DG$6,$BW36,DG$4,DG$5) -> 0 | DH36: =DepartureOnDay(BS$12:BS$191,DH$6,$BW36,DH$4,DH$5) -> 0 | DI36: =DepartureOnDay(BT$12:BT$191,DI$6,$BW36,DI$4,DI$5) -> 0 | DJ36: 0 | DL36: =DepartureOnDay(BQ$12:BQ$191,DL$6,$BW36,DL$4,DL$5) -> 16.49497496 | DM36: =DepartureOnDay(BR$12:BR$191,DM$6,$BW36,DM$4,DM$5) -> 0.8507968748 | DN36: =DepartureOnDay(BS$12:BS$191,DN$6,$BW36,DN$4,DN$5) -> 74.81313081 | DO36: =DepartureOnDay(BT$12:BT$191,DO$6,$BW36,DO$4,DO$5) -> 5.671979165 | DP36: 97.83088181 | DQ36: 97.83088181 | DR36: 97.83088181 | DS36: 25 | DT36: 3054.162081 | DU36: 346.8427492 | DV36: 110.6888269 | DW36: 10.44108956 | DX36: 7266.905112 | DY36: 1573.108903 | DZ36: 388.1158223 | EA36: 69.60726377 | EB36: 186.463453 | EC36: 9.617627398 | ED36: 845.7069343 | EE36: 64.11751599 | EF36: 84.30351772 | EG36: 4.348304232 | EH36: 382.3594832 | EI36: 28.98869488 | EJ36: 2500.000006 | EK36: 11925.77737 | EL36: 2000.000006
A37: 26 | B37: ='C4-AnalyticOutput'!B33 -> 787.8221368 | C37: ='C4-AnalyticOutput'!C33 -> 127.5854518 | D37: ='C4-AnalyticOutput'!D33 -> 35.55013854 | E37: ='C4-AnalyticOutput'!E33 -> 6.580749833 | F37: ='C4-AnalyticOutput'!F33 -> 1874.50062 | G37: ='C4-AnalyticOutput'!G33 -> 578.6651464 | H37: ='C4-AnalyticOutput'!H33 -> 124.6518879 | I37: ='C4-AnalyticOutput'!I33 -> 43.87166555 | J37: 2822.524783 | K37: 756.7030136 | T37: 9078.683154 | U37: 142.3005836 | V37: 2822.524783 | W37: 756.7030136 | X37: 142.3005836 | Y37: 614.4024299 | Z37: 614.4024299 | AA37: 0 | AB37: 2822.524783 | AC37: 0 | AD37: 180.0976783 | AE37: 111.8056844 | AF37: 1229.313862 | AG37: 0.8119465879 | AH37: 0 | AI37: 0 | AJ37: 44.46970183 | AK37: 44.46970183 | AL37: 97.83088181 | AM37: 58.77318137 | AN37: 121.3244969 | AO37: 0.6874945928 | AQ37: 0 | AR37: 0 | AS37: 0 | AT37: 0 | AU37: 0 | AV37: 0 | AW37: 0 | AX37: 0 | AY37: 0 | BA37: 787.8221368 | BB37: 7.497904592 | BC37: 35.55013854 | BD37: 0.3867355853 | BE37: 1874.50062 | BF37: 34.00682442 | BG37: 124.6518879 | BH37: 2.578237236 | BI37: 2866.994485 | BK37: 103.5925723 | BL37: 5.343217372 | BM37: 469.8451911 | BN37: 35.62144915 | BO37: 614.4024299 | BQ37: 16.49497496 | BR37: 0.8507968748 | BS37: 74.81313081 | BT37: 5.671979165 | BU37: 97.83088181 | BW37: 26 | BX37: =DepartureOnDay(BA$12:BA$191,BX$6,$BW37,BX$4,BX$5) -> 323.3134939 | BY37: =DepartureOnDay(BB$12:BB$191,BY$6,$BW37,BY$4,BY$5) -> 5.890775759 | BZ37: =DepartureOnDay(BC$12:BC$191,BZ$6,$BW37,BZ$4,BZ$5) -> 21.78189424 | CA37: =DepartureOnDay(BD$12:BD$191,CA$6,$BW37,CA$4,CA$5) -> 3.109309803 | CB37: =DepartureOnDay(BE$12:BE$191,CB$6,$BW37,CB$4,CB$5) -> 769.2743275 | CC37: =DepartureOnDay(BF$12:BF$191,CC$6,$BW37,CC$4,CC$5) -> 26.71767485 | CD37: =DepartureOnDay(BG$12:BG$191,CD$6,$BW37,CD$4,CD$5) -> 76.37534906 | CE37: =DepartureOnDay(BH$12:BH$191,CE$6,$BW37,CE$4,CE$5) -> 20.72873202 | CF37: 1190.745065 | CG37: 56.44649243 | CI37: =DepartureOnDay(BA$12:BA$191,CI$6,$BW37,CI$4,CI$5) -> 11.41019388 | CJ37: =DepartureOnDay(BB$12:BB$191,CJ$6,$BW37,CJ$4,CJ$5) -> 0.4194591289 | CK37: =DepartureOnDay(BC$12:BC$191,CK$6,$BW37,CK$4,CK$5) -> 0.002178407265 | CL37: =DepartureOnDay(BD$12:BD$191,CL$6,$BW37,CL$4,CL$5) -> 0.000621986358 | CM37: =DepartureOnDay(BE$12:BE$191,CM$6,$BW37,CM$4,CM$5) -> 27.14878714 | CN37: =DepartureOnDay(BF$12:BF$191,CN$6,$BW37,CN$4,CN$5) -> 1.90246125 | CO37: =DepartureOnDay(BG$12:BG$191,CO$6,$BW37,CO$4,CO$5) -> 0.007638298736 | CP37: =DepartureOnDay(BH$12:BH$191,CP$6,$BW37,CP$4,CP$5) -> 0.00414657572 | CQ37: 38.56879772 | CR37: 2.326688941 | CT37: =DepartureOnDay(BK$12:BK$191,CT$6,$BW37,CT$4,CT$5) -> 0 | CU37: =DepartureOnDay(BL$12:BL$191,CU$6,$BW37,CU$4,CU$5) -> 0 | CV37: =DepartureOnDay(BM$12:BM$191,CV$6,$BW37,CV$4,CV$5) -> 0 | CW37: =DepartureOnDay(BN$12:BN$191,CW$6,$BW37,CW$4,CW$5) -> 0 | CX37: 0 | CZ37: =DepartureOnDay(BK$12:BK$191,CZ$6,$BW37,CZ$4,CZ$5) -> 18.851225 | DA37: =DepartureOnDay(BL$12:BL$191,DA$6,$BW37,DA$4,DA$5) -> 0.9723302617 | DB37: =DepartureOnDay(BM$12:BM$191,DB$6,$BW37,DB$4,DB$5) -> 85.49992744 | DC37: =DepartureOnDay(BN$12:BN$191,DC$6,$BW37,DC$4,DC$5) -> 6.482201744 | DD37: 111.8056844 | DF37: =DepartureOnDay(BQ$12:BQ$191,DF$6,$BW37,DF$4,DF$5) -> 0.4340782883 | DG37: =DepartureOnDay(BR$12:BR$191,DG$6,$BW37,DG$4,DG$5) -> 0.02238939144 | DH37: =DepartureOnDay(BS$12:BS$191,DH$6,$BW37,DH$4,DH$5) -> 1.9687666 | DI37: =DepartureOnDay(BT$12:BT$191,DI$6,$BW37,DI$4,DI$5) -> 0.1492626096 | DJ37: 2.57449689 | DL37: =DepartureOnDay(BQ$12:BQ$191,DL$6,$BW37,DL$4,DL$5) -> 20.02208546 | DM37: =DepartureOnDay(BR$12:BR$191,DM$6,$BW37,DM$4,DM$5) -> 1.032722255 | DN37: =DepartureOnDay(BS$12:BS$191,DN$6,$BW37,DN$4,DN$5) -> 90.81037725 | DO37: =DepartureOnDay(BT$12:BT$191,DO$6,$BW37,DO$4,DO$5) -> 6.884815034 | DP37: 118.75 | DQ37: 230.5556844 | DR37: 328.3865663 | DS37: 26 | DT37: 3569.217198 | DU37: 349.8478051 | DV37: 127.8901214 | DW37: 8.271369791 | DX37: 8492.398901 | DY37: 1586.738366 | DZ37: 448.4299003 | EA37: 55.14246527 | EB37: 290.0560253 | EC37: 14.96084477 | ED37: 1315.552125 | EE37: 99.73896514 | EF37: 84.30351772 | EG37: 4.348304232 | EH37: 382.3594832 | EI37: 28.98869488 | EJ37: 2500.000006 | EK37: 14358.24408 | EL37: 2000.000006
A38: 27 | B38: ='C4-AnalyticOutput'!B34 -> 882.295487 | C38: ='C4-AnalyticOutput'!C34 -> 142.8851299 | D38: ='C4-AnalyticOutput'!D34 -> 39.81320825 | E38: ='C4-AnalyticOutput'!E34 -> 7.369894304 | F38: ='C4-AnalyticOutput'!F34 -> 2099.285308 | G38: ='C4-AnalyticOutput'!G34 -> 648.0569957 | H38: ='C4-AnalyticOutput'!H34 -> 139.5997815 | I38: ='C4-AnalyticOutput'!I34 -> 49.13262869 | J38: 3160.993785 | K38: 847.4446486 | T38: 6982.875488 | U38: 180.0976783 | V38: 3160.993785 | W38: 847.4446486 | X38: 180.0976783 | Y38: 667.3469703 | Z38: 667.3469703 | AA38: 0 | AB38: 3160.993785 | AC38: 0 | AD38: 189.0221951 | AE38: 265.5948184 | AF38: 1478.388797 | AG38: 0.787481485 | AH38: 0 | AI38: 0 | AJ38: 58.77318137 | AK38: 58.77318137 | AL38: 121.3244969 | AM38: 67.1471951 | AN38: 121.875 | AO38: 0.6736594167 | AQ38: 0 | AR38: 0 | AS38: 0 | AT38: 0 | AU38: 0 | AV38: 0 | AW38: 0 | AX38: 0 | AY38: 0 | BA38: 882.295487 | BB38: 9.909571875 | BC38: 39.81320825 | BD38: 0.5111273466 | BE38: 2099.285308 | BF38: 44.94496651 | BG38: 139.5997815 | BH38: 3.407515644 | BI38: 3219.766966 | BK38: 112.5193943 | BL38: 5.80365531 | BM38: 510.3328853 | BN38: 38.6910354 | BO38: 667.3469703 | BQ38: 20.45616375 | BR38: 1.055111647 | BS38: 92.77914385 | BT38: 7.034077644 | BU38: 121.3244969 | BW38: 27 | BX38: =DepartureOnDay(BA$12:BA$191,BX$6,$BW38,BX$4,BX$5) -> 389.3248738 | BY38: =DepartureOnDay(BB$12:BB$191,BY$6,$BW38,BY$4,BY$5) -> 8.01051852 | BZ38: =DepartureOnDay(BC$12:BC$191,BZ$6,$BW38,BZ$4,BZ$5) -> 25.47308748 | CA38: =DepartureOnDay(BD$12:BD$191,CA$6,$BW38,CA$4,CA$5) -> 2.524157182 | CB38: =DepartureOnDay(BE$12:BE$191,CB$6,$BW38,CB$4,CB$5) -> 926.3381708 | CC38: =DepartureOnDay(BF$12:BF$191,CC$6,$BW38,CC$4,CC$5) -> 36.33179023 | CD38: =DepartureOnDay(BG$12:BG$191,CD$6,$BW38,CD$4,CD$5) -> 89.31803296 | CE38: =DepartureOnDay(BH$12:BH$191,CE$6,$BW38,CE$4,CE$5) -> 16.82771454 | CF38: 1430.454165 | CG38: 63.69418047 | CI38: =DepartureOnDay(BA$12:BA$191,CI$6,$BW38,CI$4,CI$5) -> 14.18119557 | CJ38: =DepartureOnDay(BB$12:BB$191,CJ$6,$BW38,CJ$4,CJ$5) -> 0.6230940268 | CK38: =DepartureOnDay(BC$12:BC$191,CK$6,$BW38,CK$4,CK$5) -> 0.002547563504 | CL38: =DepartureOnDay(BD$12:BD$191,CL$6,$BW38,CL$4,CL$5) -> 0.0005049324228 | CM38: =DepartureOnDay(BE$12:BE$191,CM$6,$BW38,CM$4,CM$5) -> 33.74195601 | CN38: =DepartureOnDay(BF$12:BF$191,CN$6,$BW38,CN$4,CN$5) -> 2.826049452 | CO38: =DepartureOnDay(BG$12:BG$191,CO$6,$BW38,CO$4,CO$5) -> 0.008932696566 | CP38: =DepartureOnDay(BH$12:BH$191,CP$6,$BW38,CP$4,CP$5) -> 0.003366216152 | CQ38: 47.93463184 | CR38: 3.453014628 | CT38: =DepartureOnDay(BK$12:BK$191,CT$6,$BW38,CT$4,CT$5) -> 0.4960848684 | CU38: =DepartureOnDay(BL$12:BL$191,CU$6,$BW38,CU$4,CU$5) -> 0.02558763846 | CV38: =DepartureOnDay(BM$12:BM$191,CV$6,$BW38,CV$4,CV$5) -> 2.24999809 | CW38: =DepartureOnDay(BN$12:BN$191,CW$6,$BW38,CW$4,CW$5) -> 0.1705842564 | CX38: 2.942254854 | CZ38: =DepartureOnDay(BK$12:BK$191,CZ$6,$BW38,CZ$4,CZ$5) -> 44.28507009 | DA38: =DepartureOnDay(BL$12:BL$191,DA$6,$BW38,DA$4,DA$5) -> 2.284186507 | DB38: =DepartureOnDay(BM$12:BM$191,DB$6,$BW38,DB$4,DB$5) -> 200.8553969 | DC38: =DepartureOnDay(BN$12:BN$191,DC$6,$BW38,DC$4,DC$5) -> 15.22791005 | DD38: 262.6525635 | DF38: =DepartureOnDay(BQ$12:BQ$191,DF$6,$BW38,DF$4,DF$5) -> 0.5268969857 | DG38: =DepartureOnDay(BR$12:BR$191,DG$6,$BW38,DG$4,DG$5) -> 0.02717690145 | DH38: =DepartureOnDay(BS$12:BS$191,DH$6,$BW38,DH$4,DH$5) -> 2.38974677 | DI38: =DepartureOnDay(BT$12:BT$191,DI$6,$BW38,DI$4,DI$5) -> 0.181179343 | DJ38: 3.125 | DL38: =DepartureOnDay(BQ$12:BQ$191,DL$6,$BW38,DL$4,DL$5) -> 20.02208546 | DM38: =DepartureOnDay(BR$12:BR$191,DM$6,$BW38,DM$4,DM$5) -> 1.032722255 | DN38: =DepartureOnDay(BS$12:BS$191,DN$6,$BW38,DN$4,DN$5) -> 90.81037725 | DO38: =DepartureOnDay(BT$12:BT$191,DO$6,$BW38,DO$4,DO$5) -> 6.884815034 | DP38: 118.75 | DQ38: 381.4025635 | DR38: 709.7891298 | DS38: 27 | DT38: 4116.788997 | DU38: 353.4471421 | DV38: 145.919257 | DW38: 5.672565348 | DX38: 9795.261094 | DY38: 1603.063196 | DZ38: 511.6466945 | EA38: 37.81710232 | EB38: 383.7241945 | EC38: 19.79216982 | ED38: 1740.385083 | EE38: 131.9477988 | EF38: 84.30351772 | EG38: 4.348304232 | EH38: 382.3594832 | EI38: 28.98869488 | EJ38: 2500.000006 | EK38: 16845.46529 | EL38: 2000.000006
A39: 28 | B39: ='C4-AnalyticOutput'!B35 -> 977.9113214 | C39: ='C4-AnalyticOutput'!C35 -> 158.3698299 | D39: ='C4-AnalyticOutput'!D35 -> 44.12783207 | E39: ='C4-AnalyticOutput'!E35 -> 8.168582049 | F39: ='C4-AnalyticOutput'!F35 -> 2326.78836 | G39: ='C4-AnalyticOutput'!G35 -> 718.2880138 | H39: ='C4-AnalyticOutput'!H35 -> 154.7284428 | I39: ='C4-AnalyticOutput'!I35 -> 54.45721366 | J39: 3503.555956 | K39: 939.2836394 | T39: 4898.518348 | U39: 189.0221951 | V39: 3503.555956 | W39: 939.2836394 | X39: 189.0221951 | Y39: 750.2614443 | Z39: 750.2614443 | AA39: 0 | AB39: 3503.555956 | AC39: 0 | AD39: 220.968787 | AE39: 415.4850502 | AF39: 1749.829162 | AG39: 0.7987591957 | AH39: 0 | AI39: 0 | AJ39: 67.1471951 | AK39: 67.1471951 | AL39: 121.875 | AM39: 75.85895252 | AN39: 145.1098344 | AO39: 0.6447655522 | AQ39: 0 | AR39: 0 | AS39: 0 | AT39: 0 | AU39: 0 | AV39: 0 | AW39: 0 | AX39: 0 | AY39: 0 | BA39: 977.9113214 | BB39: 11.3214895 | BC39: 44.12783207 | BD39: 0.5839528653 | BE39: 2326.78836 | BF39: 51.34873363 | BG39: 154.7284428 | BH39: 3.893019102 | BI39: 3570.703151 | BK39: 126.4993579 | BL39: 6.524730027 | BM39: 573.7391562 | BN39: 43.49820018 | BO39: 750.2614443 | BQ39: 20.54898244 | BR39: 1.059899157 | BS39: 93.20012402 | BT39: 7.065994377 | BU39: 121.875 | BW39: 28 | BX39: =DepartureOnDay(BA$12:BA$191,BX$6,$BW39,BX$4,BX$5) -> 461.3146587 | BY39: =DepartureOnDay(BB$12:BB$191,BY$6,$BW39,BY$4,BY$5) -> 10.64291507 | BZ39: =DepartureOnDay(BC$12:BC$191,BZ$6,$BW39,BZ$4,BZ$5) -> 29.38247693 | CA39: =DepartureOnDay(BD$12:BD$191,CA$6,$BW39,CA$4,CA$5) -> 1.563426504 | CB39: =DepartureOnDay(BE$12:BE$191,CB$6,$BW39,CB$4,CB$5) -> 1097.626702 | CC39: =DepartureOnDay(BF$12:BF$191,CC$6,$BW39,CC$4,CC$5) -> 48.27105219 | CD39: =DepartureOnDay(BG$12:BG$191,CD$6,$BW39,CD$4,CD$5) -> 103.0257932 | CE39: =DepartureOnDay(BH$12:BH$191,CE$6,$BW39,CE$4,CE$5) -> 10.42284336 | CF39: 1691.34963 | CG39: 70.90023712 | CI39: =DepartureOnDay(BA$12:BA$191,CI$6,$BW39,CI$4,CI$5) -> 17.30107164 | CJ39: =DepartureOnDay(BB$12:BB$191,CJ$6,$BW39,CJ$4,CJ$5) -> 0.8953677784 | CK39: =DepartureOnDay(BC$12:BC$191,CK$6,$BW39,CK$4,CK$5) -> 0.002938541547 | CL39: =DepartureOnDay(BD$12:BD$191,CL$6,$BW39,CL$4,CL$5) -> 0.0003127478503 | CM39: =DepartureOnDay(BE$12:BE$191,CM$6,$BW39,CM$4,CM$5) -> 41.16521736 | CN39: =DepartureOnDay(BF$12:BF$191,CN$6,$BW39,CN$4,CN$5) -> 4.06094989 | CO39: =DepartureOnDay(BG$12:BG$191,CO$6,$BW39,CO$4,CO$5) -> 0.01030360968 | CP39: =DepartureOnDay(BH$12:BH$191,CP$6,$BW39,CP$4,CP$5) -> 0.002084985668 | CQ39: 58.47953115 | CR39: 4.958715402 | CT39: =DepartureOnDay(BK$12:BK$191,CT$6,$BW39,CT$4,CT$5) -> 1.165396581 | CU39: =DepartureOnDay(BL$12:BL$191,CU$6,$BW39,CU$4,CU$5) -> 0.06011017124 | CV39: =DepartureOnDay(BM$12:BM$191,CV$6,$BW39,CV$4,CV$5) -> 5.285668339 | CW39: =DepartureOnDay(BN$12:BN$191,CW$6,$BW39,CW$4,CW$5) -> 0.4007344749 | CX39: 6.911909566 | CZ39: =DepartureOnDay(BK$12:BK$191,CZ$6,$BW39,CZ$4,CZ$5) -> 68.888306 | DA39: =DepartureOnDay(BL$12:BL$191,DA$6,$BW39,DA$4,DA$5) -> 3.553200633 | DB39: =DepartureOnDay(BM$12:BM$191,DB$6,$BW39,DB$4,DB$5) -> 312.4436298 | DC39: =DepartureOnDay(BN$12:BN$191,DC$6,$BW39,DC$4,DC$5) -> 23.68800422 | DD39: 408.5731406 | DF39: =DepartureOnDay(BQ$12:BQ$191,DF$6,$BW39,DF$4,DF$5) -> 0.5268969857 | DG39: =DepartureOnDay(BR$12:BR$191,DG$6,$BW39,DG$4,DG$5) -> 0.02717690145 | DH39: =DepartureOnDay(BS$12:BS$191,DH$6,$BW39,DH$4,DH$5) -> 2.38974677 | DI39: =DepartureOnDay(BT$12:BT$191,DI$6,$BW39,DI$4,DI$5) -> 0.181179343 | DJ39: 3.125 | DL39: =DepartureOnDay(BQ$12:BQ$191,DL$6,$BW39,DL$4,DL$5) -> 23.93964201 | DM39: =DepartureOnDay(BR$12:BR$191,DM$6,$BW39,DM$4,DM$5) -> 1.234786513 | DN39: =DepartureOnDay(BS$12:BS$191,DN$6,$BW39,DN$4,DN$5) -> 108.5784958 | DO39: =DepartureOnDay(BT$12:BT$191,DO$6,$BW39,DO$4,DO$5) -> 8.231910086 | DP39: 141.9848344 | DQ39: 550.5579751 | DR39: 1260.347105 | DS39: 28 | DT39: 4691.194249 | DU39: 356.135019 | DV39: 164.571454 | DW39: 3.731856099 | DX39: 11161.96933 | DY39: 1615.25409 | DZ39: 577.0481716 | EA39: 24.87904066 | EB39: 465.4423975 | EC39: 24.0071257 | ED39: 2111.018844 | EE39: 160.0475047 | EF39: 84.30351772 | EG39: 4.348304232 | EH39: 382.3594832 | EI39: 28.98869488 | EJ39: 2500.000006 | EK39: 19355.29907 | EL39: 2000.000006
A40: 29 | B40: ='C4-AnalyticOutput'!B36 -> 1073.52422 | C40: ='C4-AnalyticOutput'!C36 -> 173.8540545 | D40: ='C4-AnalyticOutput'!D36 -> 48.44232343 | E40: ='C4-AnalyticOutput'!E36 -> 8.967245274 | F40: ='C4-AnalyticOutput'!F36 -> 2554.284428 | G40: ='C4-AnalyticOutput'!G36 -> 788.5168759 | H40: ='C4-AnalyticOutput'!H36 -> 169.8566396 | I40: ='C4-AnalyticOutput'!I36 -> 59.78163516 | J40: 3846.107611 | K40: 1031.119811 | T40: 2810.01516 | U40: 220.968787 | V40: 3846.107611 | W40: 1031.119811 | X40: 220.968787 | Y40: 810.1510238 | Z40: 810.1510238 | AA40: 0 | AB40: 1999.864136 | AC40: 1846.243476 | AD40: 163.5335517 | AE40: 577.8199708 | AF40: 2041.182631 | AG40: 0.7857001828 | AH40: 0 | AI40: 0.4800290741 | AJ40: 75.85895252 | AK40: 75.85895252 | AL40: 145.1098344 | AM40: 86.82858806 | AN40: 76.70496364 | AO40: 0.6566983348 | AQ40: 515.3228376 | AR40: 0 | AS40: 23.25372366 | AT40: 0 | AU40: 1226.130789 | AV40: 0 | AW40: 81.53612547 | AX40: 0 | AY40: 1846.243476 | BA40: 558.2013828 | BB40: 12.7903531 | BC40: 25.18859976 | BD40: 0.6597156086 | BE40: 1328.153639 | BF40: 58.01077976 | BG40: 88.32051418 | BH40: 4.398104057 | BI40: 2075.723088 | BK40: 136.5971624 | BL40: 7.045566251 | BM40: 619.5378535 | BN40: 46.97044168 | BO40: 810.1510238 | BQ40: 24.466539 | BR40: 1.261963414 | BS40: 110.9682426 | BT40: 8.413089429 | BU40: 145.1098344 | BW40: 29 | BX40: =DepartureOnDay(BA$12:BA$191,BX$6,$BW40,BX$4,BX$5) -> 538.6312722 | BY40: =DepartureOnDay(BB$12:BB$191,BY$6,$BW40,BY$4,BY$5) -> 13.84691415 | BZ40: =DepartureOnDay(BC$12:BC$191,BZ$6,$BW40,BZ$4,BZ$5) -> 33.4665817 | CA40: =DepartureOnDay(BD$12:BD$191,CA$6,$BW40,CA$4,CA$5) -> 0.4253670248 | CB40: =DepartureOnDay(BE$12:BE$191,CB$6,$BW40,CB$4,CB$5) -> 1281.589595 | CC40: =DepartureOnDay(BF$12:BF$191,CC$6,$BW40,CC$4,CC$5) -> 62.80282341 | CD40: =DepartureOnDay(BG$12:BG$191,CD$6,$BW40,CD$4,CD$5) -> 117.3461698 | CE40: =DepartureOnDay(BH$12:BH$191,CE$6,$BW40,CE$4,CE$5) -> 2.835780165 | CF40: 1971.033619 | CG40: 79.91088475 | CI40: =DepartureOnDay(BA$12:BA$191,CI$6,$BW40,CI$4,CI$5) -> 20.75370537 | CJ40: =DepartureOnDay(BB$12:BB$191,CJ$6,$BW40,CJ$4,CJ$5) -> 1.249577804 | CK40: =DepartureOnDay(BC$12:BC$191,CK$6,$BW40,CK$4,CK$5) -> 0.003346992869 | CL40: =DepartureOnDay(BD$12:BD$191,CL$6,$BW40,CL$4,CL$5) -> 8.509042304e-05 | CM40: =DepartureOnDay(BE$12:BE$191,CM$6,$BW40,CM$4,CM$5) -> 49.38022399 | CN40: =DepartureOnDay(BF$12:BF$191,CN$6,$BW40,CN$4,CN$5) -> 5.667473153 | CO40: =DepartureOnDay(BG$12:BG$191,CO$6,$BW40,CO$4,CO$5) -> 0.01173579055 | CP40: =DepartureOnDay(BH$12:BH$191,CP$6,$BW40,CP$4,CP$5) -> 0.0005672694869 | CQ40: 70.14901215 | CR40: 6.917703316 | CT40: =DepartureOnDay(BK$12:BK$191,CT$6,$BW40,CT$4,CT$5) -> 1.812850158 | CU40: =DepartureOnDay(BL$12:BL$191,CU$6,$BW40,CU$4,CU$5) -> 0.09350527982 | CV40: =DepartureOnDay(BM$12:BM$191,CV$6,$BW40,CV$4,CV$5) -> 8.222200784 | CW40: =DepartureOnDay(BN$12:BN$191,CW$6,$BW40,CW$4,CW$5) -> 0.6233685321 | CX40: 10.75192475 | CZ40: =DepartureOnDay(BK$12:BK$191,CZ$6,$BW40,CZ$4,CZ$5) -> 95.61166214 | DA40: =DepartureOnDay(BL$12:BL$191,DA$6,$BW40,DA$4,DA$5) -> 4.931568769 | DB40: =DepartureOnDay(BM$12:BM$191,DB$6,$BW40,DB$4,DB$5) -> 433.64769 | DC40: =DepartureOnDay(BN$12:BN$191,DC$6,$BW40,DC$4,DC$5) -> 32.87712513 | DD40: 567.0680461 | DF40: =DepartureOnDay(BQ$12:BQ$191,DF$6,$BW40,DF$4,DF$5) -> 0.6299905792 | DG40: =DepartureOnDay(BR$12:BR$191,DG$6,$BW40,DG$4,DG$5) -> 0.03249438192 | DH40: =DepartureOnDay(BS$12:BS$191,DH$6,$BW40,DH$4,DH$5) -> 2.857328837 | DI40: =DepartureOnDay(BT$12:BT$191,DI$6,$BW40,DI$4,DI$5) -> 0.2166292128 | DJ40: 3.736443011 | DL40: =DepartureOnDay(BQ$12:BQ$191,DL$6,$BW40,DL$4,DL$5) -> 12.30300594 | DM40: =DepartureOnDay(BR$12:BR$191,DM$6,$BW40,DM$4,DM$5) -> 0.6345786541 | DN40: =DepartureOnDay(BS$12:BS$191,DN$6,$BW40,DN$4,DN$5) -> 55.80041167 | DO40: =DepartureOnDay(BT$12:BT$191,DO$6,$BW40,DO$4,DO$5) -> 4.230524361 | DP40: 72.96852063 | DQ40: 640.0365667 | DR40: 1900.383672 | DS40: 29 | DT40: 4770.779902 | DU40: 357.3870893 | DV40: 160.3746383 | DW40: 2.827832456 | DX40: 11351.33105 | DY40: 1620.932868 | DZ40: 562.332589 | EA40: 18.85221637 | EB40: 531.9858573 | EC40: 27.43938115 | ED40: 2412.8274 | EE40: 182.9292077 | EF40: 84.30351772 | EG40: 4.348304232 | EH40: 382.3594832 | EI40: 28.98869488 | EJ40: 2500.000006 | EK40: 20000.00002 | EL40: 2000.000006
A41: 30 | B41: ='C4-AnalyticOutput'!B37 -> 1168.003424 | C41: ='C4-AnalyticOutput'!C37 -> 189.1546806 | D41: ='C4-AnalyticOutput'!D37 -> 52.70565729 | E41: ='C4-AnalyticOutput'!E37 -> 9.756438643 | F41: ='C4-AnalyticOutput'!F37 -> 2779.083045 | G41: ='C4-AnalyticOutput'!G37 -> 857.9130249 | H41: ='C4-AnalyticOutput'!H37 -> 184.8054594 | I41: ='C4-AnalyticOutput'!I37 -> 65.04292429 | J41: 4184.597586 | K41: 1121.867068 | T41: 2619.002602 | U41: 163.5335517 | V41: 4184.597586 | W41: 1121.867068 | X41: 163.5335517 | Y41: 958.3335167 | Z41: 958.3335167 | AA41: 0 | AB41: 1660.669085 | AC41: 2523.9285 | AD41: 194.9907052 | AE41: 648.372298 | AF41: 2349.48309 | AG41: 0.854230901 | AH41: 0 | AI41: 0.6031472438 | AJ41: 86.82858806 | AK41: 86.82858806 | AL41: 76.70496364 | AM41: 109.5012691 | AN41: 85.48943606 | AO41: 0.4690472557 | AQ41: 704.4780462 | AR41: 0 | AS41: 31.78927193 | AT41: 0 | AU41: 1676.196279 | AV41: 0 | AW41: 111.4649035 | AX41: 0 | AY41: 2523.9285 | BA41: 463.5253782 | BB41: 14.63991082 | BC41: 20.91638536 | BD41: 0.7551142339 | BE41: 1102.886766 | BF41: 66.39946811 | BG41: 73.34055593 | BH41: 5.034094893 | BI41: 1747.497673 | BK41: 161.5817732 | BL41: 8.334251373 | BM41: 732.8558163 | BN41: 55.56167582 | BO41: 958.3335167 | BQ41: 12.93299652 | BR41: 0.6670730361 | BS41: 58.65774051 | BT41: 4.447153574 | BU41: 76.70496364 | BW41: 30 | BX41: =DepartureOnDay(BA$12:BA$191,BX$6,$BW41,BX$4,BX$5) -> 620.485472 | BY41: =DepartureOnDay(BB$12:BB$191,BY$6,$BW41,BY$4,BY$5) -> 17.67494896 | BZ41: =DepartureOnDay(BC$12:BC$191,BZ$6,$BW41,BZ$4,BZ$5) -> 37.67790522 | CA41: =DepartureOnDay(BD$12:BD$191,CA$6,$BW41,CA$4,CA$5) -> 0.2940346441 | CB41: =DepartureOnDay(BE$12:BE$191,CB$6,$BW41,CB$4,CB$5) -> 1476.348972 | CC41: =DepartureOnDay(BF$12:BF$191,CC$6,$BW41,CC$4,CC$5) -> 80.1649152 | CD41: =DepartureOnDay(BG$12:BG$191,CD$6,$BW41,CD$4,CD$5) -> 132.1126221 | CE41: =DepartureOnDay(BH$12:BH$191,CE$6,$BW41,CE$4,CE$5) -> 1.960230961 | CF41: 2266.624971 | CG41: 100.0941298 | CI41: =DepartureOnDay(BA$12:BA$191,CI$6,$BW41,CI$4,CI$5) -> 24.51396333 | CJ41: =DepartureOnDay(BB$12:BB$191,CJ$6,$BW41,CJ$4,CJ$5) -> 1.699335329 | CK41: =DepartureOnDay(BC$12:BC$191,CK$6,$BW41,CK$4,CK$5) -> 0.003768167339 | CL41: =DepartureOnDay(BD$12:BD$191,CL$6,$BW41,CL$4,CL$5) -> 5.881869255e-05 | CM41: =DepartureOnDay(BE$12:BE$191,CM$6,$BW41,CM$4,CM$5) -> 58.32717475 | CN41: =DepartureOnDay(BF$12:BF$191,CN$6,$BW41,CN$4,CN$5) -> 7.707353094 | CO41: =DepartureOnDay(BG$12:BG$191,CO$6,$BW41,CO$4,CO$5) -> 0.01321258347 | CP41: =DepartureOnDay(BH$12:BH$191,CP$6,$BW41,CP$4,CP$5) -> 0.000392124617 | CQ41: 82.85811882 | CR41: 9.407139367 | CT41: =DepartureOnDay(BK$12:BK$191,CT$6,$BW41,CT$4,CT$5) -> 2.516096372 | CU41: =DepartureOnDay(BL$12:BL$191,CU$6,$BW41,CU$4,CU$5) -> 0.1297781255 | CV41: =DepartureOnDay(BM$12:BM$191,CV$6,$BW41,CV$4,CV$5) -> 11.41178132 | CW41: =DepartureOnDay(BN$12:BN$191,CW$6,$BW41,CW$4,CW$5) -> 0.8651875034 | CX41: 14.92284332 | CZ41: =DepartureOnDay(BK$12:BK$191,CZ$6,$BW41,CZ$4,CZ$5) -> 106.8040346 | DA41: =DepartureOnDay(BL$12:BL$191,DA$6,$BW41,DA$4,DA$5) -> 5.508861889 | DB41: =DepartureOnDay(BM$12:BM$191,DB$6,$BW41,DB$4,DB$5) -> 484.4108122 | DC41: =DepartureOnDay(BN$12:BN$191,DC$6,$BW41,DC$4,DC$5) -> 36.72574593 | DD41: 633.4494547 | DF41: =DepartureOnDay(BQ$12:BQ$191,DF$6,$BW41,DF$4,DF$5) -> 0.7578416026 | DG41: =DepartureOnDay(BR$12:BR$191,DG$6,$BW41,DG$4,DG$5) -> 0.03908882971 | DH41: =DepartureOnDay(BS$12:BS$191,DH$6,$BW41,DH$4,DH$5) -> 3.437198486 | DI41: =DepartureOnDay(BT$12:BT$191,DI$6,$BW41,DI$4,DI$5) -> 0.2605921981 | DJ41: 4.494721117 | DL41: =DepartureOnDay(BQ$12:BQ$191,DL$6,$BW41,DL$4,DL$5) -> 13.65627877 | DM41: =DepartureOnDay(BR$12:BR$191,DM$6,$BW41,DM$4,DM$5) -> 0.7043793235 | DN41: =DepartureOnDay(BS$12:BS$191,DN$6,$BW41,DN$4,DN$5) -> 61.93819469 | DO41: =DepartureOnDay(BT$12:BT$191,DO$6,$BW41,DO$4,DO$5) -> 4.695862157 | DP41: 80.99471494 | DQ41: 714.4441696 | DR41: 2614.827841 | DS41: 30 | DT41: 4674.920302 | DU41: 356.9305081 | DV41: 147.821095 | DW41: 3.157494575 | DX41: 11123.24799 | DY41: 1618.862039 | DZ41: 518.3152394 | EA41: 21.04996383 | EB41: 596.1431182 | EC41: 30.74855847 | ED41: 2703.813325 | EE41: 204.9903898 | EF41: 84.30351772 | EG41: 4.348304232 | EH41: 382.3594832 | EI41: 28.98869488 | EJ41: 2500.000006 | EK41: 20000.00002 | EL41: 2000.000006
A42: 31 | B42: ='C4-AnalyticOutput'!B38 -> 1260.257866 | C42: ='C4-AnalyticOutput'!C38 -> 204.0950129 | D42: ='C4-AnalyticOutput'!D38 -> 56.86859968 | E42: ='C4-AnalyticOutput'!E38 -> 10.52704837 | F42: ='C4-AnalyticOutput'!F38 -> 2998.588183 | G42: ='C4-AnalyticOutput'!G38 -> 925.6750581 | H42: ='C4-AnalyticOutput'!H38 -> 199.4022697 | I42: ='C4-AnalyticOutput'!I38 -> 70.18032245 | J42: 4515.116919 | K42: 1210.477442 | T42: 2997.855388 | U42: 194.9907052 | V42: 4515.116919 | W42: 1210.477442 | X42: 194.9907052 | Y42: 1015.486737 | Z42: 1015.486737 | AA42: 0 | AB42: 1982.368651 | AC42: 2532.748267 | AD42: 238.370242 | AE42: 694.6254211 | AF42: 2671.346437 | AG42: 0.8389142181 | AH42: 0 | AI42: 0.5609485453 | AJ42: 109.5012691 | AK42: 109.5012691 | AL42: 85.48943606 | AM42: 117.6555015 | AN42: 120.7147405 | AO42: 0.4384282624 | AQ42: 706.9398165 | AR42: 0 | AS42: 31.90035826 | AT42: 0 | AU42: 1682.053679 | AV42: 0 | AW42: 111.8544131 | AX42: 0 | AY42: 2532.748267 | BA42: 553.3180493 | BB42: 18.46268437 | BC42: 24.96824142 | BD42: 0.952289664 | BE42: 1316.534504 | BF42: 83.73769734 | BG42: 87.54785661 | BH42: 6.34859776 | BI42: 2091.86992 | BK42: 171.2182082 | BL42: 8.83129055 | BM42: 776.5619676 | BN42: 58.87527033 | BO42: 1015.486737 | BQ42: 14.41412037 | BR42: 0.7434681532 | BS42: 65.37539318 | BT42: 4.956454355 | BU42: 85.48943606 | BW42: 31 | BX42: =DepartureOnDay(BA$12:BA$191,BX$6,$BW42,BX$4,BX$5) -> 705.9760167 | BY42: =DepartureOnDay(BB$12:BB$191,BY$6,$BW42,BY$4,BY$5) -> 18.44947866 | BZ42: =DepartureOnDay(BC$12:BC$191,BZ$6,$BW42,BZ$4,BZ$5) -> 41.9663231 | CA42: =DepartureOnDay(BD$12:BD$191,CA$6,$BW42,CA$4,CA$5) -> 0.3948759353 | CB42: =DepartureOnDay(BE$12:BE$191,CB$6,$BW42,CB$4,CB$5) -> 1679.760467 | CC42: =DepartureOnDay(BF$12:BF$191,CC$6,$BW42,CC$4,CC$5) -> 83.67780273 | CD42: =DepartureOnDay(BG$12:BG$191,CD$6,$BW42,CD$4,CD$5) -> 147.1493957 | CE42: =DepartureOnDay(BH$12:BH$191,CE$6,$BW42,CE$4,CE$5) -> 2.632506236 | CF42: 2574.852203 | CG42: 105.1546636 | CI42: =DepartureOnDay(BA$12:BA$191,CI$6,$BW42,CI$4,CI$5) -> 28.54852707 | CJ42: =DepartureOnDay(BB$12:BB$191,CJ$6,$BW42,CJ$4,CJ$5) -> 2.258189649 | CK42: =DepartureOnDay(BC$12:BC$191,CK$6,$BW42,CK$4,CK$5) -> 0.004197052016 | CL42: =DepartureOnDay(BD$12:BD$191,CL$6,$BW42,CL$4,CL$5) -> 7.899098526e-05 | CM42: =DepartureOnDay(BE$12:BE$191,CM$6,$BW42,CM$4,CM$5) -> 67.92679359 | CN42: =DepartureOnDay(BF$12:BF$191,CN$6,$BW42,CN$4,CN$5) -> 10.24204269 | CO42: =DepartureOnDay(BG$12:BG$191,CO$6,$BW42,CO$4,CO$5) -> 0.01471641122 | CP42: =DepartureOnDay(BH$12:BH$191,CP$6,$BW42,CP$4,CP$5) -> 0.0005266065684 | CQ42: 96.49423412 | CR42: 12.50083793 | CT42: =DepartureOnDay(BK$12:BK$191,CT$6,$BW42,CT$4,CT$5) -> 3.306717359 | CU42: =DepartureOnDay(BL$12:BL$191,CU$6,$BW42,CU$4,CU$5) -> 0.1705576882 | CV42: =DepartureOnDay(BM$12:BM$191,CV$6,$BW42,CV$4,CV$5) -> 14.99765104 | CW42: =DepartureOnDay(BN$12:BN$191,CW$6,$BW42,CW$4,CW$5) -> 1.137051255 | CX42: 19.61197734 | CZ42: =DepartureOnDay(BK$12:BK$191,CZ$6,$BW42,CZ$4,CZ$5) -> 113.8120156 | DA42: =DepartureOnDay(BL$12:BL$191,DA$6,$BW42,DA$4,DA$5) -> 5.870327628 | DB42: =DepartureOnDay(BM$12:BM$191,DB$6,$BW42,DB$4,DB$5) -> 516.195583 | DC42: =DepartureOnDay(BN$12:BN$191,DC$6,$BW42,DC$4,DC$5) -> 39.13551752 | DD42: 675.0134437 | DF42: =DepartureOnDay(BQ$12:BQ$191,DF$6,$BW42,DF$4,DF$5) -> 0.8862727429 | DG42: =DepartureOnDay(BR$12:BR$191,DG$6,$BW42,DG$4,DG$5) -> 0.04571319944 | DH42: =DepartureOnDay(BS$12:BS$191,DH$6,$BW42,DH$4,DH$5) -> 4.019699262 | DI42: =DepartureOnDay(BT$12:BT$191,DI$6,$BW42,DI$4,DI$5) -> 0.3047546629 | DJ42: 5.256439867 | DL42: =DepartureOnDay(BQ$12:BQ$191,DL$6,$BW42,DL$4,DL$5) -> 19.46708178 | DM42: =DepartureOnDay(BR$12:BR$191,DM$6,$BW42,DM$4,DM$5) -> 1.004095634 | DN42: =DepartureOnDay(BS$12:BS$191,DN$6,$BW42,DN$4,DN$5) -> 88.2931523 | DO42: =DepartureOnDay(BT$12:BT$191,DO$6,$BW42,DO$4,DO$5) -> 6.693970896 | DP42: 115.4583006 | DQ42: 790.4717444 | DR42: 3405.299586 | DS42: 31 | DT42: 4583.238916 | DU42: 356.0189082 | DV42: 135.107663 | DW42: 3.815690776 | DX42: 10905.10635 | DY42: 1614.727468 | DZ42: 473.7372613 | EA42: 25.43793851 | EB42: 658.0411954 | EC42: 33.94120901 | ED42: 2984.552699 | EE42: 226.2747267 | EF42: 84.30351772 | EG42: 4.348304232 | EH42: 382.3594832 | EI42: 28.98869488 | EJ42: 2500.000006 | EK42: 20000.00002 | EL42: 2000.000006
A43: 32 | B43: ='C4-AnalyticOutput'!B39 -> 1349.257974 | C43: ='C4-AnalyticOutput'!C39 -> 218.5083158 | D43: ='C4-AnalyticOutput'!D39 -> 60.88469168 | E43: ='C4-AnalyticOutput'!E39 -> 11.27047435 | F43: ='C4-AnalyticOutput'!F39 -> 3210.350141 | G43: ='C4-AnalyticOutput'!G39 -> 991.0467434 | H43: ='C4-AnalyticOutput'!H39 -> 213.4841685 | I43: ='C4-AnalyticOutput'!I39 -> 75.13649568 | J43: 4833.976976 | K43: 1295.962029 | T43: 3365.971858 | U43: 238.370242 | V43: =J43 -> 4833.976976 | W43: 1295.962029 | X43: 238.370242 | Y43: 1057.591787 | Z43: 1057.591787 | AA43: 0 | AB43: 2308.380071 | AC43: 2525.596905 | AD43: 239.5961135 | AE43: 781.3724981 | AF43: 2950.679514 | AG43: 0.8160669552 | AH43: 0 | AI43: 0.522467715 | AJ43: 117.6555015 | AK43: 117.6555015 | AL43: 120.7147405 | AM43: 122.9918421 | AN43: 116.6042714 | AO43: 0.5064169901 | AQ43: 704.9437307 | AR43: 0 | AS43: 31.81028574 | AT43: 0 | AU43: 1677.304303 | AV43: 0 | AW43: 111.5385857 | AX43: 0 | AY43: 2525.596905 | BA43: 644.3142434 | BB43: 19.83754531 | BC43: 29.07440594 | BD43: 1.02320383 | BE43: 1533.045839 | BF43: 89.97339349 | BG43: 101.9455828 | BH43: 6.821358868 | BI43: 2426.035572 | BK43: 178.3174159 | BL43: 9.197461688 | BM43: 808.7604983 | BN43: 61.31641126 | BO43: 1057.591787 | BQ43: 20.35335453 | BR43: 1.049808834 | BS43: 92.31285157 | BT43: 6.998725559 | BU43: 120.7147405 | BW43: 32 | BX43: =DepartureOnDay(BA$12:BA$191,BX$6,$BW43,BX$4,BX$5) -> 794.1174797 | BY43: =DepartureOnDay(BB$12:BB$191,BY$6,$BW43,BY$4,BY$5) -> 18.59534537 | BZ43: =DepartureOnDay(BC$12:BC$191,BZ$6,$BW43,BZ$4,BZ$5) -> 34.65475009 | CA43: =DepartureOnDay(BD$12:BD$191,CA$6,$BW43,CA$4,CA$5) -> 0.4938398113 | CB43: =DepartureOnDay(BE$12:BE$191,CB$6,$BW43,CB$4,CB$5) -> 1889.479412 | CC43: =DepartureOnDay(BF$12:BF$191,CC$6,$BW43,CC$4,CC$5) -> 84.33938272 | CD43: =DepartureOnDay(BG$12:BG$191,CD$6,$BW43,CD$4,CD$5) -> 121.512326 | CE43: =DepartureOnDay(BH$12:BH$191,CE$6,$BW43,CE$4,CE$5) -> 3.292265409 | CF43: 2839.763968 | CG43: 106.7208333 | CI43: =DepartureOnDay(BA$12:BA$191,CI$6,$BW43,CI$4,CI$5) -> 32.81698975 | CJ43: =DepartureOnDay(BB$12:BB$191,CJ$6,$BW43,CJ$4,CJ$5) -> 2.939250439 | CK43: =DepartureOnDay(BC$12:BC$191,CK$6,$BW43,CK$4,CK$5) -> 0.003465821592 | CL43: =DepartureOnDay(BD$12:BD$191,CL$6,$BW43,CL$4,CL$5) -> 9.878771981e-05 | CM43: =DepartureOnDay(BE$12:BE$191,CM$6,$BW43,CM$4,CM$5) -> 78.0829387 | CN43: =DepartureOnDay(BF$12:BF$191,CN$6,$BW43,CN$4,CN$5) -> 13.331001 | CO43: =DepartureOnDay(BG$12:BG$191,CO$6,$BW43,CO$4,CO$5) -> 0.01215244785 | CP43: =DepartureOnDay(BH$12:BH$191,CP$6,$BW43,CP$4,CP$5) -> 0.0006585847988 | CQ43: 110.9155467 | CR43: 16.27100881 | CT43: =DepartureOnDay(BK$12:BK$191,CT$6,$BW43,CT$4,CT$5) -> 4.160449624 | CU43: =DepartureOnDay(BL$12:BL$191,CU$6,$BW43,CU$4,CU$5) -> 0.2145924772 | CV43: =DepartureOnDay(BM$12:BM$191,CV$6,$BW43,CV$4,CV$5) -> 18.86976263 | CW43: =DepartureOnDay(BN$12:BN$191,CW$6,$BW43,CW$4,CW$5) -> 1.430616515 | CX43: 24.67542124 | CZ43: =DepartureOnDay(BK$12:BK$191,CZ$6,$BW43,CZ$4,CZ$5) -> 127.5844509 | DA43: =DepartureOnDay(BL$12:BL$191,DA$6,$BW43,DA$4,DA$5) -> 6.580698203 | DB43: =DepartureOnDay(BM$12:BM$191,DB$6,$BW43,DB$4,DB$5) -> 578.6606064 | DC43: =DepartureOnDay(BN$12:BN$191,DC$6,$BW43,DC$4,DC$5) -> 43.87132136 | DD43: 756.6970768 | DF43: =DepartureOnDay(BQ$12:BQ$191,DF$6,$BW43,DF$4,DF$5) -> 1.039188612 | DG43: =DepartureOnDay(BR$12:BR$191,DG$6,$BW43,DG$4,DG$5) -> 0.05360047078 | DH43: =DepartureOnDay(BS$12:BS$191,DH$6,$BW43,DH$4,DH$5) -> 4.713250778 | DI43: =DepartureOnDay(BT$12:BT$191,DI$6,$BW43,DI$4,DI$5) -> 0.3573364719 | DJ43: 6.163376332 | DL43: =DepartureOnDay(BQ$12:BQ$191,DL$6,$BW43,DL$4,DL$5) -> 18.62111191 | DM43: =DepartureOnDay(BR$12:BR$191,DM$6,$BW43,DM$4,DM$5) -> 0.9604612227 | DN43: =DepartureOnDay(BS$12:BS$191,DN$6,$BW43,DN$4,DN$5) -> 84.45624711 | DO43: =DepartureOnDay(BT$12:BT$191,DO$6,$BW43,DO$4,DO$5) -> 6.403074818 | DP43: 110.4408951 | DQ43: 867.1379719 | DR43: 4272.437557 | DS43: 32 | DT43: 4493.028616 | DU43: 355.1487852 | DV43: 122.2115488 | DW43: 4.44393968 | DX43: 10690.46493 | DY43: 1610.781017 | DZ43: 428.5187319 | EA43: 29.62626453 | EB43: 719.2398784 | EC43: 37.09778538 | ED43: 3262.119964 | EE43: 247.3185692 | EF43: 84.30351772 | EG43: 4.348304232 | EH43: 382.3594832 | EI43: 28.98869488 | EJ43: 2500.000006 | EK43: 20000.00002 | EL43: 2000.000006
A44: 33 | B44: ='C4-AnalyticOutput'!B40 -> 1434.053942 | C44: ='C4-AnalyticOutput'!C40 -> 232.2407706 | D44: ='C4-AnalyticOutput'!D40 -> 64.71107365 | E44: ='C4-AnalyticOutput'!E40 -> 11.97878277 | F44: ='C4-AnalyticOutput'!F40 -> 3412.109 | G44: ='C4-AnalyticOutput'!G40 -> 1053.330435 | H44: ='C4-AnalyticOutput'!H40 -> 226.9008739 | I44: ='C4-AnalyticOutput'!I40 -> 79.85855182 | J44: 5137.77489 | K44: 1377.408541 | T44: 3732.052012 | U44: 239.5961135 | V44: 5137.77489 | W44: 1377.408541 | X44: 239.5961135 | Y44: 1137.812427 | Z44: 1137.812427 | AA44: 0 | AB44: 2594.239585 | AC44: 2543.535305 | AD44: 237.7303281 | AE44: 870.0452771 | AF44: 2803.144422 | AG44: 0.8260529782 | AH44: 0 | AI44: 0.4950655408 | AJ44: 122.9918421 | AK44: 122.9918421 | AL44: 116.6042714 | AM44: 129.1574776 | AN44: 108.5728505 | AO44: 0.4866701287 | AQ44: 709.9506906 | AR44: 0 | AS44: 32.03622268 | AT44: 0 | AU44: 1689.217587 | AV44: 0 | AW44: 112.3308038 | AX44: 0 | AY44: 2543.535305 | BA44: 724.1032518 | BB44: 20.73728988 | BC44: 32.67485098 | BD44: 1.069611895 | BE44: 1722.891412 | BF44: 94.05419437 | BG44: 114.57007 | BH44: 7.130745968 | BI44: 2717.231427 | BK44: 191.8431802 | BL44: 9.895109185 | BM44: 870.1067432 | BN44: 65.96739456 | BO44: 1137.812427 | BQ44: 19.66030052 | BR44: 1.014061693 | BS44: 89.16949788 | BT44: 6.76041129 | BU44: 116.6042714 | BW44: 33 | BX44: =DepartureOnDay(BA$12:BA$191,BX$6,$BW44,BX$4,BX$5) -> 761.4797029 | BY44: =DepartureOnDay(BB$12:BB$191,BY$6,$BW44,BY$4,BY$5) -> 18.76757889 | BZ44: =DepartureOnDay(BC$12:BC$191,BZ$6,$BW44,BZ$4,BZ$5) -> 23.05018731 | CA44: =DepartureOnDay(BD$12:BD$191,CA$6,$BW44,CA$4,CA$5) -> 0.5848149538 | CB44: =DepartureOnDay(BE$12:BE$191,CB$6,$BW44,CB$4,CB$5) -> 1811.822883 | CC44: =DepartureOnDay(BF$12:BF$191,CC$6,$BW44,CC$4,CC$5) -> 85.12054965 | CD44: =DepartureOnDay(BG$12:BG$191,CD$6,$BW44,CD$4,CD$5) -> 80.822452 | CE44: =DepartureOnDay(BH$12:BH$191,CE$6,$BW44,CE$4,CE$5) -> 3.898766358 | CF44: 2677.175225 | CG44: 108.3717099 | CI44: =DepartureOnDay(BA$12:BA$191,CI$6,$BW44,CI$4,CI$5) -> 37.27314347 | CJ44: =DepartureOnDay(BB$12:BB$191,CJ$6,$BW44,CJ$4,CJ$5) -> 3.754824631 | CK44: =DepartureOnDay(BC$12:BC$191,CK$6,$BW44,CK$4,CK$5) -> 0.002305249256 | CL44: =DepartureOnDay(BD$12:BD$191,CL$6,$BW44,CL$4,CL$5) -> 0.000116986388 | CM44: =DepartureOnDay(BE$12:BE$191,CM$6,$BW44,CM$4,CM$5) -> 88.68566554 | CN44: =DepartureOnDay(BF$12:BF$191,CN$6,$BW44,CN$4,CN$5) -> 17.03004625 | CO44: =DepartureOnDay(BG$12:BG$191,CO$6,$BW44,CO$4,CO$5) -> 0.008083053506 | CP44: =DepartureOnDay(BH$12:BH$191,CP$6,$BW44,CP$4,CP$5) -> 0.0007799092535 | CQ44: 125.9691973 | CR44: 20.78576777 | CT44: =DepartureOnDay(BK$12:BK$191,CT$6,$BW44,CT$4,CT$5) -> 5.170335707 | CU44: =DepartureOnDay(BL$12:BL$191,CU$6,$BW44,CU$4,CU$5) -> 0.2666815483 | CV44: =DepartureOnDay(BM$12:BM$191,CV$6,$BW44,CV$4,CV$5) -> 23.45011148 | CW44: =DepartureOnDay(BN$12:BN$191,CW$6,$BW44,CW$4,CW$5) -> 1.777876989 | CX44: 30.66500572 | CZ44: =DepartureOnDay(BK$12:BK$191,CZ$6,$BW44,CZ$4,CZ$5) -> 141.5254192 | DA44: =DepartureOnDay(BL$12:BL$191,DA$6,$BW44,DA$4,DA$5) -> 7.299761573 | DB44: =DepartureOnDay(BM$12:BM$191,DB$6,$BW44,DB$4,DB$5) -> 641.8900135 | DC44: =DepartureOnDay(BN$12:BN$191,DC$6,$BW44,DC$4,DC$5) -> 48.66507715 | DD44: 839.3802714 | DF44: =DepartureOnDay(BQ$12:BQ$191,DF$6,$BW44,DF$4,DF$5) -> 1.12001984 | DG44: =DepartureOnDay(BR$12:BR$191,DG$6,$BW44,DG$4,DG$5) -> 0.05776967725 | DH44: =DepartureOnDay(BS$12:BS$191,DH$6,$BW44,DH$4,DH$5) -> 5.079861656 | DI44: =DepartureOnDay(BT$12:BT$191,DI$6,$BW44,DI$4,DI$5) -> 0.3851311817 | DJ44: 6.642782355 | DL44: =DepartureOnDay(BQ$12:BQ$191,DL$6,$BW44,DL$4,DL$5) -> 17.18612661 | DM44: =DepartureOnDay(BR$12:BR$191,DM$6,$BW44,DM$4,DM$5) -> 0.886445893 | DN44: =DepartureOnDay(BS$12:BS$191,DN$6,$BW44,DN$4,DN$5) -> 77.94785632 | DO44: =DepartureOnDay(BT$12:BT$191,DO$6,$BW44,DO$4,DO$5) -> 5.909639287 | DP44: 101.9300681 | DQ44: 941.3103395 | DR44: 5213.747897 | DS44: 33 | DT44: 4390.197398 | DU44: 354.3514793 | DV44: 120.2281839 | DW44: 5.019612976 | DX44: 10445.79399 | DY44: 1607.164827 | DZ44: 421.5643234 | EA44: 33.46408651 | EB44: 779.3381581 | EC44: 40.19760388 | ED44: 3534.696338 | EE44: 267.9840259 | EF44: 84.30351772 | EG44: 4.348304232 | EH44: 382.3594832 | EI44: 28.98869488 | EJ44: 2500.000006 | EK44: 20000.00002 | EL44: 2000.000006
A45: 34 | B45: ='C4-AnalyticOutput'!B41 -> 1513.790312 | C45: ='C4-AnalyticOutput'!C41 -> 245.1538386 | D45: ='C4-AnalyticOutput'!D41 -> 68.3091434 | E45: ='C4-AnalyticOutput'!E41 -> 12.64482791 | F45: ='C4-AnalyticOutput'!F41 -> 3601.829329 | G45: ='C4-AnalyticOutput'!G41 -> 1111.89779 | H45: ='C4-AnalyticOutput'!H41 -> 239.5170325 | I45: ='C4-AnalyticOutput'!I41 -> 84.29885273 | J45: 5423.445817 | K45: 1453.995309 | T45: 3673.189699 | U45: 237.7303281 | V45: 5423.445817 | W45: 1453.995309 | X45: 237.7303281 | Y45: 1216.264981 | Z45: 1216.264981 | AA45: 0 | AB45: 2456.924718 | AC45: 2966.521098 | AD45: 238.0584271 | AE45: 949.3830256 | AF45: 2543.379176 | AG45: 0.8364985591 | AH45: 0 | AI45: 0.5469808676 | AJ45: 129.1574776 | AK45: 129.1574776 | AL45: 108.5728505 | AM45: 131.8013262 | AN45: 106.2571009 | AO45: 0.4567059295 | AQ45: 828.0143384 | AR45: 0 | AS45: 37.36379452 | AT45: 0 | AU45: 1970.131731 | AV45: 0 | AW45: 131.0112343 | AX45: 0 | AY45: 2966.521098 | BA45: 685.7759738 | BB45: 21.77685941 | BC45: 30.94534887 | BD45: 1.123232013 | BE45: 1631.697597 | BF45: 98.76917279 | BG45: 108.5057982 | BH45: 7.488213421 | BI45: 2586.082196 | BK45: 205.0708327 | BL45: 10.57738033 | BM45: 930.1008989 | BN45: 70.51586885 | BO45: 1216.264981 | BQ45: 18.30614645 | BR45: 0.9442155703 | BS45: 83.02771798 | BT45: 6.294770469 | BU45: 108.5728505 | BW45: 34 | BX45: =DepartureOnDay(BA$12:BA$191,BX$6,$BW45,BX$4,BX$5) -> 684.4592227 | BY45: =DepartureOnDay(BB$12:BB$191,BY$6,$BW45,BY$4,BY$5) -> 18.96053042 | BZ45: =DepartureOnDay(BC$12:BC$191,BZ$6,$BW45,BZ$4,BZ$5) -> 22.94001916 | CA45: =DepartureOnDay(BD$12:BD$191,CA$6,$BW45,CA$4,CA$5) -> 0.6661276504 | CB45: =DepartureOnDay(BE$12:BE$191,CB$6,$BW45,CB$4,CB$5) -> 1628.564592 | CC45: =DepartureOnDay(BF$12:BF$191,CC$6,$BW45,CC$4,CC$5) -> 85.99568334 | CD45: =DepartureOnDay(BG$12:BG$191,CD$6,$BW45,CD$4,CD$5) -> 80.43616185 | CE45: =DepartureOnDay(BH$12:BH$191,CE$6,$BW45,CE$4,CE$5) -> 4.440851003 | CF45: 2416.399996 | CG45: 110.0631924 | CI45: =DepartureOnDay(BA$12:BA$191,CI$6,$BW45,CI$4,CI$5) -> 37.57202751 | CJ45: =DepartureOnDay(BB$12:BB$191,CJ$6,$BW45,CJ$4,CJ$5) -> 3.926848744 | CK45: =DepartureOnDay(BC$12:BC$191,CK$6,$BW45,CK$4,CK$5) -> 0.002294231339 | CL45: =DepartureOnDay(BD$12:BD$191,CL$6,$BW45,CL$4,CL$5) -> 0.0001332521805 | CM45: =DepartureOnDay(BE$12:BE$191,CM$6,$BW45,CM$4,CM$5) -> 89.39681375 | CN45: =DepartureOnDay(BF$12:BF$191,CN$6,$BW45,CN$4,CN$5) -> 17.8102634 | CO45: =DepartureOnDay(BG$12:BG$191,CO$6,$BW45,CO$4,CO$5) -> 0.008044420627 | CP45: =DepartureOnDay(BH$12:BH$191,CP$6,$BW45,CP$4,CP$5) -> 0.0008883478701 | CQ45: 126.9791799 | CR45: 21.73813375 | CT45: =DepartureOnDay(BK$12:BK$191,CT$6,$BW45,CT$4,CT$5) -> 6.240449508 | CU45: =DepartureOnDay(BL$12:BL$191,CU$6,$BW45,CU$4,CU$5) -> 0.3218771143 | CV45: =DepartureOnDay(BM$12:BM$191,CV$6,$BW45,CV$4,CV$5) -> 28.30362378 | CW45: =DepartureOnDay(BN$12:BN$191,CW$6,$BW45,CW$4,CW$5) -> 2.145847428 | CX45: 37.01179783 | CZ45: =DepartureOnDay(BK$12:BK$191,CZ$6,$BW45,CZ$4,CZ$5) -> 153.8322079 | DA45: =DepartureOnDay(BL$12:BL$191,DA$6,$BW45,DA$4,DA$5) -> 7.934535342 | DB45: =DepartureOnDay(BM$12:BM$191,DB$6,$BW45,DB$4,DB$5) -> 697.7075822 | DC45: =DepartureOnDay(BN$12:BN$191,DC$6,$BW45,DC$4,DC$5) -> 52.89690228 | DD45: 912.3712278 | DF45: =DepartureOnDay(BQ$12:BQ$191,DF$6,$BW45,DF$4,DF$5) -> 0.7760298039 | DG45: =DepartureOnDay(BR$12:BR$191,DG$6,$BW45,DG$4,DG$5) -> 0.04002696177 | DH45: =DepartureOnDay(BS$12:BS$191,DH$6,$BW45,DH$4,DH$5) -> 3.519691263 | DI45: =DepartureOnDay(BT$12:BT$191,DI$6,$BW45,DI$4,DI$5) -> 0.2668464118 | DJ45: 4.60259444 | DL45: =DepartureOnDay(BQ$12:BQ$191,DL$6,$BW45,DL$4,DL$5) -> 17.13966497 | DM45: =DepartureOnDay(BR$12:BR$191,DM$6,$BW45,DM$4,DM$5) -> 0.8840494414 | DN45: =DepartureOnDay(BS$12:BS$191,DN$6,$BW45,DN$4,DN$5) -> 77.73712911 | DO45: =DepartureOnDay(BT$12:BT$191,DO$6,$BW45,DO$4,DO$5) -> 5.893662943 | DP45: 101.6545065 | DQ45: 1014.025734 | DR45: 6227.773631 | DS45: 34 | DT45: =DT44+BA45-BX44-CI44 -> 4277.220526 | DU45: 353.6059352 | DV45: 128.1210402 | DW45: 5.557913049 | DX45: 10176.98304 | DY45: 1603.783404 | DZ45: 449.2395866 | EA45: 37.05275366 | EB45: 837.713236 | EC45: 43.20854109 | ED45: 3799.457112 | EE45: 288.0569406 | EF45: 84.30351772 | EG45: 4.348304232 | EH45: 382.3594832 | EI45: 28.98869488 | EJ45: 2500.000006 | EK45: 20000.00002 | EL45: 2000.000006
A46: 35 | B46: ='C4-AnalyticOutput'!B42 -> 1587.716889 | C46: ='C4-AnalyticOutput'!C42 -> 257.1260279 | D46: ='C4-AnalyticOutput'!D42 -> 71.64504872 | E46: ='C4-AnalyticOutput'!E42 -> 13.26234332 | F46: ='C4-AnalyticOutput'!F42 -> 3777.726156 | G46: ='C4-AnalyticOutput'!G42 -> 1166.197779 | H46: ='C4-AnalyticOutput'!H42 -> 251.213946 | I46: ='C4-AnalyticOutput'!I42 -> 88.41562214 | J46: 5688.302041 | K46: 1525.001772 | T46: 3492.762202 | U46: 238.0584271 | V46: 5688.302041 | W46: 1525.001772 | X46: 238.0584271 | Y46: 1286.943345 | Z46: 1286.943345 | AA46: 0 | AB46: 2205.818856 | AC46: 3482.483184 | AD46: 233.8185912 | AE46: 1030.870303 | AF46: 2293.690755 | AG46: 0.8438962948 | AH46: 0 | AI46: 0.6122184018 | AJ46: 131.8013262 | AK46: 131.8013262 | AL46: 106.2571009 | AM46: 134.1275975 | AN46: 99.69099371 | AO46: 0.4463488322 | AQ46: 972.0294966 | AR46: 0 | AS46: 43.86241723 | AT46: 0 | AU46: 2312.79347 | AV46: 0 | AW46: 153.7978006 | AX46: 0 | AY46: 3482.483184 | BA46: 615.6873929 | BB46: 22.22263087 | BC46: 27.7826315 | BD46: 1.146224529 | BE46: 1464.932686 | BF46: 100.7909739 | BG46: 97.41614548 | BH46: 7.641496858 | BI46: 2337.620182 | BK46: 216.9877022 | BL46: 11.19204239 | BM46: 984.1499847 | BN46: 74.61361593 | BO46: 1286.943345 | BQ46: 17.91569478 | BR46: 0.9240764032 | BS46: 81.25682038 | BT46: 6.160509354 | BU46: 106.2571009 | BW46: 35 | BX46: =DepartureOnDay(BA$12:BA$191,BX$6,$BW46,BX$4,BX$5) -> 606.3270813 | BY46: =DepartureOnDay(BB$12:BB$191,BY$6,$BW46,BY$4,BY$5) -> 19.16478205 | BZ46: =DepartureOnDay(BC$12:BC$191,BZ$6,$BW46,BZ$4,BZ$5) -> 27.01862155 | CA46: =DepartureOnDay(BD$12:BD$191,CA$6,$BW46,CA$4,CA$5) -> 0.7888820275 | CB46: =DepartureOnDay(BE$12:BE$191,CB$6,$BW46,CB$4,CB$5) -> 1442.661276 | CC46: =DepartureOnDay(BF$12:BF$191,CC$6,$BW46,CC$4,CC$5) -> 86.92206872 | CD46: =DepartureOnDay(BG$12:BG$191,CD$6,$BW46,CD$4,CD$5) -> 94.73724502 | CE46: =DepartureOnDay(BH$12:BH$191,CE$6,$BW46,CE$4,CE$5) -> 5.259213517 | CF46: 2170.744224 | CG46: 112.1349463 | CI46: =DepartureOnDay(BA$12:BA$191,CI$6,$BW46,CI$4,CI$5) -> 36.37816089 | CJ46: =DepartureOnDay(BB$12:BB$191,CJ$6,$BW46,CJ$4,CJ$5) -> 3.972793772 | CK46: =DepartureOnDay(BC$12:BC$191,CK$6,$BW46,CK$4,CK$5) -> 0.002702132368 | CL46: =DepartureOnDay(BD$12:BD$191,CL$6,$BW46,CL$4,CL$5) -> 0.0001578079671 | CM46: =DepartureOnDay(BE$12:BE$191,CM$6,$BW46,CM$4,CM$5) -> 86.55619326 | CN46: =DepartureOnDay(BF$12:BF$191,CN$6,$BW46,CN$4,CN$5) -> 18.01864756 | CO46: =DepartureOnDay(BG$12:BG$191,CO$6,$BW46,CO$4,CO$5) -> 0.009474671969 | CP46: =DepartureOnDay(BH$12:BH$191,CP$6,$BW46,CP$4,CP$5) -> 0.001052053114 | CQ46: 122.946531 | CR46: 21.99265119 | CT46: =DepartureOnDay(BK$12:BK$191,CT$6,$BW46,CT$4,CT$5) -> 6.858848489 | CU46: =DepartureOnDay(BL$12:BL$191,CU$6,$BW46,CU$4,CU$5) -> 0.3537736114 | CV46: =DepartureOnDay(BM$12:BM$191,CV$6,$BW46,CV$4,CV$5) -> 31.1083788 | CW46: =DepartureOnDay(BN$12:BN$191,CW$6,$BW46,CW$4,CW$5) -> 2.358490742 | CX46: 40.67949164 | CZ46: =DepartureOnDay(BK$12:BK$191,CZ$6,$BW46,CZ$4,CZ$5) -> 166.9531372 | DA46: =DepartureOnDay(BL$12:BL$191,DA$6,$BW46,DA$4,DA$5) -> 8.611301789 | DB46: =DepartureOnDay(BM$12:BM$191,DB$6,$BW46,DB$4,DB$5) -> 757.2176935 | DC46: =DepartureOnDay(BN$12:BN$191,DC$6,$BW46,DC$4,DC$5) -> 57.40867859 | DD46: 990.1908111 | DF46: =DepartureOnDay(BQ$12:BQ$191,DF$6,$BW46,DF$4,DF$5) -> 0.8104195723 | DG46: =DepartureOnDay(BR$12:BR$191,DG$6,$BW46,DG$4,DG$5) -> 0.04180075697 | DH46: =DepartureOnDay(BS$12:BS$191,DH$6,$BW46,DH$4,DH$5) -> 3.675666416 | DI46: =DepartureOnDay(BT$12:BT$191,DI$6,$BW46,DI$4,DI$5) -> 0.2786717131 | DJ46: 4.806558458 | DL46: =DepartureOnDay(BQ$12:BQ$191,DL$6,$BW46,DL$4,DL$5) -> 15.99818334 | DM46: =DepartureOnDay(BR$12:BR$191,DM$6,$BW46,DM$4,DM$5) -> 0.8251727827 | DN46: =DepartureOnDay(BS$12:BS$191,DN$6,$BW46,DN$4,DN$5) -> 72.55992724 | DO46: =DepartureOnDay(BT$12:BT$191,DO$6,$BW46,DO$4,DO$5) -> 5.501151885 | DP46: 94.88443525 | DQ46: 1085.075246 | DR46: 7312.848878 | DS46: 35 | DT46: 4170.876668 | DU46: 352.9411869 | DV46: 132.9613583 | DW46: 6.037876675 | DX46: 9923.954321 | DY46: 1600.768431 | DZ46: 466.2115258 | EA46: 40.25251117 | EB46: =EB45+BK46-CT45-CZ45 -> 894.6282807 | EC46: 46.14417102 | ED46: 4057.595891 | EE46: 307.6278068 | EF46: =EF45+BQ46-DF45-DL45 -> 84.30351772 | EG46: 4.348304232 | EH46: 382.3594832 | EI46: 28.98869488 | EJ46: 2500.000006 | EK46: 20000.00002 | EL46: 2000.000006
A47: 36 | B47: ='C4-AnalyticOutput'!B43 -> 1655.196117 | C47: ='C4-AnalyticOutput'!C43 -> 268.054088 | D47: ='C4-AnalyticOutput'!D43 -> 74.69002012 | E47: ='C4-AnalyticOutput'!E43 -> 13.82600343 | F47: ='C4-AnalyticOutput'!F43 -> 3938.282514 | G47: ='C4-AnalyticOutput'!G43 -> 1215.76211 | H47: ='C4-AnalyticOutput'!H43 -> 261.890738 | I47: ='C4-AnalyticOutput'!I43 -> 92.17335621 | J47: 5930.059389 | K47: 1589.815557 | T47: 3324.561058 | U47: 233.8185912 | V47: 5930.059389 | W47: 1589.815557 | X47: 233.8185912 | Y47: 1355.996966 | Z47: 1355.996966 | AA47: 0 | AB47: 1968.564092 | AC47: 3961.495297 | AD47: 244.057701 | AE47: 1095.270698 | AF47: 2039.304516 | AG47: 0.8529272216 | AH47: 0 | AI47: 0.6680363614 | AJ47: 134.1275975 | AK47: 134.1275975 | AL47: 99.69099371 | AM47: 136.0693075 | AN47: 107.9883935 | AO47: 0.4263604241 | AQ47: 1105.731191 | AR47: 0 | AS47: 49.89564927 | AT47: 0 | AU47: 2630.915921 | AV47: 0 | AW47: 174.9525357 | AX47: 0 | AY47: 3961.495297 | BA47: 549.4649254 | BB47: 22.61485659 | BC47: 24.79437085 | BD47: 1.1664552 | BE47: 1307.366593 | BF47: 102.5699177 | BG47: 86.9382023 | BH47: 7.776367998 | BI47: 2102.691689 | BK47: 228.6306285 | BL47: 11.79257469 | BM47: 1036.956598 | BN47: 78.61716461 | BO47: 1355.996966 | BQ47: 16.80860291 | BR47: 0.8669735397 | BS47: 76.23559366 | BT47: 5.779823598 | BU47: 99.69099371 | BW47: 36 | BX47: =DepartureOnDay(BA$12:BA$191,BX$6,$BW47,BX$4,BX$5) -> 527.0977752 | BY47: =DepartureOnDay(BB$12:BB$191,BY$6,$BW47,BY$4,BY$5) -> 19.28451599 | BZ47: =DepartureOnDay(BC$12:BC$191,BZ$6,$BW47,BZ$4,BZ$5) -> 30.87154099 | CA47: =DepartureOnDay(BD$12:BD$191,CA$6,$BW47,CA$4,CA$5) -> 0.9100205355 | CB47: =DepartureOnDay(BE$12:BE$191,CB$6,$BW47,CB$4,CB$5) -> 1254.147428 | CC47: =DepartureOnDay(BF$12:BF$191,CC$6,$BW47,CC$4,CC$5) -> 87.46512325 | CD47: =DepartureOnDay(BG$12:BG$191,CD$6,$BW47,CD$4,CD$5) -> 108.2470006 | CE47: =DepartureOnDay(BH$12:BH$191,CE$6,$BW47,CE$4,CE$5) -> 6.06680357 | CF47: 1920.363744 | CG47: 113.7264633 | CI47: =DepartureOnDay(BA$12:BA$191,CI$6,$BW47,CI$4,CI$5) -> 35.1922813 | CJ47: =DepartureOnDay(BB$12:BB$191,CJ$6,$BW47,CJ$4,CJ$5) -> 4.036023202 | CK47: =DepartureOnDay(BC$12:BC$191,CK$6,$BW47,CK$4,CK$5) -> 0.003087462846 | CL47: =DepartureOnDay(BD$12:BD$191,CL$6,$BW47,CL$4,CL$5) -> 0.0001820405152 | CM47: =DepartureOnDay(BE$12:BE$191,CM$6,$BW47,CM$4,CM$5) -> 83.73457663 | CN47: =DepartureOnDay(BF$12:BF$191,CN$6,$BW47,CN$4,CN$5) -> 18.30542529 | CO47: =DepartureOnDay(BG$12:BG$191,CO$6,$BW47,CO$4,CO$5) -> 0.01082578264 | CP47: =DepartureOnDay(BH$12:BH$191,CP$6,$BW47,CP$4,CP$5) -> 0.001213603435 | CQ47: 118.9407712 | CR47: 22.34284414 | CT47: =DepartureOnDay(BK$12:BK$191,CT$6,$BW47,CT$4,CT$5) -> 7.388556653 | CU47: =DepartureOnDay(BL$12:BL$191,CU$6,$BW47,CU$4,CU$5) -> 0.381095511 | CV47: =DepartureOnDay(BM$12:BM$191,CV$6,$BW47,CV$4,CV$5) -> 33.5108757 | CW47: =DepartureOnDay(BN$12:BN$191,CW$6,$BW47,CW$4,CW$5) -> 2.54063674 | CX47: 43.8211646 | CZ47: =DepartureOnDay(BK$12:BK$191,CZ$6,$BW47,CZ$4,CZ$5) -> 177.2817888 | DA47: =DepartureOnDay(BL$12:BL$191,DA$6,$BW47,DA$4,DA$5) -> 9.144044916 | DB47: =DepartureOnDay(BM$12:BM$191,DB$6,$BW47,DB$4,DB$5) -> 804.0634007 | DC47: =DepartureOnDay(BN$12:BN$191,DC$6,$BW47,DC$4,DC$5) -> 60.96029944 | DD47: 1051.449534 | DF47: =DepartureOnDay(BQ$12:BQ$191,DF$6,$BW47,DF$4,DF$5) -> 0.9332964505 | DG47: =DepartureOnDay(BR$12:BR$191,DG$6,$BW47,DG$4,DG$5) -> 0.04813864256 | DH47: =DepartureOnDay(BS$12:BS$191,DH$6,$BW47,DH$4,DH$5) -> 4.232975778 | DI47: =DepartureOnDay(BT$12:BT$191,DI$6,$BW47,DI$4,DI$5) -> 0.3209242837 | DJ47: 5.535335154 | DL47: =DepartureOnDay(BQ$12:BQ$191,DL$6,$BW47,DL$4,DL$5) -> 17.27430644 | DM47: =DepartureOnDay(BR$12:BR$191,DM$6,$BW47,DM$4,DM$5) -> 0.8909941346 | DN47: =DepartureOnDay(BS$12:BS$191,DN$6,$BW47,DN$4,DN$5) -> 78.34779689 | DO47: =DepartureOnDay(BT$12:BT$191,DO$6,$BW47,DO$4,DO$5) -> 5.939960897 | DP47: 102.4530584 | DQ47: 1153.902592 | DR47: 8466.75147 | DS47: 36 | DT47: 4077.636352 | DU47: 352.4184676 | DV47: 130.7344054 | DW47: 6.415292039 | DX47: 9702.103444 | DY47: 1598.397633 | DZ47: 458.4030084 | EA47: 42.7686136 | EB47: 949.4469236 | EC47: 48.97167031 | ED47: 4306.226416 | EE47: 326.4778021 | EF47: 84.30351772 | EG47: 4.348304232 | EH47: 382.3594832 | EI47: 28.98869488 | EJ47: 2500.000006 | EK47: 20000.00002 | EL47: 2000.000006
A48: 37 | B48: ='C4-AnalyticOutput'!B44 -> 1715.707132 | C48: ='C4-AnalyticOutput'!C44 -> 277.8536669 | D48: ='C4-AnalyticOutput'!D44 -> 77.42055393 | E48: ='C4-AnalyticOutput'!E44 -> 14.33145744 | F48: ='C4-AnalyticOutput'!F44 -> 4082.259093 | G48: ='C4-AnalyticOutput'!G44 -> 1260.208202 | H48: ='C4-AnalyticOutput'!H44 -> 271.4649959 | I48: ='C4-AnalyticOutput'!I44 -> 95.54304957 | J48: 6146.851775 | K48: 1647.936376 | T48: 3134.575214 | U48: 244.057701 | V48: 6146.851775 | W48: 1647.936376 | X48: 244.057701 | Y48: 1403.878675 | Z48: 1403.878675 | AA48: 0 | AB48: 1730.696539 | AC48: 4416.155236 | AD48: 250.2729433 | AE48: 1163.503284 | AF48: 2172.630654 | AG48: 0.8519010172 | AH48: 0 | AI48: 0.7184417971 | AJ48: 136.0693075 | AK48: 136.0693075 | AL48: 107.9883935 | AM48: 137.2850921 | AN48: 112.9878512 | AO48: 0.442470748 | AQ48: 1232.635715 | AR48: 0 | AS48: 55.6221619 | AT48: 0 | AU48: 2932.865559 | AV48: 0 | AW48: 195.0317995 | AX48: 0 | AY48: 4416.155236 | BA48: 483.0714167 | BB48: 22.94224255 | BC48: 21.79839203 | BD48: 1.183341491 | BE48: 1149.393534 | BF48: 104.0547802 | BG48: 76.43319638 | BH48: 7.888943275 | BI48: 1866.765846 | BK48: 236.7038215 | BL48: 12.20898317 | BM48: 1073.572649 | BN48: 81.39322112 | BO48: 1403.878675 | BQ48: 18.20760289 | BR48: 0.9391327771 | BS48: 82.58077267 | BT48: 6.260885181 | BU48: 107.9883935 | BW48: 37 | BX48: =DepartureOnDay(BA$12:BA$191,BX$6,$BW48,BX$4,BX$5) -> 566.4994691 | BY48: =DepartureOnDay(BB$12:BB$191,BY$6,$BW48,BY$4,BY$5) -> 19.27377149 | BZ48: =DepartureOnDay(BC$12:BC$191,BZ$6,$BW48,BZ$4,BZ$5) -> 31.80691892 | CA48: =DepartureOnDay(BD$12:BD$191,CA$6,$BW48,CA$4,CA$5) -> 1.014832123 | CB48: =DepartureOnDay(BE$12:BE$191,CB$6,$BW48,CB$4,CB$5) -> 1347.897649 | CC48: =DepartureOnDay(BF$12:BF$191,CC$6,$BW48,CC$4,CC$5) -> 87.41639144 | CD48: =DepartureOnDay(BG$12:BG$191,CD$6,$BW48,CD$4,CD$5) -> 111.5267803 | CE48: =DepartureOnDay(BH$12:BH$191,CE$6,$BW48,CE$4,CE$5) -> 6.765547485 | CF48: 2057.730817 | CG48: 114.4705425 | CI48: =DepartureOnDay(BA$12:BA$191,CI$6,$BW48,CI$4,CI$5) -> 33.99638218 | CJ48: =DepartureOnDay(BB$12:BB$191,CJ$6,$BW48,CJ$4,CJ$5) -> 4.121208607 | CK48: =DepartureOnDay(BC$12:BC$191,CK$6,$BW48,CK$4,CK$5) -> 0.003181009993 | CL48: =DepartureOnDay(BD$12:BD$191,CL$6,$BW48,CL$4,CL$5) -> 0.000203007026 | CM48: =DepartureOnDay(BE$12:BE$191,CM$6,$BW48,CM$4,CM$5) -> 80.88912013 | CN48: =DepartureOnDay(BF$12:BF$191,CN$6,$BW48,CN$4,CN$5) -> 18.69178459 | CO48: =DepartureOnDay(BG$12:BG$191,CO$6,$BW48,CO$4,CO$5) -> 0.01115379341 | CP48: =DepartureOnDay(BH$12:BH$191,CP$6,$BW48,CP$4,CP$5) -> 0.001353380173 | CQ48: 114.8998371 | CR48: 22.81454958 | CT48: =DepartureOnDay(BK$12:BK$191,CT$6,$BW48,CT$4,CT$5) -> 8.022795781 | CU48: =DepartureOnDay(BL$12:BL$191,CU$6,$BW48,CU$4,CU$5) -> 0.4138090294 | CV48: =DepartureOnDay(BM$12:BM$191,CV$6,$BW48,CV$4,CV$5) -> 36.38747387 | CW48: =DepartureOnDay(BN$12:BN$191,CW$6,$BW48,CW$4,CW$5) -> 2.758726863 | CX48: 47.58280554 | CZ48: =DepartureOnDay(BK$12:BK$191,CZ$6,$BW48,CZ$4,CZ$5) -> 188.1520436 | DA48: =DepartureOnDay(BL$12:BL$191,DA$6,$BW48,DA$4,DA$5) -> 9.704723477 | DB48: =DepartureOnDay(BM$12:BM$191,DB$6,$BW48,DB$4,DB$5) -> 853.3655547 | DC48: =DepartureOnDay(BN$12:BN$191,DC$6,$BW48,DC$4,DC$5) -> 64.69815652 | DD48: 1115.920478 | DF48: =DepartureOnDay(BQ$12:BQ$191,DF$6,$BW48,DF$4,DF$5) -> 0.9446162723 | DG48: =DepartureOnDay(BR$12:BR$191,DG$6,$BW48,DG$4,DG$5) -> 0.0487225094 | DH48: =DepartureOnDay(BS$12:BS$191,DH$6,$BW48,DH$4,DH$5) -> 4.284316947 | DI48: =DepartureOnDay(BT$12:BT$191,DI$6,$BW48,DI$4,DI$5) -> 0.3248167294 | DJ48: 5.602472458 | DL48: =DepartureOnDay(BQ$12:BQ$191,DL$6,$BW48,DL$4,DL$5) -> 18.10593036 | DM48: =DepartureOnDay(BR$12:BR$191,DM$6,$BW48,DM$4,DM$5) -> 0.9338885939 | DN48: =DepartureOnDay(BS$12:BS$191,DN$6,$BW48,DN$4,DN$5) -> 82.11963585 | DO48: =DepartureOnDay(BT$12:BT$191,DO$6,$BW48,DO$4,DO$5) -> 6.22592396 | DP48: 107.3853788 | DQ48: 1223.305857 | DR48: 9690.057327 | DS48: 37 | DT48: 3998.417712 | DU48: 352.040171 | DV48: 121.658169 | DW48: 6.688430954 | DX48: 9513.614974 | DY48: 1596.681864 | DZ48: 426.5783784 | EA48: 44.5895397 | EB48: 1001.4804 | EC48: 51.65551305 | ED48: 4542.224789 | EE48: 344.370087 | EF48: 84.30351772 | EG48: 4.348304232 | EH48: 382.3594832 | EI48: 28.98869488 | EJ48: 2500.000006 | EK48: 20000.00002 | EL48: 2000.000006
A49: 38 | B49: ='C4-AnalyticOutput'!B45 -> 1768.846809 | C49: ='C4-AnalyticOutput'!C45 -> 286.4594797 | D49: ='C4-AnalyticOutput'!D45 -> 79.81845925 | E49: ='C4-AnalyticOutput'!E45 -> 14.77533799 | F49: ='C4-AnalyticOutput'!F45 -> 4208.696716 | G49: ='C4-AnalyticOutput'!G45 -> 1299.239955 | H49: ='C4-AnalyticOutput'!H45 -> 279.8729357 | I49: ='C4-AnalyticOutput'!I45 -> 98.50225325 | J49: 6337.234921 | K49: 1698.977026 | T49: 3336.133938 | U49: 250.2729433 | V49: 6337.234921 | W49: 1698.977026 | X49: 250.2729433 | Y49: 1448.704083 | Z49: 1448.704083 | AA49: 0 | AB49: 1887.429855 | AC49: 4449.805065 | AD49: 245.2725382 | AE49: 1238.246991 | AF49: 2335.529787 | AG49: 0.8526919791 | AH49: 0 | AI49: 0.702168236 | AJ49: 137.2850921 | AK49: 137.2850921 | AL49: 112.9878512 | AM49: 137.3719981 | AN49: 107.9005401 | AO49: 0.4514585145 | AQ49: 1242.028044 | AR49: 0 | AS49: 56.04598674 | AT49: 0 | AU49: 2955.213149 | AV49: 0 | AW49: 196.5178856 | AX49: 0 | AY49: 4449.805065 | BA49: 526.8187655 | BB49: 23.14723239 | BC49: 23.77247252 | BD49: 1.193914694 | BE49: 1253.483567 | BF49: 104.9845137 | BG49: 83.35505014 | BH49: 7.959431294 | BI49: 2024.714947 | BK49: 244.2617006 | BL49: 12.59881219 | BM49: 1107.851489 | BN49: 83.99208126 | BO49: 1448.704083 | BQ49: 19.05054664 | BR49: 0.9826111033 | BS49: 86.4039528 | BT49: 6.550740689 | BU49: 112.9878512 | BW49: 38 | BX49: =DepartureOnDay(BA$12:BA$191,BX$6,$BW49,BX$4,BX$5) -> 619.2839856 | BY49: =DepartureOnDay(BB$12:BB$191,BY$6,$BW49,BY$4,BY$5) -> 19.09805934 | BZ49: =DepartureOnDay(BC$12:BC$191,BZ$6,$BW49,BZ$4,BZ$5) -> 29.36105379 | CA49: =DepartureOnDay(BD$12:BD$191,CA$6,$BW49,CA$4,CA$5) -> 1.07180151 | CB49: =DepartureOnDay(BE$12:BE$191,CB$6,$BW49,CB$4,CB$5) -> 1473.490221 | CC49: =DepartureOnDay(BF$12:BF$191,CC$6,$BW49,CC$4,CC$5) -> 86.61944714 | CD49: =DepartureOnDay(BG$12:BG$191,CD$6,$BW49,CD$4,CD$5) -> 102.9506758 | CE49: =DepartureOnDay(BH$12:BH$191,CE$6,$BW49,CE$4,CE$5) -> 7.145343398 | CF49: 2225.085936 | CG49: 113.9346514 | CI49: =DepartureOnDay(BA$12:BA$191,CI$6,$BW49,CI$4,CI$5) -> 32.67811356 | CJ49: =DepartureOnDay(BB$12:BB$191,CJ$6,$BW49,CJ$4,CJ$5) -> 4.233702257 | CK49: =DepartureOnDay(BC$12:BC$191,CK$6,$BW49,CK$4,CK$5) -> 0.002936399019 | CL49: =DepartureOnDay(BD$12:BD$191,CL$6,$BW49,CL$4,CL$5) -> 0.0002144031826 | CM49: =DepartureOnDay(BE$12:BE$191,CM$6,$BW49,CM$4,CM$5) -> 77.75250433 | CN49: =DepartureOnDay(BF$12:BF$191,CN$6,$BW49,CN$4,CN$5) -> 19.20200071 | CO49: =DepartureOnDay(BG$12:BG$191,CO$6,$BW49,CO$4,CO$5) -> 0.01029609719 | CP49: =DepartureOnDay(BH$12:BH$191,CP$6,$BW49,CP$4,CP$5) -> 0.00142935455 | CQ49: 110.4438504 | CR49: 23.43734672 | CT49: =DepartureOnDay(BK$12:BK$191,CT$6,$BW49,CT$4,CT$5) -> 8.675722705 | CU49: =DepartureOnDay(BL$12:BL$191,CU$6,$BW49,CU$4,CU$5) -> 0.4474864487 | CV49: =DepartureOnDay(BM$12:BM$191,CV$6,$BW49,CV$4,CV$5) -> 39.34883074 | CW49: =DepartureOnDay(BN$12:BN$191,CW$6,$BW49,CW$4,CW$5) -> 2.983242991 | CX49: 51.45528289 | CZ49: =DepartureOnDay(BK$12:BK$191,CZ$6,$BW49,CZ$4,CZ$5) -> 200.1014316 | DA49: =DepartureOnDay(BL$12:BL$191,DA$6,$BW49,DA$4,DA$5) -> 10.32106282 | DB49: =DepartureOnDay(BM$12:BM$191,DB$6,$BW49,DB$4,DB$5) -> 907.5621284 | DC49: =DepartureOnDay(BN$12:BN$191,DC$6,$BW49,DC$4,DC$5) -> 68.80708544 | DD49: 1186.791708 | DF49: =DepartureOnDay(BQ$12:BQ$191,DF$6,$BW49,DF$4,DF$5) -> 0.9287383413 | DG49: =DepartureOnDay(BR$12:BR$191,DG$6,$BW49,DG$4,DG$5) -> 0.04790353913 | DH49: =DepartureOnDay(BS$12:BS$191,DH$6,$BW49,DH$4,DH$5) -> 4.212302426 | DI49: =DepartureOnDay(BT$12:BT$191,DI$6,$BW49,DI$4,DI$5) -> 0.3193569275 | DJ49: 5.508301234 | DL49: =DepartureOnDay(BQ$12:BQ$191,DL$6,$BW49,DL$4,DL$5) -> 17.26405185 | DM49: =DepartureOnDay(BR$12:BR$191,DM$6,$BW49,DM$4,DM$5) -> 0.8904652116 | DN49: =DepartureOnDay(BS$12:BS$191,DN$6,$BW49,DN$4,DN$5) -> 78.3012871 | DO49: =DepartureOnDay(BT$12:BT$191,DO$6,$BW49,DO$4,DO$5) -> 5.936434744 | DP49: 102.3922389 | DQ49: 1289.183947 | DR49: 10979.24127 | DS49: 38 | DT49: 3924.740626 | DU49: 351.7924233 | DV49: 113.6205416 | DW49: 6.867310519 | DX49: 9338.311772 | DY49: 1595.558202 | DZ49: 398.3954944 | EA49: 45.78207013 | EB49: 1049.567261 | EC49: 54.13579274 | ED49: 4760.323249 | EE49: 360.9052849 | EF49: 84.30351772 | EG49: 4.348304232 | EH49: 382.3594832 | EI49: 28.98869488 | EJ49: 2500.000006 | EK49: 20000.00002 | EL49: 2000.000006
A50: 39 | B50: ='C4-AnalyticOutput'!B46 -> 1814.328127 | C50: ='C4-AnalyticOutput'!C46 -> 293.8250438 | D50: ='C4-AnalyticOutput'!D46 -> 81.87078434 | E50: ='C4-AnalyticOutput'!E46 -> 15.15524756 | F50: ='C4-AnalyticOutput'!F46 -> 4316.912459 | G50: ='C4-AnalyticOutput'!G46 -> 1332.646548 | H50: ='C4-AnalyticOutput'!H46 -> 287.0691439 | I50: ='C4-AnalyticOutput'!I46 -> 101.0349837 | J50: 6500.180514 | K50: 1742.661823 | T50: 3573.776778 | U50: 245.2725382 | V50: 6500.180514 | W50: 1742.661823 | X50: 245.2725382 | Y50: 1497.389285 | Z50: 1497.389285 | AA50: 0 | AB50: 2076.387493 | AC50: 4423.793021 | AD50: 242.4813497 | AE50: 1305.223572 | AF50: 2363.500903 | AG50: 0.8592540819 | AH50: 0 | AI50: 0.6805646415 | AJ50: 137.3719981 | AK50: 137.3719981 | AL50: 107.9005401 | AM50: 136.7657306 | AN50: 105.7156191 | AO50: 0.4399209994 | AQ50: 1234.767571 | AR50: 0 | AS50: 55.71836099 | AT50: 0 | AU50: 2937.93798 | AV50: 0 | AW50: 195.369109 | AX50: 0 | AY50: 4423.793021 | BA50: 579.5605557 | BB50: 23.16188535 | BC50: 26.15242335 | BD50: 1.194670481 | BE50: 1378.974479 | BF50: 105.0509724 | BG50: 91.7000349 | BH50: 7.964469876 | BI50: 2213.759491 | BK50: 252.4703682 | BL50: 13.02220833 | BM50: 1145.081986 | BN50: 86.81472219 | BO50: 1497.389285 | BQ50: 18.1927902 | BR50: 0.9383687507 | BS50: 82.51358953 | BT50: 6.255791671 | BU50: 107.9005401 | BW50: 39 | BX50: =DepartureOnDay(BA$12:BA$191,BX$6,$BW50,BX$4,BX$5) -> 634.0967047 | BY50: =DepartureOnDay(BB$12:BB$191,BY$6,$BW50,BY$4,BY$5) -> 18.80355545 | BZ50: =DepartureOnDay(BC$12:BC$191,BZ$6,$BW50,BZ$4,BZ$5) -> 26.28587232 | CA50: =DepartureOnDay(BD$12:BD$191,CA$6,$BW50,CA$4,CA$5) -> 1.112800208 | CB50: =DepartureOnDay(BE$12:BE$191,CB$6,$BW50,CB$4,CB$5) -> 1508.73479 | CC50: =DepartureOnDay(BF$12:BF$191,CC$6,$BW50,CC$4,CC$5) -> 85.28372172 | CD50: =DepartureOnDay(BG$12:BG$191,CD$6,$BW50,CD$4,CD$5) -> 92.16795617 | CE50: =DepartureOnDay(BH$12:BH$191,CE$6,$BW50,CE$4,CE$5) -> 7.418668052 | CF50: 2261.285323 | CG50: 112.6187454 | CI50: =DepartureOnDay(BA$12:BA$191,CI$6,$BW50,CI$4,CI$5) -> 30.24365233 | CJ50: =DepartureOnDay(BB$12:BB$191,CJ$6,$BW50,CJ$4,CJ$5) -> 4.361888373 | CK50: =DepartureOnDay(BC$12:BC$191,CK$6,$BW50,CK$4,CK$5) -> 0.002628850117 | CL50: =DepartureOnDay(BD$12:BD$191,CL$6,$BW50,CL$4,CL$5) -> 0.0002226045625 | CM50: =DepartureOnDay(BE$12:BE$191,CM$6,$BW50,CM$4,CM$5) -> 71.96008131 | CN50: =DepartureOnDay(BF$12:BF$191,CN$6,$BW50,CN$4,CN$5) -> 19.78339017 | CO50: =DepartureOnDay(BG$12:BG$191,CO$6,$BW50,CO$4,CO$5) -> 0.009217717389 | CP50: =DepartureOnDay(BH$12:BH$191,CP$6,$BW50,CP$4,CP$5) -> 0.001484030416 | CQ50: 102.2155802 | CR50: 24.14698518 | CT50: =DepartureOnDay(BK$12:BK$191,CT$6,$BW50,CT$4,CT$5) -> 9.314043146 | CU50: =DepartureOnDay(BL$12:BL$191,CU$6,$BW50,CU$4,CU$5) -> 0.4804104778 | CV50: =DepartureOnDay(BM$12:BM$191,CV$6,$BW50,CV$4,CV$5) -> 42.24393975 | CW50: =DepartureOnDay(BN$12:BN$191,CW$6,$BW50,CW$4,CW$5) -> 3.202736519 | CX50: 55.2411299 | CZ50: =DepartureOnDay(BK$12:BK$191,CZ$6,$BW50,CZ$4,CZ$5) -> 210.7558339 | DA50: =DepartureOnDay(BL$12:BL$191,DA$6,$BW50,DA$4,DA$5) -> 10.87060789 | DB50: =DepartureOnDay(BM$12:BM$191,DB$6,$BW50,DB$4,DB$5) -> 955.8852811 | DC50: =DepartureOnDay(BN$12:BN$191,DC$6,$BW50,DC$4,DC$5) -> 72.47071924 | DD50: 1249.982442 | DF50: =DepartureOnDay(BQ$12:BQ$191,DF$6,$BW50,DF$4,DF$5) -> 0.9053609692 | DG50: =DepartureOnDay(BR$12:BR$191,DG$6,$BW50,DG$4,DG$5) -> 0.04669775403 | DH50: =DepartureOnDay(BS$12:BS$191,DH$6,$BW50,DH$4,DH$5) -> 4.106274111 | DI50: =DepartureOnDay(BT$12:BT$191,DI$6,$BW50,DI$4,DI$5) -> 0.3113183602 | DJ50: 5.369651194 | DL50: =DepartureOnDay(BQ$12:BQ$191,DL$6,$BW50,DL$4,DL$5) -> 16.91903617 | DM50: =DepartureOnDay(BR$12:BR$191,DM$6,$BW50,DM$4,DM$5) -> 0.8726695939 | DN50: =DepartureOnDay(BS$12:BS$191,DN$6,$BW50,DN$4,DN$5) -> 76.73646486 | DO50: =DepartureOnDay(BT$12:BT$191,DO$6,$BW50,DO$4,DO$5) -> 5.817797293 | DP50: 100.3459679 | DQ50: 1350.32841 | DR50: 12329.56968 | DS50: 39 | DT50: 3852.339083 | DU50: 351.6225471 | DV50: 110.4089748 | DW50: 6.989965087 | DX50: 9166.043526 | DY50: 1594.787727 | DZ50: 387.1345574 | EA50: 46.59976725 | EB50: 1093.260475 | EC50: 56.3894518 | ED50: 4958.494276 | EE50: 375.9296787 | EF50: 84.30351772 | EG50: 4.348304232 | EH50: 382.3594832 | EI50: 28.98869488 | EJ50: 2500.000006 | EK50: 20000.00002 | EL50: 2000.000006
A51: 40 | B51: ='C4-AnalyticOutput'!B47 -> 1851.976234 | C51: ='C4-AnalyticOutput'!C47 -> 299.9220427 | D51: ='C4-AnalyticOutput'!D47 -> 83.56963914 | E51: ='C4-AnalyticOutput'!E47 -> 15.46972562 | F51: ='C4-AnalyticOutput'!F47 -> 4406.490292 | G51: ='C4-AnalyticOutput'!G47 -> 1360.29955 | H51: ='C4-AnalyticOutput'!H47 -> 293.0259549 | I51: ='C4-AnalyticOutput'!I47 -> 103.1315041 | J51: 6635.06212 | K51: 1778.822823 | T51: 3668.724475 | U51: 242.4813497 | V51: 6635.06212 | W51: 1778.822823 | X51: 242.4813497 | Y51: 1536.341473 | Z51: 1536.341473 | AA51: 0 | AB51: 2132.383002 | AC51: 4502.679118 | AD51: 240.9813361 | AE51: 1364.138657 | AF51: 2275.51065 | AG51: 0.8636843722 | AH51: 0 | AI51: 0.6786189845 | AJ51: 136.7657306 | AK51: 136.7657306 | AL51: 105.7156191 | AM51: 134.4491633 | AN51: 106.5321728 | AO51: 0.4359742274 | AQ51: 1256.786231 | AR51: 0 | AS51: 56.71194364 | AT51: 0 | AU51: 2990.327967 | AV51: 0 | AW51: 198.8529759 | AX51: 0 | AY51: 4502.679118 | BA51: 595.1900028 | BB51: 23.05966439 | BC51: 26.85769549 | BD51: 1.18939801 | BE51: 1416.162325 | BF51: 104.5873481 | BG51: 94.17297896 | BH51: 7.92932007 | BI51: 2269.148733 | BK51: 259.0379812 | BL51: 13.36096026 | BM51: 1174.869463 | BN51: 89.07306838 | BO51: 1536.341473 | BQ51: 17.82439714 | BR51: 0.919367348 | BS51: 80.84273897 | BT51: 6.129115653 | BU51: 105.7156191 | BW51: 40 | BX51: =DepartureOnDay(BA$12:BA$191,BX$6,$BW51,BX$4,BX$5) -> 611.5699917 | BY51: =DepartureOnDay(BB$12:BB$191,BY$6,$BW51,BY$4,BY$5) -> 18.19643383 | BZ51: =DepartureOnDay(BC$12:BC$191,BZ$6,$BW51,BZ$4,BZ$5) -> 23.2940518 | CA51: =DepartureOnDay(BD$12:BD$191,CA$6,$BW51,CA$4,CA$5) -> 1.145074853 | CB51: =DepartureOnDay(BE$12:BE$191,CB$6,$BW51,CB$4,CB$5) -> 1455.135969 | CC51: =DepartureOnDay(BF$12:BF$191,CC$6,$BW51,CC$4,CC$5) -> 82.53011528 | CD51: =DepartureOnDay(BG$12:BG$191,CD$6,$BW51,CD$4,CD$5) -> 81.67753077 | CE51: =DepartureOnDay(BH$12:BH$191,CE$6,$BW51,CE$4,CE$5) -> 7.633832354 | CF51: 2171.677543 | CG51: 109.5054563 | CI51: =DepartureOnDay(BA$12:BA$191,CI$6,$BW51,CI$4,CI$5) -> 30.72270241 | CJ51: =DepartureOnDay(BB$12:BB$191,CJ$6,$BW51,CJ$4,CJ$5) -> 4.505808673 | CK51: =DepartureOnDay(BC$12:BC$191,CK$6,$BW51,CK$4,CK$5) -> 0.002329638144 | CL51: =DepartureOnDay(BD$12:BD$191,CL$6,$BW51,CL$4,CL$5) -> 0.0002290607828 | CM51: =DepartureOnDay(BE$12:BE$191,CM$6,$BW51,CM$4,CM$5) -> 73.09990671 | CN51: =DepartureOnDay(BF$12:BF$191,CN$6,$BW51,CN$4,CN$5) -> 20.43614219 | CO51: =DepartureOnDay(BG$12:BG$191,CO$6,$BW51,CO$4,CO$5) -> 0.008168569934 | CP51: =DepartureOnDay(BH$12:BH$191,CP$6,$BW51,CP$4,CP$5) -> 0.001527071885 | CQ51: 103.8331073 | CR51: 24.943707 | CT51: =DepartureOnDay(BK$12:BK$191,CT$6,$BW51,CT$4,CT$5) -> 9.939709766 | CU51: =DepartureOnDay(BL$12:BL$191,CU$6,$BW51,CU$4,CU$5) -> 0.5126818336 | CV51: =DepartureOnDay(BM$12:BM$191,CV$6,$BW51,CV$4,CV$5) -> 45.08165723 | CW51: =DepartureOnDay(BN$12:BN$191,CW$6,$BW51,CW$4,CW$5) -> 3.41787889 | CX51: 58.95192772 | CZ51: =DepartureOnDay(BK$12:BK$191,CZ$6,$BW51,CZ$4,CZ$5) -> 220.0636651 | DA51: =DepartureOnDay(BL$12:BL$191,DA$6,$BW51,DA$4,DA$5) -> 11.35069795 | DB51: =DepartureOnDay(BM$12:BM$191,DB$6,$BW51,DB$4,DB$5) -> 998.1010462 | DC51: =DepartureOnDay(BN$12:BN$191,DC$6,$BW51,DC$4,DC$5) -> 75.67131969 | DD51: 1305.186729 | DF51: =DepartureOnDay(BQ$12:BQ$191,DF$6,$BW51,DF$4,DF$5) -> 0.8662426186 | DG51: =DepartureOnDay(BR$12:BR$191,DG$6,$BW51,DG$4,DG$5) -> 0.04468006254 | DH51: =DepartureOnDay(BS$12:BS$191,DH$6,$BW51,DH$4,DH$5) -> 3.928852424 | DI51: =DepartureOnDay(BT$12:BT$191,DI$6,$BW51,DI$4,DI$5) -> 0.2978670836 | DJ51: 5.137642189 | DL51: =DepartureOnDay(BQ$12:BQ$191,DL$6,$BW51,DL$4,DL$5) -> 17.09583121 | DM51: =DepartureOnDay(BR$12:BR$191,DM$6,$BW51,DM$4,DM$5) -> 0.881788533 | DN51: =DepartureOnDay(BS$12:BS$191,DN$6,$BW51,DN$4,DN$5) -> 77.53832063 | DO51: =DepartureOnDay(BT$12:BT$191,DO$6,$BW51,DO$4,DO$5) -> 5.87859022 | DP51: 101.3945306 | DQ51: 1406.58126 | DR51: 13736.15094 | DS51: 40 | DT51: 3783.188728 | DU51: 351.5167676 | DV51: 110.9781691 | DW51: 7.066340286 | DX51: 9001.51098 | DY51: 1594.307963 | DZ51: 389.1303625 | EA51: 47.10893524 | EB51: 1132.228579 | EC51: 58.39939369 | ED51: 5135.234519 | EE51: 389.3292913 | EF51: 84.30351772 | EG51: 4.348304232 | EH51: 382.3594832 | EI51: 28.98869488 | EJ51: 2500.000006 | EK51: 20000.00002 | EL51: 2000.000006
A52: 41 | B52: ='C4-AnalyticOutput'!B48 -> 1881.722605 | C52: ='C4-AnalyticOutput'!C48 -> 304.7393791 | D52: ='C4-AnalyticOutput'!D48 -> 84.91193149 | E52: ='C4-AnalyticOutput'!E48 -> 15.71819976 | F52: ='C4-AnalyticOutput'!F48 -> 4477.26717 | G52: ='C4-AnalyticOutput'!G48 -> 1382.14863 | H52: ='C4-AnalyticOutput'!H48 -> 297.7325266 | I52: ='C4-AnalyticOutput'!I48 -> 104.7879984 | J52: 6741.634234 | K52: 1807.394207 | T52: 3639.649307 | U52: 240.9813361 | V52: 6741.634234 | W52: 1807.394207 | X52: 240.9813361 | Y52: 1566.412871 | Z52: 1566.412871 | AA52: 0 | AB52: 2073.236436 | AC52: 4668.397798 | AD52: 237.0658735 | AE52: 1417.184383 | AF52: 2082.17748 | AG52: 0.8666691886 | AH52: 0 | AI52: 0.6924727204 | AJ52: 134.4491633 | AK52: 134.4491633 | AL52: 106.5321728 | AM52: 129.9166158 | AN52: 107.1492577 | AO52: 0.4420764467 | AQ52: 1303.041571 | AR52: 0 | AS52: 58.79919619 | AT52: 0 | AU52: 3100.385377 | AV52: 0 | AW52: 206.1716526 | AX52: 0 | AY52: 4668.397798 | BA52: 578.6810338 | BB52: 22.66907484 | BC52: 26.1127353 | BD52: 1.169251732 | BE52: 1376.881793 | BF52: 102.8158252 | BG52: 91.56087396 | BH52: 7.795011545 | BI52: 2207.6856 | BK52: 264.1082304 | BL52: 13.62247943 | BM52: 1197.865631 | BN52: 90.81652953 | BO52: 1566.412871 | BQ52: 17.96207383 | BR52: 0.9264685956 | BS52: 81.46717306 | BT52: 6.176457304 | BU52: 106.5321728 | BW52: 41 | BX52: =DepartureOnDay(BA$12:BA$191,BX$6,$BW52,BX$4,BX$5) -> 554.3249309 | BY52: =DepartureOnDay(BB$12:BB$191,BY$6,$BW52,BY$4,BY$5) -> 17.1870746 | BZ52: =DepartureOnDay(BC$12:BC$191,BZ$6,$BW52,BZ$4,BZ$5) -> 22.78315373 | CA52: =DepartureOnDay(BD$12:BD$191,CA$6,$BW52,CA$4,CA$5) -> 1.165107338 | CB52: =DepartureOnDay(BE$12:BE$191,CB$6,$BW52,CB$4,CB$5) -> 1318.930223 | CC52: =DepartureOnDay(BF$12:BF$191,CC$6,$BW52,CC$4,CC$5) -> 77.95215596 | CD52: =DepartureOnDay(BG$12:BG$191,CD$6,$BW52,CD$4,CD$5) -> 79.88613385 | CE52: =DepartureOnDay(BH$12:BH$191,CE$6,$BW52,CE$4,CE$5) -> 7.767382256 | CF52: 1975.924441 | CG52: 104.0717202 | CI52: =DepartureOnDay(BA$12:BA$191,CI$6,$BW52,CI$4,CI$5) -> 31.4388653 | CJ52: =DepartureOnDay(BB$12:BB$191,CJ$6,$BW52,CJ$4,CJ$5) -> 4.668604488 | CK52: =DepartureOnDay(BC$12:BC$191,CK$6,$BW52,CK$4,CK$5) -> 0.002278543227 | CL52: =DepartureOnDay(BD$12:BD$191,CL$6,$BW52,CL$4,CL$5) -> 0.0002330680813 | CM52: =DepartureOnDay(BE$12:BE$191,CM$6,$BW52,CM$4,CM$5) -> 74.80390527 | CN52: =DepartureOnDay(BF$12:BF$191,CN$6,$BW52,CN$4,CN$5) -> 21.17450431 | CO52: =DepartureOnDay(BG$12:BG$191,CO$6,$BW52,CO$4,CO$5) -> 0.007989412326 | CP52: =DepartureOnDay(BH$12:BH$191,CP$6,$BW52,CP$4,CP$5) -> 0.001553787209 | CQ52: 106.2530385 | CR52: 25.84489565 | CT52: =DepartureOnDay(BK$12:BK$191,CT$6,$BW52,CT$4,CT$5) -> 10.45645931 | CU52: =DepartureOnDay(BL$12:BL$191,CU$6,$BW52,CU$4,CU$5) -> 0.5393353387 | CV52: =DepartureOnDay(BM$12:BM$191,CV$6,$BW52,CV$4,CV$5) -> 47.42538018 | CW52: =DepartureOnDay(BN$12:BN$191,CW$6,$BW52,CW$4,CW$5) -> 3.595568925 | CX52: 62.01674376 | CZ52: =DepartureOnDay(BK$12:BK$191,CZ$6,$BW52,CZ$4,CZ$5) -> 228.4907982 | DA52: =DepartureOnDay(BL$12:BL$191,DA$6,$BW52,DA$4,DA$5) -> 11.78536236 | DB52: =DepartureOnDay(BM$12:BM$191,DB$6,$BW52,DB$4,DB$5) -> 1036.322397 | DC52: =DepartureOnDay(BN$12:BN$191,DC$6,$BW52,DC$4,DC$5) -> 78.56908243 | DD52: 1355.16764 | DF52: =DepartureOnDay(BQ$12:BQ$191,DF$6,$BW52,DF$4,DF$5) -> 0.9044773068 | DG52: =DepartureOnDay(BR$12:BR$191,DG$6,$BW52,DG$4,DG$5) -> 0.04665217546 | DH52: =DepartureOnDay(BS$12:BS$191,DH$6,$BW52,DH$4,DH$5) -> 4.102266251 | DI52: =DepartureOnDay(BT$12:BT$191,DI$6,$BW52,DI$4,DI$5) -> 0.3110145031 | DJ52: 5.364410236 | DL52: =DepartureOnDay(BQ$12:BQ$191,DL$6,$BW52,DL$4,DL$5) -> 17.16164138 | DM52: =DepartureOnDay(BR$12:BR$191,DM$6,$BW52,DM$4,DM$5) -> 0.8851829656 | DN52: =DepartureOnDay(BS$12:BS$191,DN$6,$BW52,DN$4,DN$5) -> 77.83680331 | DO52: =DepartureOnDay(BT$12:BT$191,DO$6,$BW52,DO$4,DO$5) -> 5.901219771 | DP52: 101.7848474 | DQ52: 1456.952487 | DR52: 15193.10343 | DS52: 41 | DT52: 3719.577068 | DU52: 351.4836 | DV52: 113.794523 | DW52: 7.090288103 | DX52: 8850.156898 | DY52: 1594.157531 | DZ52: 399.0055371 | EA52: 47.26858736 | EB52: 1166.333434 | EC52: 60.15849334 | ED52: 5289.917446 | EE52: 401.0566222 | EF52: 84.30351772 | EG52: 4.348304232 | EH52: 382.3594832 | EI52: 28.98869488 | EJ52: 2500.000006 | EK52: 20000.00002 | EL52: 2000.000006
A53: 42 | B53: ='C4-AnalyticOutput'!B49 -> 1903.597662 | C53: ='C4-AnalyticOutput'!C49 -> 308.2819795 | D53: ='C4-AnalyticOutput'!D49 -> 85.89903413 | E53: ='C4-AnalyticOutput'!E49 -> 15.9009241 | F53: ='C4-AnalyticOutput'!F49 -> 4529.315477 | G53: ='C4-AnalyticOutput'!G49 -> 1398.216131 | H53: ='C4-AnalyticOutput'!H49 -> 301.1936723 | I53: ='C4-AnalyticOutput'!I49 -> 106.0061606 | J53: 6820.005846 | K53: 1828.405195 | T53: 3499.361863 | U53: 237.0658735 | V53: 6820.005846 | W53: 1828.405195 | X53: 237.0658735 | Y53: 1591.339322 | Z53: 1591.339322 | AA53: 0 | AB53: 1908.022541 | AC53: 4911.983305 | AD53: 231.7512184 | AE53: 1463.028095 | AF53: 1962.431515 | AG53: 0.8703428134 | AH53: 0 | AI53: 0.7202315387 | AJ53: 129.9166158 | AK53: 129.9166158 | AL53: 107.1492577 | AM53: 123.0310428 | AN53: 108.7201756 | AO53: 0.4519809456 | AQ53: 1371.031074 | AR53: 0 | AS53: 61.86719353 | AT53: 0 | AU53: 3262.155855 | AV53: 0 | AW53: 216.929182 | AX53: 0 | AY53: 4911.983305 | BA53: 532.5665889 | BB53: 21.90485545 | BC53: 24.0318406 | BD53: 1.129833941 | BE53: 1267.159622 | BF53: 99.34970016 | BG53: 84.26449023 | BH53: 7.532226272 | BI53: 2037.939157 | BK53: 268.3110054 | BL53: 13.83925501 | BM53: 1216.927361 | BN53: 92.26170009 | BO53: 1591.339322 | BQ53: 18.06611868 | BR53: 0.931835141 | BS53: 81.93906956 | BT53: 6.212234274 | BU53: 107.1492577 | BW53: 42 | BX53: =DepartureOnDay(BA$12:BA$191,BX$6,$BW53,BX$4,BX$5) -> 516.5725939 | BY53: =DepartureOnDay(BB$12:BB$191,BY$6,$BW53,BY$4,BY$5) -> 15.71909313 | BZ53: =DepartureOnDay(BC$12:BC$191,BZ$6,$BW53,BZ$4,BZ$5) -> 24.95995169 | CA53: =DepartureOnDay(BD$12:BD$191,CA$6,$BW53,CA$4,CA$5) -> 1.181000881 | CB53: =DepartureOnDay(BE$12:BE$191,CB$6,$BW53,CB$4,CB$5) -> 1229.10439 | CC53: =DepartureOnDay(BF$12:BF$191,CC$6,$BW53,CC$4,CC$5) -> 71.29411072 | CD53: =DepartureOnDay(BG$12:BG$191,CD$6,$BW53,CD$4,CD$5) -> 87.51878976 | CE53: =DepartureOnDay(BH$12:BH$191,CE$6,$BW53,CE$4,CE$5) -> 7.873339206 | CF53: 1858.155726 | CG53: 96.06754394 | CI53: =DepartureOnDay(BA$12:BA$191,CI$6,$BW53,CI$4,CI$5) -> 30.8534767 | CJ53: =DepartureOnDay(BB$12:BB$191,CJ$6,$BW53,CJ$4,CJ$5) -> 4.870677786 | CK53: =DepartureOnDay(BC$12:BC$191,CK$6,$BW53,CK$4,CK$5) -> 0.002496244793 | CL53: =DepartureOnDay(BD$12:BD$191,CL$6,$BW53,CL$4,CL$5) -> 0.0002362474257 | CM53: =DepartureOnDay(BE$12:BE$191,CM$6,$BW53,CM$4,CM$5) -> 73.41106385 | CN53: =DepartureOnDay(BF$12:BF$191,CN$6,$BW53,CN$4,CN$5) -> 22.09100986 | CO53: =DepartureOnDay(BG$12:BG$191,CO$6,$BW53,CO$4,CO$5) -> 0.008752754252 | CP53: =DepartureOnDay(BH$12:BH$191,CP$6,$BW53,CP$4,CP$5) -> 0.001574982838 | CQ53: 104.2757895 | CR53: 26.96349887 | CT53: =DepartureOnDay(BK$12:BK$191,CT$6,$BW53,CT$4,CT$5) -> 10.96428531 | CU53: =DepartureOnDay(BL$12:BL$191,CU$6,$BW53,CU$4,CU$5) -> 0.5655285748 | CV53: =DepartureOnDay(BM$12:BM$191,CV$6,$BW53,CV$4,CV$5) -> 49.7286303 | CW53: =DepartureOnDay(BN$12:BN$191,CW$6,$BW53,CW$4,CW$5) -> 3.770190499 | CX53: 65.02863468 | CZ53: =DepartureOnDay(BK$12:BK$191,CZ$6,$BW53,CZ$4,CZ$5) -> 235.7125445 | DA53: =DepartureOnDay(BL$12:BL$191,DA$6,$BW53,DA$4,DA$5) -> 12.15785394 | DB53: =DepartureOnDay(BM$12:BM$191,DB$6,$BW53,DB$4,DB$5) -> 1069.076702 | DC53: =DepartureOnDay(BN$12:BN$191,DC$6,$BW53,DC$4,DC$5) -> 81.05235958 | DD53: 1397.99946 | DF53: =DepartureOnDay(BQ$12:BQ$191,DF$6,$BW53,DF$4,DF$5) -> 0.9280939931 | DG53: =DepartureOnDay(BR$12:BR$191,DG$6,$BW53,DG$4,DG$5) -> 0.0478703042 | DH53: =DepartureOnDay(BS$12:BS$191,DH$6,$BW53,DH$4,DH$5) -> 4.209379978 | DI53: =DepartureOnDay(BT$12:BT$191,DI$6,$BW53,DI$4,DI$5) -> 0.3191353613 | DJ53: 5.504479637 | DL53: =DepartureOnDay(BQ$12:BQ$191,DL$6,$BW53,DL$4,DL$5) -> 17.4028925 | DM53: =DepartureOnDay(BR$12:BR$191,DM$6,$BW53,DM$4,DM$5) -> 0.8976264951 | DN53: =DepartureOnDay(BS$12:BS$191,DN$6,$BW53,DN$4,DN$5) -> 78.93100032 | DO53: =DepartureOnDay(BT$12:BT$191,DO$6,$BW53,DO$4,DO$5) -> 5.984176634 | DP53: 103.215696 | DQ53: 1501.215156 | DR53: 16694.31859 | DS53: 42 | DT53: 3666.379861 | DU53: 351.5327763 | DV53: 115.0409313 | DW53: 7.054781638 | DX53: 8723.582391 | DY53: 1594.38057 | DZ53: 403.3759041 | EA53: 47.03187758 | EB53: 1195.697182 | EC53: 61.67305065 | ED53: 5423.097031 | EE53: 411.153671 | EF53: 84.30351772 | EG53: 4.348304232 | EH53: 382.3594832 | EI53: 28.98869488 | EJ53: 2500.000006 | EK53: 20000.00002 | EL53: 2000.000006
A54: 43 | B54: ='C4-AnalyticOutput'!B50 -> 1917.722225 | C54: ='C4-AnalyticOutput'!C50 -> 310.5694105 | D54: ='C4-AnalyticOutput'!D50 -> 86.53639901 | E54: ='C4-AnalyticOutput'!E50 -> 16.01890785 | F54: ='C4-AnalyticOutput'!F50 -> 4562.922684 | G54: ='C4-AnalyticOutput'!G50 -> 1408.590798 | H54: ='C4-AnalyticOutput'!H50 -> 303.4285084 | I54: ='C4-AnalyticOutput'!I50 -> 106.792719 | J54: 6870.609817 | K54: 1841.971835 | T54: 3425.45961 | U54: 231.7512184 | V54: 6870.609817 | W54: 1841.971835 | X54: 231.7512184 | Y54: 1610.220617 | Z54: 1610.220617 | AA54: 0 | AB54: 1815.238993 | AC54: 5055.370824 | AD54: 221.3655934 | AE54: 1504.622152 | AF54: 1937.079079 | AG54: 0.8741830825 | AH54: 0 | AI54: 0.7357965244 | AJ54: 123.0310428 | AK54: 123.0310428 | AL54: 108.7201756 | AM54: 113.0850148 | AN54: 108.2805787 | AO54: 0.4691245049 | AQ54: 1411.053348 | AR54: 0 | AS54: 63.67318162 | AT54: 0 | AU54: 3357.382652 | AV54: 0 | AW54: 223.2616419 | AX54: 0 | AY54: 5055.370824 | BA54: 506.6688772 | BB54: 20.7438994 | BC54: 22.86321739 | BD54: 1.069952808 | BE54: 1205.540032 | BF54: 94.08417189 | BG54: 80.16686654 | BH54: 7.133018722 | BI54: 1938.270036 | BK54: 271.4945246 | BL54: 14.00345824 | BM54: 1231.366245 | BN54: 93.35638829 | BO54: 1610.220617 | BQ54: 18.3309865 | BR54: 0.9454967993 | BS54: 83.1403803 | BT54: 6.303311995 | BU54: 108.7201756 | BW54: 43 | BX54: =DepartureOnDay(BA$12:BA$191,BX$6,$BW54,BX$4,BX$5) -> 507.99247 | BY54: =DepartureOnDay(BB$12:BB$191,BY$6,$BW54,BY$4,BY$5) -> 13.69887606 | BZ54: =DepartureOnDay(BC$12:BC$191,BZ$6,$BW54,BZ$4,BZ$5) -> 26.50240892 | CA54: =DepartureOnDay(BD$12:BD$191,CA$6,$BW54,CA$4,CA$5) -> 1.190404094 | CB54: =DepartureOnDay(BE$12:BE$191,CB$6,$BW54,CB$4,CB$5) -> 1208.689316 | CC54: =DepartureOnDay(BF$12:BF$191,CC$6,$BW54,CC$4,CC$5) -> 62.13139513 | CD54: =DepartureOnDay(BG$12:BG$191,CD$6,$BW54,CD$4,CD$5) -> 92.92721328 | CE54: =DepartureOnDay(BH$12:BH$191,CE$6,$BW54,CE$4,CE$5) -> 7.936027292 | CF54: 1836.111408 | CG54: 84.95670258 | CI54: =DepartureOnDay(BA$12:BA$191,CI$6,$BW54,CI$4,CI$5) -> 29.87434772 | CJ54: =DepartureOnDay(BB$12:BB$191,CJ$6,$BW54,CJ$4,CJ$5) -> 5.081100821 | CK54: =DepartureOnDay(BC$12:BC$191,CK$6,$BW54,CK$4,CK$5) -> 0.002650505942 | CL54: =DepartureOnDay(BD$12:BD$191,CL$6,$BW54,CL$4,CL$5) -> 0.0002381284445 | CM54: =DepartureOnDay(BE$12:BE$191,CM$6,$BW54,CM$4,CM$5) -> 71.08137825 | CN54: =DepartureOnDay(BF$12:BF$191,CN$6,$BW54,CN$4,CN$5) -> 23.04538573 | CO54: =DepartureOnDay(BG$12:BG$191,CO$6,$BW54,CO$4,CO$5) -> 0.009293650693 | CP54: =DepartureOnDay(BH$12:BH$191,CP$6,$BW54,CP$4,CP$5) -> 0.001587522963 | CQ54: 100.9676701 | CR54: 28.1283122 | CT54: =DepartureOnDay(BK$12:BK$191,CT$6,$BW54,CT$4,CT$5) -> 11.46878884 | CU54: =DepartureOnDay(BL$12:BL$191,CU$6,$BW54,CU$4,CU$5) -> 0.5915504408 | CV54: =DepartureOnDay(BM$12:BM$191,CV$6,$BW54,CV$4,CV$5) -> 52.01681133 | CW54: =DepartureOnDay(BN$12:BN$191,CW$6,$BW54,CW$4,CW$5) -> 3.943669606 | CX54: 68.02082022 | CZ54: =DepartureOnDay(BK$12:BK$191,CZ$6,$BW54,CZ$4,CZ$5) -> 242.2210916 | DA54: =DepartureOnDay(BL$12:BL$191,DA$6,$BW54,DA$4,DA$5) -> 12.4935593 | DB54: =DepartureOnDay(BM$12:BM$191,DB$6,$BW54,DB$4,DB$5) -> 1098.596285 | DC54: =DepartureOnDay(BN$12:BN$191,DC$6,$BW54,DC$4,DC$5) -> 83.29039532 | DD54: 1436.601331 | DF54: =DepartureOnDay(BQ$12:BQ$191,DF$6,$BW54,DF$4,DF$5) -> 0.9122880095 | DG54: =DepartureOnDay(BR$12:BR$191,DG$6,$BW54,DG$4,DG$5) -> 0.04705504491 | DH54: =DepartureOnDay(BS$12:BS$191,DH$6,$BW54,DH$4,DH$5) -> 4.137691774 | DI54: =DepartureOnDay(BT$12:BT$191,DI$6,$BW54,DI$4,DI$5) -> 0.3137002994 | DJ54: 5.410735128 | DL54: =DepartureOnDay(BQ$12:BQ$191,DL$6,$BW54,DL$4,DL$5) -> 17.34457935 | DM54: =DepartureOnDay(BR$12:BR$191,DM$6,$BW54,DM$4,DM$5) -> 0.8946187519 | DN54: =DepartureOnDay(BS$12:BS$191,DN$6,$BW54,DN$4,DN$5) -> 78.66652041 | DO54: =DepartureOnDay(BT$12:BT$191,DO$6,$BW54,DO$4,DO$5) -> 5.964125013 | DP54: 102.8698435 | DQ54: 1539.471175 | DR54: 18233.78976 | DS54: 43 | DT54: 3625.622667 | DU54: 351.6869048 | DV54: 112.9417007 | DW54: 6.943497318 | DX54: 8626.606969 | DY54: 1595.079622 | DZ54: 396.0152281 | EA54: 46.28998212 | EB54: 1220.514877 | EC54: 62.95312638 | ED54: 5535.657944 | EE54: 419.6875092 | EF54: 84.30351772 | EG54: 4.348304232 | EH54: 382.3594832 | EI54: 28.98869488 | EJ54: 2500.000006 | EK54: 20000.00002 | EL54: 2000.000006
A55: 44 | B55: ='C4-AnalyticOutput'!B51 -> 1924.298143 | C55: ='C4-AnalyticOutput'!C51 -> 311.6343607 | D55: ='C4-AnalyticOutput'!D51 -> 86.83313449 | E55: ='C4-AnalyticOutput'!E51 -> 16.07383709 | F55: ='C4-AnalyticOutput'!F51 -> 4578.56906 | G55: ='C4-AnalyticOutput'!G51 -> 1413.420891 | H55: ='C4-AnalyticOutput'!H51 -> 304.4689724 | I55: ='C4-AnalyticOutput'!I51 -> 107.1589139 | J55: 6894.16931 | K55: 1848.288002 | T55: 3441.70123 | U55: 221.3655934 | V55: 6894.16931 | W55: 1848.288002 | X55: 221.3655934 | Y55: 1626.922409 | Z55: 1626.922409 | AA55: 0 | AB55: 1814.778821 | AC55: 5079.390488 | AD55: 206.511247 | AE55: 1541.176774 | AF55: 1969.617849 | AG55: 0.8802320888 | AH55: 0 | AI55: 0.7367661368 | AJ55: 113.0850148 | AK55: 113.0850148 | AL55: 108.2805787 | AM55: 99.68028492 | AN55: 106.8309621 | AO55: 0.4891481868 | AQ55: 1417.757709 | AR55: 0 | AS55: 63.97571304 | AT55: 0 | AU55: 3373.334638 | AV55: 0 | AW55: 224.3224285 | AX55: 0 | AY55: 5079.390488 | BA55: 506.5404341 | BB55: 19.06692909 | BC55: 22.85742145 | BD55: 0.9834560967 | BE55: 1205.234422 | BF55: 86.47825561 | BG55: 80.14654384 | BH55: 6.556373978 | BI55: 1927.863836 | BK55: 274.3105643 | BL55: 14.14870719 | BM55: 1244.138423 | BN55: 94.32471462 | BO55: 1626.922409 | BQ55: 18.25686736 | BR55: 0.9416737968 | BS55: 82.80421218 | BT55: 6.277825312 | BU55: 108.2805787 | BW55: 44 | BX55: =DepartureOnDay(BA$12:BA$191,BX$6,$BW55,BX$4,BX$5) -> 518.8521759 | BY55: =DepartureOnDay(BB$12:BB$191,BY$6,$BW55,BY$4,BY$5) -> 11.06553647 | BZ55: =DepartureOnDay(BC$12:BC$191,BZ$6,$BW55,BZ$4,BZ$5) -> 26.48256687 | CA55: =DepartureOnDay(BD$12:BD$191,CA$6,$BW55,CA$4,CA$5) -> 1.19242253 | CB55: =DepartureOnDay(BE$12:BE$191,CB$6,$BW55,CB$4,CB$5) -> 1234.528302 | CC55: =DepartureOnDay(BF$12:BF$191,CC$6,$BW55,CC$4,CC$5) -> 50.18785599 | CD55: =DepartureOnDay(BG$12:BG$191,CD$6,$BW55,CD$4,CD$5) -> 92.85763977 | CE55: =DepartureOnDay(BH$12:BH$191,CE$6,$BW55,CE$4,CE$5) -> 7.949483532 | CF55: 1872.720685 | CG55: 70.39529852 | CI55: =DepartureOnDay(BA$12:BA$191,CI$6,$BW55,CI$4,CI$5) -> 28.66982525 | CJ55: =DepartureOnDay(BB$12:BB$191,CJ$6,$BW55,CJ$4,CJ$5) -> 5.290055554 | CK55: =DepartureOnDay(BC$12:BC$191,CK$6,$BW55,CK$4,CK$5) -> 0.00264852154 | CL55: =DepartureOnDay(BD$12:BD$191,CL$6,$BW55,CL$4,CL$5) -> 0.0002385322124 | CM55: =DepartureOnDay(BE$12:BE$191,CM$6,$BW55,CM$4,CM$5) -> 68.21540381 | CN55: =DepartureOnDay(BF$12:BF$191,CN$6,$BW55,CN$4,CN$5) -> 23.9931021 | CO55: =DepartureOnDay(BG$12:BG$191,CO$6,$BW55,CO$4,CO$5) -> 0.009286692646 | CP55: =DepartureOnDay(BH$12:BH$191,CP$6,$BW55,CP$4,CP$5) -> 0.001590214749 | CQ55: 96.89716427 | CR55: 29.2849864 | CT55: =DepartureOnDay(BK$12:BK$191,CT$6,$BW55,CT$4,CT$5) -> 11.92044541 | CU55: =DepartureOnDay(BL$12:BL$191,CU$6,$BW55,CU$4,CU$5) -> 0.6148465049 | CV55: =DepartureOnDay(BM$12:BM$191,CV$6,$BW55,CV$4,CV$5) -> 54.06530438 | CW55: =DepartureOnDay(BN$12:BN$191,CW$6,$BW55,CW$4,CW$5) -> 4.098976699 | CX55: 70.69957299 | CZ55: =DepartureOnDay(BK$12:BK$191,CZ$6,$BW55,CZ$4,CZ$5) -> 247.9328015 | DA55: =DepartureOnDay(BL$12:BL$191,DA$6,$BW55,DA$4,DA$5) -> 12.78816447 | DB55: =DepartureOnDay(BM$12:BM$191,DB$6,$BW55,DB$4,DB$5) -> 1124.501805 | DC55: =DepartureOnDay(BN$12:BN$191,DC$6,$BW55,DC$4,DC$5) -> 85.2544298 | DD55: 1470.477201 | DF55: =DepartureOnDay(BQ$12:BQ$191,DF$6,$BW55,DF$4,DF$5) -> 0.9016740927 | DG55: =DepartureOnDay(BR$12:BR$191,DG$6,$BW55,DG$4,DG$5) -> 0.04650758805 | DH55: =DepartureOnDay(BS$12:BS$191,DH$6,$BW55,DH$4,DH$5) -> 4.089552244 | DI55: =DepartureOnDay(BT$12:BT$191,DI$6,$BW55,DI$4,DI$5) -> 0.310050587 | DJ55: 5.347784512 | DL55: =DepartureOnDay(BQ$12:BQ$191,DL$6,$BW55,DL$4,DL$5) -> 17.11077771 | DM55: =DepartureOnDay(BR$12:BR$191,DM$6,$BW55,DM$4,DM$5) -> 0.8825594609 | DN55: =DepartureOnDay(BS$12:BS$191,DN$6,$BW55,DN$4,DN$5) -> 77.60611064 | DO55: =DepartureOnDay(BT$12:BT$191,DO$6,$BW55,DO$4,DO$5) -> 5.883729739 | DP55: 101.4831776 | DQ55: 1571.960378 | DR55: 19805.75014 | DS55: 44 | DT55: 3594.296284 | DU55: 351.973857 | DV55: 109.2940628 | DW55: 6.736311192 | DX55: 8552.070697 | DY55: 1596.381096 | DZ55: 383.225265 | EA55: 44.90874128 | EB55: 1241.135561 | EC55: 64.01672383 | ED55: 5629.18327 | EE55: 426.7781589 | EF55: 84.30351772 | EG55: 4.348304232 | EH55: 382.3594832 | EI55: 28.98869488 | EJ55: 2500.000006 | EK55: 20000.00002 | EL55: 2000.000006
A56: 45 | B56: ='C4-AnalyticOutput'!B52 -> 1923.598412 | C56: ='C4-AnalyticOutput'!C52 -> 311.5210415 | D56: ='C4-AnalyticOutput'!D52 -> 86.80155945 | E56: ='C4-AnalyticOutput'!E52 -> 16.06799217 | F56: ='C4-AnalyticOutput'!F52 -> 4576.90416 | G56: ='C4-AnalyticOutput'!G52 -> 1412.90693 | H56: ='C4-AnalyticOutput'!H52 -> 304.3582587 | I56: ='C4-AnalyticOutput'!I52 -> 107.1199478 | J56: 6891.662391 | K56: 1847.615912 | T56: 3510.794623 | U56: 206.511247 | V56: 6891.662391 | W56: 1847.615912 | X56: 206.511247 | Y56: 1641.104665 | Z56: 1641.104665 | AA56: 0 | AB56: 1869.689958 | AC56: 5021.972432 | AD56: 210.07302 | AE56: 1570.31843 | AF56: 2037.435413 | AG56: 0.8882282591 | AH56: 0 | AI56: 0.7287026189 | AJ56: 99.68028492 | AK56: 99.68028492 | AL56: 106.8309621 | AM56: 103.056292 | AN56: 107.016728 | AO56: 0.5173130453 | AQ56: 1401.731201 | AR56: 0 | AS56: 63.25252369 | AT56: 0 | AU56: 3335.202048 | AV56: 0 | AW56: 221.7866602 | AX56: 0 | AY56: 5021.972432 | BA56: 521.8672116 | BB56: 16.80679733 | BC56: 23.54903576 | BD56: 0.8668804095 | BE56: 1241.702112 | BF56: 76.22740445 | BG56: 82.57159851 | BH56: 5.77920273 | BI56: 1969.370243 | BK56: 276.7017923 | BL56: 14.27204472 | BM56: 1254.983863 | BN56: 95.14696478 | BO56: 1641.104665 | BQ56: 18.01245181 | BR56: 0.9290670489 | BS56: 81.69566288 | BT56: 6.193780326 | BU56: 106.8309621 | BW56: 45 | BX56: =DepartureOnDay(BA$12:BA$191,BX$6,$BW56,BX$4,BX$5) -> 541.55946 | BY56: =DepartureOnDay(BB$12:BB$191,BY$6,$BW56,BY$4,BY$5) -> 11.48361436 | BZ56: =DepartureOnDay(BC$12:BC$191,BZ$6,$BW56,BZ$4,BZ$5) -> 25.06978072 | CA56: =DepartureOnDay(BD$12:BD$191,CA$6,$BW56,CA$4,CA$5) -> 1.184203187 | CB56: =DepartureOnDay(BE$12:BE$191,CB$6,$BW56,CB$4,CB$5) -> 1288.556764 | CC56: =DepartureOnDay(BF$12:BF$191,CC$6,$BW56,CC$4,CC$5) -> 52.08405261 | CD56: =DepartureOnDay(BG$12:BG$191,CD$6,$BW56,CD$4,CD$5) -> 87.90389083 | CE56: =DepartureOnDay(BH$12:BH$191,CE$6,$BW56,CE$4,CE$5) -> 7.89468791 | CF56: 1943.089896 | CG56: 72.64655807 | CI56: =DepartureOnDay(BA$12:BA$191,CI$6,$BW56,CI$4,CI$5) -> 27.91494216 | CJ56: =DepartureOnDay(BB$12:BB$191,CJ$6,$BW56,CJ$4,CJ$5) -> 5.493245517 | CK56: =DepartureOnDay(BC$12:BC$191,CK$6,$BW56,CK$4,CK$5) -> 0.002507228795 | CL56: =DepartureOnDay(BD$12:BD$191,CL$6,$BW56,CL$4,CL$5) -> 0.0002368880149 | CM56: =DepartureOnDay(BE$12:BE$191,CM$6,$BW56,CM$4,CM$5) -> 66.41927654 | CN56: =DepartureOnDay(BF$12:BF$191,CN$6,$BW56,CN$4,CN$5) -> 24.91467229 | CO56: =DepartureOnDay(BG$12:BG$191,CO$6,$BW56,CO$4,CO$5) -> 0.00879126821 | CP56: =DepartureOnDay(BH$12:BH$191,CP$6,$BW56,CP$4,CP$5) -> 0.001579253433 | CQ56: 94.34551719 | CR56: 30.40973395 | CT56: =DepartureOnDay(BK$12:BK$191,CT$6,$BW56,CT$4,CT$5) -> 12.31569649 | CU56: =DepartureOnDay(BL$12:BL$191,CU$6,$BW56,CU$4,CU$5) -> 0.6352332217 | CV56: =DepartureOnDay(BM$12:BM$191,CV$6,$BW56,CV$4,CV$5) -> 55.85796977 | CW56: =DepartureOnDay(BN$12:BN$191,CW$6,$BW56,CW$4,CW$5) -> 4.234888144 | CX56: 73.04378762 | CZ56: =DepartureOnDay(BK$12:BK$191,CZ$6,$BW56,CZ$4,CZ$5) -> 252.4510386 | DA56: =DepartureOnDay(BL$12:BL$191,DA$6,$BW56,DA$4,DA$5) -> 13.02121132 | DB56: =DepartureOnDay(BM$12:BM$191,DB$6,$BW56,DB$4,DB$5) -> 1144.994316 | DC56: =DepartureOnDay(BN$12:BN$191,DC$6,$BW56,DC$4,DC$5) -> 86.80807549 | DD56: 1497.274642 | DF56: =DepartureOnDay(BQ$12:BQ$191,DF$6,$BW56,DF$4,DF$5) -> 0.9001739192 | DG56: =DepartureOnDay(BR$12:BR$191,DG$6,$BW56,DG$4,DG$5) -> 0.04643021037 | DH56: =DepartureOnDay(BS$12:BS$191,DH$6,$BW56,DH$4,DH$5) -> 4.082748191 | DI56: =DepartureOnDay(BT$12:BT$191,DI$6,$BW56,DI$4,DI$5) -> 0.3095347358 | DJ56: 5.338887057 | DL56: =DepartureOnDay(BQ$12:BQ$191,DL$6,$BW56,DL$4,DL$5) -> 17.14359934 | DM56: =DepartureOnDay(BR$12:BR$191,DM$6,$BW56,DM$4,DM$5) -> 0.8842523724 | DN56: =DepartureOnDay(BS$12:BS$191,DN$6,$BW56,DN$4,DN$5) -> 77.75497345 | DO56: =DepartureOnDay(BT$12:BT$191,DO$6,$BW56,DO$4,DO$5) -> 5.895015816 | DP56: 101.677841 | DQ56: 1598.952483 | DR56: 21404.70262 | DS56: 45 | DT56: 3568.641494 | DU56: 352.4250623 | DV56: 106.3578831 | DW56: 6.410530539 | DX56: 8491.029103 | DY56: 1598.427543 | DZ56: 372.9299371 | EA56: 42.73687026 | EB56: 1257.984106 | EC56: 64.88575757 | ED56: 5705.600024 | EE56: 432.5717172 | EF56: 84.30351772 | EG56: 4.348304232 | EH56: 382.3594832 | EI56: 28.98869488 | EJ56: 2500.000006 | EK56: 20000.00002 | EL56: 2000.000006
A57: 46 | B57: ='C4-AnalyticOutput'!B53 -> 1915.95707 | C57: ='C4-AnalyticOutput'!C53 -> 310.2835489 | D57: ='C4-AnalyticOutput'!D53 -> 86.45674715 | E57: ='C4-AnalyticOutput'!E53 -> 16.00416335 | F57: ='C4-AnalyticOutput'!F53 -> 4558.722772 | G57: ='C4-AnalyticOutput'!G53 -> 1407.294269 | H57: ='C4-AnalyticOutput'!H53 -> 303.1492197 | I57: ='C4-AnalyticOutput'!I53 -> 106.6944223 | J57: 6864.285809 | K57: 1840.276404 | T57: 3607.753842 | U57: 210.07302 | V57: 6864.285809 | W57: 1840.276404 | X57: 210.07302 | Y57: 1630.203384 | Z57: 1630.203384 | AA57: 0 | AB57: 1977.550458 | AC57: 4886.735351 | AD57: 217.2114857 | AE57: 1593.851885 | AF57: 2033.684677 | AG57: 0.8858470284 | AH57: 0 | AI57: 0.7119073253 | AJ57: 103.056292 | AK57: 103.056292 | AL57: 107.016728 | AM57: 109.5701855 | AN57: 107.6413001 | AO57: 0.5094263319 | AQ57: 1363.983873 | AR57: 0 | AS57: 61.54919162 | AT57: 0 | AU57: 3245.388136 | AV57: 0 | AW57: 215.8141501 | AX57: 0 | AY57: 4886.735351 | BA57: 551.9731969 | BB57: 17.37601588 | BC57: 24.90755553 | BD57: 0.8962402215 | BE57: 1313.334636 | BF57: 78.80910111 | BG57: 87.33506951 | BH57: 5.97493481 | BI57: 2080.60675 | BK57: 274.8637597 | BL57: 14.17724055 | BM57: 1246.647447 | BN57: 94.51493698 | BO57: 1630.203384 | BQ57: 18.04377325 | BR57: 0.9306825828 | BS57: 81.83772164 | BT57: 6.204550552 | BU57: 107.016728 | BW57: 46 | BX57: =DepartureOnDay(BA$12:BA$191,BX$6,$BW57,BX$4,BX$5) -> 542.924568 | BY57: =DepartureOnDay(BB$12:BB$191,BY$6,$BW57,BY$4,BY$5) -> 12.50704663 | BZ57: =DepartureOnDay(BC$12:BC$191,BZ$6,$BW57,BZ$4,BZ$5) -> 23.44518424 | CA57: =DepartureOnDay(BD$12:BD$191,CA$6,$BW57,CA$4,CA$5) -> 1.162595329 | CB57: =DepartureOnDay(BE$12:BE$191,CB$6,$BW57,CB$4,CB$5) -> 1291.804827 | CC57: =DepartureOnDay(BF$12:BF$191,CC$6,$BW57,CC$4,CC$5) -> 56.72584031 | CD57: =DepartureOnDay(BG$12:BG$191,CD$6,$BW57,CD$4,CD$5) -> 82.20745682 | CE57: =DepartureOnDay(BH$12:BH$191,CE$6,$BW57,CE$4,CE$5) -> 7.750635525 | CF57: 1940.382036 | CG57: 78.14611779 | CI57: =DepartureOnDay(BA$12:BA$191,CI$6,$BW57,CI$4,CI$5) -> 27.60655583 | CJ57: =DepartureOnDay(BB$12:BB$191,CJ$6,$BW57,CJ$4,CJ$5) -> 5.676492745 | CK57: =DepartureOnDay(BC$12:BC$191,CK$6,$BW57,CK$4,CK$5) -> 0.002344752899 | CL57: =DepartureOnDay(BD$12:BD$191,CL$6,$BW57,CL$4,CL$5) -> 0.0002325655789 | CM57: =DepartureOnDay(BE$12:BE$191,CM$6,$BW57,CM$4,CM$5) -> 65.68551909 | CN57: =DepartureOnDay(BF$12:BF$191,CN$6,$BW57,CN$4,CN$5) -> 25.745792 | CO57: =DepartureOnDay(BG$12:BG$191,CO$6,$BW57,CO$4,CO$5) -> 0.008221567838 | CP57: =DepartureOnDay(BH$12:BH$191,CP$6,$BW57,CP$4,CP$5) -> 0.001550437192 | CQ57: 93.30264125 | CR57: 31.42406775 | CT57: =DepartureOnDay(BK$12:BK$191,CT$6,$BW57,CT$4,CT$5) -> 12.65636413 | CU57: =DepartureOnDay(BL$12:BL$191,CU$6,$BW57,CU$4,CU$5) -> 0.6528045708 | CV57: =DepartureOnDay(BM$12:BM$191,CV$6,$BW57,CV$4,CV$5) -> 57.4030714 | CW57: =DepartureOnDay(BN$12:BN$191,CW$6,$BW57,CW$4,CW$5) -> 4.352030472 | CX57: 75.06427057 | CZ57: =DepartureOnDay(BK$12:BK$191,CZ$6,$BW57,CZ$4,CZ$5) -> 256.0782771 | DA57: =DepartureOnDay(BL$12:BL$191,DA$6,$BW57,DA$4,DA$5) -> 13.20830122 | DB57: =DepartureOnDay(BM$12:BM$191,DB$6,$BW57,DB$4,DB$5) -> 1161.445694 | DC57: =DepartureOnDay(BN$12:BN$191,DC$6,$BW57,DC$4,DC$5) -> 88.05534148 | DD57: 1518.787614 | DF57: =DepartureOnDay(BQ$12:BQ$191,DF$6,$BW57,DF$4,DF$5) -> 0.9027694924 | DG57: =DepartureOnDay(BR$12:BR$191,DG$6,$BW57,DG$4,DG$5) -> 0.04656408784 | DH57: =DepartureOnDay(BS$12:BS$191,DH$6,$BW57,DH$4,DH$5) -> 4.094520441 | DI57: =DepartureOnDay(BT$12:BT$191,DI$6,$BW57,DI$4,DI$5) -> 0.3104272523 | DJ57: 5.354281273 | DL57: =DepartureOnDay(BQ$12:BQ$191,DL$6,$BW57,DL$4,DL$5) -> 17.24631101 | DM57: =DepartureOnDay(BR$12:BR$191,DM$6,$BW57,DM$4,DM$5) -> 0.889550154 | DN57: =DepartureOnDay(BS$12:BS$191,DN$6,$BW57,DN$4,DN$5) -> 78.22082333 | DO57: =DepartureOnDay(BT$12:BT$191,DO$6,$BW57,DO$4,DO$5) -> 5.93033436 | DP57: 102.2870189 | DQ57: 1621.074633 | DR57: 23025.77726 | DS57: 46 | DT57: 3551.140289 | DU57: 352.8242183 | DV57: 106.1931507 | DW57: 6.122330686 | DX57: 8449.387699 | DY57: 1600.237919 | DZ57: 372.3523245 | EA57: 40.81553791 | EB57: 1268.081131 | EC57: 65.40655357 | ED57: 5751.395184 | EE57: 436.0436905 | EF57: 84.30351772 | EG57: 4.348304232 | EH57: 382.3594832 | EI57: 28.98869488 | EJ57: 2500.000006 | EK57: 20000.00002 | EL57: 2000.000006
A58: 47 | B58: ='C4-AnalyticOutput'!B54 -> 1901.759096 | C58: ='C4-AnalyticOutput'!C54 -> 307.9842292 | D58: ='C4-AnalyticOutput'!D54 -> 85.8160696 | E58: ='C4-AnalyticOutput'!E54 -> 15.88556638 | F58: ='C4-AnalyticOutput'!F54 -> 4524.940893 | G58: ='C4-AnalyticOutput'!G54 -> 1396.865681 | H58: ='C4-AnalyticOutput'!H54 -> 300.9027681 | I58: ='C4-AnalyticOutput'!I54 -> 105.9037759 | J58: 6813.418827 | K58: 1826.639252 | T58: 3627.536562 | U58: 217.2114857 | V58: 6813.418827 | W58: 1826.639252 | X58: 217.2114857 | Y58: 1609.427767 | Z58: 1609.427767 | AA58: 0 | AB58: 2018.108795 | AC58: 4795.310032 | AD58: 223.1003481 | AE58: 1613.28447 | AF58: 1972.060162 | AG58: 0.8810868181 | AH58: 0 | AI58: 0.7038037956 | AJ58: 109.5701855 | AK58: 109.5701855 | AL58: 107.6413001 | AM58: 115.3344006 | AN58: 107.7659475 | AO58: 0.4955598909 | AQ58: 1338.46527 | AR58: 0 | AS58: 60.39767551 | AT58: 0 | AU58: 3184.670576 | AV58: 0 | AW58: 211.7765103 | AX58: 0 | AY58: 4795.310032 | BA58: 563.2938259 | BB58: 18.47430416 | BC58: 25.41839409 | BD58: 0.952889003 | BE58: 1340.270318 | BF58: 83.79039903 | BG58: 89.12625778 | BH58: 6.352593353 | BI58: 2127.678981 | BK58: 271.3608445 | BL58: 13.99656314 | BM58: 1230.759938 | BN58: 93.31042092 | BO58: 1609.427767 | BQ58: 18.14908051 | BR58: 0.9361142419 | BS58: 82.31534378 | BT58: 6.240761612 | BU58: 107.6413001 | BW58: 47 | BX58: =DepartureOnDay(BA$12:BA$191,BX$6,$BW58,BX$4,BX$5) -> 525.6127944 | BY58: =DepartureOnDay(BB$12:BB$191,BY$6,$BW58,BY$4,BY$5) -> 13.44977446 | BZ58: =DepartureOnDay(BC$12:BC$191,BZ$6,$BW58,BZ$4,BZ$5) -> 22.85803339 | CA58: =DepartureOnDay(BD$12:BD$191,CA$6,$BW58,CA$4,CA$5) -> 1.122788224 | CB58: =DepartureOnDay(BE$12:BE$191,CB$6,$BW58,CB$4,CB$5) -> 1250.614146 | CC58: =DepartureOnDay(BF$12:BF$191,CC$6,$BW58,CC$4,CC$5) -> 61.00159223 | CD58: =DepartureOnDay(BG$12:BG$191,CD$6,$BW58,CD$4,CD$5) -> 80.14868952 | CE58: =DepartureOnDay(BH$12:BH$191,CE$6,$BW58,CE$4,CE$5) -> 7.485254829 | CF58: 1879.233663 | CG58: 83.05940975 | CI58: =DepartureOnDay(BA$12:BA$191,CI$6,$BW58,CI$4,CI$5) -> 27.46573636 | CJ58: =DepartureOnDay(BB$12:BB$191,CJ$6,$BW58,CJ$4,CJ$5) -> 5.83022457 | CK58: =DepartureOnDay(BC$12:BC$191,CK$6,$BW58,CK$4,CK$5) -> 0.002286031942 | CL58: =DepartureOnDay(BD$12:BD$191,CL$6,$BW58,CL$4,CL$5) -> 0.0002246025654 | CM58: =DepartureOnDay(BE$12:BE$191,CM$6,$BW58,CM$4,CM$5) -> 65.350461 | CN58: =DepartureOnDay(BF$12:BF$191,CN$6,$BW58,CN$4,CN$5) -> 26.4430443 | CO58: =DepartureOnDay(BG$12:BG$191,CO$6,$BW58,CO$4,CO$5) -> 0.008015670519 | CP58: =DepartureOnDay(BH$12:BH$191,CP$6,$BW58,CP$4,CP$5) -> 0.001497350436 | CQ58: 92.82649906 | CR58: 32.27499082 | CT58: =DepartureOnDay(BK$12:BK$191,CT$6,$BW58,CT$4,CT$5) -> 12.94186373 | CU58: =DepartureOnDay(BL$12:BL$191,CU$6,$BW58,CU$4,CU$5) -> 0.6675303989 | CV58: =DepartureOnDay(BM$12:BM$191,CV$6,$BW58,CV$4,CV$5) -> 58.6979578 | CW58: =DepartureOnDay(BN$12:BN$191,CW$6,$BW58,CW$4,CW$5) -> 4.450202659 | CX58: 76.75755458 | CZ58: =DepartureOnDay(BK$12:BK$191,CZ$6,$BW58,CZ$4,CZ$5) -> 259.0692481 | DA58: =DepartureOnDay(BL$12:BL$191,DA$6,$BW58,DA$4,DA$5) -> 13.36257298 | DB58: =DepartureOnDay(BM$12:BM$191,DB$6,$BW58,DB$4,DB$5) -> 1175.011274 | DC58: =DepartureOnDay(BN$12:BN$191,DC$6,$BW58,DC$4,DC$5) -> 89.08381985 | DD58: 1536.526915 | DF58: =DepartureOnDay(BQ$12:BQ$191,DF$6,$BW58,DF$4,DF$5) -> 0.9118211452 | DG58: =DepartureOnDay(BR$12:BR$191,DG$6,$BW58,DG$4,DG$5) -> 0.04703096445 | DH58: =DepartureOnDay(BS$12:BS$191,DH$6,$BW58,DH$4,DH$5) -> 4.135574307 | DI58: =DepartureOnDay(BT$12:BT$191,DI$6,$BW58,DI$4,DI$5) -> 0.313539763 | DJ58: 5.407966179 | DL58: =DepartureOnDay(BQ$12:BQ$191,DL$6,$BW58,DL$4,DL$5) -> 17.25827578 | DM58: =DepartureOnDay(BR$12:BR$191,DM$6,$BW58,DM$4,DM$5) -> 0.8901672867 | DN58: =DepartureOnDay(BS$12:BS$191,DN$6,$BW58,DN$4,DN$5) -> 78.27508967 | DO58: =DepartureOnDay(BT$12:BT$191,DO$6,$BW58,DO$4,DO$5) -> 5.934448578 | DP58: 102.3579813 | DQ58: 1638.884897 | DR58: 24664.66215 | DS58: 47 | DT58: 3543.902991 | DU58: 353.1149831 | DV58: 108.1640158 | DW58: 5.912391795 | DX58: 8432.16767 | DY58: 1601.556686 | DZ58: 379.2629039 | EA58: 39.4159453 | EB58: 1270.707334 | EC58: 65.54201092 | ED58: 5763.306357 | EE58: 436.9467395 | EF58: 84.30351772 | EG58: 4.348304232 | EH58: 382.3594832 | EI58: 28.98869488 | EJ58: 2500.000006 | EK58: 20000.00002 | EL58: 2000.000006
A59: 48 | B59: ='C4-AnalyticOutput'!B55 -> 1881.430538 | C59: ='C4-AnalyticOutput'!C55 -> 304.6920796 | D59: ='C4-AnalyticOutput'!D55 -> 84.89875206 | E59: ='C4-AnalyticOutput'!E55 -> 15.71576009 | F59: ='C4-AnalyticOutput'!F55 -> 4476.572241 | G59: ='C4-AnalyticOutput'!G55 -> 1381.934102 | H59: ='C4-AnalyticOutput'!H55 -> 297.6863147 | I59: ='C4-AnalyticOutput'!I55 -> 104.7717339 | J59: 6740.587846 | K59: 1807.113676 | T59: 3585.344632 | U59: 223.1003481 | V59: 6740.587846 | W59: 1807.113676 | X59: 223.1003481 | Y59: 1584.013328 | Z59: 1584.013328 | AA59: 0 | AB59: 2001.331304 | AC59: 4739.256542 | AD59: 227.8275659 | AE59: 1623.997347 | AF59: 1903.120321 | AG59: 0.8765432684 | AH59: 0 | AI59: 0.7030924676 | AJ59: 115.3344006 | AK59: 115.3344006 | AL59: 107.7659475 | AM59: 120.1003282 | AN59: 107.7272378 | AO59: 0.483038007 | AQ59: 1322.819639 | AR59: 0 | AS59: 59.69167309 | AT59: 0 | AU59: 3147.444223 | AV59: 0 | AW59: 209.3010056 | AX59: 0 | AY59: 4739.256542 | BA59: 558.6108983 | BB59: 19.44619136 | BC59: 25.20707898 | BD59: 1.003018124 | BE59: 1329.128018 | BF59: 88.19840358 | BG59: 88.38530912 | BH59: 6.686787495 | BI59: 2116.665705 | BK59: 267.0757913 | BL59: 13.77554372 | BM59: 1211.325035 | BN59: 91.8369581 | BO59: 1584.013328 | BQ59: 18.17009693 | BR59: 0.9371982511 | BS59: 82.41066397 | BT59: 6.247988341 | BU59: 107.7659475 | BW59: 48 | BX59: =DepartureOnDay(BA$12:BA$191,BX$6,$BW59,BX$4,BX$5) -> 504.5585218 | BY59: =DepartureOnDay(BB$12:BB$191,BY$6,$BW59,BY$4,BY$5) -> 14.28344016 | BZ59: =DepartureOnDay(BC$12:BC$191,BZ$6,$BW59,BZ$4,BZ$5) -> 23.20090828 | CA59: =DepartureOnDay(BD$12:BD$191,CA$6,$BW59,CA$4,CA$5) -> 1.060868732 | CB59: =DepartureOnDay(BE$12:BE$191,CB$6,$BW59,CB$4,CB$5) -> 1200.518769 | CC59: =DepartureOnDay(BF$12:BF$191,CC$6,$BW59,CC$4,CC$5) -> 64.78269172 | CD59: =DepartureOnDay(BG$12:BG$191,CD$6,$BW59,CD$4,CD$5) -> 81.35093526 | CE59: =DepartureOnDay(BH$12:BH$191,CE$6,$BW59,CE$4,CE$5) -> 7.072458216 | CF59: 1809.629134 | CG59: 87.19945883 | CI59: =DepartureOnDay(BA$12:BA$191,CI$6,$BW59,CI$4,CI$5) -> 27.66238187 | CJ59: =DepartureOnDay(BB$12:BB$191,CJ$6,$BW59,CJ$4,CJ$5) -> 5.943307813 | CK59: =DepartureOnDay(BC$12:BC$191,CK$6,$BW59,CK$4,CK$5) -> 0.00232032286 | CL59: =DepartureOnDay(BD$12:BD$191,CL$6,$BW59,CL$4,CL$5) -> 0.0002122161897 | CM59: =DepartureOnDay(BE$12:BE$191,CM$6,$BW59,CM$4,CM$5) -> 65.81834848 | CN59: =DepartureOnDay(BF$12:BF$191,CN$6,$BW59,CN$4,CN$5) -> 26.95593452 | CO59: =DepartureOnDay(BG$12:BG$191,CO$6,$BW59,CO$4,CO$5) -> 0.008135907117 | CP59: =DepartureOnDay(BH$12:BH$191,CP$6,$BW59,CP$4,CP$5) -> 0.001414774598 | CQ59: 93.49118658 | CR59: 32.90086933 | CT59: =DepartureOnDay(BK$12:BK$191,CT$6,$BW59,CT$4,CT$5) -> 13.19185104 | CU59: =DepartureOnDay(BL$12:BL$191,CU$6,$BW59,CU$4,CU$5) -> 0.6804245336 | CV59: =DepartureOnDay(BM$12:BM$191,CV$6,$BW59,CV$4,CV$5) -> 59.83177788 | CW59: =DepartureOnDay(BN$12:BN$191,CW$6,$BW59,CW$4,CW$5) -> 4.536163557 | CX59: 78.24021702 | CZ59: =DepartureOnDay(BK$12:BK$191,CZ$6,$BW59,CZ$4,CZ$5) -> 260.6255272 | DA59: =DepartureOnDay(BL$12:BL$191,DA$6,$BW59,DA$4,DA$5) -> 13.44284454 | DB59: =DepartureOnDay(BM$12:BM$191,DB$6,$BW59,DB$4,DB$5) -> 1182.069795 | DC59: =DepartureOnDay(BN$12:BN$191,DC$6,$BW59,DC$4,DC$5) -> 89.61896361 | DD59: 1545.75713 | DF59: =DepartureOnDay(BQ$12:BQ$191,DF$6,$BW59,DF$4,DF$5) -> 0.9106014509 | DG59: =DepartureOnDay(BR$12:BR$191,DG$6,$BW59,DG$4,DG$5) -> 0.04696805365 | DH59: =DepartureOnDay(BS$12:BS$191,DH$6,$BW59,DH$4,DH$5) -> 4.13004237 | DI59: =DepartureOnDay(BT$12:BT$191,DI$6,$BW59,DI$4,DI$5) -> 0.3131203577 | DJ59: 5.400732233 | DL59: =DepartureOnDay(BQ$12:BQ$191,DL$6,$BW59,DL$4,DL$5) -> 17.25296874 | DM59: =DepartureOnDay(BR$12:BR$191,DM$6,$BW59,DM$4,DM$5) -> 0.8898935541 | DN59: =DepartureOnDay(BS$12:BS$191,DN$6,$BW59,DN$4,DN$5) -> 78.25101954 | DO59: =DepartureOnDay(BT$12:BT$191,DO$6,$BW59,DO$4,DO$5) -> 5.932623694 | DP59: 102.3265055 | DQ59: 1648.083636 | DR59: 26312.74579 | DS59: 48 | DT59: 3549.435359 | DU59: 353.2811754 | DV59: 110.5107754 | DW59: 5.792397092 | DX59: 8445.331081 | DY59: 1602.310453 | DZ59: 387.4915078 | EA59: 38.61598062 | EB59: 1265.772014 | EC59: 65.28745126 | ED59: 5740.922159 | EE59: 435.2496751 | EF59: 84.30351772 | EG59: 4.348304232 | EH59: 382.3594832 | EI59: 28.98869488 | EJ59: 2500.000006 | EK59: 20000.00002 | EL59: 2000.000006
A60: 49 | B60: ='C4-AnalyticOutput'!B56 -> 1855.429032 | C60: ='C4-AnalyticOutput'!C56 -> 300.4812132 | D60: ='C4-AnalyticOutput'!D56 -> 83.7254452 | E60: ='C4-AnalyticOutput'!E56 -> 15.49856716 | F60: ='C4-AnalyticOutput'!F56 -> 4414.705691 | G60: ='C4-AnalyticOutput'!G56 -> 1362.835674 | H60: ='C4-AnalyticOutput'!H56 -> 293.5722684 | I60: ='C4-AnalyticOutput'!I56 -> 103.323781 | J60: 6647.432437 | K60: 1782.139235 | T60: 3527.117668 | U60: 227.8275659 | V60: 6647.432437 | W60: 1782.139235 | X60: 227.8275659 | Y60: 1554.311669 | Z60: 1554.311669 | AA60: 0 | AB60: 1972.805999 | AC60: 4674.626438 | AD60: 230.97461 | AE60: 1624.943416 | AF60: 1861.570131 | AG60: 0.872160625 | AH60: 0 | AI60: 0.7032228582 | AJ60: 120.1003282 | AK60: 120.1003282 | AL60: 107.7272378 | AM60: 123.5409246 | AN60: 107.4336853 | AO60: 0.4728454932 | AQ60: 1304.780107 | AR60: 0 | AS60: 58.87764688 | AT60: 0 | AU60: 3104.521954 | AV60: 0 | AW60: 206.4467297 | AX60: 0 | AY60: 4674.626438 | BA60: 550.648925 | BB60: 20.24976029 | BC60: 24.84779832 | BD60: 1.04446553 | BE60: 1310.183737 | BF60: 91.84299881 | BG60: 87.12553872 | BH60: 6.963103536 | BI60: 2092.906327 | BK60: 262.0678827 | BL60: 13.51724002 | BM60: 1188.611613 | BN60: 90.11493345 | BO60: 1554.311669 | BQ60: 18.16357019 | BR60: 0.9368616078 | BS60: 82.38106191 | BT60: 6.245744052 | BU60: 107.7272378 | BW60: 49 | BX60: =DepartureOnDay(BA$12:BA$191,BX$6,$BW60,BX$4,BX$5) -> 491.0652391 | BY60: =DepartureOnDay(BB$12:BB$191,BY$6,$BW60,BY$4,BY$5) -> 14.96698497 | BZ60: =DepartureOnDay(BC$12:BC$191,BZ$6,$BW60,BZ$4,BZ$5) -> 24.22587281 | CA60: =DepartureOnDay(BD$12:BD$191,CA$6,$BW60,CA$4,CA$5) -> 0.9732350855 | CB60: =DepartureOnDay(BE$12:BE$191,CB$6,$BW60,CB$4,CB$5) -> 1168.413595 | CC60: =DepartureOnDay(BF$12:BF$191,CC$6,$BW60,CC$4,CC$5) -> 67.88291629 | CD60: =DepartureOnDay(BG$12:BG$191,CD$6,$BW60,CD$4,CD$5) -> 84.94483867 | CE60: =DepartureOnDay(BH$12:BH$191,CE$6,$BW60,CE$4,CE$5) -> 6.488233904 | CF60: 1768.649545 | CG60: 90.31137025 | CI60: =DepartureOnDay(BA$12:BA$191,CI$6,$BW60,CI$4,CI$5) -> 27.49339577 | CJ60: =DepartureOnDay(BB$12:BB$191,CJ$6,$BW60,CJ$4,CJ$5) -> 6.002709647 | CK60: =DepartureOnDay(BC$12:BC$191,CK$6,$BW60,CK$4,CK$5) -> 0.002422829564 | CL60: =DepartureOnDay(BD$12:BD$191,CL$6,$BW60,CL$4,CL$5) -> 0.0001946859543 | CM60: =DepartureOnDay(BE$12:BE$191,CM$6,$BW60,CM$4,CM$5) -> 65.41627227 | CN60: =DepartureOnDay(BF$12:BF$191,CN$6,$BW60,CN$4,CN$5) -> 27.22535216 | CO60: =DepartureOnDay(BG$12:BG$191,CO$6,$BW60,CO$4,CO$5) -> 0.008495333401 | CP60: =DepartureOnDay(BH$12:BH$191,CP$6,$BW60,CP$4,CP$5) -> 0.001297906362 | CQ60: 92.92058621 | CR60: 33.2295544 | CT60: =DepartureOnDay(BK$12:BK$191,CT$6,$BW60,CT$4,CT$5) -> 13.38311391 | CU60: =DepartureOnDay(BL$12:BL$191,CU$6,$BW60,CU$4,CU$5) -> 0.6902897108 | CV60: =DepartureOnDay(BM$12:BM$191,CV$6,$BW60,CV$4,CV$5) -> 60.69925262 | CW60: =DepartureOnDay(BN$12:BN$191,CW$6,$BW60,CW$4,CW$5) -> 4.601931405 | CX60: 79.37458765 | CZ60: =DepartureOnDay(BK$12:BK$191,CZ$6,$BW60,CZ$4,CZ$5) -> 260.5937782 | DA60: =DepartureOnDay(BL$12:BL$191,DA$6,$BW60,DA$4,DA$5) -> 13.44120695 | DB60: =DepartureOnDay(BM$12:BM$191,DB$6,$BW60,DB$4,DB$5) -> 1181.925797 | DC60: =DepartureOnDay(BN$12:BN$191,DC$6,$BW60,DC$4,DC$5) -> 89.60804636 | DD60: 1545.568828 | DF60: =DepartureOnDay(BQ$12:BQ$191,DF$6,$BW60,DF$4,DF$5) -> 0.9043091173 | DG60: =DepartureOnDay(BR$12:BR$191,DG$6,$BW60,DG$4,DG$5) -> 0.04664350039 | DH60: =DepartureOnDay(BS$12:BS$191,DH$6,$BW60,DH$4,DH$5) -> 4.101503426 | DI60: =DepartureOnDay(BT$12:BT$191,DI$6,$BW60,DI$4,DI$5) -> 0.3109566693 | DJ60: 5.363412713 | DL60: =DepartureOnDay(BQ$12:BQ$191,DL$6,$BW60,DL$4,DL$5) -> 17.20976607 | DM60: =DepartureOnDay(BR$12:BR$191,DM$6,$BW60,DM$4,DM$5) -> 0.8876651967 | DN60: =DepartureOnDay(BS$12:BS$191,DN$6,$BW60,DN$4,DN$5) -> 78.05507336 | DO60: =DepartureOnDay(BT$12:BT$191,DO$6,$BW60,DO$4,DO$5) -> 5.917767978 | DP60: 102.0702726 | DQ60: 1647.639101 | DR60: 27960.38489 | DS60: 49 | DT60: 3567.86338 | DU60: 353.3041877 | DV60: 112.1553451 | DW60: 5.775781674 | DX60: 8489.177701 | DY60: 1602.414825 | DZ60: 393.2579754 | EA60: 38.50521116 | EB60: 1254.022518 | EC60: 64.6814222 | ED60: 5687.6322 | EE60: 431.2094814 | EF60: 84.30351772 | EG60: 4.348304232 | EH60: 382.3594832 | EI60: 28.98869488 | EJ60: 2500.000006 | EK60: 20000.00002 | EL60: 2000.000006
A61: 50 | B61: ='C4-AnalyticOutput'!B57 -> 1824.234855 | C61: ='C4-AnalyticOutput'!C57 -> 295.4294089 | D61: ='C4-AnalyticOutput'!D57 -> 82.31782122 | E61: ='C4-AnalyticOutput'!E57 -> 15.23799936 | F61: ='C4-AnalyticOutput'!F57 -> 4340.483982 | G61: ='C4-AnalyticOutput'!G57 -> 1339.923163 | H61: ='C4-AnalyticOutput'!H57 -> 288.6366199 | I61: ='C4-AnalyticOutput'!I57 -> 101.5866624 | J61: 6535.673278 | K61: 1752.177233 | T61: 3486.513547 | U61: 230.97461 | V61: 6535.673278 | W61: 1752.177233 | X61: 230.97461 | Y61: 1521.202623 | Z61: 1521.202623 | AA61: 0 | AB61: 1965.310924 | AC61: 4570.362354 | AD61: 233.4950691 | AE61: 1615.45275 | AF61: 1879.733061 | AG61: 0.8681785121 | AH61: 0 | AI61: 0.6992948025 | AJ61: 123.5409246 | AK61: 123.5409246 | AL61: 107.4336853 | AM61: 126.185229 | AN61: 107.3098402 | AO61: 0.4651320132 | AQ61: 1275.677952 | AR61: 0 | AS61: 57.56442453 | AT61: 0 | AU61: 3035.277889 | AV61: 0 | AW61: 201.8420881 | AX61: 0 | AY61: 4570.362354 | BA61: 548.5569023 | BB61: 20.82986906 | BC61: 24.75339669 | BD61: 1.074387051 | BE61: 1305.206093 | BF61: 94.4740882 | BG61: 86.79453181 | BH61: 7.16258034 | BI61: 2088.851849 | BK61: 256.4854646 | BL61: 13.22930361 | BM61: 1163.292498 | BN61: 88.1953574 | BO61: 1521.202623 | BQ61: 18.11407519 | BR61: 0.9343086971 | BS61: 82.15657679 | BT61: 6.228724647 | BU61: 107.4336853 | BW61: 50 | BX61: =DepartureOnDay(BA$12:BA$191,BX$6,$BW61,BX$4,BX$5) -> 495.6743085 | BY61: =DepartureOnDay(BB$12:BB$191,BY$6,$BW61,BY$4,BY$5) -> 15.533951 | BZ61: =DepartureOnDay(BC$12:BC$191,BZ$6,$BW61,BZ$4,BZ$5) -> 25.16045851 | CA61: =DepartureOnDay(BD$12:BD$191,CA$6,$BW61,CA$4,CA$5) -> 0.9153424708 | CB61: =DepartureOnDay(BE$12:BE$191,CB$6,$BW61,CB$4,CB$5) -> 1179.380161 | CC61: =DepartureOnDay(BF$12:BF$191,CC$6,$BW61,CC$4,CC$5) -> 70.45439664 | CD61: =DepartureOnDay(BG$12:BG$191,CD$6,$BW61,CD$4,CD$5) -> 88.22184058 | CE61: =DepartureOnDay(BH$12:BH$191,CE$6,$BW61,CE$4,CE$5) -> 6.102283138 | CF61: 1788.436768 | CG61: 93.00597325 | CI61: =DepartureOnDay(BA$12:BA$191,CI$6,$BW61,CI$4,CI$5) -> 27.0126179 | CJ61: =DepartureOnDay(BB$12:BB$191,CJ$6,$BW61,CJ$4,CJ$5) -> 5.993639138 | CK61: =DepartureOnDay(BC$12:BC$191,CK$6,$BW61,CK$4,CK$5) -> 0.002516297481 | CL61: =DepartureOnDay(BD$12:BD$191,CL$6,$BW61,CL$4,CL$5) -> 0.0001831051152 | CM61: =DepartureOnDay(BE$12:BE$191,CM$6,$BW61,CM$4,CM$5) -> 64.27233588 | CN61: =DepartureOnDay(BF$12:BF$191,CN$6,$BW61,CN$4,CN$5) -> 27.18421277 | CO61: =DepartureOnDay(BG$12:BG$191,CO$6,$BW61,CO$4,CO$5) -> 0.008823066365 | CP61: =DepartureOnDay(BH$12:BH$191,CP$6,$BW61,CP$4,CP$5) -> 0.001220700768 | CQ61: 91.29629315 | CR61: 33.17925572 | CT61: =DepartureOnDay(BK$12:BK$191,CT$6,$BW61,CT$4,CT$5) -> 13.50117939 | CU61: =DepartureOnDay(BL$12:BL$191,CU$6,$BW61,CU$4,CU$5) -> 0.6963794284 | CV61: =DepartureOnDay(BM$12:BM$191,CV$6,$BW61,CV$4,CV$5) -> 61.23473982 | CW61: =DepartureOnDay(BN$12:BN$191,CW$6,$BW61,CW$4,CW$5) -> 4.642529522 | CX61: 80.07482816 | CZ61: =DepartureOnDay(BK$12:BK$191,CZ$6,$BW61,CZ$4,CZ$5) -> 258.8755196 | DA61: =DepartureOnDay(BL$12:BL$191,DA$6,$BW61,DA$4,DA$5) -> 13.35258063 | DB61: =DepartureOnDay(BM$12:BM$191,DB$6,$BW61,DB$4,DB$5) -> 1174.132617 | DC61: =DepartureOnDay(BN$12:BN$191,DC$6,$BW61,DC$4,DC$5) -> 89.01720419 | DD61: 1535.377922 | DF61: =DepartureOnDay(BQ$12:BQ$191,DF$6,$BW61,DF$4,DF$5) -> 0.9040359318 | DG61: =DepartureOnDay(BR$12:BR$191,DG$6,$BW61,DG$4,DG$5) -> 0.04662940971 | DH61: =DepartureOnDay(BS$12:BS$191,DH$6,$BW61,DH$4,DH$5) -> 4.10026439 | DI61: =DepartureOnDay(BT$12:BT$191,DI$6,$BW61,DI$4,DI$5) -> 0.3108627314 | DJ61: 5.361792463 | DL61: =DepartureOnDay(BQ$12:BQ$191,DL$6,$BW61,DL$4,DL$5) -> 17.18915809 | DM61: =DepartureOnDay(BR$12:BR$191,DM$6,$BW61,DM$4,DM$5) -> 0.8866022546 | DN61: =DepartureOnDay(BS$12:BS$191,DN$6,$BW61,DN$4,DN$5) -> 77.96160566 | DO61: =DepartureOnDay(BT$12:BT$191,DO$6,$BW61,DO$4,DO$5) -> 5.910681697 | DP61: 101.9480477 | DQ61: 1637.325969 | DR61: 29597.71086 | DS61: 50 | DT61: =DT60+BA61-BX60-CI60 -> 3597.861647 | DU61: 353.1643622 | DV61: 112.6804461 | DW61: 5.876738954 | DX61: 8560.553927 | DY61: 1601.780645 | DZ61: 395.0991732 | EA61: 39.17825969 | EB61: 1236.531091 | EC61: 63.77922915 | ED61: 5608.299648 | EE61: 425.194861 | EF61: 84.30351772 | EG61: 4.348304232 | EH61: 382.3594832 | EI61: 28.98869488 | EJ61: 2500.000006 | EK61: 20000.00002 | EL61: 2000.000006
A62: 51 | B62: ='C4-AnalyticOutput'!B58 -> 1788.342602 | C62: ='C4-AnalyticOutput'!C58 -> 289.6167652 | D62: ='C4-AnalyticOutput'!D58 -> 80.69819858 | E62: ='C4-AnalyticOutput'!E58 -> 14.93818811 | F62: ='C4-AnalyticOutput'!F58 -> 4255.083931 | G62: ='C4-AnalyticOutput'!G58 -> 1313.559857 | H62: ='C4-AnalyticOutput'!H58 -> 282.957626 | I62: ='C4-AnalyticOutput'!I58 -> 99.58792073 | J62: 6407.082357 | K62: 1717.702731 | T62: 3495.185811 | U62: 233.4950691 | V62: 6407.082357 | W62: 1717.702731 | X62: 233.4950691 | Y62: 1484.207662 | Z62: 1484.207662 | AA62: 0 | AB62: 2010.978149 | AC62: 4396.104208 | AD62: 235.4910202 | AE62: 1595.137362 | AF62: 1924.637774 | AG62: 0.8640654958 | AH62: 0 | AI62: 0.6861319963 | AJ62: 126.185229 | AK62: 126.185229 | AL62: 107.3098402 | AM62: 127.9555 | AN62: 107.5355202 | AO62: 0.459580755 | AQ62: 1227.039079 | AR62: 0 | AS62: 55.36961609 | AT62: 0 | AU62: 2919.549232 | AV62: 0 | AW62: 194.1462808 | AX62: 0 | AY62: 4396.104208 | BA62: 561.3035224 | BB62: 21.27571737 | BC62: 25.32858249 | BD62: 1.09738353 | BE62: 1335.534699 | BF62: 96.49623786 | BG62: 88.81134522 | BH62: 7.315890202 | BI62: 2137.163378 | BK62: 250.2478539 | BL62: 12.90757292 | BM62: 1135.001749 | BN62: 86.0504861 | BO62: 1484.207662 | BQ62: 18.09319402 | BR62: 0.9332316643 | BS62: 82.06187005 | BT62: 6.221544429 | BU62: 107.3098402 | BW62: 51 | BX62: =DepartureOnDay(BA$12:BA$191,BX$6,$BW62,BX$4,BX$5) -> 509.1227338 | BY62: =DepartureOnDay(BB$12:BB$191,BY$6,$BW62,BY$4,BY$5) -> 15.96003384 | BZ62: =DepartureOnDay(BC$12:BC$191,BZ$6,$BW62,BZ$4,BZ$5) -> 25.31020526 | CA62: =DepartureOnDay(BD$12:BD$191,CA$6,$BW62,CA$4,CA$5) -> 0.9051554774 | CB62: =DepartureOnDay(BE$12:BE$191,CB$6,$BW62,CB$4,CB$5) -> 1211.378603 | CC62: =DepartureOnDay(BF$12:BF$191,CC$6,$BW62,CC$4,CC$5) -> 72.38689979 | CD62: =DepartureOnDay(BG$12:BG$191,CD$6,$BW62,CD$4,CD$5) -> 88.74690787 | CE62: =DepartureOnDay(BH$12:BH$191,CE$6,$BW62,CE$4,CE$5) -> 6.034369849 | CF62: 1834.55845 | CG62: 95.28645895 | CI62: =DepartureOnDay(BA$12:BA$191,CI$6,$BW62,CI$4,CI$5) -> 26.65247785 | CJ62: =DepartureOnDay(BB$12:BB$191,CJ$6,$BW62,CJ$4,CJ$5) -> 5.901470753 | CK62: =DepartureOnDay(BC$12:BC$191,CK$6,$BW62,CK$4,CK$5) -> 0.002531273653 | CL62: =DepartureOnDay(BD$12:BD$191,CL$6,$BW62,CL$4,CL$5) -> 0.0001810673089 | CM62: =DepartureOnDay(BE$12:BE$191,CM$6,$BW62,CM$4,CM$5) -> 63.41543848 | CN62: =DepartureOnDay(BF$12:BF$191,CN$6,$BW62,CN$4,CN$5) -> 26.7661821 | CO62: =DepartureOnDay(BG$12:BG$191,CO$6,$BW62,CO$4,CO$5) -> 0.008875578345 | CP62: =DepartureOnDay(BH$12:BH$191,CP$6,$BW62,CP$4,CP$5) -> 0.001207115393 | CQ62: 90.07932319 | CR62: 32.66904104 | CT62: =DepartureOnDay(BK$12:BK$191,CT$6,$BW62,CT$4,CT$5) -> 13.5514157 | CU62: =DepartureOnDay(BL$12:BL$191,CU$6,$BW62,CU$4,CU$5) -> 0.698970575 | CV62: =DepartureOnDay(BM$12:BM$191,CV$6,$BW62,CV$4,CV$5) -> 61.46258715 | CW62: =DepartureOnDay(BN$12:BN$191,CW$6,$BW62,CW$4,CW$5) -> 4.659803833 | CX62: 80.37277726 | CZ62: =DepartureOnDay(BK$12:BK$191,CZ$6,$BW62,CZ$4,CZ$5) -> 255.3999661 | DA62: =DepartureOnDay(BL$12:BL$191,DA$6,$BW62,DA$4,DA$5) -> 13.17331451 | DB62: =DepartureOnDay(BM$12:BM$191,DB$6,$BW62,DB$4,DB$5) -> 1158.369208 | DC62: =DepartureOnDay(BN$12:BN$191,DC$6,$BW62,DC$4,DC$5) -> 87.82209675 | DD62: 1514.764585 | DF62: =DepartureOnDay(BQ$12:BQ$191,DF$6,$BW62,DF$4,DF$5) -> 0.9061965554 | DG62: =DepartureOnDay(BR$12:BR$191,DG$6,$BW62,DG$4,DG$5) -> 0.04674085286 | DH62: =DepartureOnDay(BS$12:BS$191,DH$6,$BW62,DH$4,DH$5) -> 4.110063921 | DI62: =DepartureOnDay(BT$12:BT$191,DI$6,$BW62,DI$4,DI$5) -> 0.3116056857 | DJ62: 5.374607015 | DL62: =DepartureOnDay(BQ$12:BQ$191,DL$6,$BW62,DL$4,DL$5) -> 17.22504871 | DM62: =DepartureOnDay(BR$12:BR$191,DM$6,$BW62,DM$4,DM$5) -> 0.8884534623 | DN62: =DepartureOnDay(BS$12:BS$191,DN$6,$BW62,DN$4,DN$5) -> 78.12438793 | DO62: =DepartureOnDay(BT$12:BT$191,DO$6,$BW62,DO$4,DO$5) -> 5.923023082 | DP62: 102.1609132 | DQ62: 1616.925498 | DR62: 31214.63636 | DS62: 51 | DT62: 3636.478243 | DU62: 352.9124894 | DV62: 112.8460538 | DW62: 6.058596908 | DX62: 8652.436129 | DY62: 1600.638274 | DZ62: 395.6798547 | EA62: 40.39064605 | EB62: =EB61+BK62-CT61-CZ61 -> 1214.402246 | EC62: 62.63784201 | ED62: 5507.93404 | EE62: 417.5856134 | EF62: =EF61+BQ62-DF61-DL61 -> 84.30351772 | EG62: 4.348304232 | EH62: 382.3594832 | EI62: 28.98869488 | EJ62: 2500.000006 | EK62: 20000.00002 | EL62: 2000.000006
A63: 52 | B63: ='C4-AnalyticOutput'!B59 -> 1748.253586 | C63: ='C4-AnalyticOutput'!C59 -> 283.1244683 | D63: ='C4-AnalyticOutput'!D59 -> 78.8891988 | E63: ='C4-AnalyticOutput'!E59 -> 14.60332092 | F63: ='C4-AnalyticOutput'!F59 -> 4159.698333 | G63: ='C4-AnalyticOutput'!G59 -> 1284.113977 | H63: ='C4-AnalyticOutput'!H59 -> 276.6146061 | I63: ='C4-AnalyticOutput'!I59 -> 97.35547279 | J63: 6263.455724 | K63: 1679.197239 | T63: 3519.775136 | U63: 235.4910202 | V63: 6263.455724 | W63: 1679.197239 | X63: 235.4910202 | Y63: 1443.706219 | Z63: 1443.706219 | AA63: 0 | AB63: 2076.068917 | AC63: 4187.386806 | AD63: 236.1945625 | AE63: 1569.174049 | AF63: 1964.710258 | AG63: 0.8597597621 | AH63: 0 | AI63: 0.6685425732 | AJ63: 127.9555 | AK63: 127.9555 | AL63: 107.5355202 | AM63: 128.5525458 | AN63: 107.6420167 | AO63: 0.4566438249 | AQ63: 1168.781951 | AR63: 0 | AS63: 52.74078796 | AT63: 0 | AU63: 2780.935427 | AV63: 0 | AW63: 184.9286405 | AX63: 0 | AY63: 4187.386806 | BA63: 579.471635 | BB63: 21.57419752 | BC63: 26.14841084 | BD63: 1.112778884 | BE63: 1378.762906 | BF63: 97.84999769 | BG63: 91.68596556 | BH63: 7.418525895 | BI63: 2204.024417 | BK63: 243.4190255 | BL63: 12.55534772 | BM63: 1104.029527 | BN63: 83.70231813 | BO63: 1443.706219 | BQ63: 18.13124527 | BR63: 0.9351943152 | BS63: 82.23445185 | BT63: 6.234628768 | BU63: 107.5355202 | BW63: 52 | BX63: =DepartureOnDay(BA$12:BA$191,BX$6,$BW63,BX$4,BX$5) -> 521.489469 | BY63: =DepartureOnDay(BB$12:BB$191,BY$6,$BW63,BY$4,BY$5) -> 16.19719553 | BZ63: =DepartureOnDay(BC$12:BC$191,BZ$6,$BW63,BZ$4,BZ$5) -> 25.02493591 | CA63: =DepartureOnDay(BD$12:BD$191,CA$6,$BW63,CA$4,CA$5) -> 0.9505256397 | CB63: =DepartureOnDay(BE$12:BE$191,CB$6,$BW63,CB$4,CB$5) -> 1240.803332 | CC63: =DepartureOnDay(BF$12:BF$191,CC$6,$BW63,CC$4,CC$5) -> 73.46254912 | CD63: =DepartureOnDay(BG$12:BG$191,CD$6,$BW63,CD$4,CD$5) -> 87.74664838 | CE63: =DepartureOnDay(BH$12:BH$191,CE$6,$BW63,CE$4,CE$5) -> 6.336837598 | CF63: 1875.064386 | CG63: 96.94710789 | CI63: =DepartureOnDay(BA$12:BA$191,CI$6,$BW63,CI$4,CI$5) -> 26.52425112 | CJ63: =DepartureOnDay(BB$12:BB$191,CJ$6,$BW63,CJ$4,CJ$5) -> 5.709316352 | CK63: =DepartureOnDay(BC$12:BC$191,CK$6,$BW63,CK$4,CK$5) -> 0.002502743865 | CL63: =DepartureOnDay(BD$12:BD$191,CL$6,$BW63,CL$4,CL$5) -> 0.0001901431566 | CM63: =DepartureOnDay(BE$12:BE$191,CM$6,$BW63,CM$4,CM$5) -> 63.11034285 | CN63: =DepartureOnDay(BF$12:BF$191,CN$6,$BW63,CN$4,CN$5) -> 25.89466381 | CO63: =DepartureOnDay(BG$12:BG$191,CO$6,$BW63,CO$4,CO$5) -> 0.008775542392 | CP63: =DepartureOnDay(BH$12:BH$191,CP$6,$BW63,CP$4,CP$5) -> 0.001267621044 | CQ63: 89.64587226 | CR63: 31.60543793 | CT63: =DepartureOnDay(BK$12:BK$191,CT$6,$BW63,CT$4,CT$5) -> 13.53866353 | CU63: =DepartureOnDay(BL$12:BL$191,CU$6,$BW63,CU$4,CU$5) -> 0.6983128287 | CV63: =DepartureOnDay(BM$12:BM$191,CV$6,$BW63,CV$4,CV$5) -> 61.40474953 | CW63: =DepartureOnDay(BN$12:BN$191,CW$6,$BW63,CW$4,CW$5) -> 4.655418858 | CX63: 80.29714475 | CZ63: =DepartureOnDay(BK$12:BK$191,CZ$6,$BW63,CZ$4,CZ$5) -> 251.035121 | DA63: =DepartureOnDay(BL$12:BL$191,DA$6,$BW63,DA$4,DA$5) -> 12.94817949 | DB63: =DepartureOnDay(BM$12:BM$191,DB$6,$BW63,DB$4,DB$5) -> 1138.572407 | DC63: =DepartureOnDay(BN$12:BN$191,DC$6,$BW63,DC$4,DC$5) -> 86.3211966 | DD63: 1488.876904 | DF63: =DepartureOnDay(BQ$12:BQ$191,DF$6,$BW63,DF$4,DF$5) -> 0.9074559077 | DG63: =DepartureOnDay(BR$12:BR$191,DG$6,$BW63,DG$4,DG$5) -> 0.04680580919 | DH63: =DepartureOnDay(BS$12:BS$191,DH$6,$BW63,DH$4,DH$5) -> 4.115775726 | DI63: =DepartureOnDay(BT$12:BT$191,DI$6,$BW63,DI$4,DI$5) -> 0.3120387279 | DJ63: 5.382076171 | DL63: =DepartureOnDay(BQ$12:BQ$191,DL$6,$BW63,DL$4,DL$5) -> 17.24174542 | DM63: =DepartureOnDay(BR$12:BR$191,DM$6,$BW63,DM$4,DM$5) -> 0.8893146645 | DN63: =DepartureOnDay(BS$12:BS$191,DN$6,$BW63,DN$4,DN$5) -> 78.20011603 | DO63: =DepartureOnDay(BT$12:BT$191,DO$6,$BW63,DO$4,DO$5) -> 5.92876443 | DP63: 102.2599405 | DQ63: 1591.136845 | DR63: 32805.7732 | DS63: 52 | DT63: 3680.174667 | DU63: 352.6251823 | DV63: 113.6817281 | DW63: 6.266039248 | DX63: 8756.404993 | DY63: 1599.335189 | DZ63: 398.6100368 | EA63: 41.77359498 | EB63: 1188.869889 | EC63: 61.32090464 | ED63: 5392.131772 | EE63: 408.8060309 | EF63: 84.30351772 | EG63: 4.348304232 | EH63: 382.3594832 | EI63: 28.98869488 | EJ63: 2500.000006 | EK63: 20000.00002 | EL63: 2000.000006
A64: 53 | B64: ='C4-AnalyticOutput'!B60 -> 1704.468986 | C64: ='C4-AnalyticOutput'!C60 -> 276.0336826 | D64: ='C4-AnalyticOutput'!D60 -> 76.91343737 | E64: ='C4-AnalyticOutput'!E60 -> 14.23758418 | F64: ='C4-AnalyticOutput'!F60 -> 4055.519667 | G64: ='C4-AnalyticOutput'!G60 -> 1251.953644 | H64: ='C4-AnalyticOutput'!H60 -> 269.6868583 | I64: ='C4-AnalyticOutput'!I60 -> 94.91722788 | J64: 6106.588949 | K64: 1637.142139 | T64: 3533.884307 | U64: 236.1945625 | V64: 6106.588949 | W64: 1637.142139 | X64: 236.1945625 | Y64: 1400.947576 | Z64: 1400.947576 | AA64: 0 | AB64: 2132.936731 | AC64: 3973.652218 | AD64: 234.2897199 | AE64: 1538.99592 | AF64: 1987.52151 | AG64: 0.8557275163 | AH64: 0 | AI64: 0.6507155224 | AJ64: 128.5525458 | AK64: 128.5525458 | AL64: 107.6420167 | AM64: 126.7246472 | AN64: 107.5650726 | AO64: 0.4557345248 | AQ64: 1109.124427 | AR64: 0 | AS64: 50.04876758 | AT64: 0 | AU64: 2638.989599 | AV64: 0 | AW64: 175.4894249 | AX64: 0 | AY64: 3973.652218 | BA64: 595.3445593 | BB64: 21.67486365 | BC64: 26.86466979 | BD64: 1.117971158 | BE64: 1416.530068 | BF64: 98.30656996 | BG64: 94.19743343 | BH64: 7.453141054 | BI64: 2261.489277 | BK64: 236.2096177 | BL64: 12.18349255 | BM64: 1071.331183 | BN64: 81.22328367 | BO64: 1400.947576 | BQ64: 18.14920133 | BR64: 0.9361204737 | BS64: 82.31589176 | BT64: 6.240803158 | BU64: 107.6420167 | BW64: 53 | BX64: =DepartureOnDay(BA$12:BA$191,BX$6,$BW64,BX$4,BX$5) -> 528.325126 | BY64: =DepartureOnDay(BB$12:BB$191,BY$6,$BW64,BY$4,BY$5) -> 16.1084873 | BZ64: =DepartureOnDay(BC$12:BC$191,BZ$6,$BW64,BZ$4,BZ$5) -> 24.79811745 | CA64: =DepartureOnDay(BD$12:BD$191,CA$6,$BW64,CA$4,CA$5) -> 0.9999241944 | CB64: =DepartureOnDay(BE$12:BE$191,CB$6,$BW64,CB$4,CB$5) -> 1257.067718 | CC64: =DepartureOnDay(BF$12:BF$191,CC$6,$BW64,CC$4,CC$5) -> 73.060212 | CD64: =DepartureOnDay(BG$12:BG$191,CD$6,$BW64,CD$4,CD$5) -> 86.95133926 | CE64: =DepartureOnDay(BH$12:BH$191,CE$6,$BW64,CE$4,CE$5) -> 6.666161296 | CF64: 1897.142301 | CG64: 96.83478479 | CI64: =DepartureOnDay(BA$12:BA$191,CI$6,$BW64,CI$4,CI$5) -> 26.74128703 | CJ64: =DepartureOnDay(BB$12:BB$191,CJ$6,$BW64,CJ$4,CJ$5) -> 5.399380844 | CK64: =DepartureOnDay(BC$12:BC$191,CK$6,$BW64,CK$4,CK$5) -> 0.002480059751 | CL64: =DepartureOnDay(BD$12:BD$191,CL$6,$BW64,CL$4,CL$5) -> 0.0002000248438 | CM64: =DepartureOnDay(BE$12:BE$191,CM$6,$BW64,CM$4,CM$5) -> 63.62674615 | CN64: =DepartureOnDay(BF$12:BF$191,CN$6,$BW64,CN$4,CN$5) -> 24.48894809 | CO64: =DepartureOnDay(BG$12:BG$191,CO$6,$BW64,CO$4,CO$5) -> 0.008696003527 | CP64: =DepartureOnDay(BH$12:BH$191,CP$6,$BW64,CP$4,CP$5) -> 0.001333498959 | CQ64: 90.37920925 | CR64: 29.88986245 | CT64: =DepartureOnDay(BK$12:BK$191,CT$6,$BW64,CT$4,CT$5) -> 13.4647539 | CU64: =DepartureOnDay(BL$12:BL$191,CU$6,$BW64,CU$4,CU$5) -> 0.6945006324 | CV64: =DepartureOnDay(BM$12:BM$191,CV$6,$BW64,CV$4,CV$5) -> 61.06953163 | CW64: =DepartureOnDay(BN$12:BN$191,CW$6,$BW64,CW$4,CW$5) -> 4.630004216 | CX64: 79.85879038 | CZ64: =DepartureOnDay(BK$12:BK$191,CZ$6,$BW64,CZ$4,CZ$5) -> 246.0207857 | DA64: =DepartureOnDay(BL$12:BL$191,DA$6,$BW64,DA$4,DA$5) -> 12.68954431 | DB64: =DepartureOnDay(BM$12:BM$191,DB$6,$BW64,DB$4,DB$5) -> 1115.829837 | DC64: =DepartureOnDay(BN$12:BN$191,DC$6,$BW64,DC$4,DC$5) -> 84.59696208 | DD64: 1459.13713 | DF64: =DepartureOnDay(BQ$12:BQ$191,DF$6,$BW64,DF$4,DF$5) -> 0.9077556359 | DG64: =DepartureOnDay(BR$12:BR$191,DG$6,$BW64,DG$4,DG$5) -> 0.04682126891 | DH64: =DepartureOnDay(BS$12:BS$191,DH$6,$BW64,DH$4,DH$5) -> 4.117135147 | DI64: =DepartureOnDay(BT$12:BT$191,DI$6,$BW64,DI$4,DI$5) -> 0.3121417927 | DJ64: 5.383853844 | DL64: =DepartureOnDay(BQ$12:BQ$191,DL$6,$BW64,DL$4,DL$5) -> 17.22847238 | DM64: =DepartureOnDay(BR$12:BR$191,DM$6,$BW64,DM$4,DM$5) -> 0.8886300523 | DN64: =DepartureOnDay(BS$12:BS$191,DN$6,$BW64,DN$4,DN$5) -> 78.13991602 | DO64: =DepartureOnDay(BT$12:BT$191,DO$6,$BW64,DO$4,DO$5) -> 5.924200349 | DP64: 102.1812188 | DQ64: 1561.318348 | DR64: 34367.09155 | DS64: 53 | DT64: 3727.505506 | DU64: 352.3935341 | DV64: 115.5189593 | DW64: 6.433294623 | DX64: 8869.021386 | DY64: 1598.284546 | DZ64: 405.0520463 | EA64: 42.88863082 | EB64: 1160.505722 | EC64: 59.85790487 | ED64: 5263.485798 | EE64: 399.0526992 | EF64: 84.30351772 | EG64: 4.348304232 | EH64: 382.3594832 | EI64: 28.98869488 | EJ64: 2500.000006 | EK64: 20000.00002 | EL64: 2000.000006
A65: 54 | B65: ='C4-AnalyticOutput'!B61 -> 1657.483783 | C65: ='C4-AnalyticOutput'!C61 -> 268.4245688 | D65: ='C4-AnalyticOutput'!D61 -> 74.79325011 | E65: ='C4-AnalyticOutput'!E61 -> 13.84511252 | F65: ='C4-AnalyticOutput'!F61 -> 3943.725663 | G65: ='C4-AnalyticOutput'!G61 -> 1217.442429 | H65: ='C4-AnalyticOutput'!H61 -> 262.2527004 | I65: ='C4-AnalyticOutput'!I61 -> 92.30075013 | J65: 5938.255397 | K65: 1592.012861 | T65: 3526.51743 | U65: 234.2897199 | V65: 5938.255397 | W65: 1592.012861 | X65: 234.2897199 | Y65: 1357.723141 | Z65: 1357.723141 | AA65: 0 | AB65: 2168.794289 | AC65: 3769.461108 | AD65: 231.3415644 | AE65: 1504.8854 | AF65: 1987.101438 | AG65: 0.8528342794 | AH65: 0 | AI65: 0.6347758484 | AJ65: 126.7246472 | AK65: 126.7246472 | AL65: 107.5650726 | AM65: 123.8400329 | AN65: 107.5015316 | AO65: 0.4591113631 | AQ65: 1052.130675 | AR65: 0 | AS65: 47.47694879 | AT65: 0 | AU65: 2503.381804 | AV65: 0 | AW65: 166.4716804 | AX65: 0 | AY65: 3769.461108 | BA65: 605.3531086 | BB65: 21.36666709 | BC65: 27.31630132 | BD65: 1.10207464 | BE65: 1440.343859 | BF65: 96.90874125 | BG65: 95.78102 | BH65: 7.347164265 | BI65: 2295.518936 | BK65: 228.9216737 | BL65: 11.80758656 | BM65: 1038.276637 | BN65: 78.71724373 | BO65: 1357.723141 | BQ65: 18.13622802 | BR65: 0.9354513212 | BS65: 82.25705117 | BT65: 6.236342142 | BU65: 107.5650726 | BW65: 54 | BX65: =DepartureOnDay(BA$12:BA$191,BX$6,$BW65,BX$4,BX$5) -> 527.513756 | BY65: =DepartureOnDay(BB$12:BB$191,BY$6,$BW65,BY$4,BY$5) -> 15.97661965 | BZ65: =DepartureOnDay(BC$12:BC$191,BZ$6,$BW65,BZ$4,BZ$5) -> 25.03848549 | CA65: =DepartureOnDay(BD$12:BD$191,CA$6,$BW65,CA$4,CA$5) -> 1.040415444 | CB65: =DepartureOnDay(BE$12:BE$191,CB$6,$BW65,CB$4,CB$5) -> 1255.137189 | CC65: =DepartureOnDay(BF$12:BF$191,CC$6,$BW65,CC$4,CC$5) -> 72.46212491 | CD65: =DepartureOnDay(BG$12:BG$191,CD$6,$BW65,CD$4,CD$5) -> 87.79415822 | CE65: =DepartureOnDay(BH$12:BH$191,CE$6,$BW65,CE$4,CE$5) -> 6.936102959 | CF65: 1895.483589 | CG65: 96.41526296 | CI65: =DepartureOnDay(BA$12:BA$191,CI$6,$BW65,CI$4,CI$5) -> 27.10778743 | CJ65: =DepartureOnDay(BB$12:BB$191,CJ$6,$BW65,CJ$4,CJ$5) -> 4.954046183 | CK65: =DepartureOnDay(BC$12:BC$191,CK$6,$BW65,CK$4,CK$5) -> 0.002504098959 | CL65: =DepartureOnDay(BD$12:BD$191,CL$6,$BW65,CL$4,CL$5) -> 0.0002081247137 | CM65: =DepartureOnDay(BE$12:BE$191,CM$6,$BW65,CM$4,CM$5) -> 64.49877702 | CN65: =DepartureOnDay(BF$12:BF$191,CN$6,$BW65,CN$4,CN$5) -> 22.46912809 | CO65: =DepartureOnDay(BG$12:BG$191,CO$6,$BW65,CO$4,CO$5) -> 0.008780293851 | CP65: =DepartureOnDay(BH$12:BH$191,CP$6,$BW65,CP$4,CP$5) -> 0.001387498091 | CQ65: 91.61784885 | CR65: 27.42476989 | CT65: =DepartureOnDay(BK$12:BK$191,CT$6,$BW65,CT$4,CT$5) -> 13.33196221 | CU65: =DepartureOnDay(BL$12:BL$191,CU$6,$BW65,CU$4,CU$5) -> 0.6876513491 | CV65: =DepartureOnDay(BM$12:BM$191,CV$6,$BW65,CV$4,CV$5) -> 60.46725353 | CW65: =DepartureOnDay(BN$12:BN$191,CW$6,$BW65,CW$4,CW$5) -> 4.584342327 | CX65: 79.07120942 | CZ65: =DepartureOnDay(BK$12:BK$191,CZ$6,$BW65,CZ$4,CZ$5) -> 240.4023038 | DA65: =DepartureOnDay(BL$12:BL$191,DA$6,$BW65,DA$4,DA$5) -> 12.39974776 | DB65: =DepartureOnDay(BM$12:BM$191,DB$6,$BW65,DB$4,DB$5) -> 1090.347154 | DC65: =DepartureOnDay(BN$12:BN$191,DC$6,$BW65,DC$4,DC$5) -> 82.66498508 | DD65: 1425.814191 | DF65: =DepartureOnDay(BQ$12:BQ$191,DF$6,$BW65,DF$4,DF$5) -> 0.9062694329 | DG65: =DepartureOnDay(BR$12:BR$191,DG$6,$BW65,DG$4,DG$5) -> 0.04674461182 | DH65: =DepartureOnDay(BS$12:BS$191,DH$6,$BW65,DH$4,DH$5) -> 4.110394458 | DI65: =DepartureOnDay(BT$12:BT$191,DI$6,$BW65,DI$4,DI$5) -> 0.3116307454 | DJ65: 5.375039248 | DL65: =DepartureOnDay(BQ$12:BQ$191,DL$6,$BW65,DL$4,DL$5) -> 17.21924511 | DM65: =DepartureOnDay(BR$12:BR$191,DM$6,$BW65,DM$4,DM$5) -> 0.8881541175 | DN65: =DepartureOnDay(BS$12:BS$191,DN$6,$BW65,DN$4,DN$5) -> 78.09806564 | DO65: =DepartureOnDay(BT$12:BT$191,DO$6,$BW65,DO$4,DO$5) -> 5.92102745 | DP65: 102.1264923 | DQ65: 1527.940683 | DR65: 35895.03223 | DS65: 54 | DT65: 3777.792201 | DU65: 352.2523331 | DV65: 118.0346631 | DW65: 6.535245043 | DX65: 8988.670781 | DY65: 1597.644128 | DZ65: 413.8730311 | EA65: 43.56830029 | EB65: 1129.941857 | EC65: 58.28144649 | ED65: 5124.863066 | EE65: 388.5429766 | EF65: 84.30351772 | EG65: 4.348304232 | EH65: 382.3594832 | EI65: 28.98869488 | EJ65: 2500.000006 | EK65: 20000.00002 | EL65: 2000.000006
A66: 55 | B66: ='C4-AnalyticOutput'!B62 -> 1607.781483 | C66: ='C4-AnalyticOutput'!C62 -> 260.3754291 | D66: ='C4-AnalyticOutput'!D62 -> 72.55045496 | E66: ='C4-AnalyticOutput'!E62 -> 13.42994469 | F66: ='C4-AnalyticOutput'!F62 -> 3825.466745 | G66: ='C4-AnalyticOutput'!G62 -> 1180.935472 | H66: ='C4-AnalyticOutput'!H62 -> 254.388634 | I66: ='C4-AnalyticOutput'!I62 -> 89.53296461 | J66: 5760.187317 | K66: 1544.27381 | T66: 3491.986838 | U66: 231.3415644 | V66: 5760.187317 | W66: 1544.27381 | X66: 231.3415644 | Y66: 1312.932246 | Z66: 1312.932246 | AA66: 0 | AB66: 2179.054592 | AC66: 3581.132725 | AD66: 227.5715039 | AE66: 1467.316327 | AF66: 1989.83049 | AG66: 0.8501939469 | AH66: 0 | AI66: 0.6217042134 | AJ66: 123.8400329 | AK66: 123.8400329 | AL66: 107.5015316 | AM66: 120.094869 | AN66: 107.476635 | AO66: 0.4646874929 | AQ66: 999.564522 | AR66: 0 | AS66: 45.10492353 | AT66: 0 | AU66: 2378.308794 | AV66: 0 | AW66: 158.1544856 | AX66: 0 | AY66: 3581.132725 | BA66: 608.2169608 | BB66: 20.88030081 | BC66: 27.44553143 | BD66: 1.076988278 | BE66: 1447.157952 | BF66: 94.70282191 | BG66: 96.2341484 | BH66: 7.179921853 | BI66: 2302.894625 | BK66: 221.3696137 | BL66: 11.41805768 | BM66: 1004.02419 | BN66: 76.12038456 | BO66: 1312.932246 | BQ66: 18.12551454 | BR66: 0.9348987294 | BS66: 82.2084601 | BT66: 6.232658196 | BU66: 107.5015316 | BW66: 55 | BX66: =DepartureOnDay(BA$12:BA$191,BX$6,$BW66,BX$4,BX$5) -> 527.0410589 | BY66: =DepartureOnDay(BB$12:BB$191,BY$6,$BW66,BY$4,BY$5) -> 15.85538827 | BZ66: =DepartureOnDay(BC$12:BC$191,BZ$6,$BW66,BZ$4,BZ$5) -> 25.73592282 | CA66: =DepartureOnDay(BD$12:BD$191,CA$6,$BW66,CA$4,CA$5) -> 1.071864288 | CB66: =DepartureOnDay(BE$12:BE$191,CB$6,$BW66,CB$4,CB$5) -> 1254.01248 | CC66: =DepartureOnDay(BF$12:BF$191,CC$6,$BW66,CC$4,CC$5) -> 71.91227873 | CD66: =DepartureOnDay(BG$12:BG$191,CD$6,$BW66,CD$4,CD$5) -> 90.23963052 | CE66: =DepartureOnDay(BH$12:BH$191,CE$6,$BW66,CE$4,CE$5) -> 7.145761921 | CF66: 1897.029092 | CG66: 95.98529321 | CI66: =DepartureOnDay(BA$12:BA$191,CI$6,$BW66,CI$4,CI$5) -> 27.45792467 | CJ66: =DepartureOnDay(BB$12:BB$191,CJ$6,$BW66,CJ$4,CJ$5) -> 4.355141639 | CK66: =DepartureOnDay(BC$12:BC$191,CK$6,$BW66,CK$4,CK$5) -> 0.002573849667 | CL66: =DepartureOnDay(BD$12:BD$191,CL$6,$BW66,CL$4,CL$5) -> 0.0002144157408 | CM66: =DepartureOnDay(BE$12:BE$191,CM$6,$BW66,CM$4,CM$5) -> 65.33187428 | CN66: =DepartureOnDay(BF$12:BF$191,CN$6,$BW66,CN$4,CN$5) -> 19.75279029 | CO66: =DepartureOnDay(BG$12:BG$191,CO$6,$BW66,CO$4,CO$5) -> 0.009024865539 | CP66: =DepartureOnDay(BH$12:BH$191,CP$6,$BW66,CP$4,CP$5) -> 0.001429438272 | CQ66: 92.80139767 | CR66: 24.10957579 | CT66: =DepartureOnDay(BK$12:BK$191,CT$6,$BW66,CT$4,CT$5) -> 13.13889009 | CU66: =DepartureOnDay(BL$12:BL$191,CU$6,$BW66,CU$4,CU$5) -> 0.6776928524 | CV66: =DepartureOnDay(BM$12:BM$191,CV$6,$BW66,CV$4,CV$5) -> 59.59157293 | CW66: =DepartureOnDay(BN$12:BN$191,CW$6,$BW66,CW$4,CW$5) -> 4.517952349 | CX66: 77.92610823 | CZ66: =DepartureOnDay(BK$12:BK$191,CZ$6,$BW66,CZ$4,CZ$5) -> 234.2609659 | DA66: =DepartureOnDay(BL$12:BL$191,DA$6,$BW66,DA$4,DA$5) -> 12.08298274 | DB66: =DepartureOnDay(BM$12:BM$191,DB$6,$BW66,DB$4,DB$5) -> 1062.493052 | DC66: =DepartureOnDay(BN$12:BN$191,DC$6,$BW66,DC$4,DC$5) -> 80.55321826 | DD66: 1389.390219 | DF66: =DepartureOnDay(BQ$12:BQ$191,DF$6,$BW66,DF$4,DF$5) -> 0.9054842948 | DG66: =DepartureOnDay(BR$12:BR$191,DG$6,$BW66,DG$4,DG$5) -> 0.04670411506 | DH66: =DepartureOnDay(BS$12:BS$191,DH$6,$BW66,DH$4,DH$5) -> 4.106833455 | DI66: =DepartureOnDay(BT$12:BT$191,DI$6,$BW66,DI$4,DI$5) -> 0.311360767 | DJ66: 5.370382632 | DL66: =DepartureOnDay(BQ$12:BQ$191,DL$6,$BW66,DL$4,DL$5) -> 17.2158325 | DM66: =DepartureOnDay(BR$12:BR$191,DM$6,$BW66,DM$4,DM$5) -> 0.8879780982 | DN66: =DepartureOnDay(BS$12:BS$191,DN$6,$BW66,DN$4,DN$5) -> 78.08258773 | DO66: =DepartureOnDay(BT$12:BT$191,DO$6,$BW66,DO$4,DO$5) -> 5.919853988 | DP66: 102.1062523 | DQ66: 1491.496471 | DR66: 37386.5287 | DS66: 55 | DT66: 3831.387619 | DU66: 352.201968 | DV66: 120.4392049 | DW66: 6.571609753 | DX66: 9116.192767 | DY66: 1597.415696 | DZ66: 422.304241 | EA66: 43.81073169 | EB66: 1097.577204 | EC66: 56.61210506 | ED66: 4978.072848 | EE66: 377.4140337 | EF66: 84.30351772 | EG66: 4.348304232 | EH66: 382.3594832 | EI66: 28.98869488 | EJ66: 2500.000006 | EK66: 20000.00002 | EL66: 2000.000006
A67: 56 | B67: ='C4-AnalyticOutput'!B63 -> 1555.829612 | C67: ='C4-AnalyticOutput'!C63 -> 251.9619781 | D67: ='C4-AnalyticOutput'!D63 -> 70.2061489 | E67: ='C4-AnalyticOutput'!E63 -> 12.995986 | F67: ='C4-AnalyticOutput'!F63 -> 3701.855324 | G67: ='C4-AnalyticOutput'!G63 -> 1142.776178 | H67: ='C4-AnalyticOutput'!H63 -> 246.1686329 | I67: ='C4-AnalyticOutput'!I63 -> 86.63990665 | J67: 5574.059718 | K67: 1494.374048 | T67: 3457.146817 | U67: 227.5715039 | V67: 5574.059718 | W67: 1494.374048 | X67: 227.5715039 | Y67: 1266.802544 | Z67: 1266.802544 | AA67: 0 | AB67: 2190.344273 | AC67: 3383.715445 | AD67: 227.1961732 | AE67: 1426.988968 | AF67: 2011.144863 | AG67: 0.8477144968 | AH67: 0 | AI67: 0.6070468593 | AJ67: 120.094869 | AK67: 120.094869 | AL67: 107.476635 | AM67: 119.6832647 | AN67: 107.5129085 | AO67: 0.4722763311 | AQ67: 944.4614795 | AR67: 0 | AS67: 42.61842219 | AT67: 0 | AU67: 2247.199648 | AV67: 0 | AW67: 149.4358955 | AX67: 0 | AY67: 3383.715445 | BA67: 611.3681325 | BB67: 20.24883983 | BC67: 27.58772671 | BD67: 1.044418054 | BE67: 1454.655676 | BF67: 91.83882408 | BG67: 96.73273746 | BH67: 6.962787028 | BI67: 2310.439142 | BK67: 213.5918215 | BL67: 11.01688573 | BM67: 968.7479322 | BN67: 73.44590486 | BO67: 1266.802544 | BQ67: 18.1213168 | BR67: 0.9346822133 | BS67: 82.18942119 | BT67: 6.231214755 | BU67: 107.476635 | BW67: 56 | BX67: =DepartureOnDay(BA$12:BA$191,BX$6,$BW67,BX$4,BX$5) -> 531.9954839 | BY67: =DepartureOnDay(BB$12:BB$191,BY$6,$BW67,BY$4,BY$5) -> 15.73053105 | BZ67: =DepartureOnDay(BC$12:BC$191,BZ$6,$BW67,BZ$4,BZ$5) -> 26.50388966 | CA67: =DepartureOnDay(BD$12:BD$191,CA$6,$BW67,CA$4,CA$5) -> 1.094630852 | CB67: =DepartureOnDay(BE$12:BE$191,CB$6,$BW67,CB$4,CB$5) -> 1265.800766 | CC67: =DepartureOnDay(BF$12:BF$191,CC$6,$BW67,CC$4,CC$5) -> 71.34598752 | CD67: =DepartureOnDay(BG$12:BG$191,CD$6,$BW67,CD$4,CD$5) -> 92.93240532 | CE67: =DepartureOnDay(BH$12:BH$191,CE$6,$BW67,CE$4,CE$5) -> 7.297539013 | CF67: 1917.232545 | CG67: 95.46868844 | CI67: =DepartureOnDay(BA$12:BA$191,CI$6,$BW67,CI$4,CI$5) -> 27.78656059 | CJ67: =DepartureOnDay(BB$12:BB$191,CJ$6,$BW67,CJ$4,CJ$5) -> 4.37410386 | CK67: =DepartureOnDay(BC$12:BC$191,CK$6,$BW67,CK$4,CK$5) -> 0.002650654032 | CL67: =DepartureOnDay(BD$12:BD$191,CL$6,$BW67,CL$4,CL$5) -> 0.0002189699644 | CM67: =DepartureOnDay(BE$12:BE$191,CM$6,$BW67,CM$4,CM$5) -> 66.1138125 | CN67: =DepartureOnDay(BF$12:BF$191,CN$6,$BW67,CN$4,CN$5) -> 19.83879364 | CO67: =DepartureOnDay(BG$12:BG$191,CO$6,$BW67,CO$4,CO$5) -> 0.009294169949 | CP67: =DepartureOnDay(BH$12:BH$191,CP$6,$BW67,CP$4,CP$5) -> 0.001459799762 | CQ67: 93.91231792 | CR67: 24.21457627 | CT67: =DepartureOnDay(BK$12:BK$191,CT$6,$BW67,CT$4,CT$5) -> 12.885814 | CU67: =DepartureOnDay(BL$12:BL$191,CU$6,$BW67,CU$4,CU$5) -> 0.6646394013 | CV67: =DepartureOnDay(BM$12:BM$191,CV$6,$BW67,CV$4,CV$5) -> 58.44374368 | CW67: =DepartureOnDay(BN$12:BN$191,CW$6,$BW67,CW$4,CW$5) -> 4.430929342 | CX67: 76.42512642 | CZ67: =DepartureOnDay(BK$12:BK$191,CZ$6,$BW67,CZ$4,CZ$5) -> 227.7145656 | DA67: =DepartureOnDay(BL$12:BL$191,DA$6,$BW67,DA$4,DA$5) -> 11.74532494 | DB67: =DepartureOnDay(BM$12:BM$191,DB$6,$BW67,DB$4,DB$5) -> 1032.801785 | DC67: =DepartureOnDay(BN$12:BN$191,DC$6,$BW67,DC$4,DC$5) -> 78.30216626 | DD67: 1350.563842 | DF67: =DepartureOnDay(BQ$12:BQ$191,DF$6,$BW67,DF$4,DF$5) -> 0.9063389793 | DG67: =DepartureOnDay(BR$12:BR$191,DG$6,$BW67,DG$4,DG$5) -> 0.04674819896 | DH67: =DepartureOnDay(BS$12:BS$191,DH$6,$BW67,DH$4,DH$5) -> 4.110709886 | DI67: =DepartureOnDay(BT$12:BT$191,DI$6,$BW67,DI$4,DI$5) -> 0.3116546597 | DJ67: 5.375451724 | DL67: =DepartureOnDay(BQ$12:BQ$191,DL$6,$BW67,DL$4,DL$5) -> 17.2210938 | DM67: =DepartureOnDay(BR$12:BR$191,DM$6,$BW67,DM$4,DM$5) -> 0.8882494714 | DN67: =DepartureOnDay(BS$12:BS$191,DN$6,$BW67,DN$4,DN$5) -> 78.1064504 | DO67: =DepartureOnDay(BT$12:BT$191,DO$6,$BW67,DO$4,DO$5) -> 5.921663143 | DP67: 102.1374568 | DQ67: 1452.701299 | DR67: 38839.23 | DS67: 56 | DT67: 3888.256768 | DU67: 352.240278 | DV67: 122.2884349 | DW67: 6.543949103 | DX67: 9251.504089 | DY67: 1597.589452 | DZ67: 428.7883231 | EA67: 43.62632735 | EB67: 1063.76917 | EC67: 54.8683152 | ED67: 4824.736155 | EE67: 365.788768 | EF67: 84.30351772 | EG67: 4.348304232 | EH67: 382.3594832 | EI67: 28.98869488 | EJ67: 2500.000006 | EK67: 20000.00002 | EL67: 2000.000006
A68: 57 | B68: ='C4-AnalyticOutput'!B64 -> 1502.075971 | C68: ='C4-AnalyticOutput'!C64 -> 243.2567358 | D68: ='C4-AnalyticOutput'!D64 -> 67.78053872 | E68: ='C4-AnalyticOutput'!E64 -> 12.54697695 | F68: ='C4-AnalyticOutput'!F64 -> 3573.956869 | G68: ='C4-AnalyticOutput'!G64 -> 1103.29346 | H68: ='C4-AnalyticOutput'!H64 -> 237.6635497 | I68: ='C4-AnalyticOutput'!I64 -> 83.64651301 | J68: 5381.476928 | K68: 1442.743686 | T68: 3438.133831 | U68: 227.1961732 | V68: 5381.476928 | W68: 1442.743686 | X68: 227.1961732 | Y68: 1215.547513 | Z68: 1215.547513 | AA68: 0 | AB68: 2222.586318 | AC68: 3158.89061 | AD68: 227.6101469 | AE68: 1384.608056 | AF68: 2050.423191 | AG68: 0.8425249229 | AH68: 0 | AI68: 0.586993246 | AJ68: 119.6832647 | AK68: 119.6832647 | AL68: 107.5129085 | AM68: 120.0482845 | AN68: 107.5618624 | AO68: 0.4732161946 | AQ68: 881.7084498 | AR68: 0 | AS68: 39.78671844 | AT68: 0 | AU68: 2097.888544 | AV68: 0 | AW68: 139.5068985 | AX68: 0 | AY68: 3158.89061 | BA68: 620.367521 | BB68: 20.17944045 | BC68: 27.99382028 | BD68: 1.040838493 | BE68: 1476.068326 | BF68: 91.52406248 | BG68: 98.15665121 | BH68: 6.938923286 | BI68: 2342.269583 | BK68: 204.9498626 | BL68: 10.57114079 | BM68: 929.5522375 | BN68: 70.47427192 | BO68: 1215.547513 | BQ68: 18.12743278 | BR68: 0.9349976704 | BS68: 82.21716028 | BT68: 6.233317803 | BU68: 107.5129085 | BW68: 57 | BX68: =DepartureOnDay(BA$12:BA$191,BX$6,$BW68,BX$4,BX$5) -> 542.610697 | BY68: =DepartureOnDay(BB$12:BB$191,BY$6,$BW68,BY$4,BY$5) -> 15.62484156 | BZ68: =DepartureOnDay(BC$12:BC$191,BZ$6,$BW68,BZ$4,BZ$5) -> 27.08777651 | CA68: =DepartureOnDay(BD$12:BD$191,CA$6,$BW68,CA$4,CA$5) -> 1.109155982 | CB68: =DepartureOnDay(BE$12:BE$191,CB$6,$BW68,CB$4,CB$5) -> 1291.05802 | CC68: =DepartureOnDay(BF$12:BF$191,CC$6,$BW68,CC$4,CC$5) -> 70.86663171 | CD68: =DepartureOnDay(BG$12:BG$191,CD$6,$BW68,CD$4,CD$5) -> 94.97972779 | CE68: =DepartureOnDay(BH$12:BH$191,CE$6,$BW68,CE$4,CE$5) -> 7.394373213 | CF68: 1955.736221 | CG68: 94.99500247 | CI68: =DepartureOnDay(BA$12:BA$191,CI$6,$BW68,CI$4,CI$5) -> 28.01571424 | CJ68: =DepartureOnDay(BB$12:BB$191,CJ$6,$BW68,CJ$4,CJ$5) -> 4.525613546 | CK68: =DepartureOnDay(BC$12:BC$191,CK$6,$BW68,CK$4,CK$5) -> 0.002709048555 | CL68: =DepartureOnDay(BD$12:BD$191,CL$6,$BW68,CL$4,CL$5) -> 0.0002218755715 | CM68: =DepartureOnDay(BE$12:BE$191,CM$6,$BW68,CM$4,CM$5) -> 66.65904808 | CN68: =DepartureOnDay(BF$12:BF$191,CN$6,$BW68,CN$4,CN$5) -> 20.5259674 | CO68: =DepartureOnDay(BG$12:BG$191,CO$6,$BW68,CO$4,CO$5) -> 0.009498922672 | CP68: =DepartureOnDay(BH$12:BH$191,CP$6,$BW68,CP$4,CP$5) -> 0.001479170477 | CQ68: 94.6869703 | CR68: 25.05328199 | CT68: =DepartureOnDay(BK$12:BK$191,CT$6,$BW68,CT$4,CT$5) -> 12.59867596 | CU68: =DepartureOnDay(BL$12:BL$191,CU$6,$BW68,CU$4,CU$5) -> 0.6498290639 | CV68: =DepartureOnDay(BM$12:BM$191,CV$6,$BW68,CV$4,CV$5) -> 57.14142612 | CW68: =DepartureOnDay(BN$12:BN$191,CW$6,$BW68,CW$4,CW$5) -> 4.332193759 | CX68: 74.72212491 | CZ68: =DepartureOnDay(BK$12:BK$191,CZ$6,$BW68,CZ$4,CZ$5) -> 220.8559835 | DA68: =DepartureOnDay(BL$12:BL$191,DA$6,$BW68,DA$4,DA$5) -> 11.39156507 | DB68: =DepartureOnDay(BM$12:BM$191,DB$6,$BW68,DB$4,DB$5) -> 1001.694615 | DC68: =DepartureOnDay(BN$12:BN$191,DC$6,$BW68,DC$4,DC$5) -> 75.94376715 | DD68: 1309.885931 | DF68: =DepartureOnDay(BQ$12:BQ$191,DF$6,$BW68,DF$4,DF$5) -> 0.9069168216 | DG68: =DepartureOnDay(BR$12:BR$191,DG$6,$BW68,DG$4,DG$5) -> 0.04677800358 | DH68: =DepartureOnDay(BS$12:BS$191,DH$6,$BW68,DH$4,DH$5) -> 4.113330696 | DI68: =DepartureOnDay(BT$12:BT$191,DI$6,$BW68,DI$4,DI$5) -> 0.3118533572 | DJ68: 5.378878878 | DL68: =DepartureOnDay(BQ$12:BQ$191,DL$6,$BW68,DL$4,DL$5) -> 17.22876992 | DM68: =DepartureOnDay(BR$12:BR$191,DM$6,$BW68,DM$4,DM$5) -> 0.8886453994 | DN68: =DepartureOnDay(BS$12:BS$191,DN$6,$BW68,DN$4,DN$5) -> 78.14126553 | DO68: =DepartureOnDay(BT$12:BT$191,DO$6,$BW68,DO$4,DO$5) -> 5.924302663 | DP68: 102.1829835 | DQ68: 1412.068914 | DR68: 40251.29892 | DS68: 57 | DT68: 3948.842244 | DU68: 352.3150835 | DV68: 123.7757149 | DW68: 6.489937774 | DX68: 9395.657836 | DY68: 1597.928733 | DZ68: 434.0032748 | EA68: 43.26625183 | EB68: 1028.118653 | EC68: 53.02949165 | ED68: 4663.042864 | EE68: 353.5299443 | EF68: 84.30351772 | EG68: 4.348304232 | EH68: 382.3594832 | EI68: 28.98869488 | EJ68: 2500.000006 | EK68: 20000.00002 | EL68: 2000.000006
A69: 58 | B69: ='C4-AnalyticOutput'!B65 -> 1446.945596 | C69: ='C4-AnalyticOutput'!C65 -> 234.3285355 | D69: ='C4-AnalyticOutput'!D65 -> 65.29280402 | E69: ='C4-AnalyticOutput'!E65 -> 12.08646792 | F69: ='C4-AnalyticOutput'!F65 -> 3442.78269 | G69: ='C4-AnalyticOutput'!G65 -> 1062.799515 | H69: ='C4-AnalyticOutput'!H65 -> 228.9406349 | I69: ='C4-AnalyticOutput'!I65 -> 80.57645282 | J69: 5183.961725 | K69: 1389.790971 | T69: 3435.031247 | U69: 227.6101469 | V69: 5183.961725 | W69: 1389.790971 | X69: 227.6101469 | Y69: 1162.180824 | Z69: 1162.180824 | AA69: 0 | AB69: 2272.850422 | AC69: 2911.111302 | AD69: 227.8900318 | AE69: 1340.740336 | AF69: 2098.218885 | AG69: 0.8362270647 | AH69: 0 | AI69: 0.5615611104 | AJ69: 120.0482845 | AK69: 120.0482845 | AL69: 107.5618624 | AM69: 120.3430282 | AN69: 107.5470036 | AO69: 0.4725705944 | AQ69: 812.5483753 | AR69: 0 | AS69: 36.66589952 | AT69: 0 | AU69: 1933.33287 | AV69: 0 | AW69: 128.5641572 | AX69: 0 | AY69: 2911.111302 | BA69: 634.3972203 | BB69: 20.24098535 | BC69: 28.62690449 | BD69: 1.044012927 | BE69: 1509.44982 | BF69: 91.8032 | BG69: 100.3764778 | BH69: 6.960086178 | BI69: 2392.898707 | BK69: 195.9518634 | BL69: 10.10703159 | BM69: 888.7417187 | BN69: 67.38021063 | BO69: 1162.180824 | BQ69: 18.13568674 | BR69: 0.935423403 | BS69: 82.25459623 | BT69: 6.23615602 | BU69: 107.5618624 | BW69: 58 | BX69: =DepartureOnDay(BA$12:BA$191,BX$6,$BW69,BX$4,BX$5) -> 556.099796 | BY69: =DepartureOnDay(BB$12:BB$191,BY$6,$BW69,BY$4,BY$5) -> 15.52921723 | BZ69: =DepartureOnDay(BC$12:BC$191,BZ$6,$BW69,BZ$4,BZ$5) -> 27.37817828 | CA69: =DepartureOnDay(BD$12:BD$191,CA$6,$BW69,CA$4,CA$5) -> 1.110719372 | CB69: =DepartureOnDay(BE$12:BE$191,CB$6,$BW69,CB$4,CB$5) -> 1323.153239 | CC69: =DepartureOnDay(BF$12:BF$191,CC$6,$BW69,CC$4,CC$5) -> 70.43292656 | CD69: =DepartureOnDay(BG$12:BG$191,CD$6,$BW69,CD$4,CD$5) -> 95.99798344 | CE69: =DepartureOnDay(BH$12:BH$191,CE$6,$BW69,CE$4,CE$5) -> 7.404795816 | CF69: 2002.629197 | CG69: 94.47765897 | CI69: =DepartureOnDay(BA$12:BA$191,CI$6,$BW69,CI$4,CI$5) -> 28.28280369 | CJ69: =DepartureOnDay(BB$12:BB$191,CJ$6,$BW69,CJ$4,CJ$5) -> 4.672318149 | CK69: =DepartureOnDay(BC$12:BC$191,CK$6,$BW69,CK$4,CK$5) -> 0.002738091637 | CL69: =DepartureOnDay(BD$12:BD$191,CL$6,$BW69,CL$4,CL$5) -> 0.0002221883121 | CM69: =DepartureOnDay(BE$12:BE$191,CM$6,$BW69,CM$4,CM$5) -> 67.29454601 | CN69: =DepartureOnDay(BF$12:BF$191,CN$6,$BW69,CN$4,CN$5) -> 21.19134766 | CO69: =DepartureOnDay(BG$12:BG$191,CO$6,$BW69,CO$4,CO$5) -> 0.00960075842 | CP69: =DepartureOnDay(BH$12:BH$191,CP$6,$BW69,CP$4,CP$5) -> 0.001481255414 | CQ69: 95.58968854 | CR69: 25.86536925 | CT69: =DepartureOnDay(BK$12:BK$191,CT$6,$BW69,CT$4,CT$5) -> 12.28623077 | CU69: =DepartureOnDay(BL$12:BL$191,CU$6,$BW69,CU$4,CU$5) -> 0.6337134048 | CV69: =DepartureOnDay(BM$12:BM$191,CV$6,$BW69,CV$4,CV$5) -> 55.72432769 | CW69: =DepartureOnDay(BN$12:BN$191,CW$6,$BW69,CW$4,CW$5) -> 4.224756032 | CX69: 72.8690279 | CZ69: =DepartureOnDay(BK$12:BK$191,CZ$6,$BW69,CZ$4,CZ$5) -> 213.7720226 | DA69: =DepartureOnDay(BL$12:BL$191,DA$6,$BW69,DA$4,DA$5) -> 11.02618035 | DB69: =DepartureOnDay(BM$12:BM$191,DB$6,$BW69,DB$4,DB$5) -> 969.5652361 | DC69: =DepartureOnDay(BN$12:BN$191,DC$6,$BW69,DC$4,DC$5) -> 73.50786899 | DD69: 1267.871308 | DF69: =DepartureOnDay(BQ$12:BQ$191,DF$6,$BW69,DF$4,DF$5) -> 0.9067695343 | DG69: =DepartureOnDay(BR$12:BR$191,DG$6,$BW69,DG$4,DG$5) -> 0.04677040662 | DH69: =DepartureOnDay(BS$12:BS$191,DH$6,$BW69,DH$4,DH$5) -> 4.112662673 | DI69: =DepartureOnDay(BT$12:BT$191,DI$6,$BW69,DI$4,DI$5) -> 0.3118027108 | DJ69: 5.378005324 | DL69: =DepartureOnDay(BQ$12:BQ$191,DL$6,$BW69,DL$4,DL$5) -> 17.22641191 | DM69: =DepartureOnDay(BR$12:BR$191,DM$6,$BW69,DM$4,DM$5) -> 0.8885237752 | DN69: =DepartureOnDay(BS$12:BS$191,DN$6,$BW69,DN$4,DN$5) -> 78.13057075 | DO69: =DepartureOnDay(BT$12:BT$191,DO$6,$BW69,DO$4,DO$5) -> 5.923491834 | DP69: 102.1689983 | DQ69: 1370.040306 | DR69: 41621.33922 | DS69: 58 | DT69: 4012.613053 | DU69: 352.4056138 | DV69: 125.3121339 | DW69: 6.424572843 | DX69: 9547.390588 | DY69: 1598.339334 | DZ69: 439.3905258 | EA69: 42.83048562 | EB69: 990.6158566 | EC69: 51.0951291 | ED69: 4492.948541 | EE69: 340.634194 | EF69: 84.30351772 | EG69: 4.348304232 | EH69: 382.3594832 | EI69: 28.98869488 | EJ69: 2500.000006 | EK69: 20000.00002 | EL69: 2000.000006
A70: 59 | B70: ='C4-AnalyticOutput'!B66 -> 1390.838392 | C70: ='C4-AnalyticOutput'!C66 -> 225.2421408 | D70: ='C4-AnalyticOutput'!D66 -> 62.76099036 | E70: ='C4-AnalyticOutput'!E66 -> 11.61779936 | F70: ='C4-AnalyticOutput'!F66 -> 3309.284299 | G70: ='C4-AnalyticOutput'!G66 -> 1021.588077 | H70: ='C4-AnalyticOutput'!H66 -> 220.0631631 | I70: ='C4-AnalyticOutput'!I66 -> 77.45199574 | J70: 4982.946845 | K70: 1335.900013 | T70: 3438.959221 | U70: 227.8900318 | V70: 4982.946845 | W70: 1335.900013 | X70: 227.8900318 | Y70: 1108.009981 | Z70: 1108.009981 | AA70: 0 | AB70: 2330.94924 | AC70: 2651.997605 | AD70: 228.0234849 | AE70: 1294.725253 | AF70: 2137.799238 | AG70: 0.8294108619 | AH70: 0 | AI70: 0.532214709 | AJ70: 120.3430282 | AK70: 120.3430282 | AL70: 107.5470036 | AM70: 120.5089527 | AN70: 107.5145322 | AO70: 0.4719250014 | AQ70: 740.2246503 | AR70: 0 | AS70: 33.40232222 | AT70: 0 | AU70: 1761.249781 | AV70: 0 | AW70: 117.1208523 | AX70: 0 | AY70: 2651.997605 | BA70: 650.6137421 | BB70: 20.29068122 | BC70: 29.35866814 | BD70: 1.046576198 | BE70: 1548.034519 | BF70: 92.02859615 | BG70: 102.9423108 | BH70: 6.977174652 | BI70: 2451.292268 | BK70: 186.8182782 | BL70: 9.635928981 | BM70: 847.3162476 | BN70: 64.23952654 | BO70: 1108.009981 | BQ70: 18.13318145 | BR70: 0.9352941818 | BS70: 82.24323342 | BT70: 6.235294545 | BU70: 107.5470036 | BW70: 59 | BX70: =DepartureOnDay(BA$12:BA$191,BX$6,$BW70,BX$4,BX$5) -> 567.2417376 | BY70: =DepartureOnDay(BB$12:BB$191,BY$6,$BW70,BY$4,BY$5) -> 15.43993909 | BZ70: =DepartureOnDay(BC$12:BC$191,BZ$6,$BW70,BZ$4,BZ$5) -> 27.51387741 | CA70: =DepartureOnDay(BD$12:BD$191,CA$6,$BW70,CA$4,CA$5) -> 1.098791556 | CB70: =DepartureOnDay(BE$12:BE$191,CB$6,$BW70,CB$4,CB$5) -> 1349.663762 | CC70: =DepartureOnDay(BF$12:BF$191,CC$6,$BW70,CC$4,CC$5) -> 70.02800465 | CD70: =DepartureOnDay(BG$12:BG$191,CD$6,$BW70,CD$4,CD$5) -> 96.47379459 | CE70: =DepartureOnDay(BH$12:BH$191,CE$6,$BW70,CE$4,CE$5) -> 7.325277042 | CF70: 2040.893171 | CG70: 93.89201234 | CI70: =DepartureOnDay(BA$12:BA$191,CI$6,$BW70,CI$4,CI$5) -> 28.67232211 | CJ70: =DepartureOnDay(BB$12:BB$191,CJ$6,$BW70,CJ$4,CJ$5) -> 4.808094135 | CK70: =DepartureOnDay(BC$12:BC$191,CK$6,$BW70,CK$4,CK$5) -> 0.002751662907 | CL70: =DepartureOnDay(BD$12:BD$191,CL$6,$BW70,CL$4,CL$5) -> 0.0002198022717 | CM70: =DepartureOnDay(BE$12:BE$191,CM$6,$BW70,CM$4,CM$5) -> 68.22134469 | CN70: =DepartureOnDay(BF$12:BF$191,CN$6,$BW70,CN$4,CN$5) -> 21.80716106 | CO70: =DepartureOnDay(BG$12:BG$191,CO$6,$BW70,CO$4,CO$5) -> 0.009648344293 | CP70: =DepartureOnDay(BH$12:BH$191,CP$6,$BW70,CP$4,CP$5) -> 0.001465348478 | CQ70: 96.9060668 | CR70: 26.61694034 | CT70: =DepartureOnDay(BK$12:BK$191,CT$6,$BW70,CT$4,CT$5) -> 11.95195596 | CU70: =DepartureOnDay(BL$12:BL$191,CU$6,$BW70,CU$4,CU$5) -> 0.6164717924 | CV70: =DepartureOnDay(BM$12:BM$191,CV$6,$BW70,CV$4,CV$5) -> 54.2082208 | CW70: =DepartureOnDay(BN$12:BN$191,CW$6,$BW70,CW$4,CW$5) -> 4.109811949 | CX70: 70.8864605 | CZ70: =DepartureOnDay(BK$12:BK$191,CZ$6,$BW70,CZ$4,CZ$5) -> 206.3478307 | DA70: =DepartureOnDay(BL$12:BL$191,DA$6,$BW70,DA$4,DA$5) -> 10.64324681 | DB70: =DepartureOnDay(BM$12:BM$191,DB$6,$BW70,DB$4,DB$5) -> 935.8927367 | DC70: =DepartureOnDay(BN$12:BN$191,DC$6,$BW70,DC$4,DC$5) -> 70.9549787 | DD70: 1223.838793 | DF70: =DepartureOnDay(BQ$12:BQ$191,DF$6,$BW70,DF$4,DF$5) -> 0.9064646585 | DG70: =DepartureOnDay(BR$12:BR$191,DG$6,$BW70,DG$4,DG$5) -> 0.04675468139 | DH70: =DepartureOnDay(BS$12:BS$191,DH$6,$BW70,DH$4,DH$5) -> 4.111279905 | DI70: =DepartureOnDay(BT$12:BT$191,DI$6,$BW70,DI$4,DI$5) -> 0.3116978759 | DJ70: 5.376197121 | DL70: =DepartureOnDay(BQ$12:BQ$191,DL$6,$BW70,DL$4,DL$5) -> 17.22124188 | DM70: =DepartureOnDay(BR$12:BR$191,DM$6,$BW70,DM$4,DM$5) -> 0.8882571094 | DN70: =DepartureOnDay(BS$12:BS$191,DN$6,$BW70,DN$4,DN$5) -> 78.10712203 | DO70: =DepartureOnDay(BT$12:BT$191,DO$6,$BW70,DO$4,DO$5) -> 5.921714063 | DP70: 102.1383351 | DQ70: 1325.977128 | DR70: 42947.31635 | DS70: 59 | DT70: 4078.844196 | DU70: 352.4947596 | DV70: 127.2898856 | DW70: 6.360207481 | DX70: 9704.977322 | DY70: 1598.743656 | DZ70: 446.3252524 | EA70: 42.4013832 | EB70: 951.3758815 | EC70: 49.07116433 | ED70: 4314.975225 | EE70: 327.1410955 | EF70: 84.30351772 | EG70: 4.348304232 | EH70: 382.3594832 | EI70: 28.98869488 | EJ70: 2500.000006 | EK70: 20000.00002 | EL70: 2000.000006
A71: 60 | B71: ='C4-AnalyticOutput'!B67 -> 1334.127388 | C71: ='C4-AnalyticOutput'!C67 -> 216.0579624 | D71: ='C4-AnalyticOutput'!D67 -> 60.20193043 | E71: ='C4-AnalyticOutput'!E67 -> 11.14408719 | F71: ='C4-AnalyticOutput'!F67 -> 3174.349258 | G71: ='C4-AnalyticOutput'!G67 -> 979.93314 | H71: ='C4-AnalyticOutput'!H67 -> 211.0901559 | I71: ='C4-AnalyticOutput'!I67 -> 74.29391462 | J71: 4779.768732 | K71: 1281.429104 | T71: 3432.524491 | U71: 228.0234849 | V71: 4779.768732 | W71: 1281.429104 | X71: 228.0234849 | Y71: 1053.405619 | Z71: 1053.405619 | AA71: 0 | AB71: 2379.118872 | AC71: 2400.64986 | AD71: 228.0173722 | AE71: 1246.166677 | AF71: 2166.25577 | AG71: 0.8220553255 | AH71: 0 | AI71: 0.5022523044 | AJ71: 120.5089527 | AK71: 120.5089527 | AL71: 107.5145322 | AM71: 120.504942 | AN71: 107.5124302 | AO71: 0.4715063988 | AQ71: 670.068555 | AR71: 0 | AS71: 30.23655829 | AT71: 0 | AU71: 1594.32423 | AV71: 0 | AW71: 106.0205172 | AX71: 0 | AY71: 2400.64986 | BA71: 664.0588331 | BB71: 20.31865726 | BC71: 29.96537214 | BD71: 1.048019178 | BE71: 1580.025028 | BF71: 92.15548173 | BG71: 105.0696387 | BH71: 6.98679452 | BI71: 2499.627825 | BK71: 177.6115986 | BL71: 9.161056225 | BM71: 805.5592563 | BN71: 61.07370816 | BO71: 1053.405619 | BQ71: 18.12770654 | BR71: 0.9350117908 | BS71: 82.21840193 | BT71: 6.233411939 | BU71: 107.5145322 | BW71: 60 | BX71: =DepartureOnDay(BA$12:BA$191,BX$6,$BW71,BX$4,BX$5) -> 574.8171558 | BY71: =DepartureOnDay(BB$12:BB$191,BY$6,$BW71,BY$4,BY$5) -> 15.35566937 | BZ71: =DepartureOnDay(BC$12:BC$191,BZ$6,$BW71,BZ$4,BZ$5) -> 27.78799442 | CA71: =DepartureOnDay(BD$12:BD$191,CA$6,$BW71,CA$4,CA$5) -> 1.074278759 | CB71: =DepartureOnDay(BE$12:BE$191,CB$6,$BW71,CB$4,CB$5) -> 1367.688294 | CC71: =DepartureOnDay(BF$12:BF$191,CC$6,$BW71,CC$4,CC$5) -> 69.64579843 | CD71: =DepartureOnDay(BG$12:BG$191,CD$6,$BW71,CD$4,CD$5) -> 97.43494987 | CE71: =DepartureOnDay(BH$12:BH$191,CE$6,$BW71,CE$4,CE$5) -> 7.161858391 | CF71: 2067.728394 | CG71: 93.23760495 | CI71: =DepartureOnDay(BA$12:BA$191,CI$6,$BW71,CI$4,CI$5) -> 29.15205574 | CJ71: =DepartureOnDay(BB$12:BB$191,CJ$6,$BW71,CJ$4,CJ$5) -> 4.925596276 | CK71: =DepartureOnDay(BC$12:BC$191,CK$6,$BW71,CK$4,CK$5) -> 0.00277907735 | CL71: =DepartureOnDay(BD$12:BD$191,CL$6,$BW71,CL$4,CL$5) -> 0.0002148987315 | CM71: =DepartureOnDay(BE$12:BE$191,CM$6,$BW71,CM$4,CM$5) -> 69.36279648 | CN71: =DepartureOnDay(BF$12:BF$191,CN$6,$BW71,CN$4,CN$5) -> 22.34009324 | CO71: =DepartureOnDay(BG$12:BG$191,CO$6,$BW71,CO$4,CO$5) -> 0.009744469434 | CP71: =DepartureOnDay(BH$12:BH$191,CP$6,$BW71,CP$4,CP$5) -> 0.00143265821 | CQ71: 98.52737576 | CR71: 27.26733708 | CT71: =DepartureOnDay(BK$12:BK$191,CT$6,$BW71,CT$4,CT$5) -> 11.59496833 | CU71: =DepartureOnDay(BL$12:BL$191,CU$6,$BW71,CU$4,CU$5) -> 0.5980586722 | CV71: =DepartureOnDay(BM$12:BM$191,CV$6,$BW71,CV$4,CV$5) -> 52.58909971 | CW71: =DepartureOnDay(BN$12:BN$191,CW$6,$BW71,CW$4,CW$5) -> 3.987057815 | CX71: 68.76918453 | CZ71: =DepartureOnDay(BK$12:BK$191,CZ$6,$BW71,CZ$4,CZ$5) -> 198.5175008 | DA71: =DepartureOnDay(BL$12:BL$191,DA$6,$BW71,DA$4,DA$5) -> 10.239365 | DB71: =DepartureOnDay(BM$12:BM$191,DB$6,$BW71,DB$4,DB$5) -> 900.3781936 | DC71: =DepartureOnDay(BN$12:BN$191,DC$6,$BW71,DC$4,DC$5) -> 68.26243334 | DD71: 1177.397493 | DF71: =DepartureOnDay(BQ$12:BQ$191,DF$6,$BW71,DF$4,DF$5) -> 0.9062387996 | DG71: =DepartureOnDay(BR$12:BR$191,DG$6,$BW71,DG$4,DG$5) -> 0.04674303178 | DH71: =DepartureOnDay(BS$12:BS$191,DH$6,$BW71,DH$4,DH$5) -> 4.11025552 | DI71: =DepartureOnDay(BT$12:BT$191,DI$6,$BW71,DI$4,DI$5) -> 0.3116202119 | DJ71: 5.374857563 | DL71: =DepartureOnDay(BQ$12:BQ$191,DL$6,$BW71,DL$4,DL$5) -> 17.22111333 | DM71: =DepartureOnDay(BR$12:BR$191,DM$6,$BW71,DM$4,DM$5) -> 0.8882504788 | DN71: =DepartureOnDay(BS$12:BS$191,DN$6,$BW71,DN$4,DN$5) -> 78.10653898 | DO71: =DepartureOnDay(BT$12:BT$191,DO$6,$BW71,DO$4,DO$5) -> 5.921669859 | DP71: 102.1375726 | DQ71: 1279.535065 | DR71: 44226.85142 | DS71: 60 | DT71: 4146.988969 | DU71: 352.5653836 | DV71: 129.7386287 | DW71: 6.3092153 | DX71: 9867.117244 | DY71: 1599.063972 | DZ71: 454.9114481 | EA71: 42.06143533 | EB71: 910.6876934 | EC71: 46.97250196 | ED71: 4130.433524 | EE71: 313.1500131 | EF71: 84.30351772 | EG71: 4.348304232 | EH71: 382.3594832 | EI71: 28.98869488 | EJ71: 2500.000006 | EK71: 20000.00002 | EL71: 2000.000006
A72: 61 | B72: ='C4-AnalyticOutput'!B68 -> 1277.157547 | C72: ='C4-AnalyticOutput'!C68 -> 206.831866 | D72: ='C4-AnalyticOutput'!D68 -> 57.63119059 | E72: ='C4-AnalyticOutput'!E68 -> 10.66821294 | F72: ='C4-AnalyticOutput'!F68 -> 3038.798354 | G72: ='C4-AnalyticOutput'!G68 -> 938.0880837 | H72: ='C4-AnalyticOutput'!H68 -> 202.0761945 | I72: ='C4-AnalyticOutput'!I68 -> 71.12141957 | J72: 4575.663285 | K72: 1226.709582 | T72: 3412.422448 | U72: 228.0173722 | V72: 4575.663285 | W72: 1226.709582 | X72: 228.0173722 | Y72: 998.6922099 | Z72: 998.6922099 | AA72: 0 | AB72: 2413.730238 | AC72: 2161.933048 | AD72: 228.029622 | AE72: 1195.253753 | AF72: 2190.449359 | AG72: 0.8141227756 | AH72: 0 | AI72: 0.4724851705 | AJ72: 120.504942 | AK72: 120.504942 | AL72: 107.5124302 | AM72: 120.5055911 | AN72: 107.5240309 | AO72: 0.4715098203 | AQ72: 603.4380012 | AR72: 0 | AS72: 27.22988291 | AT72: 0 | AU72: 1435.787158 | AV72: 0 | AW72: 95.47800523 | AX72: 0 | AY72: 2161.933048 | BA72: 673.7195454 | BB72: 20.31798103 | BC72: 30.40130767 | BD72: 1.047984299 | BE72: 1603.011195 | BF72: 92.1524147 | BG72: 106.5981893 | BH72: 6.986561992 | BI72: 2534.23518 | BK72: 168.3865328 | BL72: 8.685235126 | BM72: 763.7188745 | BN72: 57.90156751 | BO72: 998.6922099 | BQ72: 18.12735213 | BR72: 0.9349935106 | BS72: 82.2167945 | BT72: 6.23329007 | BU72: 107.5124302 | BW72: 61 | BX72: =DepartureOnDay(BA$12:BA$191,BX$6,$BW72,BX$4,BX$5) -> 580.7601092 | BY72: =DepartureOnDay(BB$12:BB$191,BY$6,$BW72,BY$4,BY$5) -> 15.27600749 | BZ72: =DepartureOnDay(BC$12:BC$191,BZ$6,$BW72,BZ$4,BZ$5) -> 28.30753135 | CA72: =DepartureOnDay(BD$12:BD$191,CA$6,$BW72,CA$4,CA$5) -> 1.053870792 | CB72: =DepartureOnDay(BE$12:BE$191,CB$6,$BW72,CB$4,CB$5) -> 1381.828631 | CC72: =DepartureOnDay(BF$12:BF$191,CC$6,$BW72,CC$4,CC$5) -> 69.28449116 | CD72: =DepartureOnDay(BG$12:BG$191,CD$6,$BW72,CD$4,CD$5) -> 99.25663783 | CE72: =DepartureOnDay(BH$12:BH$191,CE$6,$BW72,CE$4,CE$5) -> 7.02580528 | CF72: 2090.152909 | CG72: 92.64017472 | CI72: =DepartureOnDay(BA$12:BA$191,CI$6,$BW72,CI$4,CI$5) -> 29.67548265 | CJ72: =DepartureOnDay(BB$12:BB$191,CJ$6,$BW72,CJ$4,CJ$5) -> 5.033646044 | CK72: =DepartureOnDay(BC$12:BC$191,CK$6,$BW72,CK$4,CK$5) -> 0.002831036239 | CL72: =DepartureOnDay(BD$12:BD$191,CL$6,$BW72,CL$4,CL$5) -> 0.0002108163217 | CM72: =DepartureOnDay(BE$12:BE$191,CM$6,$BW72,CM$4,CM$5) -> 70.60820967 | CN72: =DepartureOnDay(BF$12:BF$191,CN$6,$BW72,CN$4,CN$5) -> 22.83015409 | CO72: =DepartureOnDay(BG$12:BG$191,CO$6,$BW72,CO$4,CO$5) -> 0.009926656449 | CP72: =DepartureOnDay(BH$12:BH$191,CP$6,$BW72,CP$4,CP$5) -> 0.001405442144 | CQ72: 100.29645 | CR72: 27.86541639 | CT72: =DepartureOnDay(BK$12:BK$191,CT$6,$BW72,CT$4,CT$5) -> 11.21663332 | CU72: =DepartureOnDay(BL$12:BL$191,CU$6,$BW72,CU$4,CU$5) -> 0.5785444721 | CV72: =DepartureOnDay(BM$12:BM$191,CV$6,$BW72,CV$4,CV$5) -> 50.87315734 | CW72: =DepartureOnDay(BN$12:BN$191,CW$6,$BW72,CW$4,CW$5) -> 3.856963148 | CX72: 66.52529828 | CZ72: =DepartureOnDay(BK$12:BK$191,CZ$6,$BW72,CZ$4,CZ$5) -> 190.3115586 | DA72: =DepartureOnDay(BL$12:BL$191,DA$6,$BW72,DA$4,DA$5) -> 9.816109435 | DB72: =DepartureOnDay(BM$12:BM$191,DB$6,$BW72,DB$4,DB$5) -> 863.1600573 | DC72: =DepartureOnDay(BN$12:BN$191,DC$6,$BW72,DC$4,DC$5) -> 65.44072956 | DD72: 1128.728455 | DF72: =DepartureOnDay(BQ$12:BQ$191,DF$6,$BW72,DF$4,DF$5) -> 0.9063738719 | DG72: =DepartureOnDay(BR$12:BR$191,DG$6,$BW72,DG$4,DG$5) -> 0.04674999869 | DH72: =DepartureOnDay(BS$12:BS$191,DH$6,$BW72,DH$4,DH$5) -> 4.110868142 | DI72: =DepartureOnDay(BT$12:BT$191,DI$6,$BW72,DI$4,DI$5) -> 0.3116666579 | DJ72: 5.37565867 | DL72: =DepartureOnDay(BQ$12:BQ$191,DL$6,$BW72,DL$4,DL$5) -> 17.22293422 | DM72: =DepartureOnDay(BR$12:BR$191,DM$6,$BW72,DM$4,DM$5) -> 0.8883443987 | DN72: =DepartureOnDay(BS$12:BS$191,DN$6,$BW72,DN$4,DN$5) -> 78.11479764 | DO72: =DepartureOnDay(BT$12:BT$191,DO$6,$BW72,DO$4,DO$5) -> 5.922295992 | DP72: 102.1483723 | DQ72: 1230.876827 | DR72: 45457.72824 | DS72: 61 | DT72: 4216.739303 | DU72: 352.602099 | DV72: 132.3491629 | DW72: 6.282705941 | DX72: 10033.07735 | DY72: 1599.230495 | DZ72: 464.0649431 | EA72: 41.88470628 | EB72: 868.9617571 | EC72: 44.82031341 | ED72: 3941.185105 | EE72: 298.8020894 | EF72: 84.30351772 | EG72: 4.348304232 | EH72: 382.3594832 | EI72: 28.98869488 | EJ72: 2500.000006 | EK72: 20000.00002 | EL72: 2000.000006
A73: 62 | B73: ='C4-AnalyticOutput'!B69 -> 1220.245091 | C73: ='C4-AnalyticOutput'!C69 -> 197.6150631 | D73: ='C4-AnalyticOutput'!D69 -> 55.06304026 | E73: ='C4-AnalyticOutput'!E69 -> 10.19281803 | F73: ='C4-AnalyticOutput'!F69 -> 2903.38399 | G73: ='C4-AnalyticOutput'!G69 -> 896.2851781 | H73: ='C4-AnalyticOutput'!H69 -> 193.071313 | I73: ='C4-AnalyticOutput'!I69 -> 67.95212019 | J73: 4371.763435 | K73: 1172.045179 | T73: 3385.703112 | U73: 228.029622 | V73: 4371.763435 | W73: 1172.045179 | X73: 228.029622 | Y73: 944.0155574 | Z73: 944.0155574 | AA73: 0 | AB73: 2441.687555 | AC73: 1930.07588 | AD73: 227.9875437 | AE73: 1142.220748 | AF73: 2218.498568 | AG73: 0.8054429761 | AH73: 0 | AI73: 0.4414868071 | AJ73: 120.5055911 | AK73: 120.5055911 | AL73: 107.5240309 | AM73: 120.4530299 | AN73: 107.5345138 | AO73: 0.4715353644 | AQ73: 538.7221091 | AR73: 0 | AS73: 24.30960583 | AT73: 0 | AU73: 1281.805728 | AV73: 0 | AW73: 85.2384375 | AX73: 0 | AY73: 1930.07588 | BA73: 681.522982 | BB73: 20.31809047 | BC73: 30.75343443 | BD73: 1.047989944 | BE73: 1621.578263 | BF73: 92.15291107 | BG73: 107.8328755 | BH73: 6.986599624 | BI73: 2562.193146 | BK73: 159.1676645 | BL73: 8.209733687 | BM73: 721.9066013 | BN73: 54.73155791 | BO73: 944.0155574 | BQ73: 18.12930809 | BR73: 0.9350943974 | BS73: 82.22566578 | BT73: 6.23396265 | BU73: 107.5240309 | BW73: 62 | BX73: =DepartureOnDay(BA$12:BA$191,BX$6,$BW73,BX$4,BX$5) -> 587.6580857 | BY73: =DepartureOnDay(BB$12:BB$191,BY$6,$BW73,BY$4,BY$5) -> 15.1853112 | BZ73: =DepartureOnDay(BC$12:BC$191,BZ$6,$BW73,BZ$4,BZ$5) -> 28.98988704 | CA73: =DepartureOnDay(BD$12:BD$191,CA$6,$BW73,CA$4,CA$5) -> 1.042881207 | CB73: =DepartureOnDay(BE$12:BE$191,CB$6,$BW73,CB$4,CB$5) -> 1398.241296 | CC73: =DepartureOnDay(BF$12:BF$191,CC$6,$BW73,CC$4,CC$5) -> 68.87313722 | CD73: =DepartureOnDay(BG$12:BG$191,CD$6,$BW73,CD$4,CD$5) -> 101.6492283 | CE73: =DepartureOnDay(BH$12:BH$191,CE$6,$BW73,CE$4,CE$5) -> 6.952541378 | CF73: 2116.538497 | CG73: 92.05387101 | CI73: =DepartureOnDay(BA$12:BA$191,CI$6,$BW73,CI$4,CI$5) -> 30.16768264 | CJ73: =DepartureOnDay(BB$12:BB$191,CJ$6,$BW73,CJ$4,CJ$5) -> 5.130070638 | CK73: =DepartureOnDay(BC$12:BC$191,CK$6,$BW73,CK$4,CK$5) -> 0.002899278631 | CL73: =DepartureOnDay(BD$12:BD$191,CL$6,$BW73,CL$4,CL$5) -> 0.0002086179649 | CM73: =DepartureOnDay(BE$12:BE$191,CM$6,$BW73,CM$4,CM$5) -> 71.77932322 | CN73: =DepartureOnDay(BF$12:BF$191,CN$6,$BW73,CN$4,CN$5) -> 23.26748884 | CO73: =DepartureOnDay(BG$12:BG$191,CO$6,$BW73,CO$4,CO$5) -> 0.01016593943 | CP73: =DepartureOnDay(BH$12:BH$191,CP$6,$BW73,CP$4,CP$5) -> 0.001390786433 | CQ73: 101.9600711 | CR73: 28.39915888 | CT73: =DepartureOnDay(BK$12:BK$191,CT$6,$BW73,CT$4,CT$5) -> 10.82019848 | CU73: =DepartureOnDay(BL$12:BL$191,CU$6,$BW73,CU$4,CU$5) -> 0.5580966975 | CV73: =DepartureOnDay(BM$12:BM$191,CV$6,$BW73,CV$4,CV$5) -> 49.07512295 | CW73: =DepartureOnDay(BN$12:BN$191,CW$6,$BW73,CW$4,CW$5) -> 3.72064465 | CX73: 64.17406278 | CZ73: =DepartureOnDay(BK$12:BK$191,CZ$6,$BW73,CZ$4,CZ$5) -> 181.7662557 | DA73: =DepartureOnDay(BL$12:BL$191,DA$6,$BW73,DA$4,DA$5) -> 9.375349927 | DB73: =DepartureOnDay(BM$12:BM$191,DB$6,$BW73,DB$4,DB$5) -> 824.4027468 | DC73: =DepartureOnDay(BN$12:BN$191,DC$6,$BW73,DC$4,DC$5) -> 62.50233285 | DD73: 1078.046685 | DF73: =DepartureOnDay(BQ$12:BQ$191,DF$6,$BW73,DF$4,DF$5) -> 0.9066237933 | DG73: =DepartureOnDay(BR$12:BR$191,DG$6,$BW73,DG$4,DG$5) -> 0.04676288942 | DH73: =DepartureOnDay(BS$12:BS$191,DH$6,$BW73,DH$4,DH$5) -> 4.112001663 | DI73: =DepartureOnDay(BT$12:BT$191,DI$6,$BW73,DI$4,DI$5) -> 0.3117525962 | DJ73: 5.377140941 | DL73: =DepartureOnDay(BQ$12:BQ$191,DL$6,$BW73,DL$4,DL$5) -> 17.22445178 | DM73: =DepartureOnDay(BR$12:BR$191,DM$6,$BW73,DM$4,DM$5) -> 0.8884226734 | DN73: =DepartureOnDay(BS$12:BS$191,DN$6,$BW73,DN$4,DN$5) -> 78.12168057 | DO73: =DepartureOnDay(BT$12:BT$191,DO$6,$BW73,DO$4,DO$5) -> 5.922817823 | DP73: 102.1573728 | DQ73: 1180.204058 | DR73: 46637.9323 | DS73: 62 | DT73: 4287.826693 | DU73: 352.610536 | DV73: 134.7922349 | DW73: 6.276614277 | DX73: 10202.21877 | DY73: 1599.268761 | DZ73: 472.6312541 | EA73: 41.84409518 | EB73: 826.6012297 | EC73: 42.63539319 | ED73: 3749.058492 | EE73: 284.2359546 | EF73: 84.30351772 | EG73: 4.348304232 | EH73: 382.3594832 | EI73: 28.98869488 | EJ73: 2500.000006 | EK73: 20000.00002 | EL73: 2000.000006
A74: 63 | B74: ='C4-AnalyticOutput'!B70 -> 1163.677276 | C74: ='C4-AnalyticOutput'!C70 -> 188.4540737 | D74: ='C4-AnalyticOutput'!D70 -> 52.51044168 | E74: ='C4-AnalyticOutput'!E70 -> 9.720301932 | F74: ='C4-AnalyticOutput'!F70 -> 2768.789645 | G74: ='C4-AnalyticOutput'!G70 -> 854.7354151 | H74: ='C4-AnalyticOutput'!H70 -> 184.1209616 | I74: ='C4-AnalyticOutput'!I70 -> 64.80201288 | J74: 4169.098324 | K74: 1117.711804 | T74: 3360.719316 | U74: 227.9875437 | V74: 4169.098324 | W74: 1117.711804 | X74: 227.9875437 | Y74: 889.7242599 | Z74: 889.7242599 | AA74: 0 | AB74: 2470.995056 | AC74: 1698.103268 | AD74: 227.8985529 | AE74: 1088.278235 | AF74: 2257.088574 | AG74: 0.7960229614 | AH74: 0 | AI74: 0.4073070808 | AJ74: 120.4530299 | AK74: 120.4530299 | AL74: 107.5345138 | AM74: 120.3642839 | AN74: 107.534269 | AO74: 0.471668373 | AQ74: 473.9739942 | AR74: 0 | AS74: 21.38787471 | AT74: 0 | AU74: 1127.747628 | AV74: 0 | AW74: 74.99377136 | AX74: 0 | AY74: 1698.103268 | BA74: 689.7032817 | BB74: 20.30922828 | BC74: 31.12256697 | BD74: 1.047532839 | BE74: 1641.042017 | BF74: 92.11271651 | BG74: 109.1271902 | BH74: 6.983552262 | BI74: 2591.448086 | BK74: 150.0137698 | BL74: 7.73758353 | BM74: 680.3890164 | BN74: 51.5838902 | BO74: 889.7242599 | BQ74: 18.13107558 | BR74: 0.9351855628 | BS74: 82.23368223 | BT74: 6.234570419 | BU74: 107.5345138 | BW74: 63 | BX74: =DepartureOnDay(BA$12:BA$191,BX$6,$BW74,BX$4,BX$5) -> 597.7273213 | BY74: =DepartureOnDay(BB$12:BB$191,BY$6,$BW74,BY$4,BY$5) -> 15.08948402 | BZ74: =DepartureOnDay(BC$12:BC$191,BZ$6,$BW74,BZ$4,BZ$5) -> 29.65905394 | CA74: =DepartureOnDay(BD$12:BD$191,CA$6,$BW74,CA$4,CA$5) -> 1.043600444 | CB74: =DepartureOnDay(BE$12:BE$191,CB$6,$BW74,CB$4,CB$5) -> 1422.199481 | CC74: =DepartureOnDay(BF$12:BF$191,CC$6,$BW74,CC$4,CC$5) -> 68.43851204 | CD74: =DepartureOnDay(BG$12:BG$191,CD$6,$BW74,CD$4,CD$5) -> 103.9955741 | CE74: =DepartureOnDay(BH$12:BH$191,CE$6,$BW74,CE$4,CE$5) -> 6.957336293 | CF74: 2153.58143 | CG74: 91.52893281 | CI74: =DepartureOnDay(BA$12:BA$191,CI$6,$BW74,CI$4,CI$5) -> 30.62539585 | CJ74: =DepartureOnDay(BB$12:BB$191,CJ$6,$BW74,CJ$4,CJ$5) -> 5.208869351 | CK74: =DepartureOnDay(BC$12:BC$191,CK$6,$BW74,CK$4,CK$5) -> 0.002966202014 | CL74: =DepartureOnDay(BD$12:BD$191,CL$6,$BW74,CL$4,CL$5) -> 0.0002087618412 | CM74: =DepartureOnDay(BE$12:BE$191,CM$6,$BW74,CM$4,CM$5) -> 72.86838084 | CN74: =DepartureOnDay(BF$12:BF$191,CN$6,$BW74,CN$4,CN$5) -> 23.62488122 | CO74: =DepartureOnDay(BG$12:BG$191,CO$6,$BW74,CO$4,CO$5) -> 0.01040059747 | CP74: =DepartureOnDay(BH$12:BH$191,CP$6,$BW74,CP$4,CP$5) -> 0.001391745608 | CQ74: 103.5071435 | CR74: 28.83535108 | CT74: =DepartureOnDay(BK$12:BK$191,CT$6,$BW74,CT$4,CT$5) -> 10.40890206 | CU74: =DepartureOnDay(BL$12:BL$191,CU$6,$BW74,CU$4,CU$5) -> 0.5368823757 | CV74: =DepartureOnDay(BM$12:BM$191,CV$6,$BW74,CV$4,CV$5) -> 47.20968376 | CW74: =DepartureOnDay(BN$12:BN$191,CW$6,$BW74,CW$4,CW$5) -> 3.579215838 | CX74: 61.73468403 | CZ74: =DepartureOnDay(BK$12:BK$191,CZ$6,$BW74,CZ$4,CZ$5) -> 173.0824648 | DA74: =DepartureOnDay(BL$12:BL$191,DA$6,$BW74,DA$4,DA$5) -> 8.927447332 | DB74: =DepartureOnDay(BM$12:BM$191,DB$6,$BW74,DB$4,DB$5) -> 785.017323 | DC74: =DepartureOnDay(BN$12:BN$191,DC$6,$BW74,DC$4,DC$5) -> 59.51631555 | DD74: 1026.543551 | DF74: =DepartureOnDay(BQ$12:BQ$191,DF$6,$BW74,DF$4,DF$5) -> 0.9066016762 | DG74: =DepartureOnDay(BR$12:BR$191,DG$6,$BW74,DG$4,DG$5) -> 0.04676174865 | DH74: =DepartureOnDay(BS$12:BS$191,DH$6,$BW74,DH$4,DH$5) -> 4.111901351 | DI74: =DepartureOnDay(BT$12:BT$191,DI$6,$BW74,DI$4,DI$5) -> 0.311744991 | DJ74: 5.377009766 | DL74: =DepartureOnDay(BQ$12:BQ$191,DL$6,$BW74,DL$4,DL$5) -> 17.22443263 | DM74: =DepartureOnDay(BR$12:BR$191,DM$6,$BW74,DM$4,DM$5) -> 0.8884216854 | DN74: =DepartureOnDay(BS$12:BS$191,DN$6,$BW74,DN$4,DN$5) -> 78.1215937 | DO74: =DepartureOnDay(BT$12:BT$191,DO$6,$BW74,DO$4,DO$5) -> 5.922811236 | DP74: 102.1572592 | DQ74: 1128.70081 | DR74: 47766.63311 | DS74: 63 | DT74: 4359.704206 | DU74: 352.6043824 | DV74: 136.9220156 | DW74: 6.281057291 | DX74: 10373.24017 | DY74: 1599.240851 | DZ74: 480.09905 | EA74: 41.87371528 | EB74: 784.0285454 | EC74: 40.4395301 | ED74: 3555.969638 | EE74: 269.5968673 | EF74: 84.30351772 | EG74: 4.348304232 | EH74: 382.3594832 | EI74: 28.98869488 | EJ74: 2500.000006 | EK74: 20000.00002 | EL74: 2000.000006
A75: 64 | B75: ='C4-AnalyticOutput'!B71 -> 1107.71255 | C75: ='C4-AnalyticOutput'!C71 -> 179.3907528 | D75: ='C4-AnalyticOutput'!D71 -> 49.98505725 | E75: ='C4-AnalyticOutput'!E71 -> 9.252823496 | F75: ='C4-AnalyticOutput'!F71 -> 2635.630257 | G75: ='C4-AnalyticOutput'!G71 -> 813.6286288 | H75: ='C4-AnalyticOutput'!H71 -> 175.266033 | I75: ='C4-AnalyticOutput'!I71 -> 61.68548997 | J75: 3968.593898 | K75: 1063.957695 | T75: 3345.366808 | U75: 227.8985529 | V75: =J75 -> 3968.593898 | W75: 1063.957695 | X75: 227.8985529 | Y75: 836.0591421 | Z75: 836.0591421 | AA75: 0 | AB75: 2509.307666 | AC75: 1459.286231 | AD75: 227.6180826 | AE75: 1033.949888 | AF75: 2303.283542 | AG75: 0.7858011141 | AH75: 0 | AI75: 0.3677086316 | AJ75: 120.3642839 | AK75: 120.3642839 | AL75: 107.534269 | AM75: 120.0936085 | AN75: 107.5244741 | AO75: 0.471851478 | AQ75: 407.315466 | AR75: 0 | AS75: 18.379937 | AT75: 0 | AU75: 969.1439953 | AV75: 0 | AW75: 64.44683316 | AX75: 0 | AY75: 1459.286231 | BA75: 700.3970841 | BB75: 20.29426508 | BC75: 31.60512025 | BD75: 1.04676105 | BE75: 1666.486262 | BF75: 92.04485076 | BG75: 110.8191999 | BH75: 6.978407 | BI75: 2629.67195 | BK75: 140.9654534 | BL75: 7.270879012 | BM75: 639.350283 | BN75: 48.47252675 | BO75: 836.0591421 | BQ75: 18.13103431 | BR75: 0.9351834341 | BS75: 82.23349505 | BT75: 6.234556227 | BU75: 107.534269 | BW75: 64 | BX75: =DepartureOnDay(BA$12:BA$191,BX$6,$BW75,BX$4,BX$5) -> 610.2413627 | BY75: =DepartureOnDay(BB$12:BB$191,BY$6,$BW75,BY$4,BY$5) -> 15.0007689 | BZ75: =DepartureOnDay(BC$12:BC$191,BZ$6,$BW75,BZ$4,BZ$5) -> 30.18032157 | CA75: =DepartureOnDay(BD$12:BD$191,CA$6,$BW75,CA$4,CA$5) -> 1.045993527 | CB75: =DepartureOnDay(BE$12:BE$191,CB$6,$BW75,CB$4,CB$5) -> 1451.974702 | CC75: =DepartureOnDay(BF$12:BF$191,CC$6,$BW75,CC$4,CC$5) -> 68.03614368 | CD75: =DepartureOnDay(BG$12:BG$191,CD$6,$BW75,CD$4,CD$5) -> 105.8233306 | CE75: =DepartureOnDay(BH$12:BH$191,CE$6,$BW75,CE$4,CE$5) -> 6.97329018 | CF75: 2198.219717 | CG75: 91.05619629 | CI75: =DepartureOnDay(BA$12:BA$191,CI$6,$BW75,CI$4,CI$5) -> 31.08597238 | CJ75: =DepartureOnDay(BB$12:BB$191,CJ$6,$BW75,CJ$4,CJ$5) -> 5.245371388 | CK75: =DepartureOnDay(BC$12:BC$191,CK$6,$BW75,CK$4,CK$5) -> 0.003018333991 | CL75: =DepartureOnDay(BD$12:BD$191,CL$6,$BW75,CL$4,CL$5) -> 0.0002092405535 | CM75: =DepartureOnDay(BE$12:BE$191,CM$6,$BW75,CM$4,CM$5) -> 73.96425126 | CN75: =DepartureOnDay(BF$12:BF$191,CN$6,$BW75,CN$4,CN$5) -> 23.79043659 | CO75: =DepartureOnDay(BG$12:BG$191,CO$6,$BW75,CO$4,CO$5) -> 0.0105833914 | CP75: =DepartureOnDay(BH$12:BH$191,CP$6,$BW75,CP$4,CP$5) -> 0.001394937023 | CQ75: 105.0638254 | CR75: 29.03741216 | CT75: =DepartureOnDay(BK$12:BK$191,CT$6,$BW75,CT$4,CT$5) -> 9.985007778 | CU75: =DepartureOnDay(BL$12:BL$191,CU$6,$BW75,CU$4,CU$5) -> 0.5150182668 | CV75: =DepartureOnDay(BM$12:BM$191,CV$6,$BW75,CV$4,CV$5) -> 45.28710684 | CW75: =DepartureOnDay(BN$12:BN$191,CW$6,$BW75,CW$4,CW$5) -> 3.433455112 | CX75: 59.22058799 | CZ75: =DepartureOnDay(BK$12:BK$191,CZ$6,$BW75,CZ$4,CZ$5) -> 164.3462176 | DA75: =DepartureOnDay(BL$12:BL$191,DA$6,$BW75,DA$4,DA$5) -> 8.47683908 | DB75: =DepartureOnDay(BM$12:BM$191,DB$6,$BW75,DB$4,DB$5) -> 745.3939827 | DC75: =DepartureOnDay(BN$12:BN$191,DC$6,$BW75,DC$4,DC$5) -> 56.51226053 | DD75: 974.7292999 | DF75: =DepartureOnDay(BQ$12:BQ$191,DF$6,$BW75,DF$4,DF$5) -> 0.9064651188 | DG75: =DepartureOnDay(BR$12:BR$191,DG$6,$BW75,DG$4,DG$5) -> 0.04675470513 | DH75: =DepartureOnDay(BS$12:BS$191,DH$6,$BW75,DH$4,DH$5) -> 4.111281993 | DI75: =DepartureOnDay(BT$12:BT$191,DI$6,$BW75,DI$4,DI$5) -> 0.3116980342 | DJ75: 5.376199851 | DL75: =DepartureOnDay(BQ$12:BQ$191,DL$6,$BW75,DL$4,DL$5) -> 17.2229177 | DM75: =DepartureOnDay(BR$12:BR$191,DM$6,$BW75,DM$4,DM$5) -> 0.8883435466 | DN75: =DepartureOnDay(BS$12:BS$191,DN$6,$BW75,DN$4,DN$5) -> 78.11472271 | DO75: =DepartureOnDay(BT$12:BT$191,DO$6,$BW75,DO$4,DO$5) -> 5.922290311 | DP75: 102.1482743 | DQ75: 1076.877574 | DR75: 48843.51069 | DS75: 64 | DT75: 4431.748573 | DU75: 352.6002941 | DV75: 138.8651157 | DW75: 6.284009136 | DX75: 10544.65857 | DY75: 1599.222308 | DZ75: 486.9122751 | EA75: 41.89339424 | EB75: 741.5026319 | EC75: 38.2460794 | ED75: 3363.092914 | EE75: 254.9738627 | EF75: 84.30351772 | EG75: 4.348304232 | EH75: 382.3594832 | EI75: 28.98869488 | EJ75: 2500.000006 | EK75: 20000.00002 | EL75: 2000.000006
